Workbook

Sheet START

Sheet Instructions
D2: 2020
X4: Yes
X5: No
W7: Type of Entities Range: | X7: Parent Municipality
X8: Consolidated Information
W17: MTREF Range: | X17: 2008
X18: 2009
X19: 2010
X20: 2011
X21: 2012
X22: 2013
X23: 2014
X24: 2015
X25: 2016
X26: 2017
X27: 2018
X28: 2019
X29: 2020
X30: 2021
X31: 2022
W33: MTREF Linked: | X33: 9
W34: MTREF: | X34: =INDEX(X17:X31,X33,1) -> 2016
W36: Fin Year: | X36: =MTREF&"/"&RIGHT(MTREF,2)+1 -> 2016/17

Sheet Template names (hidden)
A1: Common sheet headings
A2: Head1 | B2: =HLOOKUP(MTREF,Headings,2) -> 2014/15 | C2: Prior year -1
A3: Head1A | B3: =HLOOKUP(MTREF,Headings,3) -> 2013/14 | C3: Prior year -2
A4: Head1B | B4: =HLOOKUP(MTREF,Headings,4) -> 2012/13 | C4: Prior year -3
A5: Head2 | B5: =HLOOKUP(MTREF,Headings,5) -> Current Year 2015/16 | C5: Year in which budget is being prepared
A6: Head2A | B6: =HLOOKUP(MTREF,Headings,6) -> 2015/16 | C6: Year in which budget is being prepared
A7: Head3 | B7: =HLOOKUP(MTREF,Headings,7) -> 2016/17 Medium Term Revenue & Expenditure Framework | C7: MTREF name
A8: Head4 | B8: LTFS | C8: Long term financial strategy
A9: Head5 | B9: Audited Outcome
A10: Head5A | B10: Outcome
A11: Head5B | B11: Pre-audit outcome
A12: Head6 | B12: Original Budget
A13: Head7 | B13: Adjusted Budget
A14: Head8 | B14: Full Year Forecast
A15: Head9 | B15: =HLOOKUP(MTREF,Headings,8) -> Budget Year 2016/17 | C15: 1st year of MTREF | D15: Year1
A16: Head10 | B16: =HLOOKUP(MTREF,Headings,9) -> Budget Year +1 2017/18 | C16: 2nd year of MTREF | D16: Year2
A17: Head11 | B17: =HLOOKUP(MTREF,Headings,10) -> Budget Year +2 2018/19 | C17: 3rd year of MTREF | D17: Year3
A18: Head12 | B18: =HLOOKUP(MTREF,Headings,11) -> Forecast 2019/20 | C18: 1st yr of long term forecast | D18: Year4
A19: Head13 | B19: =HLOOKUP(MTREF,Headings,12) -> Forecast 2020/21 | C19: Next yr of long term forecast | D19: Year5
A20: Head14 | B20: =HLOOKUP(MTREF,Headings,13) -> Forecast 2021/22 | C20: Next yr of long term forecast | D20: Year6
A21: Head15 | B21: =HLOOKUP(MTREF,Headings,14) -> Forecast 2022/23 | C21: Next yr of long term forecast | D21: Year7
A22: Head16 | B22: =HLOOKUP(MTREF,Headings,15) -> Forecast 2023/24 | C22: Next yr of long term forecast | D22: Year8
A23: Head17 | B23: =HLOOKUP(MTREF,Headings,16) -> Forecast 2024/25 | C23: Next yr of long term forecast | D23: Year9
A24: Head18 | B24: =HLOOKUP(MTREF,Headings,17) -> Forecast 2025/26 | C24: Next yr of long term forecast | D24: Year10
A25: Head19 | B25: =HLOOKUP(MTREF,Headings,18) -> Forecast 2026/27 | C25: Next yr of long term forecast | D25: Year11
A26: Head20 | B26: =HLOOKUP(MTREF,Headings,19) -> Forecast 2027/28 | C26: Next yr of long term forecast | D26: Year12
A27: Head21 | B27: =HLOOKUP(MTREF,Headings,20) -> Forecast 2028/29 | C27: Next yr of long term forecast | D27: Year13
A28: Head22 | B28: =HLOOKUP(MTREF,Headings,21) -> Forecast 2029/30 | C28: Next yr of long term forecast | D28: Year14
A29: Head23 | B29: =HLOOKUP(MTREF,Headings,22) -> Forecast 2030/31 | C29: Next yr of long term forecast | D29: Year15
A30: Head24 | B30: Description
A31: Head25
A32: Head26 | B32: Vote Description
A33: Head27 | B33: Ref
A34: Head27a | B34: References
A35: Head28 | B35: Surplus/(Deficit) for the year | D35: Result
A36: Head29 | B36: =HLOOKUP(MTREF,Headings,23) -> Annual target 2016/17
A37: Head30 | B37: =HLOOKUP(MTREF,Headings,24) -> Revised target 2016/17
A38: Head31 | B38: Quarter ended 30 September
A39: Head32 | B39: Quarter ended 31 December
A40: Head33 | B40: Quarter ended 31 March
A41: Head34 | B41: Quarter ended 30 June
A42: Head35 | B42: Variance explanation
A43: Head36 | B43: YTD Actual 31 Dec
A44: Head37 | B44: YTD Budget 31 Dec
A45: Head38 | B45: Monthly actual
A46: Head39 | B46: YTD actual
A47: Head40 | B47: YTD budget
A48: Head41 | B48: YTD variance
A49: Head42 | B49: Surplus/ (Deficit) for the yr/period
A50: Head43 | B50: =Head3&" Summary" -> 2016/17 Medium Term Revenue & Expenditure Framework Summary
A51: Head44 | B51: 2001 Census
A52: Head45 | B52: 2011 Census
A53: Head46 | B53: - Adjustments Budget - January 2007
A54: Head47 | B54: Previous target year to complete
A55: Head48 | B55: Present value
A56: Head49
A57: Head50 | B57: Other Adjusts.
A58: Head51 | B58: Accum. Funds
A59: Head52 | B59: Multi-year capital
A60: Head53 | B60: Unfore. Unavoid.
A61: Head54 | B61: Prior Adjusted
A62: Head55 | B62: Nat. or Prov. Govt
A63: Head56 | B63: Total Adjusts.
A64: SFPerf1 | B64: Budgeted Financial Performance
A65: SFPerf2 | B65: Forecast Financial Performance
A66: SFPos1 | B66: Budgeted Financial Position
A67: SFPos2 | B67: Forecast Financial Position
A68: Cash1 | B68: Budget Cash Flow
A69: Cash2 | B69: Forecast Cash Flow
A70: RandM | B70: Expenditure includes repairs & maintenance of R'000
A71: Depart1 | B71: Department 1 - | D71: DEP1
A72: Depart2 | B72: Department 2 - | D72: DEP2
A73: Depart3 | B73: Department 3 - | D73: DEP3
A74: Depart4 | B74: Department 4 - | D74: DEP4
A75: Depart5 | B75: Department 5 - | D75: DEP5
A76: Depart6 | B76: Department 6 - | D76: DEP6
A77: Depart7 | B77: Department 7 - | D77: DEP7
A78: Depart8 | B78: Department 8 - | D78: DEP8
A79: Depart9 | B79: Department 9 - | D79: DEP9
A80: Depart10 | B80: Department 10 - | D80: DEP10
A81: Depart11 | B81: Department 11 - | D81: DEP11
A82: Depart12 | B82: Department 12 - | D82: DEP12
A83: Depart13 | B83: Department 13 - | D83: DEP13
A84: Depart14 | B84: Department 14 - | D84: DEP14
A87: Base year of forecast column selection names
A88: Choose | B88: ACT
B89: APP
B90: ADJ
A92: Standard nomenclature
A93: Muni | B93: ='Lookup and lists'!B28 -> FS193 Nketoana
A94: Municipal Entities | B94: 2 | C94: Type of report: | D94: 3
A95: =IF((MuniEntities=1)*(MuniType=2),"YES","NO") -> NO | B95: Does this municipality have entities (consolidated budget and entity budgets required)? YES/NO
A96: Entity 1 | B96: (Pty) Ltd Example 1 - Municipal entity - | D96: Ent1
A97: Entity 2 | B97: (Pty) Ltd Example 2 - Municipal entity - | D97: Ent2
A98: Entity 3 | B98: Municipal Entity Example 3 | D98: Ent3
A99: Budget approval tables | C99: Chart x-ref | D99: Sch/Tab/Ch | E99: Alternative for municipalities without entities | F99: Alternative for municipalities without entities
B100: =IF(Consolques="YES",E100,F100) -> Table A1 Budget Summary | D100: Table A1 | E100: =D100&"Consolidated Budget Summary" -> Table A1 Consolidated Budget Summary | F100: =D100&"Budget Summary" -> Table A1 Budget Summary
B101: Table A2 Budgeted Financial Performance (revenue and expenditure by standard classification) | C101: Charts 5, 6 | D101: Table A2 | E101: =D101&"Consolidated Budgeted Financial Performance (revenue and expenditure by standard classification)" -> Table A2 Consolidated Budgeted Financial Performance (revenue and expenditure by standard classification) | F101: =D101&"Budgeted Financial Performance (revenue and expenditure by standard classification)" -> Table A2 Budgeted Financial Performance (revenue and expenditure by standard classification)
B102: Table A3 Budgeted Financial Performance (revenue and expenditure by municipal vote) | D102: Table A3 | E102: =D102&"Consolidated Budgeted Financial Performance (revenue and expenditure by municipal vote)" -> Table A3 Consolidated Budgeted Financial Performance (revenue and expenditure by municipal vote) | F102: =D102&"Budgeted Financial Performance (revenue and expenditure by municipal vote)" -> Table A3 Budgeted Financial Performance (revenue and expenditure by municipal vote)
B103: Table A4 Budgeted Financial Performance (revenue and expenditure) | C103: Charts 1, 2, 3, 4 | D103: Table A4 | E103: =D103&"Consolidated Budgeted Financial Performance (revenue and expenditure)" -> Table A4 Consolidated Budgeted Financial Performance (revenue and expenditure) | F103: =D103&"Budgeted Financial Performance (revenue and expenditure)" -> Table A4 Budgeted Financial Performance (revenue and expenditure)
B104: Table A5 Budgeted Capital Expenditure by vote, standard classification and funding | C104: Charts 7, 8, 9, 10, 20 | D104: Table A5 | E104: =D104&"Consolidated Budgeted Capital Expenditure by vote, standard classification and funding" -> Table A5 Consolidated Budgeted Capital Expenditure by vote, standard classification and funding | F104: =D104&"Budgeted Capital Expenditure by vote, standard classification and funding" -> Table A5 Budgeted Capital Expenditure by vote, standard classification and funding
B105: Table A6 Budgeted Financial Position | D105: Table A6 | E105: =D105&"Consolidated Budgeted Financial Position" -> Table A6 Consolidated Budgeted Financial Position | F105: =D105&"Budgeted Financial Position" -> Table A6 Budgeted Financial Position
B106: Table A7 Budgeted Cash Flows | D106: Table A7 | E106: =D106&"Consolidated Budgeted Cash Flows" -> Table A7 Consolidated Budgeted Cash Flows | F106: =D106&"Budgeted Cash Flows" -> Table A7 Budgeted Cash Flows
B107: Table A8 Cash backed reserves/accumulated surplus reconciliation | D107: Table A8 | E107: =D107&"Consolidated Cash backed reserves/accumulated surplus reconciliation" -> Table A8 Consolidated Cash backed reserves/accumulated surplus reconciliation | F107: =D107&"Cash backed reserves/accumulated surplus reconciliation" -> Table A8 Cash backed reserves/accumulated surplus reconciliation
B108: Table A9 Asset Management | D108: Table A9 | E108: =D108&"Consolidated Asset Management" -> Table A9 Consolidated Asset Management | F108: =D108&"Asset Management" -> Table A9 Asset Management
B109: Table A10 Basic service delivery measurement | D109: Table A10 | E109: =D109&"Consolidated basic service delivery measurement" -> Table A10 Consolidated basic service delivery measurement | F109: =D109&"Basic service delivery measurement" -> Table A10 Basic service delivery measurement
A110: Supportinging Tables to the Budget Approval Tables | C110: =$C$99 -> Chart x-ref | D110: =$D$99 -> Sch/Tab/Ch
A111: Supporting Table SA1 | B111: =A111&" Supportinging detail to 'Budgeted Financial Performance'" -> Supporting Table SA1 Supportinging detail to 'Budgeted Financial Performance'
A112: Supporting Table SA2 | B112: =IF(Consolques="YES",E112,F112) -> Supporting Table SA2 Matrix Financial Performance Budget (revenue source/expenditure type and dept.) | E112: =A112&"Consolidated Matrix Financial Performance Budget (revenue source/expenditure type & dept.)" -> Supporting Table SA2 Consolidated Matrix Financial Performance Budget (revenue source/expenditure type & dept.) | F112: =A112&"Matrix Financial Performance Budget (revenue source/expenditure type and dept.)" -> Supporting Table SA2 Matrix Financial Performance Budget (revenue source/expenditure type and dept.)
A113: Supporting Table SA3 | B113: =A113&"Supportinging detail to 'Budgeted Financial Position'" -> Supporting Table SA3 Supportinging detail to 'Budgeted Financial Position'
A114: Supporting Table SA4 | B114: =A114&"Reconciliation of IDP strategic objectives and budget (revenue)" -> Supporting Table SA4 Reconciliation of IDP strategic objectives and budget (revenue) | C114: Chart 11
A115: Supporting Table SA5 | B115: =A115&"Reconciliation of IDP strategic objectives and budget (operating expenditure)" -> Supporting Table SA5 Reconciliation of IDP strategic objectives and budget (operating expenditure) | C115: Chart 12
A116: Supporting Table SA6 | B116: =A116&"Reconciliation of IDP strategic objectives and budget (capital expenditure)" -> Supporting Table SA6 Reconciliation of IDP strategic objectives and budget (capital expenditure) | C116: Chart 13
A117: Supporting Table SA7 | B117: =A117&" Measureable performance objectives" -> Supporting Table SA7 Measureable performance objectives
A118: Supporting Table SA8 | B118: =A118&" Performance indicators and benchmarks" -> Supporting Table SA8 Performance indicators and benchmarks | C118: Chts 15-19
A119: Supporting Table SA9 | B119: =A119&" Social, economic and demographic statistics and assumptions" -> Supporting Table SA9 Social, economic and demographic statistics and assumptions
A120: Supporting Table SA10 | B120: =A120&" Funding measurement" -> Supporting Table SA10 Funding measurement | C120: Chart 14
A121: Supporting Table SA11 | B121: =A121&" Property rates summary" -> Supporting Table SA11 Property rates summary
A122: Supporting Table SA12a | B122: =A122&" Property rates by category (current year)" -> Supporting Table SA12a Property rates by category (current year)
A123: Supporting Table SA12b | B123: =A123&" Property rates by category (budget year)" -> Supporting Table SA12b Property rates by category (budget year)
A124: Supporting Table SA13a | B124: =A124&" Service Tariffs by category" -> Supporting Table SA13a Service Tariffs by category
A125: Supporting Table SA13b | B125: =A125&" Service Tariffs by category - explanatory" -> Supporting Table SA13b Service Tariffs by category - explanatory
A126: Supporting Table SA14 | B126: =A126&" Household bills" -> Supporting Table SA14 Household bills
A127: Supporting Table SA15 | B127: =A127&" Investment particulars by type" -> Supporting Table SA15 Investment particulars by type
A128: Supporting Table SA16 | B128: =A128&" Investment particulars by maturity" -> Supporting Table SA16 Investment particulars by maturity
A129: Supporting Table SA17 | B129: =A129&" Borrowing" -> Supporting Table SA17 Borrowing
A130: Supporting Table SA18 | B130: =A130&" Transfers and grant receipts" -> Supporting Table SA18 Transfers and grant receipts
A131: Supporting Table SA19 | B131: =A131&" Expenditure on transfers and grant programme" -> Supporting Table SA19 Expenditure on transfers and grant programme
A132: Supporting Table SA20 | B132: =A132&" Reconciliation of transfers, grant receipts and unspent funds" -> Supporting Table SA20 Reconciliation of transfers, grant receipts and unspent funds
A133: Supporting Table SA21 | B133: =A133&" Transfers and grants made by the municipality" -> Supporting Table SA21 Transfers and grants made by the municipality
A134: Supporting Table SA22 | B134: =A134&" Summary councillor and staff benefits" -> Supporting Table SA22 Summary councillor and staff benefits
A135: Supporting Table SA23 | B135: =A135&" Salaries, allowances & benefits (political office bearers/councillors/senior managers)" -> Supporting Table SA23 Salaries, allowances & benefits (political office bearers/councillors/senior managers)
A136: Supporting Table SA24 | B136: =A136&" Summary of personnel numbers" -> Supporting Table SA24 Summary of personnel numbers
A137: Supporting Table SA25 | B137: =IF(Consolques="YES",E137,F137) -> Supporting Table SA25 Budgeted monthly revenue and expenditure | E137: =A137&" Consolidated budgeted monthly revenue and expenditure" -> Supporting Table SA25 Consolidated budgeted monthly revenue and expenditure | F137: =A137&" Budgeted monthly revenue and expenditure" -> Supporting Table SA25 Budgeted monthly revenue and expenditure
A138: Supporting Table SA26 | B138: Supporting Table SA26 Budgeted monthly revenue and expenditure (municipal vote) | E138: =A138&" Consolidated budgeted monthly revenue and expenditure (municipal vote)" -> Supporting Table SA26 Consolidated budgeted monthly revenue and expenditure (municipal vote) | F138: =A138&" Budgeted monthly revenue and expenditure (municipal vote)" -> Supporting Table SA26 Budgeted monthly revenue and expenditure (municipal vote)
A139: Supporting Table SA27 | B139: Supporting Table SA27 Budgeted monthly revenue and expenditure (standard classification) | E139: =A139&" Consolidated budgeted monthly revenue and expenditure (standard classification)" -> Supporting Table SA27 Consolidated budgeted monthly revenue and expenditure (standard classification) | F139: =A139&" Budgeted monthly revenue and expenditure (standard classification)" -> Supporting Table SA27 Budgeted monthly revenue and expenditure (standard classification)
A140: Supporting Table SA28 | B140: Supporting Table SA28 Budgeted monthly capital expenditure (municipal vote) | E140: =A140&" Consolidated budgeted monthly capital expenditure (municipal vote)" -> Supporting Table SA28 Consolidated budgeted monthly capital expenditure (municipal vote) | F140: =A140&" Budgeted monthly capital expenditure (municipal vote)" -> Supporting Table SA28 Budgeted monthly capital expenditure (municipal vote)
A141: Supporting Table SA29 | B141: Supporting Table SA29 Budgeted monthly capital expenditure (standard classification) | E141: =A141&" Consolidated budgeted monthly capital expenditure (standard classification)" -> Supporting Table SA29 Consolidated budgeted monthly capital expenditure (standard classification) | F141: =A141&" Budgeted monthly capital expenditure (standard classification)" -> Supporting Table SA29 Budgeted monthly capital expenditure (standard classification)
A142: Supporting Table SA30 | B142: Supporting Table SA30 Budgeted monthly cash flow | E142: =A142&" Consolidated budgeted monthly cash flow" -> Supporting Table SA30 Consolidated budgeted monthly cash flow | F142: =A142&" Budgeted monthly cash flow" -> Supporting Table SA30 Budgeted monthly cash flow
A143: Supporting Table SA31 | B143: NOT REQUIRED - municipality does not have entities | E143: =A143&" Aggregated entity budget" -> Supporting Table SA31 Aggregated entity budget | F143: NOT REQUIRED - municipality does not have entities
A144: Supporting Table SA32 | B144: =A144&" List of external mechanisms" -> Supporting Table SA32 List of external mechanisms
A145: Supporting Table SA33 | B145: =A145&" Contracts having future budgetary implications" -> Supporting Table SA33 Contracts having future budgetary implications
A146: Supporting Table SA34a | B146: =IF(Consolques="YES",E146,F146) -> Supporting Table SA34a Capital expenditure on new assets by asset class | E146: =A146&" Consolidated capital expenditure on new assets by asset class" -> Supporting Table SA34a Consolidated capital expenditure on new assets by asset class | F146: =A146&" Capital expenditure on new assets by asset class" -> Supporting Table SA34a Capital expenditure on new assets by asset class
A147: Supporting Table SA34b | B147: Supporting Table SA34b Capital expenditure on the renewal of existing assets by asset class | E147: =A147&" Consolidated capital expenditure on existing assets by asset class" -> Supporting Table SA34b Consolidated capital expenditure on existing assets by asset class | F147: =A147&" Capital expenditure on the renewal of existing assets by asset class" -> Supporting Table SA34b Capital expenditure on the renewal of existing assets by asset class
A148: Supporting Table SA34c | B148: Supporting Table SA34c Repairs and maintenance expenditure by asset class | E148: =A148&" Consolidated repairs and maintenance by asset class" -> Supporting Table SA34c Consolidated repairs and maintenance by asset class | F148: =A148&" Repairs and maintenance expenditure by asset class" -> Supporting Table SA34c Repairs and maintenance expenditure by asset class
A149: Supporting Table SA34d | B149: =IF(Consolques="YES",E149,F149) -> Supporting Table SA34d Depreciation by asset class | E149: =A149&" Consolidated Depreciation by asset class" -> Supporting Table SA34d Consolidated Depreciation by asset class | F149: =A149&" Depreciation by asset class" -> Supporting Table SA34d Depreciation by asset class
A150: Supporting Table SA35 | B150: Supporting Table SA35 Future financial implications of the capital budget | E150: =A150&" Consolidated future financial implications of the capital budget" -> Supporting Table SA35 Consolidated future financial implications of the capital budget | F150: =A150& " Future financial implications of the capital budget" -> Supporting Table SA35 Future financial implications of the capital budget
A151: Supporting Table SA36 | B151: Supporting Table SA36 Detailed capital budget | E151: =A151&" Consolidated detailed capital budget" -> Supporting Table SA36 Consolidated detailed capital budget | F151: =A151& " Detailed capital budget" -> Supporting Table SA36 Detailed capital budget
A152: Supporting Table SA37 | B152: Supporting Table SA37 Projects delayed from previous financial year/s | E152: =A152&" Consolidated projects delayed from previous financial year/s" -> Supporting Table SA37 Consolidated projects delayed from previous financial year/s | F152: =A152& " Projects delayed from previous financial year/s" -> Supporting Table SA37 Projects delayed from previous financial year/s
A154: Budget Charts | B154: Charts | C154: Cross reference
A155: Chart A1 | B155: =A155&"Revenue by Municipal Vote" -> Chart A1 Revenue by Municipal Vote
A156: Chart A2 | B156: =A156&"Expenditure by Municipal Vote" -> Chart A2 Expenditure by Municipal Vote
A157: Chart A3 | B157: =A157&"Revenue by Standard Classification" -> Chart A3 Revenue by Standard Classification | C157: A2
A158: Chart A4 | B158: =A158&"Expenditure by Standard Classification" -> Chart A4 Expenditure by Standard Classification | C158: A2
A159: Chart A5 | B159: =A159&"Revenue by Major Source (refer 'Minor' source for 'Other Revenue' allocation" -> Chart A5 Revenue by Major Source (refer 'Minor' source for 'Other Revenue' allocation | C159: A3
A160: Chart A6 | B160: =A160&"Revenue by Minor Source (Other)" -> Chart A6 Revenue by Minor Source (Other) | C160: A3
A161: Chart A7 | B161: =A161&"Expenditure by Major Type" -> Chart A7 Expenditure by Major Type | C161: A3
A162: Chart A8 | B162: =A162&"Expenditure by Minor Type (Other)" -> Chart A8 Expenditure by Minor Type (Other) | C162: A3
A163: Chart A9 | B163: =A163&"Capital Expenditure by Municipal Vote/Appropriation (Major)" -> Chart A9 Capital Expenditure by Municipal Vote/Appropriation (Major) | C163: A5
A164: Chart A10 | B164: =A164&"Capital Expenditure by Municipal Vote/Appropriation (Minor)" -> Chart A10 Capital Expenditure by Municipal Vote/Appropriation (Minor) | C164: A5
A165: Chart A11 | B165: =A164&"Capital Expenditure by Standard Classification" -> Chart A10 Capital Expenditure by Standard Classification | C165: A5
A166: Chart A12 | B166: =A166&"Capital expenditure performance trend" -> Chart A12 Capital expenditure performance trend | C166: A5
A167: Chart A13 | B167: =A167&"Capital funding by Source" -> Chart A13 Capital funding by Source | C167: A5
A168: Chart A14 | B168: =A168&"Cash flow trend" -> Chart A14 Cash flow trend | C168: A7
A169: Chart A15 | B169: =A169&"IDP Strategic Objective - Revenue" -> Chart A15 IDP Strategic Objective - Revenue | C169: Table A4
A170: Chart A16 | B170: =A170&"IDP Strategic Objective - Expenditure" -> Chart A16 IDP Strategic Objective - Expenditure | C170: Table A5
A171: Chart A17 | B171: =A171&"IDP Strategic Objective - Capital Expenditure" -> Chart A17 IDP Strategic Objective - Capital Expenditure | C171: Table A6
A172: Chart A18 | B172: =A172&"Debt (borrowing to Total Revenue)" -> Chart A18 Debt (borrowing to Total Revenue) | C172: Table A8
A173: Chart A19 | B173: =A173&"Debtors' trend analysis" -> Chart A19 Debtors' trend analysis | C173: Table A8
A174: Chart A20 | B174: =A174&"Distribution losses" -> Chart A20 Distribution losses | C174: Table A8
A175: Chart A21 | B175: =A175&"Borrowed funding of capital expenditure" -> Chart A21 Borrowed funding of capital expenditure | C175: Table A8
A176: Chart A22 | B176: =A176&"Expenditure analysis (% of Revenue)" -> Chart A22 Expenditure analysis (% of Revenue) | C176: Table A8
A177: Chart A23 | B177: =A177&"Increases in service charges" -> Chart A23 Increases in service charges | C177: Table A10

Sheet Lookup and lists (hidden)
A1: Description | B1: 2007 | C1: 2008 | D1: 2009 | E1: 2010 | F1: 2011 | G1: 2012 | H1: 2013 | I1: 2014 | J1: 2015 | K1: 2016 | L1: 2017 | M1: 2018 | N1: 2019 | O1: 2020 | Q1: Lists | Y1: Grants: | Z1: National - opex | AA1: Provincial - opex | AB1: National - capex | AC1: Provincial - capex
A2: ='Template names'!C2 -> Prior year -1 | B2: 2005/06 | C2: 2006/07 | D2: 2007/08 | E2: =E1-2&"/"&RIGHT(E1,2)-1 -> 2008/9 | F2: 2009/10 | G2: 2010/11 | H2: 2011/12 | I2: 2012/13 | J2: 2013/14 | K2: 2014/15 | L2: 2015/16 | M2: 2016/17 | N2: 2017/18 | O2: 2018/19 | Q2: Yes | R2: <1 | S2: <4 | T2: Market | U2: Land & impr. | V2: Yes | W2: Uniform | X2: Yrs | Z2: Local Government Equitable Share | AA2: Health subsidy | AB2: Municipal Infrastructure Grant (MIG) | AC2: Agriculture
A3: ='Template names'!C3 -> Prior year -2 | B3: 2004/05 | C3: 2005/06 | D3: 2006/07 | E3: =E1-3&"/"&RIGHT(E1,2)-2 -> 2007/8 | F3: 2008/9 | G3: 2009/10 | H3: 2010/11 | I3: 2011/12 | J3: 2012/13 | K3: 2013/14 | L3: 2014/15 | M3: 2015/16 | N3: 2016/17 | O3: 2017/18 | Q3: No | R3: 1 | S3: 4 | T3: Dep.Replace | U3: Land only | V3: No | W3: Variable | X3: Mths | Z3: RSC Levy Replacement | AA3: Ambulance subsidy | AB3: Public Transport and Systems | AC3: Education
A4: ='Template names'!C4 -> Prior year -3 | B4: 2003/04 | C4: 2004/05 | D4: 2005/06 | E4: =E1-4&"/"&RIGHT(E1,2)-3 -> 2006/7 | F4: 2007/8 | G4: 2008/9 | H4: 2009/10 | I4: 2010/11 | J4: 2011/12 | K4: 2012/13 | L4: 2013/14 | M4: 2014/15 | N4: 2015/16 | O4: 2016/17 | R4: 2 | S4: 5 | T4: Other | U4: Other | Z4: Finance Management | AA4: Housing | AB4: Rural Transport Services and Infrastructure | AC4: Health
A5: ='Template names'!C5 -> Year in which budget is being prepared | B5: Current Year 2006/07 | C5: Current Year 2007/08 | D5: Current Year 2008/09 | E5: ="Current Year "& E1-1&"/"&RIGHT(E1,2) -> Current Year 2009/10 | F5: Current Year 2010/11 | G5: Current Year 2011/12 | H5: Current Year 2012/13 | I5: Current Year 2013/14 | J5: Current Year 2014/15 | K5: Current Year 2015/16 | L5: Current Year 2016/17 | M5: Current Year 2017/18 | N5: Current Year 2018/19 | O5: Current Year 2019/20 | R5: 3 | S5: 6 | Z5: Municipal Systems Improvement | AA5: Sport and Recreation | AB5: Regional Bulk Infrastructure | AC5: Housing and Local Government
A6: ='Template names'!C6 -> Year in which budget is being prepared | B6: 2006/07 | C6: 2007/08 | D6: 2008/09 | E6: =E1-1&"/"&RIGHT(E1,2) -> 2009/10 | F6: 2010/11 | G6: 2011/12 | H6: 2012/13 | I6: 2013/14 | J6: 2014/15 | K6: 2015/16 | L6: 2016/17 | M6: 2017/18 | N6: 2018/19 | O6: 2019/20 | R6: 4 | S6: 6-10 | Z6: Water Services Operating Subsidy | AB6: Rural Households Infrastructure | AC6: Other Departments
A7: ='Template names'!C7 -> MTREF name | B7: 2007/08 Medium Term Revenue & Expenditure Framework | C7: 2008/09 Medium Term Revenue & Expenditure Framework | D7: 2009/10 Medium Term Revenue & Expenditure Framework | E7: =E1&"/"&RIGHT(E1,2)+1&" Medium Term Revenue & Expenditure Framework" -> 2010/11 Medium Term Revenue & Expenditure Framework | F7: 2011/12 Medium Term Revenue & Expenditure Framework | G7: 2012/13 Medium Term Revenue & Expenditure Framework | H7: 2013/14 Medium Term Revenue & Expenditure Framework | I7: 2014/15 Medium Term Revenue & Expenditure Framework | J7: 2015/16 Medium Term Revenue & Expenditure Framework | K7: 2016/17 Medium Term Revenue & Expenditure Framework | L7: 2017/18 Medium Term Revenue & Expenditure Framework | M7: 2018/19 Medium Term Revenue & Expenditure Framework | N7: 2019/20 Medium Term Revenue & Expenditure Framework | O7: 2020/21 Medium Term Revenue & Expenditure Framework | R7: 5 | S7: >10 | Z7: Energy Efficiency and Demand Management | AB7: Neighbourhood Development Partnership | AC7: Public Works, Roads, Transport
A8: ='Template names'!C15 -> 1st year of MTREF | B8: Budget Year 2007/08 | C8: Budget Year 2008/09 | D8: Budget Year 2009/10 | E8: ="Budget Year "&E1&"/"&RIGHT(E1,2)+1 -> Budget Year 2010/11 | F8: Budget Year 2011/12 | G8: Budget Year 2012/13 | H8: Budget Year 2013/14 | I8: Budget Year 2014/15 | J8: Budget Year 2015/16 | K8: Budget Year 2016/17 | L8: Budget Year 2017/18 | M8: Budget Year 2018/19 | N8: Budget Year 2019/20 | O8: Budget Year 2020/21 | R8: >5 | Z8: Integrated National Electrification Programme | AB8: 2010 FIFA World Cup Stadiums Development | AC8: Sport and Recreation
A9: ='Template names'!C16 -> 2nd year of MTREF | B9: Budget Year +1 2008/09 | C9: Budget Year +1 2009/10 | D9: Budget Year +1 2010/11 | E9: ="Budget Year +1 "&E1+1&"/"&RIGHT(E1,2)+2 -> Budget Year +1 2011/12 | F9: Budget Year +1 2012/13 | G9: Budget Year +1 2013/14 | H9: Budget Year +1 2014/15 | I9: Budget Year +1 2015/16 | J9: Budget Year +1 2016/17 | K9: Budget Year +1 2017/18 | L9: Budget Year +1 2018/19 | M9: Budget Year +1 2019/20 | N9: Budget Year +1 2020/21 | O9: Budget Year +1 2021/22 | Z9: Municipal Drought Relief
A10: ='Template names'!C17 -> 3rd year of MTREF | B10: Budget Year +2 2009/10 | C10: Budget Year +2 2010/11 | D10: Budget Year +2 2011/12 | E10: ="Budget Year +2 "&E1+2&"/"&RIGHT(E1,2)+3 -> Budget Year +2 2012/13 | F10: Budget Year +2 2013/14 | G10: Budget Year +2 2014/15 | H10: Budget Year +2 2015/16 | I10: Budget Year +2 2016/17 | J10: Budget Year +2 2017/18 | K10: Budget Year +2 2018/19 | L10: Budget Year +2 2019/20 | M10: Budget Year +2 2020/21 | N10: Budget Year +2 2021/22 | O10: Budget Year +2 2022/23 | Z10: 2010 FIFA World Cup Operating
A11: ='Template names'!C18 -> 1st yr of long term forecast | B11: Forecast 2010/11 | C11: Forecast 2011/12 | D11: Forecast 2012/13 | E11: ="Forecast "&E1+3&"/"&RIGHT(E1,2)+4 -> Forecast 2013/14 | F11: Forecast 2014/15 | G11: Forecast 2015/16 | H11: Forecast 2016/17 | I11: Forecast 2017/18 | J11: Forecast 2018/19 | K11: Forecast 2019/20 | L11: Forecast 2020/21 | M11: Forecast 2021/22 | N11: Forecast 2022/23 | O11: Forecast 2023/24 | Z11: Electricity Demand Side Management
A12: ='Template names'!C19 -> Next yr of long term forecast | B12: Forecast 2011/12 | C12: Forecast 2012/13 | D12: Forecast 2013/14 | E12: ="Forecast "&E1+4&"/"&RIGHT(E1,2)+5 -> Forecast 2014/15 | F12: Forecast 2015/16 | G12: Forecast 2016/17 | H12: Forecast 2017/18 | I12: Forecast 2018/19 | J12: Forecast 2019/20 | K12: Forecast 2020/21 | L12: Forecast 2021/22 | M12: Forecast 2022/23 | N12: Forecast 2023/24 | O12: Forecast 2024/25 | Z12: EPWP Incentive
A13: ='Template names'!C20 -> Next yr of long term forecast | B13: Forecast 2012/13 | C13: Forecast 2013/14 | D13: Forecast 2014/15 | E13: ="Forecast "&E1+5&"/"&RIGHT(E1,2)+6 -> Forecast 2015/16 | F13: Forecast 2016/17 | G13: Forecast 2017/18 | H13: Forecast 2018/19 | I13: Forecast 2019/20 | J13: Forecast 2020/21 | K13: Forecast 2021/22 | L13: Forecast 2022/23 | M13: Forecast 2023/24 | N13: Forecast 2024/25 | O13: Forecast 2025/26
A14: ='Template names'!C21 -> Next yr of long term forecast | B14: Forecast 2013/14 | C14: Forecast 2014/15 | D14: Forecast 2015/16 | E14: ="Forecast "&E1+6&"/"&RIGHT(E1,2)+7 -> Forecast 2016/17 | F14: Forecast 2017/18 | G14: Forecast 2018/19 | H14: Forecast 2019/20 | I14: Forecast 2020/21 | J14: Forecast 2021/22 | K14: Forecast 2022/23 | L14: Forecast 2023/24 | M14: Forecast 2024/25 | N14: Forecast 2025/26 | O14: Forecast 2026/27 | Z14: Asset Class | AA14: Asset sub-class
A15: ='Template names'!C22 -> Next yr of long term forecast | B15: Forecast 2014/15 | C15: Forecast 2015/16 | D15: Forecast 2016/17 | E15: ="Forecast "&E1+7&"/"&RIGHT(E1,2)+8 -> Forecast 2017/18 | F15: Forecast 2018/19 | G15: Forecast 2019/20 | H15: Forecast 2020/21 | I15: Forecast 2021/22 | J15: Forecast 2022/23 | K15: Forecast 2023/24 | L15: Forecast 2024/25 | M15: Forecast 2025/26 | N15: Forecast 2026/27 | O15: Forecast 2027/28
A16: ='Template names'!C23 -> Next yr of long term forecast | B16: Forecast 2015/16 | C16: Forecast 2016/17 | D16: Forecast 2017/18 | E16: ="Forecast "&E1+8&"/"&RIGHT(E1,2)+9 -> Forecast 2018/19 | F16: Forecast 2019/20 | G16: Forecast 2020/21 | H16: Forecast 2021/22 | I16: Forecast 2022/23 | J16: Forecast 2023/24 | K16: Forecast 2024/25 | L16: Forecast 2025/26 | M16: Forecast 2026/27 | N16: Forecast 2027/28 | O16: Forecast 2028/29 | Z16: Infrastructure - Road transport | AA16: Roads, Pavements & Bridges
A17: ='Template names'!C24 -> Next yr of long term forecast | B17: Forecast 2016/17 | C17: Forecast 2017/18 | D17: Forecast 2018/19 | E17: ="Forecast "&E1+9&"/"&RIGHT(E1,2)+10 -> Forecast 2019/20 | F17: Forecast 2020/21 | G17: Forecast 2021/22 | H17: Forecast 2022/23 | I17: Forecast 2023/24 | J17: Forecast 2024/25 | K17: Forecast 2025/26 | L17: Forecast 2026/27 | M17: Forecast 2027/28 | N17: Forecast 2028/29 | O17: Forecast 2029/30 | Z17: Infrastructure - Electricity | AA17: Storm water
A18: ='Template names'!C25 -> Next yr of long term forecast | B18: Forecast 2017/18 | C18: Forecast 2018/19 | D18: Forecast 2019/20 | E18: ="Forecast "&E1+10&"/"&RIGHT(E1,2)+11 -> Forecast 2020/21 | F18: Forecast 2021/22 | G18: Forecast 2022/23 | H18: Forecast 2023/24 | I18: Forecast 2024/25 | J18: Forecast 2025/26 | K18: Forecast 2026/27 | L18: Forecast 2027/28 | M18: Forecast 2028/29 | N18: Forecast 2029/30 | O18: Forecast 2030/31 | Z18: Infrastructure - Water | AA18: Generation
A19: ='Template names'!C26 -> Next yr of long term forecast | B19: Forecast 2018/19 | C19: Forecast 2019/20 | D19: Forecast 2020/21 | E19: ="Forecast "&E1+11&"/"&RIGHT(E1,2)+12 -> Forecast 2021/22 | F19: Forecast 2022/23 | G19: Forecast 2023/24 | H19: Forecast 2024/25 | I19: Forecast 2025/26 | J19: Forecast 2026/27 | K19: Forecast 2027/28 | L19: Forecast 2028/29 | M19: Forecast 2029/30 | N19: Forecast 2030/31 | O19: Forecast 2031/32 | Z19: Infrastructure - Sanitation | AA19: Transmission & Reticulation
A20: ='Template names'!C27 -> Next yr of long term forecast | B20: Forecast 2019/20 | C20: Forecast 2020/21 | D20: Forecast 2021/22 | E20: ="Forecast "&E1+12&"/"&RIGHT(E1,2)+13 -> Forecast 2022/23 | F20: Forecast 2023/24 | G20: Forecast 2024/25 | H20: Forecast 2025/26 | I20: Forecast 2026/27 | J20: Forecast 2027/28 | K20: Forecast 2028/29 | L20: Forecast 2029/30 | M20: Forecast 2030/31 | N20: Forecast 2031/32 | O20: Forecast 2032/33 | Z20: Infrastructure - Other | AA20: Street Lighting
A21: ='Template names'!C28 -> Next yr of long term forecast | B21: Forecast 2020/21 | C21: Forecast 2021/22 | D21: Forecast 2022/23 | E21: ="Forecast "&E1+13&"/"&RIGHT(E1,2)+14 -> Forecast 2023/24 | F21: Forecast 2024/25 | G21: Forecast 2025/26 | H21: Forecast 2026/27 | I21: Forecast 2027/28 | J21: Forecast 2028/29 | K21: Forecast 2029/30 | L21: Forecast 2030/31 | M21: Forecast 2031/32 | N21: Forecast 2032/33 | O21: Forecast 2033/34 | Z21: Community | AA21: Dams & Reservoirs
A22: ='Template names'!C29 -> Next yr of long term forecast | B22: Forecast 2021/22 | C22: Forecast 2022/23 | D22: Forecast 2023/24 | E22: ="Forecast "&E1+14&"/"&RIGHT(E1,2)+15 -> Forecast 2024/25 | F22: Forecast 2025/26 | G22: Forecast 2026/27 | H22: Forecast 2027/28 | I22: Forecast 2028/29 | J22: Forecast 2029/30 | K22: Forecast 2030/31 | L22: Forecast 2031/32 | M22: Forecast 2032/33 | N22: Forecast 2033/34 | O22: Forecast 2034/35 | Z22: Heritage Assets | AA22: Water purification
A23: Adjustments Budget | B23: Annual target 2007/08 | C23: Annual target 2008/09 | D23: Annual target 2009/10 | E23: ="Annual target " & E1&"/"&RIGHT(E1,2)+1 -> Annual target 2010/11 | F23: Annual target 2011/12 | G23: Annual target 2012/13 | H23: Annual target 2013/14 | I23: Annual target 2014/15 | J23: Annual target 2015/16 | K23: Annual target 2016/17 | L23: Annual target 2017/18 | M23: Annual target 2018/19 | N23: Annual target 2019/20 | O23: Annual target 2020/21 | Z23: Investment Properties | AA23: Reticulation
A24: =A23 -> Adjustments Budget | B24: Revised target 2007/08 | C24: Revised target 2008/09 | D24: Revised target 2009/10 | E24: ="Revised target "& E1&"/"&RIGHT(E1,2)+1 -> Revised target 2010/11 | F24: Revised target 2011/12 | G24: Revised target 2012/13 | H24: Revised target 2013/14 | I24: Revised target 2014/15 | J24: Revised target 2015/16 | K24: Revised target 2016/17 | L24: Revised target 2017/18 | M24: Revised target 2018/19 | N24: Revised target 2019/20 | O24: Revised target 2020/21 | Z24: Other Assets | AA24: Sewerage purification
A25: NOTE: This sheet should not be directly amended - select headings from sheet 'S' | Z25: Agricultural assets | AA25: Waste Management
Z26: Biological assets | AA26: Transportation
A27: Name link | B27: 61 | Z27: Intangibles | AA27: Gas
A28: Name of Muni | B28: =INDEX(B29:B307,B27,1) -> FS193 Nketoana | Z28: Other | AA28: Parks & gardens
B29: Choose name from list | C29: Set name on 'Instructions' sheet | AA29: Sportsfields & stadia
B30: BUF Buffalo City | C30: EC EASTERN CAPE | AA30: Swimming pools
B31: NMA Nelson Mandela Bay | C31: EC EASTERN CAPE | AA31: Community halls
B32: EC101 Camdeboo | C32: EC EASTERN CAPE | AA32: Libraries
B33: EC102 Blue Crane Route | C33: EC EASTERN CAPE | AA33: Recreational facilities
B34: EC103 Ikwezi | C34: EC EASTERN CAPE | AA34: Fire, safety & emergency
B35: EC104 Makana | C35: EC EASTERN CAPE | AA35: Security and policing
B36: EC105 Ndlambe | C36: EC EASTERN CAPE | AA36: Buses
B37: EC106 Sundays River Valley | C37: EC EASTERN CAPE | AA37: Clinics
B38: EC107 Baviaans | C38: EC EASTERN CAPE | AA38: Museums & Art Galleries
B39: EC108 Kouga | C39: EC EASTERN CAPE | AA39: Cemeteries
B40: EC109 Kou-Kamma | C40: EC EASTERN CAPE | AA40: Social rental housing
B41: DC10 Sarah Baartman | C41: EC EASTERN CAPE | AA41: Buildings
B42: EC121 Mbhashe | C42: EC EASTERN CAPE | AA42: Housing development
B43: EC122 Mnquma | C43: EC EASTERN CAPE | AA43: General vehicles
B44: EC123 Great Kei | C44: EC EASTERN CAPE | AA44: Specialised vehicles - Refuse
B45: EC124 Amahlathi | C45: EC EASTERN CAPE | AA45: Specialised vehicles - Fire
B46: EC126 Ngqushwa | C46: EC EASTERN CAPE | AA46: Specialised vehicles - Conservancy
B47: EC127 Nkonkobe | C47: EC EASTERN CAPE | AA47: Specialised vehicles - Ambulances
B48: EC128 Nxuba | C48: EC EASTERN CAPE | AA48: Plant & equipment
B49: DC12 Amathole | C49: EC EASTERN CAPE | AA49: Computers - hardware/equipment
B50: EC131 Inxuba Yethemba | C50: EC EASTERN CAPE | AA50: Furniture and other office equipment
B51: EC132 Tsolwana | C51: EC EASTERN CAPE | AA51: Abattoirs
B52: EC133 Inkwanca | C52: EC EASTERN CAPE | AA52: Markets
B53: EC134 Lukhanji | C53: EC EASTERN CAPE | AA53: Civic Land and Buildings
B54: EC135 Intsika Yethu | C54: EC EASTERN CAPE | AA54: Other Buildings
B55: EC136 Emalahleni (EC) | C55: EC EASTERN CAPE | AA55: Other Land
B56: EC137 Engcobo | C56: EC EASTERN CAPE | AA56: Surplus Assets - (Investment or Inventory)
B57: EC138 Sakhisizwe | C57: EC EASTERN CAPE | AA57: Computers - software & programming
B58: DC13 Chris Hani | C58: EC EASTERN CAPE | AA58: Other
B59: EC141 Elundini | C59: EC EASTERN CAPE
B60: EC142 Senqu | C60: EC EASTERN CAPE | Z60: SA16 - Investments
B61: EC143 Maletswai | C61: EC EASTERN CAPE | Z61: Security | AA61: Interest rate
B62: EC144 Gariep | C62: EC EASTERN CAPE | Z62: Yes | AA62: Fixed
B63: DC14 Joe Gqabi | C63: EC EASTERN CAPE | Z63: No | AA63: Variable
B64: EC153 Ngquza Hills | C64: EC EASTERN CAPE
B65: EC154 Port St Johns | C65: EC EASTERN CAPE
B66: EC155 Nyandeni | C66: EC EASTERN CAPE | Z66: SA36, SA37 - Capital projects
B67: EC156 Mhlontlo | C67: EC EASTERN CAPE | Z67: Yes
B68: EC157 King Sabata Dalindyebo | C68: EC EASTERN CAPE | Z68: No
B69: DC15 O .R. Tambo | C69: EC EASTERN CAPE
B70: EC441 Matatiele | C70: EC EASTERN CAPE
B71: EC442 Umzimvubu | C71: EC EASTERN CAPE
B72: EC443 Mbizana | C72: EC EASTERN CAPE
B73: EC444 Ntabankulu | C73: EC EASTERN CAPE
B74: DC44 Alfred Nzo | C74: EC EASTERN CAPE
B75: MAN Mangaung | C75: FS FREE STATE
B76: FS161 Letsemeng | C76: FS FREE STATE
B77: FS162 Kopanong | C77: FS FREE STATE
B78: FS163 Mohokare | C78: FS FREE STATE
B79: FS164 Naledi (Fs) | C79: FS FREE STATE
B80: DC16 Xhariep | C80: FS FREE STATE
B81: FS181 Masilonyana | C81: FS FREE STATE
B82: FS182 Tokologo | C82: FS FREE STATE
B83: FS183 Tswelopele | C83: FS FREE STATE
B84: FS184 Matjhabeng | C84: FS FREE STATE
B85: FS185 Nala | C85: FS FREE STATE
B86: DC18 Lejweleputswa | C86: FS FREE STATE
B87: FS191 Setsoto | C87: FS FREE STATE
B88: FS192 Dihlabeng | C88: FS FREE STATE
B89: FS193 Nketoana | C89: FS FREE STATE
B90: FS194 Maluti-a-Phofung | C90: FS FREE STATE
B91: FS195 Phumelela | C91: FS FREE STATE
B92: FS196 Mantsopa | C92: FS FREE STATE
B93: DC19 Thabo Mofutsanyana | C93: FS FREE STATE
B94: FS201 Moqhaka | C94: FS FREE STATE
B95: FS203 Ngwathe | C95: FS FREE STATE
B96: FS204 Metsimaholo | C96: FS FREE STATE
B97: FS205 Mafube | C97: FS FREE STATE
B98: DC20 Fezile Dabi | C98: FS FREE STATE
B99: EKU Ekurhuleni Metro | C99: GT GAUTENG
B100: JHB City Of Johannesburg | C100: GT GAUTENG
B101: TSH City Of Tshwane | C101: GT GAUTENG
B102: GT421 Emfuleni | C102: GT GAUTENG
B103: GT422 Midvaal | C103: GT GAUTENG
B104: GT423 Lesedi | C104: GT GAUTENG
B105: DC42 Sedibeng | C105: GT GAUTENG
B106: GT481 Mogale City | C106: GT GAUTENG
B107: GT482 Randfontein | C107: GT GAUTENG
B108: GT483 Westonaria | C108: GT GAUTENG
B109: GT484 Merafong City | C109: GT GAUTENG
B110: DC48 West Rand | C110: GT GAUTENG
B111: ETH eThekwini | C111: KZN KWAZULU-NATAL
B112: KZN211 Vulamehlo | C112: KZN KWAZULU-NATAL
B113: KZN212 Umdoni | C113: KZN KWAZULU-NATAL
B114: KZN213 Umzumbe | C114: KZN KWAZULU-NATAL
B115: KZN214 uMuziwabantu | C115: KZN KWAZULU-NATAL
B116: KZN215 Ezinqoleni | C116: KZN KWAZULU-NATAL
B117: KZN216 Hibiscus Coast | C117: KZN KWAZULU-NATAL
B118: DC21 Ugu | C118: KZN KWAZULU-NATAL
B119: KZN221 uMshwathi | C119: KZN KWAZULU-NATAL
B120: KZN222 uMngeni | C120: KZN KWAZULU-NATAL
B121: KZN223 Mpofana | C121: KZN KWAZULU-NATAL
B122: KZN224 Impendle | C122: KZN KWAZULU-NATAL
B123: KZN225 Msunduzi | C123: KZN KWAZULU-NATAL
B124: KZN226 Mkhambathini | C124: KZN KWAZULU-NATAL
B125: KZN227 Richmond | C125: KZN KWAZULU-NATAL
B126: DC22 uMgungundlovu | C126: KZN KWAZULU-NATAL
B127: KZN232 Emnambithi/Ladysmith | C127: KZN KWAZULU-NATAL
B128: KZN233 Indaka | C128: KZN KWAZULU-NATAL
B129: KZN234 Umtshezi | C129: KZN KWAZULU-NATAL
B130: KZN235 Okhahlamba | C130: KZN KWAZULU-NATAL
B131: KZN236 Imbabazane | C131: KZN KWAZULU-NATAL
B132: DC23 Uthukela | C132: KZN KWAZULU-NATAL
B133: KZN241 Endumeni | C133: KZN KWAZULU-NATAL
B134: KZN242 Nquthu | C134: KZN KWAZULU-NATAL
B135: KZN244 Msinga | C135: KZN KWAZULU-NATAL
B136: KZN245 Umvoti | C136: KZN KWAZULU-NATAL
B137: DC24 Umzinyathi | C137: KZN KWAZULU-NATAL
B138: KZN252 Newcastle | C138: KZN KWAZULU-NATAL
B139: KZN253 eMadlangeni | C139: KZN KWAZULU-NATAL
B140: KZN254 Dannhauser | C140: KZN KWAZULU-NATAL
B141: DC25 Amajuba | C141: KZN KWAZULU-NATAL
B142: KZN261 eDumbe | C142: KZN KWAZULU-NATAL
B143: KZN262 uPhongolo | C143: KZN KWAZULU-NATAL
B144: KZN263 Abaqulusi | C144: KZN KWAZULU-NATAL
B145: KZN265 Nongoma | C145: KZN KWAZULU-NATAL
B146: KZN266 Ulundi | C146: KZN KWAZULU-NATAL
B147: DC26 Zululand | C147: KZN KWAZULU-NATAL
B148: KZN271 Umhlabuyalingana | C148: KZN KWAZULU-NATAL
B149: KZN272 Jozini | C149: KZN KWAZULU-NATAL
B150: KZN273 The Big 5 False Bay | C150: KZN KWAZULU-NATAL
B151: KZN274 Hlabisa | C151: KZN KWAZULU-NATAL
B152: KZN275 Mtubatuba | C152: KZN KWAZULU-NATAL
B153: DC27 Umkhanyakude | C153: KZN KWAZULU-NATAL
B154: KZN281 Mfolozi | C154: KZN KWAZULU-NATAL
B155: KZN282 uMhlathuze | C155: KZN KWAZULU-NATAL
B156: KZN283 Ntambanana | C156: KZN KWAZULU-NATAL
B157: KZN284 uMlalazi | C157: KZN KWAZULU-NATAL
B158: KZN285 Mthonjaneni | C158: KZN KWAZULU-NATAL
B159: KZN286 Nkandla | C159: KZN KWAZULU-NATAL
B160: DC28 uThungulu | C160: KZN KWAZULU-NATAL
B161: KZN291 Mandeni | C161: KZN KWAZULU-NATAL
B162: KZN292 KwaDukuza | C162: KZN KWAZULU-NATAL
B163: KZN293 Ndwedwe | C163: KZN KWAZULU-NATAL
B164: KZN294 Maphumulo | C164: KZN KWAZULU-NATAL
B165: DC29 iLembe | C165: KZN KWAZULU-NATAL
B166: KZN431 Ingwe | C166: KZN KWAZULU-NATAL
B167: KZN432 Kwa Sani | C167: KZN KWAZULU-NATAL
B168: KZN433 Greater Kokstad | C168: KZN KWAZULU-NATAL
B169: KZN434 Ubuhlebezwe | C169: KZN KWAZULU-NATAL
B170: KZN435 Umzimkhulu | C170: KZN KWAZULU-NATAL
B171: DC43 Harry Gwala | C171: KZN KWAZULU-NATAL
B172: LIM331 Greater Giyani | C172: LIM LIMPOPO
B173: LIM332 Greater Letaba | C173: LIM LIMPOPO
B174: LIM333 Greater Tzaneen | C174: LIM LIMPOPO
B175: LIM334 Ba-Phalaborwa | C175: LIM LIMPOPO
B176: LIM335 Maruleng | C176: LIM LIMPOPO
B177: DC33 Mopani | C177: LIM LIMPOPO
B178: LIM341 Musina | C178: LIM LIMPOPO
B179: LIM342 Mutale | C179: LIM LIMPOPO
B180: LIM343 Thulamela | C180: LIM LIMPOPO
B181: LIM344 Makhado | C181: LIM LIMPOPO
B182: DC34 Vhembe | C182: LIM LIMPOPO
B183: LIM351 Blouberg | C183: LIM LIMPOPO
B184: LIM352 Aganang | C184: LIM LIMPOPO
B185: LIM353 Molemole | C185: LIM LIMPOPO
B186: LIM354 Polokwane | C186: LIM LIMPOPO
B187: LIM355 Lepelle-Nkumpi | C187: LIM LIMPOPO
B188: DC35 Capricorn | C188: LIM LIMPOPO
B189: LIM361 Thabazimbi | C189: LIM LIMPOPO
B190: LIM362 Lephalale | C190: LIM LIMPOPO
B191: LIM364 Mookgopong | C191: LIM LIMPOPO
B192: LIM365 Modimolle | C192: LIM LIMPOPO
B193: LIM366 Bela Bela | C193: LIM LIMPOPO
B194: LIM367 Mogalakwena | C194: LIM LIMPOPO
B195: DC36 Waterberg | C195: LIM LIMPOPO
B196: LIM471 Ephraim Mogale | C196: LIM LIMPOPO
B197: LIM472 Elias Motsoaledi | C197: LIM LIMPOPO
B198: LIM473 Makhuduthamaga | C198: LIM LIMPOPO
B199: LIM474 Fetakgomo | C199: LIM LIMPOPO
B200: LIM475 Greater Tubatse | C200: LIM LIMPOPO
... 108 more rows

Sheet Org structure
A1: Organisational Structure Votes | C1: Organisational Structure Sub-Votes | E1: Display Sub-Votes
A2: Vote 1 - EXECUTIVE AND COUNCIL | B2: Vote 1 | C2: EXECUTIVE AND COUNCIL
A3: Vote 2 - FINANCE AND ADMINISTRATION | B3: 1.1 | C3: Mayor's Office | D3: =CONCATENATE(B3, " - ", C3) -> 1.1 - Mayor's Office | E3: 1.1 - Mayor's Office
A4: Vote 3 - COMMUNITY SERVICES | B4: 1.2 | C4: Speaker's Office | D4: 1.2 - Speaker's Office | E4: 1.2 - Speaker's Office
A5: Vote 4 - WASTE MANAGEMENT | B5: 1.3 | C5: Municipal Manager's Office | D5: 1.3 - Municipal Manager's Office | E5: 1.4 - Municipal Manager's Office
A6: Vote 5 - LOCAL ECONOMIC DEVELOPMENT | B6: 1.4 | C6: Municipal Manager's Office | D6: 1.4 - Municipal Manager's Office | E6: 1.4 - IDP and PMS
A7: Vote 6 - ROADS TRANSPORT | B7: 1.5 | C7: Internal Audit | D7: 1.5 - Internal Audit | E7: 1.5 - Internal Audit
A8: Vote 7 - WATER | B8: 1.6 | C8: Special Programmes | D8: 1.6 - Special Programmes | E8: 1.6 - Special Programmes
A9: Vote 8 - ELECTRICITY | B9: 1.7 | C9: [Name of sub-vote] | D9: 1.7 - [Name of sub-vote]
A10: Vote 9 - WASTE WATER | B10: 1.8 | C10: [Name of sub-vote] | D10: 1.8 - [Name of sub-vote]
A11: Vote 10 - HOUSING | B11: 1.9 | C11: [Name of sub-vote] | D11: 1.9 - [Name of sub-vote]
A12: Vote 11 - [NAME OF VOTE 11] | B12: 1.10 | C12: [Name of sub-vote] | D12: 1.10 - [Name of sub-vote]
A13: =B123&" - "&C123 -> Vote 12 - [NAME OF VOTE 12] | B13: Vote 2 | C13: FINANCE AND ADMINISTRATION
A14: =B134&" - "&C134 -> Vote 13 - [NAME OF VOTE 13] | B14: 2.1 | C14: Human Resource | D14: =CONCATENATE(B14, " - ", C14) -> 2.1 - Human Resource | E14: 2.1 - Human Resource
A15: =B145&" - "&C145 -> Vote 14 - [NAME OF VOTE 14] | B15: 2.2 | C15: Records Management | D15: 2.2 - Records Management | E15: 2.2 - Records Management
A16: =B156&" - "&C156 -> Vote 15 - [NAME OF VOTE 15] | B16: 2.3 | C16: Legal Services | D16: 2.3 - Legal Services | E16: 2.3 - Legal Services
B17: 2.4 | C17: Administration | D17: 2.4 - Administration | E17: 2.4 - Administration
B18: 2.5 | C18: Revenue Management | D18: 2.5 - Revenue Management | E18: 2.5 - Revenue Management
B19: 2.6 | C19: Supply Chain Management | D19: 2.6 - Supply Chain Management | E19: 2.6 - Supply Chain Management
B20: 2.7 | C20: CFO | D20: 2.7 - CFO | E20: 2.7 - CFO
B21: 2.8 | C21: Director Corporate Services | D21: 2.8 - Director Corporate Services | E21: 2.8 - Director Corporate Services
B22: 2.9 | C22: Budget and Treasury | D22: 2.9 - Budget and Treasury | E22: 2.9 - Budget and Treasury
B23: 2.10 | C23: Expenditure | D23: 2.10 - Expenditure | E23: 2.10 - Expenditure
B24: Vote 3 | C24: COMMUNITY SERVICES
B25: 3.1 | C25: Cementry | D25: =CONCATENATE(B25, " - ", C25) -> 3.1 - Cementry | E25: 3.1 - Cementry
B26: 3.2 | C26: Parks | D26: 3.2 - Parks | E26: 3.2 - Parks
B27: 3.3 | C27: Director Community Services | D27: 3.3 - Director Community Services | E27: 3.3 - Director Community Services
B28: 3.4 | C28: Traffic Services | D28: 3.4 - Traffic Services | E28: 3.4 - Traffic Services
B29: 3.5 | C29: Fire Services | D29: 3.5 - Fire Services | E29: 3.5 - Fire Services
B30: 3.6 | C30: Sports and Recreation | D30: 3.6 - Sports and Recreation | E30: 3.6 - Sports and Recreation
B31: 3.7 | C31: Libraries | D31: 3.7 - Libraries | E31: 3.7 - Libraries
B32: 3.8 | C32: [Name of sub-vote] | D32: 3.8 - [Name of sub-vote]
B33: 3.9 | C33: [Name of sub-vote] | D33: 3.9 - [Name of sub-vote]
B34: 3.10 | C34: [Name of sub-vote] | D34: 3.10 - [Name of sub-vote]
B35: Vote 4 | C35: WASTE MANAGEMENT
B36: 4.1 | C36: Waste Collection | D36: =CONCATENATE(B36, " - ", C36) -> 4.1 - Waste Collection | E36: 4.1 - Waste Collection
B37: 4.2 | C37: Solid Waste Disposal | D37: 4.2 - Solid Waste Disposal | E37: 4.2 - Solid Waste Disposal
B38: 4.3 | C38: Solid Waste Management | D38: 4.3 - Solid Waste Management | E38: 4.3 - Solid Waste Management
B39: 4.4 | C39: [Name of sub-vote] | D39: 4.4 - [Name of sub-vote]
B40: 4.5 | C40: [Name of sub-vote] | D40: 4.5 - [Name of sub-vote]
B41: 4.6 | C41: [Name of sub-vote] | D41: 4.6 - [Name of sub-vote]
B42: 4.7 | C42: [Name of sub-vote] | D42: 4.7 - [Name of sub-vote]
B43: 4.8 | C43: [Name of sub-vote] | D43: 4.8 - [Name of sub-vote]
B44: 4.9 | C44: [Name of sub-vote] | D44: 4.9 - [Name of sub-vote]
B45: 4.10 | C45: [Name of sub-vote] | D45: 4.10 - [Name of sub-vote]
B46: Vote 5 | C46: LOCAL ECONOMIC DEVELOPMENT
B47: 5.1 | C47: SMME Hub | D47: =CONCATENATE(B47, " - ", C47) -> 5.1 - SMME Hub | E47: 5.1 - SMME Hub
B48: 5.2 | C48: Tourism | D48: 5.2 - Tourism | E48: 5.2 - Tourism
B49: 5.3 | C49: Economic Development | D49: 5.3 - Economic Development | E49: 5.3 - Economic Development
B50: 5.4 | C50: [Name of sub-vote] | D50: 5.4 - [Name of sub-vote]
B51: 5.5 | C51: [Name of sub-vote] | D51: 5.5 - [Name of sub-vote]
B52: 5.6 | C52: [Name of sub-vote] | D52: 5.6 - [Name of sub-vote]
B53: 5.7 | C53: [Name of sub-vote] | D53: 5.7 - [Name of sub-vote]
B54: 5.8 | C54: [Name of sub-vote] | D54: 5.8 - [Name of sub-vote]
B55: 5.9 | C55: [Name of sub-vote] | D55: 5.9 - [Name of sub-vote]
B56: 5.10 | C56: [Name of sub-vote] | D56: 5.10 - [Name of sub-vote]
B57: Vote 6 | C57: ROADS TRANSPORT
B58: 6.1 | C58: Roads | D58: =CONCATENATE(B58, " - ", C58) -> 6.1 - Roads | E58: 6.1 - Roads
B59: 6.2 | C59: Storm Water | D59: 6.2 - Storm Water | E59: 6.2 - Storm Water
B60: 6.3 | C60: Director Technical | D60: 6.3 - Director Technical | E60: 6.3 - Director Technical
B61: 6.4 | C61: [Name of sub-vote] | D61: 6.4 - [Name of sub-vote]
B62: 6.5 | C62: [Name of sub-vote] | D62: 6.5 - [Name of sub-vote]
B63: 6.6 | C63: [Name of sub-vote] | D63: 6.6 - [Name of sub-vote]
B64: 6.7 | C64: [Name of sub-vote] | D64: 6.7 - [Name of sub-vote]
B65: 6.8 | C65: [Name of sub-vote] | D65: 6.8 - [Name of sub-vote]
B66: 6.9 | C66: [Name of sub-vote] | D66: 6.9 - [Name of sub-vote]
B67: 6.10 | C67: [Name of sub-vote] | D67: 6.10 - [Name of sub-vote]
B68: Vote 7 | C68: WATER
B69: 7.1 | C69: WTW Reitz | D69: =CONCATENATE(B69, " - ", C69) -> 7.1 - WTW Reitz | E69: 7.1 - WTW Reitz
B70: 7.2 | C70: WTW Mamafubedu | D70: 7.2 - WTW Mamafubedu | E70: 7.2 - WTW Mamafubedu
B71: 7.3 | C71: WTW Lindley | D71: 7.3 - WTW Lindley | E71: 7.3 - WTW Lindley
B72: 7.4 | C72: WTW Arlington | D72: 7.4 - WTW Arlington | E72: 7.4 - WTW Arlington
B73: 7.5 | C73: Water Network Reitz | D73: 7.5 - Water Network Reitz | E73: 7.5 - Water Network Reitz
B74: 7.6 | C74: Water Network Mamafubedu | D74: 7.6 - Water Network Mamafubedu | E74: 7.6 - Water Network Mamafubedu
B75: 7.7 | C75: Water Network Lindley | D75: 7.7 - Water Network Lindley | E75: 7.7 - Water Network Lindley
B76: 7.8 | C76: Water Network Arlington | D76: 7.8 - Water Network Arlington | E76: 7.8 - Water Network Arlington
B77: 7.9 | C77: General Water Works | D77: 7.9 - General Water Works | E77: 7.9 - General Water Works
B78: 7.10 | C78: [Name of sub-vote] | D78: 7.10 - [Name of sub-vote]
B79: Vote 8 | C79: ELECTRICITY
B80: 8.1 | C80: Reitz Electricity | D80: =CONCATENATE(B80, " - ", C80) -> 8.1 - Reitz Electricity | E80: 8.1 - Reitz Electricity
B81: 8.2 | C81: Mamafubedu Electricity | D81: 8.2 - Mamafubedu Electricity | E81: 8.2 - Mamafubedu Electricity
B82: 8.3 | C82: Lindley Electricity | D82: 8.3 - Lindley Electricity | E82: 8.3 - Lindley Electricity
B83: 8.4 | C83: General Electricity Works | D83: 8.4 - General Electricity Works | E83: 8.4 - General Electricity Works
B84: 8.5 | C84: [Name of sub-vote] | D84: 8.5 - [Name of sub-vote]
B85: 8.6 | C85: [Name of sub-vote] | D85: 8.6 - [Name of sub-vote]
B86: 8.7 | C86: [Name of sub-vote] | D86: 8.7 - [Name of sub-vote]
B87: 8.8 | C87: [Name of sub-vote] | D87: 8.8 - [Name of sub-vote]
B88: 8.9 | C88: [Name of sub-vote] | D88: 8.9 - [Name of sub-vote]
B89: 8.10 | C89: [Name of sub-vote] | D89: 8.10 - [Name of sub-vote]
B90: Vote 9 | C90: WASTE WATER
B91: 9.1 | C91: WWTW Reitz | D91: =CONCATENATE(B91, " - ", C91) -> 9.1 - WWTW Reitz | E91: 9.1 - WWTW Reitz
B92: 9.2 | C92: Network Reitz | D92: 9.2 - Network Reitz | E92: 9.2 - Network Reitz
B93: 9.3 | C93: Network Mamafubedu | D93: 9.3 - Network Mamafubedu | E93: 9.3 - Network Mamafubedu
B94: 9.4 | C94: WWTW Mamafubedu | D94: 9.4 - WWTW Mamafubedu | E94: 9.4 - WWTW Mamafubedu
B95: 9.5 | C95: WWTW Lindley | D95: 9.5 - WWTW Lindley | E95: 9.5 - WWTW Lindley
B96: 9.6 | C96: Network Lindley | D96: 9.6 - Network Lindley | E96: 9.6 - Network Lindley
B97: 9.7 | C97: WWTW Arlington | D97: 9.7 - WWTW Arlington | E97: 9.7 - WWTW Arlington
B98: 9.8 | C98: Network Arlington | D98: 9.8 - Network Arlington | E98: 9.8 - Network Arlington
B99: 9.9 | C99: [Name of sub-vote] | D99: 9.9 - [Name of sub-vote]
B100: 9.10 | C100: [Name of sub-vote] | D100: 9.10 - [Name of sub-vote]
B101: Vote 10 | C101: HOUSING
B102: 10.1 | C102: Urban Planning | D102: =CONCATENATE(B102, " - ", C102) -> 10.1 - Urban Planning | E102: 10.1 - Urban Planning
B103: 10.2 | C103: Housing | D103: 10.2 - Housing
B104: 10.3 | C104: [Name of sub-vote] | D104: 10.3 - [Name of sub-vote]
B105: 10.4 | C105: [Name of sub-vote] | D105: 10.4 - [Name of sub-vote]
B106: 10.5 | C106: [Name of sub-vote] | D106: 10.5 - [Name of sub-vote]
B107: 10.6 | C107: [Name of sub-vote] | D107: 10.6 - [Name of sub-vote]
B108: 10.7 | C108: [Name of sub-vote] | D108: 10.7 - [Name of sub-vote]
B109: 10.8 | C109: [Name of sub-vote] | D109: 10.8 - [Name of sub-vote]
B110: 10.9 | C110: [Name of sub-vote] | D110: 10.9 - [Name of sub-vote]
B111: 10.10 | C111: [Name of sub-vote] | D111: 10.10 - [Name of sub-vote]
B112: Vote 11 | C112: [NAME OF VOTE 11]
B113: 11.1 | C113: [Name of sub-vote] | D113: =CONCATENATE(B113, " - ", C113) -> 11.1 - [Name of sub-vote] | E113: 11.1 - [Name of sub-vote]
B114: 11.2 | C114: [Name of sub-vote] | D114: 11.2 - [Name of sub-vote]
B115: 11.3 | C115: [Name of sub-vote] | D115: 11.3 - [Name of sub-vote]
B116: 11.4 | C116: [Name of sub-vote] | D116: 11.4 - [Name of sub-vote]
B117: 11.5 | C117: [Name of sub-vote] | D117: 11.5 - [Name of sub-vote]
B118: 11.6 | C118: [Name of sub-vote] | D118: 11.6 - [Name of sub-vote]
B119: 11.7 | C119: [Name of sub-vote] | D119: 11.7 - [Name of sub-vote]
B120: 11.8 | C120: [Name of sub-vote] | D120: 11.8 - [Name of sub-vote]
B121: 11.9 | C121: [Name of sub-vote] | D121: 11.9 - [Name of sub-vote]
B122: 11.10 | C122: [Name of sub-vote] | D122: 11.10 - [Name of sub-vote]
B123: Vote 12 | C123: [NAME OF VOTE 12]
B124: 12.1 | C124: [Name of sub-vote] | D124: =CONCATENATE(B124, " - ", C124) -> 12.1 - [Name of sub-vote] | E124: 12.1 - [Name of sub-vote]
B125: 12.2 | C125: [Name of sub-vote] | D125: 12.2 - [Name of sub-vote]
B126: 12.3 | C126: [Name of sub-vote] | D126: 12.3 - [Name of sub-vote]
B127: 12.4 | C127: [Name of sub-vote] | D127: 12.4 - [Name of sub-vote]
B128: 12.5 | C128: [Name of sub-vote] | D128: 12.5 - [Name of sub-vote]
B129: 12.6 | C129: [Name of sub-vote] | D129: 12.6 - [Name of sub-vote]
B130: 12.7 | C130: [Name of sub-vote] | D130: 12.7 - [Name of sub-vote]
B131: 12.8 | C131: [Name of sub-vote] | D131: 12.8 - [Name of sub-vote]
B132: 12.9 | C132: [Name of sub-vote] | D132: 12.9 - [Name of sub-vote]
B133: 12.10 | C133: [Name of sub-vote] | D133: 12.10 - [Name of sub-vote]
B134: Vote 13 | C134: [NAME OF VOTE 13]
B135: 13.1 | C135: [Name of sub-vote] | D135: =CONCATENATE(B135, " - ", C135) -> 13.1 - [Name of sub-vote] | E135: 13.1 - [Name of sub-vote]
B136: 13.2 | C136: [Name of sub-vote] | D136: 13.2 - [Name of sub-vote]
B137: 13.3 | C137: [Name of sub-vote] | D137: 13.3 - [Name of sub-vote]
B138: 13.4 | C138: [Name of sub-vote] | D138: 13.4 - [Name of sub-vote]
B139: 13.5 | C139: [Name of sub-vote] | D139: 13.5 - [Name of sub-vote]
B140: 13.6 | C140: [Name of sub-vote] | D140: 13.6 - [Name of sub-vote]
B141: 13.7 | C141: [Name of sub-vote] | D141: 13.7 - [Name of sub-vote]
B142: 13.8 | C142: [Name of sub-vote] | D142: 13.8 - [Name of sub-vote]
B143: 13.9 | C143: [Name of sub-vote] | D143: 13.9 - [Name of sub-vote]
B144: 13.10 | C144: [Name of sub-vote] | D144: 13.10 - [Name of sub-vote]
B145: Vote 14 | C145: [NAME OF VOTE 14]
B146: 14.1 | C146: [Name of sub-vote] | D146: =CONCATENATE(B146, " - ", C146) -> 14.1 - [Name of sub-vote] | E146: 14.1 - [Name of sub-vote]
B147: 14.2 | C147: [Name of sub-vote] | D147: 14.2 - [Name of sub-vote]
B148: 14.3 | C148: [Name of sub-vote] | D148: 14.3 - [Name of sub-vote]
B149: 14.4 | C149: [Name of sub-vote] | D149: 14.4 - [Name of sub-vote]
B150: 14.5 | C150: [Name of sub-vote] | D150: 14.5 - [Name of sub-vote]
B151: 14.6 | C151: [Name of sub-vote] | D151: 14.6 - [Name of sub-vote]
B152: 14.7 | C152: [Name of sub-vote] | D152: 14.7 - [Name of sub-vote]
B153: 14.8 | C153: [Name of sub-vote] | D153: 14.8 - [Name of sub-vote]
B154: 14.9 | C154: [Name of sub-vote] | D154: 14.9 - [Name of sub-vote]
B155: 14.10 | C155: [Name of sub-vote] | D155: 14.10 - [Name of sub-vote]
B156: Vote 15 | C156: [NAME OF VOTE 15]
B157: 15.1 | C157: [Name of sub-vote] | D157: =CONCATENATE(B157, " - ", C157) -> 15.1 - [Name of sub-vote] | E157: 15.1 - [Name of sub-vote]
B158: 15.2 | C158: [Name of sub-vote] | D158: 15.2 - [Name of sub-vote]
B159: 15.3 | C159: [Name of sub-vote] | D159: 15.3 - [Name of sub-vote]
B160: 15.4 | C160: [Name of sub-vote] | D160: 15.4 - [Name of sub-vote]
B161: 15.5 | C161: [Name of sub-vote] | D161: 15.5 - [Name of sub-vote]
B162: 15.6 | C162: [Name of sub-vote] | D162: 15.6 - [Name of sub-vote]
B163: 15.7 | C163: [Name of sub-vote] | D163: 15.7 - [Name of sub-vote]
B164: 15.8 | C164: [Name of sub-vote] | D164: 15.8 - [Name of sub-vote]
B165: 15.9 | C165: [Name of sub-vote] | D165: 15.9 - [Name of sub-vote]
B166: 15.10 | C166: [Name of sub-vote] | D166: 15.10 - [Name of sub-vote]

Sheet Contacts
A1: =muni&" - "&" Contact Information" -> FS193 Nketoana - Contact Information
A3: A. GENERAL INFORMATION
A4: Municipality | B4: =muni -> FS193 Nketoana | C4: =IF(B4="Choose name from List","Set name on 'Instructions' sheet", "") -> 
A6: Grade | B6: Grade 3 | C6: 1 Grade in terms of the Remuneration of Public Office Bearers Act.
A8: Province | B8: =IF(B4>" ",VLOOKUP(B4,'Lookup and lists'!B29:C307,2, FALSE)," ") -> FS FREE STATE
A10: Web Address | B10: www.nketoanafs.gov.za
A12: e-mail Address | B12: www@info.co.za
A14: B. CONTACT INFORMATION
A15: Postal address:
A16: P.O. Box | B16: 26
A17: City / Town | B17: Reitz
A18: Postal Code | B18: 9810
A20: Street address
A21: Building | B21: Municipal Building
A22: Street No. & Name | B22: Corner Church and Voortrekker Street
A23: City / Town | B23: Reitz
A24: Postal Code | B24: 9810
A26: General Contacts
A27: Telephone number | B27: 058 863 2811
A28: Fax number | B28: 058 863 2523
A30: C. POLITICAL LEADERSHIP
A31: Speaker: | C31: Secretary/PA to the Speaker:
A32: Name | B32: NHLANHLA NKOMO | C32: Name | D32: THABO MOKHETHI
A33: Telephone number | B33: 058 863 2811 EXT 239 | C33: Telephone number | D33: 058 863 2811 EXT 148
A34: Cell number | B34: 082 906 6699 | C34: Cell number | D34: 073 469 2678
A35: Fax number | B35: 058 863 2523 | C35: Fax number | D35: 058 863 2523
A36: E-mail address | B36: nhlanhla.nkomo@webmail.co.za | C36: E-mail address | D36: thabo@nketoanafs.co.za
A38: Mayor/Executive Mayor: | C38: Secretary/PA to the Mayor/Executive Mayor:
A39: Name | B39: MATSUKULU DORCAS MOLAPISI | C39: Name | D39: MPEMBE STEVEN
A40: Telephone number | B40: 058 863 2811 EXT 240 | C40: Telephone number | D40: 058 863 2811 EXT 238
A41: Cell number | B41: 073 042 8766 | C41: Cell number | D41: 078 865 6224
A42: Fax number | B42: 058 863 1129 | C42: Fax number | D42: 058 863 2523
A43: E-mail address | B43: molapi@webmail.co.za | C43: E-mail address | D43: Steven.Mpembe@nketoanafs.co.za
A45: Deputy Mayor/Executive Mayor: | C45: Secretary/PA to the Deputy Mayor/Executive Mayor:
A46: Name | C46: Name
A47: Telephone number | C47: Telephone number
A48: Cell number | C48: Cell number
A49: Fax number | C49: Fax number
A50: E-mail address | C50: E-mail address
A52: D. MANAGEMENT LEADERSHIP
A53: Municipal Manager: | C53: Secretary/PA to the Municipal Manager:
A54: Name | B54: LEKGETHO ISAAC MOKGATLHE | C54: Name | D54: MAMONAHENG MOKOENA
A55: Telephone number | B55: 058 863 2811 EXT 236 | C55: Telephone number | D55: 058 863 2811 EXT 246
A56: Cell number | B56: 072 527 5655 | C56: Cell number | D56: 082 307 2640
A57: Fax number | B57: 058 863 2523 | C57: Fax number | D57: 058 863 2523
A58: E-mail address | B58: limokgatlhe@nketoanafs.co.za | C58: E-mail address | D58: mamnaheng.mokoena@nketoanafs.co.za
A60: Chief Financial Officer | C60: Secretary/PA to the Chief Financial Officer
A61: Name | B61: Godfrey Makgale | C61: Name | D61: THOBILE NDABA
A62: Telephone number | B62: 058 086 2811 | C62: Telephone number | D62: 058 863 2811 EXT 283
A63: Cell number | B63: 083 664 0586 | C63: Cell number | D63: 079 033 7171
A64: Fax number | B64: 058 863 2523 | C64: Fax number | D64: 058 863 2523
A65: E-mail address | B65: TG.Makgale@nketoanafs.co.za | C65: E-mail address | D65: thobile@nketoanafs.co.za
A67: Official responsible for submitting financial information
A68: Name | B68: TUMELO MOLOI
A69: Telephone number | B69: 058 863 2811 EXT 265
A70: Cell number | B70: 073 219 8775
A71: Fax number | B71: 058 863 2523
A72: E-mail address | B72: Tumelo.Moloi@nketoanafs.co.za
A73: Official responsible for submitting financial information
A74: Name | B74: BONTLE MPOTU
A75: Telephone number | B75: 058 863 2811 EXT 249
A76: Cell number | B76: 073 065 9198
A77: Fax number | B77: 058 863 2523
A78: E-mail address | B78: Bontle.Mpotu@nketoanafs.co.za
A79: Official responsible for submitting financial information
A80: Name | B80: DUDUZILE MBELE
A81: Telephone number | B81: 058 863 2811 EXT 255
A82: Cell number | B82: 073 655 0497
A83: Fax number | B83: 058 863 2523
A84: E-mail address | B84: duduzile@nketoanafs.co.za

Sheet A1-Sum
A1: =muni&" - "&Approve1 -> FS193 Nketoana - Table A1 Budget Summary
A2: =desc -> Description | B2: =head1b -> 2012/13 | C2: =head1A -> 2013/14 | D2: =Head1 -> 2014/15 | E2: =Head2 -> Current Year 2015/16 | I2: =Head3 -> 2016/17 Medium Term Revenue & Expenditure Framework
A3: R thousands | B3: =Head5 -> Audited Outcome | C3: =Head5 -> Audited Outcome | D3: =Head5 -> Audited Outcome | E3: =Head6 -> Original Budget | F3: =Head7 -> Adjusted Budget | G3: =Head8 -> Full Year Forecast | H3: =Head5b -> Pre-audit outcome | I3: =Head9 -> Budget Year 2016/17 | J3: =Head10 -> Budget Year +1 2017/18 | K3: =Head11 -> Budget Year +2 2018/19
A4: Financial Performance
A5: Property rates | B5: ='A4-FinPerf RE'!C5+'A4-FinPerf RE'!C6 ->  | C5: ='A4-FinPerf RE'!D5+'A4-FinPerf RE'!D6 -> 19134285.82 | D5: ='A4-FinPerf RE'!E5+'A4-FinPerf RE'!E6 -> 34052474.04 | E5: ='A4-FinPerf RE'!F5+'A4-FinPerf RE'!F6 -> 18796007.6 | F5: ='A4-FinPerf RE'!G5+'A4-FinPerf RE'!G6 -> 18530562.6 | G5: ='A4-FinPerf RE'!H5+'A4-FinPerf RE'!H6 -> 18530562.6 | H5: ='A4-FinPerf RE'!I5+'A4-FinPerf RE'!I6 -> 18530562.6 | I5: ='A4-FinPerf RE'!J5+'A4-FinPerf RE'!J6 -> 18428651.08 | J5: ='A4-FinPerf RE'!K5+'A4-FinPerf RE'!K6 -> 19165797.12 | K5: ='A4-FinPerf RE'!L5+'A4-FinPerf RE'!L6 -> 19932429.01
A6: Service charges | B6: =SUM('A4-FinPerf RE'!C7:C11) -> 76524578 | C6: =SUM('A4-FinPerf RE'!D7:D11) -> 104977418 | D6: =SUM('A4-FinPerf RE'!E7:E11) -> 120703648 | E6: =SUM('A4-FinPerf RE'!F7:F11) -> 120370079 | F6: =SUM('A4-FinPerf RE'!G7:G11) -> 125806794 | G6: =SUM('A4-FinPerf RE'!H7:H11) -> 125806794 | H6: =SUM('A4-FinPerf RE'!I7:I11) -> 142869090 | I6: =SUM('A4-FinPerf RE'!J7:J11) -> 135713534 | J6: =SUM('A4-FinPerf RE'!K7:K11) -> 141142075.3 | K6: =SUM('A4-FinPerf RE'!L7:L11) -> 146787758.3
A7: Investment revenue | B7: ='A4-FinPerf RE'!C13 -> 1501123 | C7: ='A4-FinPerf RE'!D13 -> 411307 | D7: ='A4-FinPerf RE'!E13 -> 583166 | E7: ='A4-FinPerf RE'!F13 -> 644000 | F7: ='A4-FinPerf RE'!G13 -> 600000 | G7: ='A4-FinPerf RE'!H13 -> 600000 | H7: ='A4-FinPerf RE'!I13 -> 600000 | I7: ='A4-FinPerf RE'!J13 -> 400000 | J7: ='A4-FinPerf RE'!K13 -> 416000 | K7: ='A4-FinPerf RE'!L13 -> 432640
A8: Transfers recognised - operational | B8: ='A4-FinPerf RE'!C19 -> 117791362 | C8: ='A4-FinPerf RE'!D19 -> 80423038 | D8: ='A4-FinPerf RE'!E19 -> 82169397 | E8: ='A4-FinPerf RE'!F19 -> 84163000 | F8: ='A4-FinPerf RE'!G19 -> 84163000 | G8: ='A4-FinPerf RE'!H19 -> 84163000 | H8: ='A4-FinPerf RE'!I19 -> 84163000 | I8: ='A4-FinPerf RE'!J19 -> 83002000 | J8: ='A4-FinPerf RE'!K19 -> 86322080 | K8: ='A4-FinPerf RE'!L19 -> 89774963.2
A9: Other own revenue | B9: ='A4-FinPerf RE'!C12+'A4-FinPerf RE'!C14+'A4-FinPerf RE'!C15+'A4-FinPerf RE'!C16+'A4-FinPerf RE'!C17+'A4-FinPerf RE'!C18+'A4-FinPerf RE'!C20+'A4-FinPerf RE'!C21 -> 20598465 | C9: ='A4-FinPerf RE'!D12+'A4-FinPerf RE'!D14+'A4-FinPerf RE'!D15+'A4-FinPerf RE'!D16+'A4-FinPerf RE'!D17+'A4-FinPerf RE'!D18+'A4-FinPerf RE'!D20+'A4-FinPerf RE'!D21 -> 21068070 | D9: ='A4-FinPerf RE'!E12+'A4-FinPerf RE'!E14+'A4-FinPerf RE'!E15+'A4-FinPerf RE'!E16+'A4-FinPerf RE'!E17+'A4-FinPerf RE'!E18+'A4-FinPerf RE'!E20+'A4-FinPerf RE'!E21 -> 21848876 | E9: ='A4-FinPerf RE'!F12+'A4-FinPerf RE'!F14+'A4-FinPerf RE'!F15+'A4-FinPerf RE'!F16+'A4-FinPerf RE'!F17+'A4-FinPerf RE'!F18+'A4-FinPerf RE'!F20+'A4-FinPerf RE'!F21 -> 64456116.13 | F9: ='A4-FinPerf RE'!G12+'A4-FinPerf RE'!G14+'A4-FinPerf RE'!G15+'A4-FinPerf RE'!G16+'A4-FinPerf RE'!G17+'A4-FinPerf RE'!G18+'A4-FinPerf RE'!G20+'A4-FinPerf RE'!G21 -> 55352615.9 | G9: ='A4-FinPerf RE'!H12+'A4-FinPerf RE'!H14+'A4-FinPerf RE'!H15+'A4-FinPerf RE'!H16+'A4-FinPerf RE'!H17+'A4-FinPerf RE'!H18+'A4-FinPerf RE'!H20+'A4-FinPerf RE'!H21 -> 55352615.9 | H9: ='A4-FinPerf RE'!I12+'A4-FinPerf RE'!I14+'A4-FinPerf RE'!I15+'A4-FinPerf RE'!I16+'A4-FinPerf RE'!I17+'A4-FinPerf RE'!I18+'A4-FinPerf RE'!I20+'A4-FinPerf RE'!I21 -> 55352615.9 | I9: ='A4-FinPerf RE'!J12+'A4-FinPerf RE'!J14+'A4-FinPerf RE'!J15+'A4-FinPerf RE'!J16+'A4-FinPerf RE'!J17+'A4-FinPerf RE'!J18+'A4-FinPerf RE'!J20+'A4-FinPerf RE'!J21 -> 38455128.81 | J9: ='A4-FinPerf RE'!K12+'A4-FinPerf RE'!K14+'A4-FinPerf RE'!K15+'A4-FinPerf RE'!K16+'A4-FinPerf RE'!K17+'A4-FinPerf RE'!K18+'A4-FinPerf RE'!K20+'A4-FinPerf RE'!K21 -> 39993333.96 | K9: ='A4-FinPerf RE'!L12+'A4-FinPerf RE'!L14+'A4-FinPerf RE'!L15+'A4-FinPerf RE'!L16+'A4-FinPerf RE'!L17+'A4-FinPerf RE'!L18+'A4-FinPerf RE'!L20+'A4-FinPerf RE'!L21 -> 41593067.32
A10: ='A4-FinPerf RE'!A22 -> Total Revenue (excluding capital transfers and contributions) | B10: =SUM(B5:B9) ->  | C10: 226014118.8 | D10: 259357561 | E10: 288429202.7 | F10: 284452972.5 | G10: 284452972.5 | H10: 301515268.5 | I10: 275999313.8 | J10: 287039286.4 | K10: 298520857.8
A11: Employee costs | B11: ='A4-FinPerf RE'!C25 -> 57013077 | C11: ='A4-FinPerf RE'!D25 -> 68647856 | D11: ='A4-FinPerf RE'!E25 -> 74122615 | E11: ='A4-FinPerf RE'!F25 -> 71987000 | F11: ='A4-FinPerf RE'!G25 -> 70879339.51 | G11: ='A4-FinPerf RE'!H25 -> 70879339.51 | H11: ='A4-FinPerf RE'!I25 -> 70879339.51 | I11: ='A4-FinPerf RE'!J25 -> 75195699.88 | J11: ='A4-FinPerf RE'!K25 -> 78203527.88 | K11: ='A4-FinPerf RE'!L25 -> 81331668.99
A12: Remuneration of councillors | B12: ='A4-FinPerf RE'!C26 -> 4924503 | C12: ='A4-FinPerf RE'!D26 -> 5379215 | D12: ='A4-FinPerf RE'!E26 -> 6676993 | E12: ='A4-FinPerf RE'!F26 -> 6530442 | F12: ='A4-FinPerf RE'!G26 -> 6662935 | G12: ='A4-FinPerf RE'!H26 -> 6662935 | H12: ='A4-FinPerf RE'!I26 -> 6662935 | I12: ='A4-FinPerf RE'!J26 -> 7062711.546 | J12: ='A4-FinPerf RE'!K26 -> 7345220.008 | K12: ='A4-FinPerf RE'!L26 -> 7639028.808
A13: Depreciation & asset impairment | B13: ='A4-FinPerf RE'!C28 -> 64736250 | C13: ='A4-FinPerf RE'!D28 -> 64210796 | D13: ='A4-FinPerf RE'!E28 -> 67572300 | E13: ='A4-FinPerf RE'!F28 -> 64000000 | F13: ='A4-FinPerf RE'!G28 -> 67200000 | G13: ='A4-FinPerf RE'!H28 -> 67200000 | H13: ='A4-FinPerf RE'!I28 -> 67200000 | I13: ='A4-FinPerf RE'!J28 -> 68544000 | J13: ='A4-FinPerf RE'!K28 -> 71285760 | K13: ='A4-FinPerf RE'!L28 -> 74137190.4
A14: Finance charges | B14: ='A4-FinPerf RE'!C29 -> 2254000 | C14: ='A4-FinPerf RE'!D29 -> 2917794 | D14: ='A4-FinPerf RE'!E29 -> 7763948 | E14: ='A4-FinPerf RE'!F29 -> 1200000 | F14: ='A4-FinPerf RE'!G29 -> 1200000 | G14: ='A4-FinPerf RE'!H29 -> 1200000 | H14: ='A4-FinPerf RE'!I29 -> 1200000 | I14: ='A4-FinPerf RE'!J29 -> 1200000 | J14: ='A4-FinPerf RE'!K29 -> 1248000 | K14: ='A4-FinPerf RE'!L29 -> 1297920
A15: Materials and bulk purchases | B15: ='A4-FinPerf RE'!C30+'A4-FinPerf RE'!C31 -> 37842438 | C15: ='A4-FinPerf RE'!D30+'A4-FinPerf RE'!D31 -> 44941187 | D15: ='A4-FinPerf RE'!E30+'A4-FinPerf RE'!E31 -> 54339270 | E15: ='A4-FinPerf RE'!F30+'A4-FinPerf RE'!F31 -> 61332102.48 | F15: ='A4-FinPerf RE'!G30+'A4-FinPerf RE'!G31 -> 50191896.2 | G15: ='A4-FinPerf RE'!H30+'A4-FinPerf RE'!H31 -> 50191896.2 | H15: ='A4-FinPerf RE'!I30+'A4-FinPerf RE'!I31 -> 50191896.2 | I15: ='A4-FinPerf RE'!J30+'A4-FinPerf RE'!J31 -> 54127900.94 | J15: ='A4-FinPerf RE'!K30+'A4-FinPerf RE'!K31 -> 56293016.98 | K15: ='A4-FinPerf RE'!L30+'A4-FinPerf RE'!L31 -> 58544737.66
A16: Transfers and grants | B16: ='A4-FinPerf RE'!C33 -> 0 | C16: ='A4-FinPerf RE'!D33 -> 0 | D16: ='A4-FinPerf RE'!E33 -> 0 | E16: ='A4-FinPerf RE'!F33 -> 0 | F16: ='A4-FinPerf RE'!G33 -> 0 | G16: ='A4-FinPerf RE'!H33 -> 0 | H16: ='A4-FinPerf RE'!I33 -> 0 | I16: ='A4-FinPerf RE'!J33 -> 0 | J16: ='A4-FinPerf RE'!K33 -> 0 | K16: ='A4-FinPerf RE'!L33 -> 0
A17: Other expenditure | B17: ='A4-FinPerf RE'!C27+'A4-FinPerf RE'!C32+'A4-FinPerf RE'!C34+'A4-FinPerf RE'!C35 -> 100625280 | C17: ='A4-FinPerf RE'!D27+'A4-FinPerf RE'!D32+'A4-FinPerf RE'!D34+'A4-FinPerf RE'!D35 -> 153865986 | D17: ='A4-FinPerf RE'!E27+'A4-FinPerf RE'!E32+'A4-FinPerf RE'!E34+'A4-FinPerf RE'!E35 -> 117936643 | E17: ='A4-FinPerf RE'!F27+'A4-FinPerf RE'!F32+'A4-FinPerf RE'!F34+'A4-FinPerf RE'!F35 -> 86223676.22 | F17: ='A4-FinPerf RE'!G27+'A4-FinPerf RE'!G32+'A4-FinPerf RE'!G34+'A4-FinPerf RE'!G35 -> 91992354.74 | G17: ='A4-FinPerf RE'!H27+'A4-FinPerf RE'!H32+'A4-FinPerf RE'!H34+'A4-FinPerf RE'!H35 -> 91992354.74 | H17: ='A4-FinPerf RE'!I27+'A4-FinPerf RE'!I32+'A4-FinPerf RE'!I34+'A4-FinPerf RE'!I35 -> 91992354.74 | I17: ='A4-FinPerf RE'!J27+'A4-FinPerf RE'!J32+'A4-FinPerf RE'!J34+'A4-FinPerf RE'!J35 -> 95199017.61 | J17: ='A4-FinPerf RE'!K27+'A4-FinPerf RE'!K32+'A4-FinPerf RE'!K34+'A4-FinPerf RE'!K35 -> 99006978.31 | K17: ='A4-FinPerf RE'!L27+'A4-FinPerf RE'!L32+'A4-FinPerf RE'!L34+'A4-FinPerf RE'!L35 -> 102967257.4
A18: ='A4-FinPerf RE'!A36 -> Total Expenditure | B18: =SUM(B11:B17) -> 267395548 | C18: =SUM(C11:C17) -> 339962834 | D18: 328411769 | E18: 291273220.7 | F18: 288126525.4 | G18: 130216287.7 | H18: 130216287.7 | I18: 301329330 | J18: 313382503.2 | K18: 325917803.3
A19: ='A4-FinPerf RE'!A38 -> Surplus/(Deficit) | B19: =B10-B18 ->  | C19: -113948715.2 | D19: -69054207.96 | E19: -2844017.97 | F19: -3673552.95 | G19: 130543571.8 | H19: 130543571.8 | I19: -25330016.14 | J19: -26343216.78 | K19: -27396945.45
A20: ='A4-FinPerf RE'!A39 -> Transfers recognised - capital | B20: ='A4-FinPerf RE'!C39 -> 42018000 | C20: ='A4-FinPerf RE'!D39 -> 48354627 | D20: ='A4-FinPerf RE'!E39 -> 58376416 | E20: ='A4-FinPerf RE'!F39 -> 62773000 | F20: ='A4-FinPerf RE'!G39 -> 62773000 | G20: ='A4-FinPerf RE'!H39 -> 62773000 | H20: ='A4-FinPerf RE'!I39 -> 62773000 | I20: ='A4-FinPerf RE'!J39 -> 89159000 | J20: ='A4-FinPerf RE'!K39 -> 92725360 | K20: ='A4-FinPerf RE'!L39 -> 96434374.4
A21: Contributions recognised - capital & contributed assets | B21: ='A4-FinPerf RE'!C40+'A4-FinPerf RE'!C41 -> 0 | C21: ='A4-FinPerf RE'!D40+'A4-FinPerf RE'!D41 -> 0 | D21: ='A4-FinPerf RE'!E40+'A4-FinPerf RE'!E41 -> 0 | E21: ='A4-FinPerf RE'!F40+'A4-FinPerf RE'!F41 -> 0 | F21: ='A4-FinPerf RE'!G40+'A4-FinPerf RE'!G41 -> 0 | G21: ='A4-FinPerf RE'!H40+'A4-FinPerf RE'!H41 -> 0 | H21: ='A4-FinPerf RE'!I40+'A4-FinPerf RE'!I41 -> 0 | I21: ='A4-FinPerf RE'!J40+'A4-FinPerf RE'!J41 -> 0 | J21: ='A4-FinPerf RE'!K40+'A4-FinPerf RE'!K41 -> 0 | K21: ='A4-FinPerf RE'!L40+'A4-FinPerf RE'!L41 -> 0
A22: ='A4-FinPerf RE'!A42 -> Surplus/(Deficit) after capital transfers & contributions | B22: =B19+SUM(B20:B21) ->  | C22: =C19+SUM(C20:C21) -> -65594088.18 | D22: -10677791.96 | E22: 59928982.03 | F22: 59099447.05 | G22: 193316571.8 | H22: 193316571.8 | I22: 63828983.86 | J22: 66382143.22 | K22: 69037428.95
A23: ='A4-FinPerf RE'!A47 -> Share of surplus/ (deficit) of associate | B23: ='A4-FinPerf RE'!C47 -> 0 | C23: ='A4-FinPerf RE'!D47 -> 0 | D23: ='A4-FinPerf RE'!E47 -> 0 | E23: ='A4-FinPerf RE'!F47 -> 0 | F23: ='A4-FinPerf RE'!G47 -> 0 | G23: ='A4-FinPerf RE'!H47 -> 0 | H23: ='A4-FinPerf RE'!I47 -> 0 | I23: ='A4-FinPerf RE'!J47 -> 0 | J23: ='A4-FinPerf RE'!K47 -> 0 | K23: ='A4-FinPerf RE'!L47 -> 0
A24: ='A4-FinPerf RE'!A48 -> Surplus/(Deficit) for the year | B24: =B22+B23 ->  | C24: =C22+C23 -> -65594088.18 | D24: -10677791.96 | E24: 59928982.03 | F24: 59099447.05 | G24: 193316571.8 | H24: 193316571.8 | I24: 63828983.86 | J24: 66382143.22 | K24: 69037428.95
A26: Capital expenditure & funds sources
A27: Capital expenditure | B27: ='A5-Capex'!C63 -> 52049000 | C27: ='A5-Capex'!D63 -> 60376969 | D27: ='A5-Capex'!E63 -> 50984402 | E27: ='A5-Capex'!F63 -> 67597000 | F27: ='A5-Capex'!G63 -> 67767000 | G27: ='A5-Capex'!H63 -> 67767000 | H27: ='A5-Capex'!I63 -> 67767000 | I27: ='A5-Capex'!J63 -> 94654504 | J27: ='A5-Capex'!K63 -> 80166571 | K27: ='A5-Capex'!L63 -> 86809109
A28: Transfers recognised - capital | B28: ='A5-Capex'!C70 -> 42018000 | C28: ='A5-Capex'!D70 -> 49372068 | D28: ='A5-Capex'!E70 -> 26572000 | E28: ='A5-Capex'!F70 -> 62773000 | F28: ='A5-Capex'!G70 -> 62773000 | G28: ='A5-Capex'!H70 -> 62773000 | H28: ='A5-Capex'!I70 -> 62773000 | I28: ='A5-Capex'!J70 -> 89159001 | J28: ='A5-Capex'!K70 -> 72280000 | K28: ='A5-Capex'!L70 -> 76750000
A29: ='A5-Capex'!A71 -> Public contributions & donations | B29: ='A5-Capex'!C71 -> 0 | C29: ='A5-Capex'!D71 -> 0 | D29: ='A5-Capex'!E71 -> 0 | E29: ='A5-Capex'!F71 -> 0 | F29: ='A5-Capex'!G71 -> 0 | G29: ='A5-Capex'!H71 -> 0 | H29: ='A5-Capex'!I71 -> 0 | I29: ='A5-Capex'!J71 -> 0 | J29: ='A5-Capex'!K71 -> 0 | K29: ='A5-Capex'!L71 -> 0
A30: ='A5-Capex'!A72 -> Borrowing | B30: ='A5-Capex'!C72 -> 0 | C30: ='A5-Capex'!D72 -> 0 | D30: ='A5-Capex'!E72 -> 0 | E30: ='A5-Capex'!F72 -> 0 | F30: ='A5-Capex'!G72 -> 0 | G30: ='A5-Capex'!H72 -> 0 | H30: ='A5-Capex'!I72 -> 0 | I30: ='A5-Capex'!J72 -> 0 | J30: ='A5-Capex'!K72 -> 0 | K30: ='A5-Capex'!L72 -> 0
A31: ='A5-Capex'!A73 -> Internally generated funds | B31: ='A5-Capex'!C73 -> 10031000 | C31: ='A5-Capex'!D73 -> 11004901 | D31: ='A5-Capex'!E73 -> 24412402 | E31: ='A5-Capex'!F73 -> 4824000 | F31: ='A5-Capex'!G73 -> 4994000 | G31: ='A5-Capex'!H73 -> 4994000 | H31: ='A5-Capex'!I73 -> 4994000 | I31: ='A5-Capex'!J73 -> 5495503 | J31: ='A5-Capex'!K73 -> 7886571 | K31: ='A5-Capex'!L73 -> 10059109
A32: Total sources of capital funds | B32: =SUM(B28:B31) -> 52049000 | C32: 60376969 | D32: 50984402 | E32: 67597000 | F32: 67767000 | G32: 67767000 | H32: 67767000 | I32: 94654504 | J32: 80166571 | K32: 86809109
A34: Financial position
A35: ='A6-FinPos'!A12 -> Total current assets | B35: ='A6-FinPos'!C12 -> 87299530 | C35: ='A6-FinPos'!D12 -> 51519782 | D35: ='A6-FinPos'!E12 -> 70493428 | E35: ='A6-FinPos'!F12 -> 113989333 | F35: ='A6-FinPos'!G12 -> 70262154.22 | G35: ='A6-FinPos'!H12 -> 70262154.22 | H35: ='A6-FinPos'!I12 -> 70262154.22 | I35: ='A6-FinPos'!J12 -> 79921500.11 | J35: ='A6-FinPos'!K12 -> 83118360.11 | K35: ='A6-FinPos'!L12 -> 86443094.52
A36: ='A6-FinPos'!A24 -> Total non current assets | B36: ='A6-FinPos'!C24 -> 605162185 | C36: ='A6-FinPos'!D24 -> 605697096 | D36: ='A6-FinPos'!E24 -> 588233577 | E36: ='A6-FinPos'!F24 -> 605697096 | F36: ='A6-FinPos'!G24 -> 588233577 | G36: ='A6-FinPos'!H24 -> 588233577 | H36: ='A6-FinPos'!I24 -> 588233577 | I36: ='A6-FinPos'!J24 -> 611762920.1 | J36: ='A6-FinPos'!K24 -> 636233436.9 | K36: ='A6-FinPos'!L24 -> 661682774.4
A37: ='A6-FinPos'!A34 -> Total current liabilities | B37: ='A6-FinPos'!C34 -> 54072475 | C37: ='A6-FinPos'!D34 -> 95041552 | D37: ='A6-FinPos'!E34 -> 135065773 | E37: ='A6-FinPos'!F34 -> 94799824 | F37: ='A6-FinPos'!G34 -> 135065773 | G37: ='A6-FinPos'!H34 -> 135065773 | H37: ='A6-FinPos'!I34 -> 135065773 | I37: ='A6-FinPos'!J34 -> 140468403.9 | J37: ='A6-FinPos'!K34 -> 146087140.1 | K37: ='A6-FinPos'!L34 -> 151930625.7
A38: ='A6-FinPos'!A39 -> Total non current liabilities | B38: ='A6-FinPos'!C39 -> 27342099 | C38: ='A6-FinPos'!D39 -> 25291734 | D38: ='A6-FinPos'!E39 -> 22667342 | E38: ='A6-FinPos'!F39 -> 25291734 | F38: ='A6-FinPos'!G39 -> 22667342 | G38: ='A6-FinPos'!H39 -> 22667342 | H38: ='A6-FinPos'!I39 -> 22667342 | I38: ='A6-FinPos'!J39 -> 23574035.68 | J38: ='A6-FinPos'!K39 -> 24516997.11 | K38: ='A6-FinPos'!L39 -> 25497676.99
A39: Community wealth/Equity | B39: ='A6-FinPos'!C48 -> 611047141 | C39: ='A6-FinPos'!D48 -> 536883592 | D39: ='A6-FinPos'!E48 -> 500993890 | E39: ='A6-FinPos'!F48 -> 599594871 | F39: ='A6-FinPos'!G48 -> 500762616.2 | G39: ='A6-FinPos'!H48 -> 500762616.2 | H39: ='A6-FinPos'!I48 -> 500762616.2 | I39: ='A6-FinPos'!J48 -> 527641980.6 | J39: ='A6-FinPos'!K48 -> 548747659.8 | K39: ='A6-FinPos'!L48 -> 570697566.2
A41: Cash flows
A42: Net cash from (used) operating | B42: ='A7-CFlow'!C17 -> 8769320 | C42: ='A7-CFlow'!D17 -> 67850376 | D42: ='A7-CFlow'!E17 -> 54044488 | E42: ='A7-CFlow'!F17 -> 136745094.3 | F42: ='A7-CFlow'!G17 -> 98922327.75 | G42: ='A7-CFlow'!H17 -> 98922327.75 | H42: ='A7-CFlow'!I17 -> 98922327.75 | I42: ='A7-CFlow'!J17 -> 170997097.1 | J42: ='A7-CFlow'!K17 -> 157391620.9 | K42: ='A7-CFlow'!L17 -> 165266085.8
A43: Net cash from (used) investing | B43: ='A7-CFlow'!C27 -> -32353404 | C43: ='A7-CFlow'!D27 -> -59891832 | D43: ='A7-CFlow'!E27 -> -50014496 | E43: ='A7-CFlow'!F27 -> -67597000 | F43: ='A7-CFlow'!G27 -> -67767000 | G43: ='A7-CFlow'!H27 -> -67767000 | H43: ='A7-CFlow'!I27 -> -67767000 | I43: ='A7-CFlow'!J27 -> -94654502.26 | J43: ='A7-CFlow'!K27 -> -80166570 | K43: ='A7-CFlow'!L27 -> -86809109
A44: Net cash from (used) financing | B44: ='A7-CFlow'!C36 -> -1321520 | C44: ='A7-CFlow'!D36 -> -1062377 | D44: ='A7-CFlow'!E36 -> -1348909 | E44: ='A7-CFlow'!F36 -> -8636631.28 | F44: ='A7-CFlow'!G36 -> -8636631.28 | G44: ='A7-CFlow'!H36 -> -8636631.28 | H44: ='A7-CFlow'!I36 -> -8636631.28 | I44: ='A7-CFlow'!J36 -> -8636631.28 | J44: ='A7-CFlow'!K36 -> -8566180.749 | K44: ='A7-CFlow'!L36 -> -8497673.46
A45: =LEFT('A7-CFlow'!A40,37) -> Cash/cash equivalents at the year end | B45: ='A7-CFlow'!C40 -> -7777235 | C45: ='A7-CFlow'!D40 -> -881307 | D45: ='A7-CFlow'!E40 -> 1799777 | E45: ='A7-CFlow'!F40 -> 147153463 | F45: ='A7-CFlow'!G40 -> 109160696.5 | G45: ='A7-CFlow'!H40 -> 109160696.5 | H45: ='A7-CFlow'!I40 -> 109160696.5 | I45: ='A7-CFlow'!J40 -> 126440842.5 | J45: ='A7-CFlow'!K40 -> 195099712.7 | K45: ='A7-CFlow'!L40 -> 265059016
A47: Cash backing/surplus reconciliation
A48: ='A8-ResRecon'!A4 -> Cash and investments available | B48: ='A8-ResRecon'!C8 -> -10390831 | C48: ='A8-ResRecon'!D8 -> 2815063 | D48: ='A8-ResRecon'!E8 -> 10018778 | E48: ='A8-ResRecon'!F8 -> 12429917 | F48: ='A8-ResRecon'!G8 -> 10985621.22 | G48: ='A8-ResRecon'!H8 -> 10985621.22 | H48: ='A8-ResRecon'!I8 -> 10985621.22 | I48: ='A8-ResRecon'!J8 -> 18273905.79 | J48: ='A8-ResRecon'!K8 -> 19004862.02 | K48: ='A8-ResRecon'!L8 -> 19765056.5
A49: ='A8-ResRecon'!A10 -> Application of cash and investments | B49: ='A8-ResRecon'!C18 -> -10358994 | C49: ='A8-ResRecon'!D18 -> 62944946 | D49: ='A8-ResRecon'!E18 -> 97148689 | E49: ='A8-ResRecon'!F18 -> -29839055 | F49: ='A8-ResRecon'!G18 -> 71743705 | G49: ='A8-ResRecon'!H18 -> 71743705 | H49: ='A8-ResRecon'!I18 -> 75247705 | I49: ='A8-ResRecon'!J18 -> 74901933.2 | J49: ='A8-ResRecon'!K18 -> 77898170.53 | K49: ='A8-ResRecon'!L18 -> 81013857.35
A50: Balance - surplus (shortfall) | B50: =B48-B49 -> -31837 | C50: =C48-C49 -> -60129883 | D50: -87129911 | E50: 42268972 | F50: -60758083.78 | G50: -60758083.78 | H50: -64262083.78 | I50: -56628027.41 | J50: -58893308.51 | K50: -61248800.85
A52: Asset management
A53: Asset register summary (WDV) | B53: ='A9-Asset'!C65 -> 598629185 | C53: ='A9-Asset'!D65 -> 599096151 | D53: ='A9-Asset'!E65 -> 581909272 | E53: ='A9-Asset'!F65 -> 597500887 | F53: ='A9-Asset'!G65 -> 581909272 | G53: ='A9-Asset'!H65 -> 581909272 | H53: ='A9-Asset'!I65 -> 605185642.9 | I53: ='A9-Asset'!I65 -> 605185642.9 | J53: ='A9-Asset'!J65 -> 629393068.6 | K53: ='A9-Asset'!K65 -> 654568791.3
A54: ='A9-Asset'!A68 -> Depreciation & asset impairment | B54: ='A9-Asset'!C68 -> 64736250 | C54: ='A9-Asset'!D68 -> 64210796 | D54: ='A9-Asset'!E68 -> 67572300 | E54: ='A9-Asset'!F68 -> 64000000 | F54: ='A9-Asset'!G68 -> 67200000 | G54: ='A9-Asset'!H68 -> 67200000 | H54: ='A9-Asset'!I68 -> 68544000 | I54: ='A9-Asset'!I68 -> 68544000 | J54: ='A9-Asset'!J68 -> 71285760 | K54: ='A9-Asset'!K68 -> 74137190.4
A55: Renewal of Existing Assets | B55: ='A9-Asset'!C20 -> 0 | C55: ='A9-Asset'!D20 -> 0 | D55: ='A9-Asset'!E20 -> 0 | E55: ='A9-Asset'!F20 -> 0 | F55: ='A9-Asset'!G20 -> 0 | G55: ='A9-Asset'!H20 -> 0 | H55: ='A9-Asset'!H20 -> 0 | I55: ='A9-Asset'!I20 -> 0 | J55: ='A9-Asset'!J20 -> 0 | K55: ='A9-Asset'!K20 -> 0
A56: Repairs and Maintenance | B56: ='A9-Asset'!C69 -> 8821056 | C56: ='A9-Asset'!D69 -> 12770134 | D56: ='A9-Asset'!E69 -> 10832000 | E56: ='A9-Asset'!F69 -> 10897913.23 | F56: ='A9-Asset'!G69 -> 11157913.23 | G56: ='A9-Asset'!H69 -> 11157913.23 | H56: ='A9-Asset'!I69 -> 8156500 | I56: ='A9-Asset'!I69 -> 8156500 | J56: ='A9-Asset'!J69 -> 8482760 | K56: ='A9-Asset'!K69 -> 8822070.4
A58: Free services
A59: Cost of Free Basic Services provided | B59: ='A10-SerDel'!C60 -> 17675287.12 | C59: ='A10-SerDel'!D60 -> 18086391.35 | D59: ='A10-SerDel'!E60 -> 23294257.58 | E59: ='A10-SerDel'!F60 -> 22499011 | F59: ='A10-SerDel'!G60 -> 17062296 | G59: ='A10-SerDel'!H60 -> 17062296 | H59: ='A10-SerDel'!I60 -> 16467297.12 | I59: ='A10-SerDel'!I60 -> 16467297.12 | J59: ='A10-SerDel'!J60 -> 17125989 | K59: ='A10-SerDel'!K60 -> 17811028.56
A60: Revenue cost of free services provided | B60: ='A10-SerDel'!C79 -> 14538720.31 | C60: ='A10-SerDel'!D79 -> 3737720.82 | D60: ='A10-SerDel'!E79 -> 18687711.96 | E60: ='A10-SerDel'!F79 -> 19467764.4 | F60: ='A10-SerDel'!G79 -> 19733209.4 | G60: ='A10-SerDel'!H79 -> 19733209.4 | H60: ='A10-SerDel'!I79 -> 22526497.36 | I60: ='A10-SerDel'!I79 -> 22526497.36 | J60: ='A10-SerDel'!J79 -> 23411357.25 | K60: ='A10-SerDel'!K79 -> 24324011.54
A61: Households below minimum service level
A62: ='A10-SerDel'!A5 -> Water: | B62: ='A10-SerDel'!C14 -> 6695 | C62: ='A10-SerDel'!D14 -> 6478 | D62: ='A10-SerDel'!E14 -> 7873 | E62: ='A10-SerDel'!F14 -> 7873 | F62: ='A10-SerDel'!G14 -> 7873 | G62: ='A10-SerDel'!H14 -> 7873 | H62: ='A10-SerDel'!I14 -> 7005 | I62: ='A10-SerDel'!I14 -> 7005 | J62: ='A10-SerDel'!J14 -> 7000 | K62: ='A10-SerDel'!K14 -> 6390
A63: ='A10-SerDel'!A16 -> Sanitation/sewerage: | B63: ='A10-SerDel'!C26 -> 3885 | C63: ='A10-SerDel'!D26 -> 3450 | D63: ='A10-SerDel'!E26 -> 4191 | E63: ='A10-SerDel'!F26 -> 4191 | F63: ='A10-SerDel'!G26 -> 4191 | G63: ='A10-SerDel'!H26 -> 4191 | H63: ='A10-SerDel'!I26 -> 4191 | I63: ='A10-SerDel'!I26 -> 4191 | J63: ='A10-SerDel'!J26 -> 4358.64 | K63: ='A10-SerDel'!K26 -> 4532.9856
A64: ='A10-SerDel'!A28 -> Energy: | B64: ='A10-SerDel'!C35 -> 11847 | C64: ='A10-SerDel'!D35 -> 11761 | D64: ='A10-SerDel'!E35 -> 13804 | E64: ='A10-SerDel'!F35 -> 13804 | F64: ='A10-SerDel'!G35 -> 13804 | G64: ='A10-SerDel'!H35 -> 13804 | H64: ='A10-SerDel'!I35 -> 12835 | I64: ='A10-SerDel'!I35 -> 12835 | J64: ='A10-SerDel'!J35 -> 12608 | K64: ='A10-SerDel'!K35 -> 12500
A65: ='A10-SerDel'!A37 -> Refuse: | B65: ='A10-SerDel'!C45 -> 4133 | C65: ='A10-SerDel'!D45 -> 4114 | D65: ='A10-SerDel'!E45 -> 4813 | E65: ='A10-SerDel'!F45 -> 4813 | F65: ='A10-SerDel'!G45 -> 4813 | G65: ='A10-SerDel'!H45 -> 4813 | H65: ='A10-SerDel'!I45 -> 4701 | I65: ='A10-SerDel'!I45 -> 4701 | J65: ='A10-SerDel'!J45 -> 4699 | K65: ='A10-SerDel'!K45 -> 4500

Sheet A2-FinPerf SC
A1: =muni&" - "&Approve3 -> FS193 Nketoana - Table A2 Budgeted Financial Performance (revenue and expenditure by standard classification)
A2: ="Standard Classification "&desc -> Standard Classification Description | B2: =head27 -> Ref | C2: =head1b -> 2012/13 | D2: =head1A -> 2013/14 | E2: =Head1 -> 2014/15 | F2: =Head2 -> Current Year 2015/16 | I2: =Head3 -> 2016/17 Medium Term Revenue & Expenditure Framework
A3: R thousand | B3: 1 | C3: =Head5 -> Audited Outcome | D3: =Head5 -> Audited Outcome | E3: =Head5 -> Audited Outcome | F3: =Head6 -> Original Budget | G3: =Head7 -> Adjusted Budget | H3: =Head8 -> Full Year Forecast | I3: =Head9 -> Budget Year 2016/17 | J3: =Head10 -> Budget Year +1 2017/18 | K3: =Head11 -> Budget Year +2 2018/19
A4: Revenue - Standard
A5: Governance and administration | C5: =SUM(C6:C8) -> 206865675 | D5: =SUM(D6:D8) -> 115435745.8 | E5: 106810977 | F5: 166926181.6 | G5: 94454170.86 | H5: 94454170.86 | I5: 64854658.92 | J5: 67448845.28 | K5: 70146799.09
A6: Executive and council | C6: =A2A!C6 -> 14017720 | D6: =A2A!D6 -> 21871000 | E6: =A2A!E6 -> 16269000 | F6: =A2A!F6 -> 20028342.64 | G6: =A2A!G6 -> 20028342.64 | H6: =A2A!H6 -> 20028342.64 | I6: =A2A!I6 -> 20253342.64 | J6: =A2A!J6 -> 21063476.35 | K6: =A2A!K6 -> 21906015.4
A7: Budget and treasury office | C7: =A2A!C9 -> 170769215 | D7: =A2A!D9 -> 84314745.82 | E7: =A2A!E9 -> 89872976.96 | F7: =A2A!F9 -> 146319929 | G7: =A2A!G9 -> 73981428.61 | H7: =A2A!H9 -> 73981428.61 | I7: =A2A!I9 -> 44288381.08 | J7: =A2A!J9 -> 46059916.32 | K7: =A2A!K9 -> 47902312.98
A8: Corporate services | C8: =A2A!C10 -> 22078740 | D8: =A2A!D10 -> 9250000 | E8: =A2A!E10 -> 669000 | F8: =A2A!F10 -> 577910 | G8: =A2A!G10 -> 444399.61 | H8: =A2A!H10 -> 444399.61 | I8: =A2A!I10 -> 312935.2014 | J8: =A2A!J10 -> 325452.6095 | K8: =A2A!K10 -> 338470.7139
A9: Community and public safety | C9: =SUM(C10:C14) -> 2711000 | D9: =SUM(D10:D14) -> 11808000 | E9: 8898000 | F9: 20388513.54 | G9: 32498627.59 | H9: 32498627.59 | I9: 35444710.24 | J9: 36862498.65 | K9: 38336998.6
A10: Community and social services | C10: =A2A!C16 -> 551000 | D10: =A2A!D16 -> 10524000 | E10: =A2A!E16 -> 2227000 | F10: =A2A!F16 -> 15850276.26 | G10: =A2A!G16 -> 21050799.53 | H10: =A2A!H16 -> 21050799.53 | I10: =A2A!I16 -> 26787629.21 | J10: =A2A!J16 -> 27859134.38 | K10: =A2A!K16 -> 28973499.76
A11: Sport and recreation | C11: =A2A!C25 -> 2044000 | D11: =A2A!D25 -> 853000 | E11: =A2A!E25 -> 6527000 | F11: =A2A!F25 -> 4358237.28 | G11: =A2A!G25 -> 11267828.06 | H11: =A2A!H25 -> 11267828.06 | I11: =A2A!I25 -> 8457081.03 | J11: =A2A!J25 -> 8795364.271 | K11: =A2A!K25 -> 9147178.842
A12: Public safety | C12: =A2A!C26 -> 116000 | D12: =A2A!D26 -> 431000 | E12: =A2A!E26 -> 144000 | F12: =A2A!F26 -> 180000 | G12: =A2A!G26 -> 180000 | H12: =A2A!H26 -> 180000 | I12: =A2A!I26 -> 200000 | J12: =A2A!J26 -> 208000 | K12: =A2A!K26 -> 216320
A13: Housing | C13: =A2A!C32 -> 0 | D13: =A2A!D32 -> 0 | E13: =A2A!E32 -> 0 | F13: =A2A!F32 -> 0 | G13: =A2A!G32 -> 0 | H13: =A2A!H32 -> 0 | I13: =A2A!I32 -> 0 | J13: =A2A!J32 -> 0 | K13: =A2A!K32 -> 0
A14: Health | C14: =A2A!C33 -> 0 | D14: =A2A!D33 -> 0 | E14: =A2A!E33 -> 0 | F14: =A2A!F33 -> 0 | G14: =A2A!G33 -> 0 | H14: =A2A!H33 -> 0 | I14: =A2A!I33 -> 0 | J14: =A2A!J33 -> 0 | K14: =A2A!K33 -> 0
A15: Economic and environmental services | C15: =SUM(C16:C18) -> 0 | D15: =SUM(D16:D18) -> 40301000 | E15: 14638000 | F15: 17429870.18 | G15: 30845134.49 | H15: 30845134.49 | I15: 22350771.51 | J15: 23244802.37 | K15: 24174594.46
A16: Planning and development | C16: =A2A!C38 -> 0 | D16: =A2A!D38 -> 2300000 | E16: =A2A!E38 -> 3920000 | F16: =A2A!F38 -> 6628881.18 | G16: =A2A!G38 -> 6628881.18 | H16: =A2A!H38 -> 6628881.18 | I16: =A2A!I38 -> 6630595.746 | J16: =A2A!J38 -> 6895819.576 | K16: =A2A!K38 -> 7171652.359
A17: Road transport | C17: =A2A!C42 -> 0 | D17: =A2A!D42 -> 38001000 | E17: =A2A!E42 -> 10718000 | F17: =A2A!F42 -> 10800989 | G17: =A2A!G42 -> 24216253.31 | H17: =A2A!H42 -> 24216253.31 | I17: =A2A!I42 -> 15720175.76 | J17: =A2A!J42 -> 16348982.79 | K17: =A2A!K42 -> 17002942.1
A18: Environmental protection | C18: =A2A!C48 -> 0 | D18: =A2A!D48 -> 0 | E18: =A2A!E48 -> 0 | F18: =A2A!F48 -> 0 | G18: =A2A!G48 -> 0 | H18: =A2A!H48 -> 0 | I18: =A2A!I48 -> 0 | J18: =A2A!J48 -> 0 | K18: =A2A!K48 -> 0
A19: Trading services | C19: =SUM(C20:C23) -> 79068640 | D19: =SUM(D20:D23) -> 106324000 | E19: 186117000 | F19: 144755715.4 | G19: 187726117.2 | H19: 187726117.2 | I19: 240806250.9 | J19: =SUM(J20:J23) -> 250438500.9 | K19: 260456041
A20: Electricity | C20: =A2A!C53 -> 27195360 | D20: =A2A!D53 -> 34000000 | E20: =A2A!E53 -> 64581000 | F20: =A2A!F53 -> 46326751 | G20: =A2A!G53 -> 48723807.53 | H20: =A2A!H53 -> 48723807.53 | I20: =A2A!I53 -> 89677729.18 | J20: =A2A!J53 -> 93264838.35 | K20: =A2A!K53 -> 96995431.88
A21: Water | C21: =A2A!C56 -> 27759280 | D21: =A2A!D56 -> 37000000 | E21: =A2A!E56 -> 68514000 | F21: =A2A!F56 -> 49096430 | G21: =A2A!G56 -> 64623589.46 | H21: =A2A!H56 -> 64623589.46 | I21: =A2A!I56 -> 91719520.04 | J21: =A2A!J56 -> 95388300.84 | K21: =A2A!K56 -> 99203832.88
A22: Waste water management | C22: =A2A!C59 -> 11813000 | D22: =A2A!D59 -> 17000000 | E22: =A2A!E59 -> 27699000 | F22: =A2A!F59 -> 24982251.38 | G22: =A2A!G59 -> 44916632.57 | H22: =A2A!H59 -> 44916632.57 | I22: =A2A!I59 -> 28949183.67 | J22: =A2A!J59 -> 30107151.01 | K22: =A2A!K59 -> 31311437.05
A23: Waste management | C23: =A2A!C63 -> 12301000 | D23: =A2A!D63 -> 18324000 | E23: =A2A!E63 -> 25323000 | F23: =A2A!F63 -> 24350283 | G23: =A2A!G63 -> 29462087.61 | H23: =A2A!H63 -> 29462087.61 | I23: =A2A!I63 -> 30459818.01 | J23: =A2A!J63 -> 31678210.73 | K23: =A2A!K63 -> 32945339.16
A24: Other | B24: 4 | C24: =A2A!C65 -> 0 | D24: =A2A!D65 -> 500000 | E24: =A2A!E65 -> 1270000 | F24: =A2A!F65 -> 1701922.28 | G24: =A2A!G65 -> 1701922.28 | H24: =A2A!H65 -> 1701922.28 | I24: =A2A!I65 -> 1701922.28 | J24: =A2A!J65 -> 1769999.171 | K24: =A2A!K65 -> 1840799.138
A25: ="Total "&A4 -> Total Revenue - Standard | B25: 2 | C25: =C5+C9+C15+C19+C24 -> 288645315 | D25: =D5+D9+D15+D19+D24 -> 274368745.8 | E25: =E5+E9+E15+E19+E24 -> 317733977 | F25: 351202203 | G25: 347225972.4 | H25: 347225972.4 | I25: =I5+I9+I15+I19+I24 -> 365158313.8 | J25: 379764646.4 | K25: 394955232.3
A27: Expenditure - Standard
A28: =A5 -> Governance and administration | C28: =SUM(C29:C31) -> 67125353.55 | D28: =SUM(D29:D31) -> 90224834 | E28: 92364946 | F28: 64046194 | G28: 59101785.76 | H28: 59101785.76 | I28: 67603275.41 | J28: 70307406.43 | K28: 73119702.68
A29: =A6 -> Executive and council | C29: =A2A!C75 -> 17872000 | D29: =A2A!D75 -> 18389000 | E29: =A2A!E75 -> 19985000 | F29: =A2A!F75 -> 20506315 | G29: =A2A!G75 -> 25188415.76 | H29: =A2A!H75 -> 25188415.76 | I29: =A2A!I75 -> 24906006.93 | J29: =A2A!J75 -> 25902247.21 | K29: =A2A!K75 -> 26938337.1
A30: Budget and treasury office | C30: =A2A!C78 -> 31340353.55 | D30: =A2A!D78 -> 57709834 | E30: =A2A!E78 -> 59556946 | F30: =A2A!F78 -> 23669651 | G30: =A2A!G78 -> 16219142.7 | H30: =A2A!H78 -> 16219142.7 | I30: =A2A!I78 -> 22580581.98 | J30: =A2A!J78 -> 23483805.26 | K30: =A2A!K78 -> 24423157.47
A31: Corporate services | C31: =A2A!C79 -> 17913000 | D31: =A2A!D79 -> 14126000 | E31: =A2A!E79 -> 12823000 | F31: =A2A!F79 -> 19870228 | G31: =A2A!G79 -> 17694227.3 | H31: =A2A!H79 -> 17694227.3 | I31: =A2A!I79 -> 20116686.5 | J31: =A2A!J79 -> 20921353.96 | K31: =A2A!K79 -> 21758208.12
A32: Community and public safety | C32: =SUM(C33:C37) -> 23553194.44 | D32: =SUM(D33:D37) -> 14942000 | E32: 14473000 | F32: 20081468 | G32: 27216422.92 | H32: 27216422.92 | I32: 21104789.35 | J32: 21948980.93 | K32: 22826940.16
A33: Community and social services | C33: =A2A!C85 -> 19013379.8 | D33: =A2A!D85 -> 10902000 | E33: =A2A!E85 -> 10432000 | F33: =A2A!F85 -> 12688318 | G33: =A2A!G85 -> 15226429.99 | H33: =A2A!H85 -> 15226429.99 | I33: =A2A!I85 -> 12638741.67 | J33: =A2A!J85 -> 13144291.33 | K33: =A2A!K85 -> 13670062.99
A34: Sport and recreation | C34: =A2A!C94 -> 2114258.4 | D34: =A2A!D94 -> 882000 | E34: =A2A!E94 -> 476000 | F34: =A2A!F94 -> 377574 | G34: =A2A!G94 -> 4624091.86 | H34: =A2A!H94 -> 4624091.86 | I34: =A2A!I94 -> 484132.2235 | J34: =A2A!J94 -> 503497.5125 | K34: =A2A!K94 -> 523637.413
A35: Public safety | C35: =A2A!C95 -> 2425556.248 | D35: =A2A!D95 -> 3158000 | E35: =A2A!E95 -> 3565000 | F35: =A2A!F95 -> 7015576 | G35: =A2A!G95 -> 7365901.07 | H35: =A2A!H95 -> 7365901.07 | I35: =A2A!I95 -> 7981915.461 | J35: =A2A!J95 -> 8301192.079 | K35: =A2A!K95 -> 8633239.762
A36: Housing | C36: =A2A!C101 -> 0 | D36: =A2A!D101 -> 0 | E36: =A2A!E101 -> 0 | F36: =A2A!F101 -> 0 | G36: =A2A!G101 -> 0 | H36: =A2A!H101 -> 0 | I36: =A2A!I101 -> 0 | J36: =A2A!J101 -> 0 | K36: =A2A!K101 -> 0
A37: Health | C37: =A2A!C102 -> 0 | D37: =A2A!D102 -> 0 | E37: =A2A!E102 -> 0 | F37: =A2A!F102 -> 0 | G37: =A2A!G102 -> 0 | H37: =A2A!H102 -> 0 | I37: =A2A!I102 -> 0 | J37: =A2A!J102 -> 0 | K37: =A2A!K102 -> 0
A38: Economic and environmental services | C38: =SUM(C39:C41) -> 56062000 | D38: =SUM(D39:D41) -> 60447000 | E38: 65548000 | F38: 53296385.95 | G38: 80163583.89 | H38: 80163583.89 | I38: 58417184.81 | J38: 60753872.21 | K38: 63184027.1
A39: Planning and development | C39: =A2A!C107 -> 479000 | D39: =A2A!D107 -> 3350000 | E39: =A2A!E107 -> 2246000 | F39: =A2A!F107 -> 3783938.95 | G39: =A2A!G107 -> 3870553.98 | H39: =A2A!H107 -> 3870553.98 | I39: =A2A!I107 -> 3250189.972 | J39: =A2A!J107 -> 3380197.571 | K39: =A2A!K107 -> 3515405.473
A40: Road transport | C40: =A2A!C111 -> 55583000 | D40: =A2A!D111 -> 57097000 | E40: =A2A!E111 -> 63302000 | F40: =A2A!F111 -> 49512447 | G40: =A2A!G111 -> 76293029.91 | H40: =A2A!H111 -> 76293029.91 | I40: =A2A!I111 -> 55166994.84 | J40: =A2A!J111 -> 57373674.64 | K40: =A2A!K111 -> 59668621.62
A41: Environmental protection | C41: =A2A!C117 -> 0 | D41: =A2A!D117 -> 0 | E41: =A2A!E117 -> 0 | F41: =A2A!F117 -> 0 | G41: =A2A!G117 -> 0 | H41: =A2A!H117 -> 0 | I41: =A2A!I117 -> 0 | J41: =A2A!J117 -> 0 | K41: =A2A!K117 -> 0
A42: Trading services | C42: =SUM(C43:C46) -> 120655000 | D42: =SUM(D43:D46) -> 173849000 | E42: 155449823 | F42: =SUM(F43:F46) -> 153279936 | G42: 188543176.6 | H42: 188543176.6 | I42: 153453094.1 | J42: 159591217.8 | K42: =SUM(K43:K46) -> 165974866.6
A43: Electricity | C43: =A2A!C122 -> 35595000 | D43: =A2A!D122 -> 48131000 | E43: =A2A!E122 -> 61367000 | F43: =A2A!F122 -> 64586832 | G43: =A2A!G122 -> 63151946.1 | H43: =A2A!H122 -> 63151946.1 | I43: =A2A!I122 -> 63787858.92 | J43: =A2A!J122 -> 66339373.27 | K43: =A2A!K122 -> 68992948.2
A44: Water | C44: =A2A!C125 -> 44319000 | D44: =A2A!D125 -> 46897000 | E44: =A2A!E125 -> 41255000 | F44: =A2A!F125 -> 45320062 | G44: =A2A!G125 -> 66958216.71 | H44: =A2A!H125 -> 66958216.71 | I44: =A2A!I125 -> 41633627.25 | J44: =A2A!J125 -> 43298972.34 | K44: =A2A!K125 -> 45030931.24
A45: Waste water management | C45: =A2A!C128 -> 24225000 | D45: =A2A!D128 -> 45292000 | E45: =A2A!E128 -> 16417823 | F45: =A2A!F128 -> 26614397 | G45: =A2A!G128 -> 38159921.01 | H45: =A2A!H128 -> 38159921.01 | I45: =A2A!I128 -> 30210769.31 | J45: =A2A!J128 -> 31419200.08 | K45: =A2A!K128 -> 32675968.08
A46: Waste management | C46: =A2A!C132 -> 16516000 | D46: =A2A!D132 -> 33529000 | E46: =A2A!E132 -> 36410000 | F46: =A2A!F132 -> 16758645 | G46: =A2A!G132 -> 20273092.74 | H46: =A2A!H132 -> 20273092.74 | I46: =A2A!I132 -> 17820838.6 | J46: =A2A!J132 -> 18533672.15 | K46: =A2A!K132 -> 19275019.03
A47: Other | B47: 4 | C47: =A2A!C134 -> 0 | D47: =A2A!D134 -> 500000 | E47: =A2A!E134 -> 576000 | F47: =A2A!F134 -> 569237 | G47: =A2A!G134 -> 869704.08 | H47: =A2A!H134 -> 869704.08 | I47: =A2A!I134 -> 750986.32 | J47: =A2A!J134 -> 781025.7728 | K47: =A2A!K134 -> 812266.8037
A48: ="Total "&A27 -> Total Expenditure - Standard | B48: 3 | C48: =C28+C32+C38+C42+C47 -> 267395548 | D48: =D28+D32+D38+D42+D47 -> 339962834 | E48: =E28+E32+E38+E42+E47 -> 328411769 | F48: =F28+F32+F38+F42+F47 -> 291273220.9 | G48: 355894673.2 | H48: 355894673.2 | I48: 301329330 | J48: 313382503.2 | K48: 325917803.3
A49: =result -> Surplus/(Deficit) for the year | C49: =C25-C48 -> 21249767 | D49: =D25-D48 -> -65594088.18 | E49: -10677792.04 | F49: 59928982.07 | G49: -8668700.82 | H49: -8668700.82 | I49: 63828983.87 | J49: 66382143.22 | K49: 69037428.95
A50: =head27a -> References
A51: 1. Government Finance Statistics Functions and Sub-functions are standardised to assist the compilation of national and international accounts for comparison purposes
A52: 2. Total Revenue by standard classification must reconcile to Total Operating Revenue shown in Budgeted Financial Performance (revenue and expenditure)
A53: 3. Total Expenditure by Standard Classification must reconcile to Total Operating Expenditure shown in Budgeted Financial Performance (revenue and expenditure)
A54: 4. All amounts must be classified under a standard classification (modified GFS). The GFS function 'Other' is only for Abbatoirs, Air Transport, Markets and Tourism - and if used must be supported by footnotes. Nothing else may be placed under 'Other'. Assign associate share to relevant classification
A57: check oprev balance | C57: =C25-'A4-FinPerf RE'!C60 -> 0 | D57: =D25-'A4-FinPerf RE'!D60 -> 0 | E57: =E25-'A4-FinPerf RE'!E60 -> -0.07999992371 | F57: =F25-'A4-FinPerf RE'!F60 -> 0.2900000215 | G57: =G25-'A4-FinPerf RE'!G60 -> -0.1100000143 | H57: =H25-'A4-FinPerf RE'!H60 -> -0.1100000143 | I57: =I25-'A4-FinPerf RE'!J60 -> 0.005714297295 | J57: =J25-'A4-FinPerf RE'!K60 -> 0.005942881107 | K57: =K25-'A4-FinPerf RE'!L60 -> 0.006180584431
A58: check opexp balance | C58: =C48-'A4-FinPerf RE'!C36 -> -0.00260001421 | D58: =D48-'A4-FinPerf RE'!D36 -> 0 | E58: =E48-'A4-FinPerf RE'!E36 -> 0 | F58: =F48-'A4-FinPerf RE'!F36 -> 0.25 | G58: =G48-'A4-FinPerf RE'!G36 -> 67768147.76 | H58: =H48-'A4-FinPerf RE'!H36 -> 243006126.5 | I58: =I48-'A4-FinPerf RE'!J36 -> 9.149312973e-05 | J58: =J48-'A4-FinPerf RE'!K36 -> 9.524822235e-05 | K58: =K48-'A4-FinPerf RE'!L36 -> 9.894371033e-05

Sheet A2A
A1: =muni&" - "&Approve3 -> FS193 Nketoana - Table A2 Budgeted Financial Performance (revenue and expenditure by standard classification)
A2: ="Standard Classification "&desc -> Standard Classification Description | B2: =head27 -> Ref | C2: =head1b -> 2012/13 | D2: =head1A -> 2013/14 | E2: =Head1 -> 2014/15 | F2: =Head2 -> Current Year 2015/16 | I2: =Head3 -> 2016/17 Medium Term Revenue & Expenditure Framework
A3: R thousand | B3: 1 | C3: =Head5 -> Audited Outcome | D3: =Head5 -> Audited Outcome | E3: =Head5 -> Audited Outcome | F3: =Head6 -> Original Budget | G3: =Head7 -> Adjusted Budget | H3: =Head8 -> Full Year Forecast | I3: =Head9 -> Budget Year 2016/17 | J3: =Head10 -> Budget Year +1 2017/18 | K3: =Head11 -> Budget Year +2 2018/19
A4: Revenue - Standard
A5: Municipal governance and administration | C5: =C6+C9+C10 -> 206865675 | D5: =D6+D9+D10 -> 115435745.8 | E5: 106810977 | F5: 166926181.6 | G5: 94454170.86 | H5: 94454170.86 | I5: 64854658.92 | J5: 67448845.28 | K5: 70146799.09
A6: Executive and council | C6: =SUM(C7:C8) -> 14017720 | D6: =SUM(D7:D8) -> 21871000 | E6: 16269000 | F6: 20028342.64 | G6: 20028342.64 | H6: 20028342.64 | I6: 20253342.64 | J6: 21063476.35 | K6: 21906015.4
A7: Mayor and Council | C7: 14017720 | D7: 8189000 | E7: 8226000 | F7: 10964366.36 | G7: 10964366.36 | H7: =G7 -> 10964366.36 | I7: 11164366.36 | J7: =I7*1.04 -> 11610941.01 | K7: 12075378.65
A8: Municipal Manager | D8: 13682000 | E8: 8043000 | F8: 9063976.28 | G8: 9063976.28 | H8: =G8 -> 9063976.28 | I8: 9088976.28 | J8: 9452535.331 | K8: 9830636.744
A9: Budget and treasury office | C9: 170769215 | D9: =90750000-6435254.18 -> 84314745.82 | E9: =109594000-19721023.04 -> 89872976.96 | F9: 146319929 | G9: =74246873.61-265445 -> 73981428.61 | H9: =G9 -> 73981428.61 | I9: =44588381.08-300000 -> 44288381.08 | J9: 46059916.32 | K9: 47902312.98
A10: Corporate services | C10: =SUM(C11:C14) -> 22078740 | D10: =SUM(D11:D14) -> 9250000 | E10: 669000 | F10: 577910 | G10: 444399.61 | H10: 444399.61 | I10: 312935.2014 | J10: 325452.6095 | K10: 338470.7139
A11: Human Resources | D11: 2400000
A12: Information Technology
A13: Property Services
A14: Other Admin | C14: 22078740 | D14: 6850000 | E14: 669000 | F14: 577910 | G14: 444399.61 | H14: =G14 -> 444399.61 | I14: 312935.2014 | J14: =I14*1.04 -> 325452.6095 | K14: =J14*1.04 -> 338470.7139
A15: Community and public safety | C15: =C16+C25+C26+C32+C33 -> 2711000 | D15: =D16+D25+D26+D32+D33 -> 11808000 | E15: 8898000 | F15: 20388513.54 | G15: 32498627.59 | H15: 32498627.59 | I15: 35444710.24 | J15: 36862498.65 | K15: 38336998.6
A16: Community and social services | C16: =SUM(C17:C24) -> 551000 | D16: =SUM(D17:D24) -> 10524000 | E16: 2227000 | F16: 15850276.26 | G16: 21050799.53 | H16: 21050799.53 | I16: 26787629.21 | J16: 27859134.38 | K16: 28973499.76
A17: Libraries and Archives | D17: 856000
A18: Museums & Art Galleries etc
A19: Community halls and Facilities
A20: Cemeteries & Crematoriums | C20: 551000 | D20: 5228000 | E20: 1010000 | F20: 9954121 | G20: 15169644.27 | H20: =G20 -> 15169644.27 | I20: =9501120.57+11410187.68 -> 20911308.25 | J20: =I20*1.04 -> 21747760.58 | K20: =J20*1.04 -> 22617671
A21: Child Care
A22: Aged Care
A23: Other Community | D23: 4440000 | E23: 1217000 | F23: 5896155.26 | G23: 5881155.26 | H23: =G23 -> 5881155.26 | I23: 5876320.963 | J23: =I23*1.04 -> 6111373.801 | K23: 6355828.753
A24: Other Social
A25: Sport and recreation | C25: 2044000 | D25: 853000 | E25: 6527000 | F25: 4358237.28 | G25: 11267828.06 | H25: =G25 -> 11267828.06 | I25: =4358237.28+4098843.75 -> 8457081.03 | J25: 8795364.271 | K25: 9147178.842
A26: Public safety | C26: =SUM(C27:C31) -> 116000 | D26: =SUM(D27:D31) -> 431000 | E26: 144000 | F26: 180000 | G26: 180000 | H26: 180000 | I26: 200000 | J26: 208000 | K26: 216320
A27: Police | C27: 0 | D27: 431000 | E27: 144000 | F27: 180000 | G27: 180000 | H27: =G27 -> 180000 | I27: 200000 | J27: =I27*1.04 -> 208000 | K27: =J27*1.04 -> 216320
A28: Fire | C28: 116000
A29: Civil Defence
A30: Street Lighting
A31: Other
A32: Housing
A33: Health | C33: =SUM(C34:C36) -> 0 | D33: =SUM(D34:D36) -> 0 | E33: 0 | F33: 0 | G33: 0 | H33: 0 | I33: 0 | J33: 0 | K33: 0
A34: Clinics
A35: Ambulance
A36: Other
A37: Economic and environmental services | C37: =C38+C42+C48 -> 0 | D37: =D38+D42+D48 -> 40301000 | E37: 14638000 | F37: 17429870.18 | G37: 30845134.49 | H37: 30845134.49 | I37: 22350771.51 | J37: 23244802.37 | K37: 24174594.46
A38: Planning and development | C38: =SUM(C39:C41) -> 0 | D38: =SUM(D39:D41) -> 2300000 | E38: 3920000 | F38: 6628881.18 | G38: 6628881.18 | H38: 6628881.18 | I38: 6630595.746 | J38: 6895819.576 | K38: 7171652.359
A39: Economic Development/Planning | D39: 1000000 | E39: 1905000 | F39: 2758237 | G39: 2758237 | H39: =G39 -> 2758237 | I39: 2758237.28 | J39: =I39*1.04 -> 2868566.771 | K39: =J39*1.04 -> 2983309.442
A40: Town Planning/Building enforcement | D40: 1300000 | E40: 2015000 | F40: 3870644.18 | G40: 3870644.18 | H40: =G40 -> 3870644.18 | I40: 3872358.466 | J40: =I40*1.04 -> 4027252.804 | K40: =J40*1.04 -> 4188342.917
A41: Licensing & Regulation
A42: Road transport | C42: =SUM(C43:C47) -> 0 | D42: =SUM(D43:D47) -> 38001000 | E42: 10718000 | F42: 10800989 | G42: 24216253.31 | H42: 24216253.31 | I42: 15720175.76 | J42: 16348982.79 | K42: 17002942.1
A43: Roads | D43: 33361000 | E43: 10718000 | F43: 10800989 | G43: 24216253.31 | H43: =G43 -> 24216253.31 | I43: =10800989+4919186.76 -> 15720175.76 | J43: =I43*1.04 -> 16348982.79 | K43: =J43*1.04 -> 17002942.1
A44: Public Buses
A45: Parking Garages
A46: Vehicle Licensing and Testing
A47: Other | D47: 4640000
A48: Environmental protection | C48: =SUM(C49:C51) -> 0 | D48: =SUM(D49:D51) -> 0 | E48: 0 | F48: 0 | G48: 0 | H48: 0 | I48: 0 | J48: 0 | K48: 0
A49: Pollution Control
A50: Biodiversity & Landscape
A51: Other
A52: Trading services | C52: =C53+C56+C59+C63 -> 79068640 | D52: =D53+D56+D59+D63 -> 106324000 | E52: 186117000 | F52: 144755715.4 | G52: 204788422.2 | H52: 187726117.2 | I52: 240806250.9 | J52: 250438500.9 | K52: =K53+K56+K59+K63 -> 260456041
A53: Electricity | C53: =SUM(C54:C55) -> 27195360 | D53: =SUM(D54:D55) -> 34000000 | E53: 64581000 | F53: 46326751 | G53: 48723807.53 | H53: 48723807.53 | I53: 89677729.18 | J53: 93264838.35 | K53: 96995431.88
A54: Electricity Distribution | C54: 27195360 | D54: 34000000 | E54: 64581000 | F54: =49907380-3580629 -> 46326751 | G54: =52304436.53-3580629 -> 48723807.53 | H54: =G54 -> 48723807.53 | I54: =66781460.3485714+24941000-2044731.17 -> 89677729.18 | J54: =I54*1.04 -> 93264838.35 | K54: =J54*1.04 -> 96995431.88
A55: Electricity Generation
A56: Water | C56: =SUM(C57:C58) -> 27759280 | D56: =SUM(D57:D58) -> 37000000 | E56: 68514000 | F56: 49096430 | G56: 64623589.46 | H56: 64623589.46 | I56: 91719520.04 | J56: 95388300.84 | K56: 99203832.88
A57: Water Distribution | C57: 27759280 | D57: 37000000 | E57: 68514000 | F57: =50457071-1360641 -> 49096430 | G57: =69946628.46-5323039 -> 64623589.46 | H57: =G57 -> 64623589.46 | I57: =55302464.2114286+42095684.19-5678628.36 -> 91719520.04 | J57: =I57*1.04 -> 95388300.84 | K57: =J57*1.04 -> 99203832.88
A58: Water Storage
A59: Waste water management | C59: =SUM(C60:C62) -> 11813000 | D59: =SUM(D60:D62) -> 17000000 | E59: 27699000 | F59: 24982251.38 | G59: 44916632.57 | H59: 44916632.57 | I59: 28949183.67 | J59: 30107151.01 | K59: 31311437.05
A60: Sewerage | C60: 11813000 | D60: 17000000 | E60: 27699000 | F60: =33120329.38-8138078 -> 24982251.38 | G60: =48694288.57-3777656 -> 44916632.57 | H60: =G60 -> 44916632.57 | I60: =32720570.4071429+279103.03-4050489.77 -> 28949183.67 | J60: =I60*1.04 -> 30107151.01 | K60: =J60*1.04 -> 31311437.05
A61: Storm Water Management
A62: Public Toilets
A63: Waste management | C63: =SUM(C64) -> 12301000 | D63: =SUM(D64) -> 18324000 | E63: 25323000 | F63: 24350283 | G63: 29462087.61 | H63: 29462087.61 | I63: 30459818.01 | J63: 31678210.73 | K63: 32945339.16
A64: Solid Waste | C64: 12301000 | D64: 18324000 | E64: 25323000 | F64: =33769946-9419663 -> 24350283 | G64: =33843068.61-4380981 -> 29462087.61 | H64: =G64 -> 29462087.61 | I64: =33738271.2385714+1414994.59-4693447.82 -> 30459818.01 | J64: =I64*1.04 -> 31678210.73 | K64: =J64*1.04 -> 32945339.16
A65: Other | C65: =SUM(C66:C70) -> 0 | D65: =SUM(D66:D70) -> 500000 | E65: 1270000 | F65: 1701922.28 | G65: 1701922.28 | H65: 1701922.28 | I65: 1701922.28 | J65: 1769999.171 | K65: 1840799.138
A66: Air Transport
A67: Abattoirs
A68: Tourism | D68: 500000 | E68: 1270000 | F68: 1701922.28 | G68: 1701922.28 | H68: =G68 -> 1701922.28 | I68: 1701922.28 | J68: =I68*1.04 -> 1769999.171 | K68: =J68*1.04 -> 1840799.138
A69: Forestry
A70: Markets
A71: ="Total "&A4 -> Total Revenue - Standard | B71: 2 | C71: =C5+C15+C37+C52+C65 -> 288645315 | D71: =D5+D15+D37+D52+D65 -> 274368745.8 | E71: =E5+E15+E37+E52+E65 -> 317733977 | F71: 351202203 | G71: 364288277.4 | H71: 347225972.4 | I71: 365158313.8 | J71: 379764646.4 | K71: =K5+K15+K37+K52+K65 -> 394955232.3
A73: Expenditure - Standard
A74: =A5 -> Municipal governance and administration | C74: =C75+C78+C79 -> 67125353.55 | D74: 90224834 | E74: 92364946 | F74: 64046194 | G74: 59101785.76 | H74: 59101785.76 | I74: 67603275.41 | J74: 70307406.43 | K74: 73119702.68
A75: =A6 -> Executive and council | C75: =SUM(C76:C77) -> 17872000 | D75: 18389000 | E75: 19985000 | F75: 20506315 | G75: 25188415.76 | H75: 25188415.76 | I75: 24906006.93 | J75: 25902247.21 | K75: 26938337.1
A76: Mayor and Council | C76: 8545000 | D76: 9689000 | E76: 8566000 | F76: 9190795 | G76: 10377170.16 | H76: =G76 -> 10377170.16 | I76: 11333541.98 | J76: =I76*1.04 -> 11786883.66 | K76: 12258359.01
A77: Municipal Manager | C77: 9327000 | D77: 8700000 | E77: 11419000 | F77: 11315520 | G77: 14811245.6 | H77: =G77 -> 14811245.6 | I77: 13572464.95 | J77: 14115363.55 | K77: 14679978.09
A78: Budget and treasury office | C78: 31340353.55 | D78: =40989901+16719933 -> 57709834 | E78: =54198000+5358946 -> 59556946 | F78: 23669651 | G78: =16484587.7-265445 -> 16219142.7 | H78: =G78 -> 16219142.7 | I78: =22880581.98-300000 -> 22580581.98 | J78: 23483805.26 | K78: 24423157.47
A79: Corporate services | C79: =SUM(C80:C83) -> 17913000 | D79: 14126000 | E79: 12823000 | F79: 19870228 | G79: 17694227.3 | H79: 17694227.3 | I79: 20116686.5 | J79: 20921353.96 | K79: 21758208.12
A80: Human Resources | D80: 2760000
A81: Information Technology
A82: Property Services
A83: Other Admin | C83: 17913000 | D83: 11366000 | E83: 12823000 | F83: 19870228 | G83: 17694227.3 | H83: =G83 -> 17694227.3 | I83: 20116686.5 | J83: =I83*1.04 -> 20921353.96 | K83: =J83*1.04 -> 21758208.12
A84: Community and public safety | C84: =C85+C94+C95+C101+C102 -> 23553194.44 | D84: 14942000 | E84: 14473000 | F84: 20081468 | G84: 27216422.92 | H84: 27216422.92 | I84: 21104789.35 | J84: 21948980.93 | K84: 22826940.16
A85: Community and social services | C85: =SUM(C86:C93) -> 19013379.8 | D85: 10902000 | E85: 10432000 | F85: 12688318 | G85: 15226429.99 | H85: 15226429.99 | I85: 12638741.67 | J85: 13144291.33 | K85: 13670062.99
A86: Libraries and Archives | C86: 0 | D86: 856000
A87: Museums & Art Galleries etc
A88: Community halls and Facilities
A89: Cemeteries & Crematoriums | C89: 12949571.06 | D89: 5606000 | E89: 7360000 | F89: 8201687 | G89: 12647398.31 | H89: =G89 -> 12647398.31 | I89: =8968387.31317667 -> 8968387.313 | J89: =I89*1.04 -> 9327122.806 | K89: =J89*1.04 -> 9700207.718
A90: Child Care
A91: Aged Care
A92: Other Community | C92: 6063808.737 | D92: 4440000 | E92: 3072000 | F92: 4486631 | G92: 2579031.68 | H92: =G92 -> 2579031.68 | I92: 3670354.355 | J92: =I92*1.04 -> 3817168.529 | K92: 3969855.27
A93: Other Social
A94: Sport and recreation | C94: 2114258.4 | D94: 882000 | E94: 476000 | F94: 377574 | G94: 4624091.86 | H94: =G94 -> 4624091.86 | I94: =484132.223521687 -> 484132.2235 | J94: 503497.5125 | K94: 523637.413
A95: Public safety | C95: =SUM(C96:C100) -> 2425556.248 | D95: 3158000 | E95: 3565000 | F95: 7015576 | G95: 7365901.07 | H95: 7365901.07 | I95: 7981915.461 | J95: 8301192.079 | K95: 8633239.762
A96: Police | C96: 2198395.386 | D96: 1776000 | E96: 3565000 | F96: 7015576 | G96: 7365901.07 | H96: =G96 -> 7365901.07 | I96: 7981915.461 | J96: =I96*1.04 -> 8301192.079 | K96: =J96*1.04 -> 8633239.762
A97: Fire | C97: 227160.862 | D97: 1382000
A98: Civil Defence
A99: Street Lighting
A100: Other
A101: Housing
A102: Health | C102: =SUM(C103:C105) -> 0 | D102: 0 | E102: 0 | F102: 0 | G102: 0 | H102: 0 | I102: 0 | J102: 0 | K102: 0
A103: Clinics
A104: Ambulance
A105: Other
A106: Economic and environmental services | C106: =C107+C111+C117 -> 56062000 | D106: 60447000 | E106: 65548000 | F106: 53296385.95 | G106: 80163583.89 | H106: 80163583.89 | I106: 58417184.81 | J106: 60753872.21 | K106: 63184027.1
A107: Planning and development | C107: =SUM(C108:C110) -> 479000 | D107: 3350000 | E107: 2246000 | F107: 3783938.95 | G107: 3870553.98 | H107: 3870553.98 | I107: 3250189.972 | J107: 3380197.571 | K107: 3515405.473
A108: Economic Development/Planning | C108: 479000 | D108: 1550000 | E108: 3526000 | F108: 1725585 | G108: 1729557.36 | H108: =G108 -> 1729557.36 | I108: 1695176.15 | J108: =I108*1.04 -> 1762983.196 | K108: =J108*1.04 -> 1833502.524
A109: Town Planning/Building enforcement | D109: 1800000 | E109: -1280000 | F109: 2058353.95 | G109: 2140996.62 | H109: =G109 -> 2140996.62 | I109: 1555013.822 | J109: =I109*1.04 -> 1617214.375 | K109: =J109*1.04 -> 1681902.95
A110: Licensing & Regulation
A111: Road transport | C111: =SUM(C112:C116) -> 55583000 | D111: 57097000 | E111: 63302000 | F111: 49512447 | G111: 76293029.91 | H111: 76293029.91 | I111: 55166994.84 | J111: 57373674.64 | K111: 59668621.62
A112: Roads | C112: 55583000 | D112: 52457000 | E112: 60909000 | F112: 49512447 | G112: 76293029.91 | H112: =G112 -> 76293029.91 | I112: =55166994.8431739 -> 55166994.84 | J112: =I112*1.04 -> 57373674.64 | K112: =J112*1.04 -> 59668621.62
A113: Public Buses
A114: Parking Garages
A115: Vehicle Licensing and Testing
A116: Other | D116: 4640000 | E116: 2393000
A117: Environmental protection | C117: =SUM(C118:C120) -> 0 | D117: 0 | E117: 0 | F117: 0 | G117: 0 | H117: 0 | I117: 0 | J117: 0 | K117: 0
A118: Pollution Control
A119: Biodiversity & Landscape
A120: Other
A121: Trading services | C121: =C122+C125+C128+C132 -> 120655000 | D121: =D122+D125+D128+D132 -> 173849000 | E121: 155449823 | F121: 153279936 | G121: 188543176.6 | H121: 188543176.6 | I121: 153453094.1 | J121: 159591217.8 | K121: 165974866.6
A122: Electricity | C122: =SUM(C123:C124) -> 35595000 | D122: 48131000 | E122: 61367000 | F122: 64586832 | G122: 63151946.1 | H122: 63151946.1 | I122: 63787858.92 | J122: 66339373.27 | K122: 68992948.2
A123: Electricity Distribution | C123: 35595000 | D123: 48131000 | E123: 61367000 | F123: =68167461-3580629 -> 64586832 | G123: =66732575.1-3580629 -> 63151946.1 | H123: =G123 -> 63151946.1 | I123: =65832590.0871648-2044731.17 -> 63787858.92 | J123: =I123*1.04 -> 66339373.27 | K123: =J123*1.04 -> 68992948.2
A124: Electricity Generation
A125: Water | C125: =SUM(C126:C127) -> 44319000 | D125: 46897000 | E125: 41255000 | F125: 45320062 | G125: 66958216.71 | H125: 66958216.71 | I125: 41633627.25 | J125: 43298972.34 | K125: 45030931.24
A126: Water Distribution | C126: 44319000 | D126: 46897000 | E126: 41255000 | F126: =46680703-1360641 -> 45320062 | G126: =72281246.71-5323030 -> 66958216.71 | H126: =G126 -> 66958216.71 | I126: =47312255.612335-5678628.36 -> 41633627.25 | J126: =I126*1.04 -> 43298972.34 | K126: =J126*1.04 -> 45030931.24
A127: Water Storage
A128: Waste water management | C128: =SUM(C129:C131) -> 24225000 | D128: 45292000 | E128: 16417823 | F128: 26614397 | G128: 38159921.01 | H128: 38159921.01 | I128: 30210769.31 | J128: 31419200.08 | K128: 32675968.08
A129: Sewerage | C129: 24225000 | D129: 45292000 | E129: 16417823 | F129: =34752475-8138078 -> 26614397 | G129: =41937577.01-3777656 -> 38159921.01 | H129: =G129 -> 38159921.01 | I129: =34261259.078122-4050489.77 -> 30210769.31 | J129: =I129*1.04 -> 31419200.08 | K129: =J129*1.04 -> 32675968.08
A130: Storm Water Management
A131: Public Toilets
A132: Waste management | C132: =SUM(C133) -> 16516000 | D132: 33529000 | E132: 36410000 | F132: 16758645 | G132: 20273092.74 | H132: 20273092.74 | I132: 17820838.6 | J132: 18533672.15 | K132: 19275019.03
A133: Solid Waste | C133: 16516000 | D133: 33529000 | E133: 36410000 | F133: =26178308-9419663 -> 16758645 | G133: =24654073.74-4380981 -> 20273092.74 | H133: =G133 -> 20273092.74 | I133: =22514286.4221813-4693447.82 -> 17820838.6 | J133: =I133*1.04 -> 18533672.15 | K133: =J133*1.04 -> 19275019.03
A134: Other | C134: =SUM(C135:C139) -> 0 | D134: 500000 | E134: 576000 | F134: 569237 | G134: 869704.08 | H134: 869704.08 | I134: 750986.32 | J134: 781025.7728 | K134: 812266.8037
A135: Air Transport
A136: Abattoirs
A137: Tourism | D137: 500000 | E137: 576000 | F137: 569237 | G137: 869704.08 | H137: =G137 -> 869704.08 | I137: =750986.32 -> 750986.32 | J137: =I137*1.04 -> 781025.7728 | K137: =J137*1.04 -> 812266.8037
A138: Forestry
A139: =A70 -> Markets
A140: ="Total "&A73 -> Total Expenditure - Standard | B140: 3 | C140: =C74+C84+C106+C121+C134 -> 267395548 | D140: =D74+D84+D106+D121+D134 -> 339962834 | E140: =E74+E84+E106+E121+E134 -> 328411769 | F140: 291273220.9 | G140: 355894673.2 | H140: 355894673.2 | I140: 301329330 | J140: 313382503.2 | K140: =K74+K84+K106+K121+K134 -> 325917803.3
A141: =result -> Surplus/(Deficit) for the year | C141: =C71-C140 -> 21249767 | D141: -65594088.18 | E141: -10677792.04 | F141: 59928982.07 | G141: 8393604.18 | H141: -8668700.82 | I141: 63828983.87 | J141: 66382143.22 | K141: 69037428.95
A142: =head27a -> References
A143: 1. Government Finance Statistics Functions and Sub-functions are standardised to assist national and international accounts and comparison
A144: 2. Total Revenue by Standard Classification must reconcile to total operating revenue shown in Financial Performance (revenue and expenditure)
A145: 3. Total Expenditure by Standard Classification must reconcile to total operating expenditure shown in Financial Performance (revenue and expenditure)
A146: 4. All amounts must be classified under a Standard (modified GFS) classification. The GFS function 'Other' is only for Abbatoirs, Air Transport, Markets and Tourism - and if used must be supported by footnotes. Nothing else may be placed under 'Other'. Assign associate share to relevant classification
A149: check oprev balance | C149: =C71-'A4-FinPerf RE'!C60 -> 0 | D149: =D71-'A4-FinPerf RE'!D60 -> 0 | E149: =E71-'A4-FinPerf RE'!E60 -> -0.07999992371 | F149: =F71-'A4-FinPerf RE'!F60 -> 0.2900000215 | G149: =G71-'A4-FinPerf RE'!G60 -> 17062304.89 | H149: =H71-'A4-FinPerf RE'!H60 -> -0.1100000143 | I149: =I71-'A4-FinPerf RE'!J60 -> 0.005714297295 | J149: =J71-'A4-FinPerf RE'!K60 -> 0.005942881107 | K149: =K71-'A4-FinPerf RE'!L60 -> 0.006180584431
A150: check opexp balance | C150: =C140-'A4-FinPerf RE'!C36 -> -0.00260001421 | D150: =D140-'A4-FinPerf RE'!D36 -> 0 | E150: =E140-'A4-FinPerf RE'!E36 -> 0 | F150: =F140-'A4-FinPerf RE'!F36 -> 0.25 | G150: =G140-'A4-FinPerf RE'!G36 -> 67768147.76 | H150: =H140-'A4-FinPerf RE'!H36 -> 243006126.5 | I150: =I140-'A4-FinPerf RE'!J36 -> 9.149312973e-05 | J150: =J140-'A4-FinPerf RE'!K36 -> 9.524822235e-05 | K150: =K140-'A4-FinPerf RE'!L36 -> 9.894371033e-05

Sheet A3-FinPerf V
A1: =muni&" - "&Approve2 -> FS193 Nketoana - Table A3 Budgeted Financial Performance (revenue and expenditure by municipal vote)
A2: =Vdesc -> Vote Description | B2: =head27 -> Ref | C2: =head1b -> 2012/13 | D2: =head1A -> 2013/14 | E2: =Head1 -> 2014/15 | F2: =Head2 -> Current Year 2015/16 | I2: =Head3 -> 2016/17 Medium Term Revenue & Expenditure Framework | L2: =Head4 -> LTFS
A3: R thousand | C3: =Head5 -> Audited Outcome | D3: =Head5 -> Audited Outcome | E3: =Head5 -> Audited Outcome | F3: =Head6 -> Original Budget | G3: =Head7 -> Adjusted Budget | H3: =Head8 -> Full Year Forecast | I3: =Head9 -> Budget Year 2016/17 | J3: =Head10 -> Budget Year +1 2017/18 | K3: =Head11 -> Budget Year +2 2018/19 | L3: =Head12 -> Forecast 2019/20 | M3: =Head13 -> Forecast 2020/21 | N3: =Head14 -> Forecast 2021/22 | O3: =Head15 -> Forecast 2022/23 | P3: =Head16 -> Forecast 2023/24 | Q3: =Head17 -> Forecast 2024/25 | R3: =Head18 -> Forecast 2025/26 | S3: =Head19 -> Forecast 2026/27 | T3: =Head20 -> Forecast 2027/28 | U3: =Head21 -> Forecast 2028/29 | V3: =Head22 -> Forecast 2029/30 | W3: =Head23 -> Forecast 2030/31
A4: Revenue by Vote | B4: 1
A5: =A3A!A5 -> Vote 1 - EXECUTIVE AND COUNCIL | C5: =A3A!C5 -> 14017720 | D5: =A3A!D5 -> 21871000 | E5: =A3A!E5 -> 21273000 | F5: =A3A!F5 -> 20028342.64 | G5: =A3A!G5 -> 20028342.64 | H5: =A3A!H5 -> 20028342.64 | I5: =A3A!I5 -> 20253342.64 | J5: =A3A!J5 -> 21063476.35 | K5: =A3A!K5 -> 21906015.4
A6: =A3A!A16 -> Vote 2 - FINANCE AND ADMINISTRATION | C6: =A3A!C16 -> 192848291 | D6: =A3A!D16 -> 93564745.82 | E6: =A3A!E16 -> 100011277 | F6: =A3A!F16 -> 146897839 | G6: =A3A!G16 -> 74425828.22 | H6: =A3A!H16 -> 74425828.22 | I6: =A3A!I16 -> 44601316.28 | J6: =A3A!J16 -> 46385368.93 | K6: =A3A!K16 -> 48240783.69
A7: =A3A!A27 -> Vote 3 - COMMUNITY SERVICES | C7: =A3A!C27 -> 2710724 | D7: =A3A!D27 -> 11808000 | E7: =A3A!E27 -> 22617700 | F7: =A3A!F27 -> 20388513.54 | G7: =A3A!G27 -> 32498627.59 | H7: =A3A!H27 -> 32498627.59 | I7: =A3A!I27 -> 35444710.24 | J7: =A3A!J27 -> 36862498.65 | K7: =A3A!K27 -> 38336998.6
A8: =A3A!A38 -> Vote 4 - WASTE MANAGEMENT | C8: =A3A!C38 -> 12301300 | D8: =A3A!D38 -> 18324000 | E8: =A3A!E38 -> 28443000 | F8: =A3A!F38 -> 24350283 | G8: =A3A!G38 -> 29462077.61 | H8: =A3A!H38 -> 29462077.61 | I8: =A3A!I38 -> 30459818.01 | J8: =A3A!J38 -> 31678210.73 | K8: =A3A!K38 -> 32945339.16
A9: =A3A!A49 -> Vote 5 - LOCAL ECONOMIC DEVELOPMENT | C9: =A3A!C49 -> 0 | D9: =A3A!D49 -> 1500000 | E9: =A3A!E49 -> 7555000 | F9: =A3A!F49 -> 4460159.56 | G9: =A3A!G49 -> 4460159.56 | H9: =A3A!H49 -> 4460159.56 | I9: =A3A!I49 -> 4460159.56 | J9: =A3A!J49 -> 4638565.942 | K9: =A3A!K49 -> 4824108.58
A10: =A3A!A60 -> Vote 6 - ROADS TRANSPORT | C10: =A3A!C60 -> 0 | D10: =A3A!D60 -> 38001000 | E10: =A3A!E60 -> 18975000 | F10: =A3A!F60 -> 10800989 | G10: =A3A!G60 -> 24216253.31 | H10: =A3A!H60 -> 24216253.31 | I10: =A3A!I60 -> 15720175.76 | J10: =A3A!J60 -> 16348982.79 | K10: =A3A!K60 -> 17002942.1
A11: =A3A!A71 -> Vote 7 - WATER | C11: =A3A!C71 -> 27759280 | D11: =A3A!D71 -> 37000000 | E11: =A3A!E71 -> 39901000 | F11: =A3A!F71 -> 49096430 | G11: =A3A!G71 -> 64623597.46 | H11: =A3A!H71 -> 64623597.46 | I11: =A3A!I71 -> 91719520.04 | J11: =A3A!J71 -> 95388300.84 | K11: =A3A!K71 -> 99203832.88
A12: =A3A!A82 -> Vote 8 - ELECTRICITY | C12: =A3A!C82 -> 27195360 | D12: =A3A!D82 -> 34000000 | E12: =A3A!E82 -> 55604000 | F12: =A3A!F82 -> 46326751 | G12: =A3A!G82 -> 48723807.53 | H12: =A3A!H82 -> 48723807.53 | I12: =A3A!I82 -> 89677729.18 | J12: =A3A!J82 -> 93264838.35 | K12: =A3A!K82 -> 96995431.88
A13: =A3A!A93 -> Vote 9 - WASTE WATER | C13: =A3A!C93 -> 11812640 | D13: =A3A!D93 -> 17000000 | E13: =A3A!E93 -> 21506000 | F13: =A3A!F93 -> 24982251 | G13: =A3A!G93 -> 44916632.19 | H13: =A3A!H93 -> 44916632.19 | I13: =A3A!I93 -> 28949183.67 | J13: =A3A!J93 -> 30107151.01 | K13: =A3A!K93 -> 31311437.05
A14: =A3A!A104 -> Vote 10 - HOUSING | C14: =A3A!C104 -> 0 | D14: =A3A!D104 -> 1300000 | E14: =A3A!E104 -> 1848000 | F14: =A3A!F104 -> 3870644.18 | G14: =A3A!G104 -> 3870646.18 | H14: =A3A!H104 -> 3870646.18 | I14: =A3A!I104 -> 3872358.466 | J14: =A3A!J104 -> 4027252.804 | K14: =A3A!K104 -> 4188342.917
A15: =A3A!A115 -> Vote 11 - [NAME OF VOTE 11] | C15: =A3A!C115 -> 0 | D15: =A3A!D115 -> 0 | E15: =A3A!E115 -> 0 | F15: =A3A!F115 -> 0 | G15: =A3A!G115 -> 0 | H15: =A3A!H115 -> 0 | I15: =A3A!I115 -> 0 | J15: =A3A!J115 -> 0 | K15: =A3A!K115 -> 0 | L15: =A5A!L115 -> 0
A16: =A3A!A126 -> Vote 12 - [NAME OF VOTE 12] | C16: =A3A!C126 -> 0 | D16: =A3A!D126 -> 0 | E16: =A3A!E126 -> 0 | F16: =A3A!F126 -> 0 | G16: =A3A!G126 -> 0 | H16: =A3A!H126 -> 0 | I16: =A3A!I126 -> 0 | J16: =A3A!J126 -> 0 | K16: =A3A!K126 -> 0 | L16: =A5A!L126 -> 0
A17: =A3A!A137 -> Vote 13 - [NAME OF VOTE 13] | C17: =A3A!C137 -> 0 | D17: =A3A!D137 -> 0 | E17: =A3A!E137 -> 0 | F17: =A3A!F137 -> 0 | G17: =A3A!G137 -> 0 | H17: =A3A!H137 -> 0 | I17: =A3A!I137 -> 0 | J17: =A3A!J137 -> 0 | K17: =A3A!K137 -> 0 | L17: =A5A!L137 -> 0
A18: =A3A!A148 -> Vote 14 - [NAME OF VOTE 14] | C18: =A3A!C148 -> 0 | D18: =A3A!D148 -> 0 | E18: =A3A!E148 -> 0 | F18: =A3A!F148 -> 0 | G18: =A3A!G148 -> 0 | H18: =A3A!H148 -> 0 | I18: =A3A!I148 -> 0 | J18: =A3A!J148 -> 0 | K18: =A3A!K148 -> 0 | L18: =A5A!L148 -> 0
A19: =A3A!A159 -> Vote 15 - [NAME OF VOTE 15] | C19: =A3A!C159 -> 0 | D19: =A3A!D159 -> 0 | E19: =A3A!E159 -> 0 | F19: =A3A!F159 -> 0 | G19: =A3A!G159 -> 0 | H19: =A3A!H159 -> 0 | I19: =A3A!I159 -> 0 | J19: =A3A!J159 -> 0 | K19: =A3A!K159 -> 0 | L19: =A5A!L159 -> 0
A20: Total Revenue by Vote | B20: 2 | C20: =SUM(C5:C19) -> 288645315 | D20: =SUM(D5:D19) -> 274368745.8 | E20: 317733977 | F20: 351202202.9 | G20: 347225972.3 | H20: 347225972.3 | I20: 365158313.8 | J20: 379764646.4 | K20: 394955232.3
A22: Expenditure by Vote to be appropriated | B22: 1
A23: =A3A!A173 -> Vote 1 - EXECUTIVE AND COUNCIL | C23: =A3A!C173 -> 17872151.75 | D23: =A3A!D173 -> 18389000 | E23: =A3A!E173 -> 17532223 | F23: =A3A!F173 -> 20506762 | G23: =A3A!G173 -> 25188414.55 | H23: =A3A!H173 -> 25188414.55 | I23: =A3A!I173 -> 24912150.93 | J23: =A3A!J173 -> 25908636.96 | K23: =A3A!K173 -> 26944982.44
A24: =A3A!A184 -> Vote 2 - FINANCE AND ADMINISTRATION | C24: =A3A!C184 -> 49253084.76 | D24: =A3A!D184 -> 71835933 | E24: =A3A!E184 -> 69463946 | F24: =A3A!F184 -> 43539879 | G24: =A3A!G184 -> 32609370.17 | H24: =A3A!H184 -> 32609370.17 | I24: =A3A!I184 -> 42661124.48 | J24: =A3A!J184 -> 44367569.46 | K24: =A3A!K184 -> 46142272.24
A25: =A3A!A195 -> Vote 3 - COMMUNITY SERVICES | C25: =A3A!C195 -> 23553194.44 | D25: =A3A!D195 -> 14942000 | E25: =A3A!E195 -> 13523000 | F25: =A3A!F195 -> 20081468 | G25: =A3A!G195 -> 19087565.58 | H25: =A3A!H195 -> 19087565.58 | I25: =A3A!I195 -> 21104789.35 | J25: =A3A!J195 -> 21948980.93 | K25: =A3A!K195 -> 22826940.16
A26: =A3A!A206 -> Vote 4 - WASTE MANAGEMENT | C26: =A3A!C206 -> 16515738.78 | D26: =A3A!D206 -> 33529000 | E26: =A3A!E206 -> 20672000 | F26: =A3A!F206 -> 16758645 | G26: =A3A!G206 -> 17499980.13 | H26: =A3A!H206 -> 17499980.13 | I26: =A3A!I206 -> 17820838.6 | J26: =A3A!J206 -> 18533672.15 | K26: =A3A!K206 -> 19275019.03
A27: =A3A!A217 -> Vote 5 - LOCAL ECONOMIC DEVELOPMENT | C27: =A3A!C217 -> 478870.8152 | D27: =A3A!D217 -> 2050000 | E27: =A3A!E217 -> 3266000 | F27: =A3A!F217 -> 2294811 | G27: =A3A!G217 -> 2599261.44 | H27: =A3A!H217 -> 2599261.44 | I27: =A3A!I217 -> 2476162.475 | J27: =A3A!J217 -> 2575208.974 | K27: =A3A!K217 -> 2678217.333
A28: =A3A!A228 -> Vote 6 - ROADS TRANSPORT | C28: =A3A!C228 -> 55582749.18 | D28: =A3A!D228 -> 57097000 | E28: =A3A!E228 -> 68277000 | F28: =A3A!F228 -> 49512000 | G28: =A3A!G228 -> 60512123.15 | H28: =A3A!H228 -> 60512123.15 | I28: =A3A!I228 -> 55166994.84 | J28: =A3A!J228 -> 57373674.64 | K28: =A3A!K228 -> 59668621.62
A29: =A3A!A239 -> Vote 7 - WATER | C29: =A3A!C239 -> 44319025.86 | D29: =A3A!D239 -> 46897000 | E29: =A3A!E239 -> 42508400 | F29: =A3A!F239 -> 45320062 | G29: =A3A!G239 -> 41400017.71 | H29: =A3A!H239 -> 41400017.71 | I29: =A3A!I239 -> 41633627.25 | J29: =A3A!J239 -> 43298972.34 | K29: =A3A!K239 -> 45030931.24
A30: =A3A!A250 -> Vote 8 - ELECTRICITY | C30: =A3A!C250 -> 35595204.27 | D30: =A3A!D250 -> 48131000 | E30: =A3A!E250 -> 60271400 | F30: =A3A!F250 -> 64586832 | G30: =A3A!G250 -> 59911946.1 | H30: =A3A!H250 -> 59911946.1 | I30: =A3A!I250 -> 63787858.92 | J30: =A3A!J250 -> 66339373.27 | K30: =A3A!K250 -> 68992948.2
A31: =A3A!A261 -> Vote 9 - WASTE WATER | C31: =A3A!C261 -> 24225528 | D31: =A3A!D261 -> 45291901 | E31: =A3A!E261 -> 29205400 | F31: =A3A!F261 -> 26614297 | G31: =A3A!G261 -> 27176447.72 | H31: =A3A!H261 -> 27176447.72 | I31: =A3A!I261 -> 30210769.31 | J31: =A3A!J261 -> 31419200.08 | K31: =A3A!K261 -> 32675968.08
A32: =A3A!A272 -> Vote 10 - HOUSING | C32: =A3A!C272 -> 0 | D32: =A3A!D272 -> 1800000 | E32: =A3A!E272 -> 3692400 | F32: =A3A!F272 -> 2058465 | G32: =A3A!G272 -> 2141398.67 | H32: =A3A!H272 -> 2141398.67 | I32: =A3A!I272 -> 1555013.822 | J32: =A3A!J272 -> 1617214.375 | K32: =A3A!K272 -> 1681902.95
A33: =A3A!A283 -> Vote 11 - [NAME OF VOTE 11] | C33: =A3A!C283 -> 0 | D33: =A3A!D283 -> 0 | E33: =A3A!E283 -> 0 | F33: =A3A!F283 -> 0 | G33: =A3A!G283 -> 0 | H33: =A3A!H283 -> 0 | I33: =A3A!I283 -> 0 | J33: =A3A!J283 -> 0 | K33: =A3A!K283 -> 0 | L33: =A3A!L284 -> 0
A34: =A3A!A294 -> Vote 12 - [NAME OF VOTE 12] | C34: =A3A!C294 -> 0 | D34: =A3A!D294 -> 0 | E34: =A3A!E294 -> 0 | F34: =A3A!F294 -> 0 | G34: =A3A!G294 -> 0 | H34: =A3A!H294 -> 0 | I34: =A3A!I294 -> 0 | J34: =A3A!J294 -> 0 | K34: =A3A!K294 -> 0 | L34: =A3A!L295 -> 0
A35: =A3A!A305 -> Vote 13 - [NAME OF VOTE 13] | C35: =A3A!C305 -> 0 | D35: =A3A!D305 -> 0 | E35: =A3A!E305 -> 0 | F35: =A3A!F305 -> 0 | G35: =A3A!G305 -> 0 | H35: =A3A!H305 -> 0 | I35: =A3A!I305 -> 0 | J35: =A3A!J305 -> 0 | K35: =A3A!K305 -> 0 | L35: =A3A!L306 -> 0
A36: =A3A!A316 -> Vote 14 - [NAME OF VOTE 14] | C36: =A3A!C316 -> 0 | D36: =A3A!D316 -> 0 | E36: =A3A!E316 -> 0 | F36: =A3A!F316 -> 0 | G36: =A3A!G316 -> 0 | H36: =A3A!H316 -> 0 | I36: =A3A!I316 -> 0 | J36: =A3A!J316 -> 0 | K36: =A3A!K316 -> 0 | L36: =A3A!L317 -> 0
A37: =A3A!A327 -> Vote 15 - [NAME OF VOTE 15] | C37: =A3A!C327 -> 0 | D37: =A3A!D327 -> 0 | E37: =A3A!E327 -> 0 | F37: =A3A!F327 -> 0 | G37: =A3A!G327 -> 0 | H37: =A3A!H327 -> 0 | I37: =A3A!I327 -> 0 | J37: =A3A!J327 -> 0 | K37: =A3A!K327 -> 0 | L37: =A3A!L328 -> 0
A38: Total Expenditure by Vote | B38: 2 | C38: =SUM(C23:C37) -> 267395547.9 | D38: =SUM(D23:D37) -> 339962834 | E38: 328411769 | F38: 291273221 | G38: 288126525.2 | H38: 288126525.2 | I38: 301329330 | J38: 313382503.2 | K38: 325917803.3 | L38: =SUM(L23:L29) -> 0 | M38: 0 | N38: 0 | O38: 0 | P38: 0 | Q38: 0 | R38: 0 | S38: 0 | T38: 0 | U38: 0 | V38: 0 | W38: 0
A39: =result -> Surplus/(Deficit) for the year | B39: 2 | C39: =C20-C38 -> 21249767.14 | D39: -65594088.18 | E39: -10677792.04 | F39: 59928981.92 | G39: 59099447.07 | H39: 59099447.07 | I39: 63828983.86 | J39: 66382143.22 | K39: 69037428.95 | L39: 0 | M39: 0 | N39: 0 | O39: 0 | P39: 0 | Q39: 0 | R39: 0 | S39: 0 | T39: 0 | U39: 0 | V39: 0 | W39: 0
A40: =head27a -> References
A41: 1. Insert 'Vote'; e.g. department, if different to standard classification structure
A42: 2. Must reconcile to Budgeted Financial Performance (revenue and expenditure)
A43: 3. Assign share in 'associate' to relevant Vote
A45: ="check "&A39 -> check Surplus/(Deficit) for the year | C45: =C39-A3A!C340 -> 0 | D45: =D39-A3A!D340 -> 0 | E45: =E39-A3A!E340 -> 0 | F45: =F39-A3A!F340 -> 0 | G45: =G39-A3A!G340 -> 0 | H45: =H39-A3A!H340 -> 0 | I45: =I39-A3A!I340 -> 0 | J45: =J39-A3A!J340 -> 0 | K45: =K39-A3A!K340 -> 0

Sheet A3A
A1: =muni&" - "&Approve2&"A" -> FS193 Nketoana - Table A3 Budgeted Financial Performance (revenue and expenditure by municipal vote)A
A2: =Vdesc -> Vote Description | B2: =head27 -> Ref | C2: =head1b -> 2012/13 | D2: =head1A -> 2013/14 | E2: =Head1 -> 2014/15 | F2: =Head2 -> Current Year 2015/16 | I2: =Head3 -> 2016/17 Medium Term Revenue & Expenditure Framework | L2: =Head4 -> LTFS
A3: R thousand | C3: =Head5 -> Audited Outcome | D3: =Head5 -> Audited Outcome | E3: =Head5 -> Audited Outcome | F3: =Head6 -> Original Budget | G3: =Head7 -> Adjusted Budget | H3: =Head8 -> Full Year Forecast | I3: =Head9 -> Budget Year 2016/17 | J3: =Head10 -> Budget Year +1 2017/18 | K3: =Head11 -> Budget Year +2 2018/19 | L3: =Head12 -> Forecast 2019/20 | M3: =Head13 -> Forecast 2020/21 | N3: =Head14 -> Forecast 2021/22 | O3: =Head15 -> Forecast 2022/23 | P3: =Head16 -> Forecast 2023/24 | Q3: =Head17 -> Forecast 2024/25 | R3: =Head18 -> Forecast 2025/26 | S3: =Head19 -> Forecast 2026/27 | T3: =Head20 -> Forecast 2027/28 | U3: =Head21 -> Forecast 2028/29 | V3: =Head22 -> Forecast 2029/30 | W3: =Head23 -> Forecast 2030/31
A4: Revenue by Vote | B4: 1
A5: ='Org structure'!A2 -> Vote 1 - EXECUTIVE AND COUNCIL | C5: =SUM(C6:C15) -> 14017720 | D5: =SUM(D6:D15) -> 21871000 | E5: 21273000 | F5: 20028342.64 | G5: 20028342.64 | H5: 20028342.64 | I5: 20253342.64 | J5: 21063476.35 | K5: 21906015.4
A6: ='Org structure'!E3 -> 1.1 - Mayor's Office | C6: 14017720 | D6: 2282000 | E6: 2444300 | F6: 2217237.29 | G6: 2217237.29 | H6: =G6 -> 2217237.29 | I6: 2217237.29 | J6: =I6*1.04 -> 2305926.782 | K6: =J6*1.04 -> 2398163.853
A7: ='Org structure'!E4 -> 1.2 - Speaker's Office | D7: 5907000 | E7: 6370300 | F7: 8747129.07 | G7: 8747129.07 | H7: =G7 -> 8747129.07 | I7: 8947129.07 | J7: =I7*1.04 -> 9305014.233 | K7: 9677214.802
A8: ='Org structure'!E5 -> 1.4 - Municipal Manager's Office | D8: 13682000 | E8: 12458400 | F8: 9063976.28 | G8: 9063976.28 | H8: =G8 -> 9063976.28 | I8: 9088976.28 | J8: 9452535.331 | K8: 9830636.744
A9: ='Org structure'!E6 -> 1.4 - IDP and PMS
A10: ='Org structure'!E7 -> 1.5 - Internal Audit
A11: ='Org structure'!E8 -> 1.6 - Special Programmes
A12: ='Org structure'!E9 -> 0
A13: ='Org structure'!E10 -> 0
A14: ='Org structure'!E11 -> 0
A15: ='Org structure'!E12 -> 0
A16: ='Org structure'!A3 -> Vote 2 - FINANCE AND ADMINISTRATION | C16: =SUM(C17:C26) -> 192848291 | D16: =SUM(D17:D26) -> 93564745.82 | E16: 100011277 | F16: 146897839 | G16: 74425828.22 | H16: 74425828.22 | I16: 44601316.28 | J16: 46385368.93 | K16: 48240783.69
A17: ='Org structure'!E14 -> 2.1 - Human Resource | C17: 22078740 | D17: 2760000
A18: ='Org structure'!E15 -> 2.2 - Records Management | D18: 2400000
A19: ='Org structure'!E16 -> 2.3 - Legal Services | D19: 3000000
A20: ='Org structure'!E17 -> 2.4 - Administration | D20: 1090000 | E20: 23753000 | F20: 577910 | G20: 444399.61 | H20: =G20 -> 444399.61 | I20: 312935.2014 | J20: =I20*1.04 -> 325452.6095 | K20: =J20*1.04 -> 338470.7139
A21: ='Org structure'!E18 -> 2.5 - Revenue Management | D21: 4878000 | E21: 1511000
A22: ='Org structure'!E19 -> 2.6 - Supply Chain Management | D22: 4402000
A23: ='Org structure'!E20 -> 2.7 - CFO | C23: 170769551 | D23: 52497000 | E23: =94468300-19721023.04 -> 74747276.96 | F23: =146319929 -> 146319929 | G23: =74246873.61-265445 -> 73981428.61 | H23: =G23 -> 73981428.61 | I23: =44588381.08-300000 -> 44288381.08 | J23: =I23*1.04 -> 46059916.32 | K23: =J23*1.04 -> 47902312.98
A24: ='Org structure'!E21 -> 2.8 - Director Corporate Services | D24: 3200000
A25: ='Org structure'!E22 -> 2.9 - Budget and Treasury | D25: =23973000-6435254.18 -> 17537745.82
A26: ='Org structure'!E23 -> 2.10 - Expenditure | D26: 1800000
A27: ='Org structure'!A4 -> Vote 3 - COMMUNITY SERVICES | C27: =SUM(C28:C37) -> 2710724 | D27: 11808000 | E27: 22617700 | F27: 20388513.54 | G27: 32498627.59 | H27: 32498627.59 | I27: 35444710.24 | J27: 36862498.65 | K27: 38336998.6
A28: ='Org structure'!E25 -> 3.1 - Cementry | C28: 343440 | D28: 2820000 | E28: 12317300 | F28: 9954121 | G28: 15169644.27 | H28: =G28 -> 15169644.27 | I28: =9501120.57+11410187.68 -> 20911308.25 | J28: =I28*1.04 -> 21747760.58 | K28: =J28*1.04 -> 22617671
A29: ='Org structure'!E26 -> 3.2 - Parks | C29: 207760 | D29: 2408000
A30: ='Org structure'!E27 -> 3.3 - Director Community Services | D30: 4440000 | E30: 1739400 | F30: 5896155.26 | G30: 5881155.26 | H30: =G30 -> 5881155.26 | I30: 5876320.963 | J30: =I30*1.04 -> 6111373.801 | K30: 6355828.753
A31: ='Org structure'!E28 -> 3.4 - Traffic Services | D31: 431000 | E31: 4680000 | F31: 180000 | G31: 180000 | H31: 180000 | I31: 200000 | J31: 208000 | K31: 216320
A32: ='Org structure'!E29 -> 3.5 - Fire Services | C32: 115585
A33: ='Org structure'!E30 -> 3.6 - Sports and Recreation | C33: 2043939 | D33: 853000 | E33: 3881000 | F33: 4358237.28 | G33: 11267828.06 | H33: 11267828.06 | I33: =4358237.28+4098843.75 -> 8457081.03 | J33: 8795364.271 | K33: =J33*1.04 -> 9147178.842
A34: ='Org structure'!E31 -> 3.7 - Libraries | D34: 856000
A35: ='Org structure'!E32 -> 0
A36: ='Org structure'!E33 -> 0
A37: ='Org structure'!E34 -> 0
A38: ='Org structure'!A5 -> Vote 4 - WASTE MANAGEMENT | C38: =SUM(C39:C48) -> 12301300 | D38: 18324000 | E38: 28443000 | F38: 24350283 | G38: 29462077.61 | H38: 29462077.61 | I38: 30459818.01 | J38: 31678210.73 | K38: 32945339.16
A39: ='Org structure'!E36 -> 4.1 - Waste Collection | E39: 8974000
A40: ='Org structure'!E37 -> 4.2 - Solid Waste Disposal | C40: 12301300 | D40: 18324000 | E40: 19469000 | F40: =33769946-9419663 -> 24350283 | G40: =33843058.61-4380981 -> 29462077.61 | H40: =G40 -> 29462077.61 | I40: =33738271.2385714+1414994.59-4693447.82 -> 30459818.01 | J40: =I40*1.04 -> 31678210.73 | K40: =J40*1.04 -> 32945339.16
A41: ='Org structure'!E38 -> 4.3 - Solid Waste Management
A42: ='Org structure'!E39 -> 0
A43: ='Org structure'!E40 -> 0
A44: ='Org structure'!E41 -> 0
A45: ='Org structure'!E42 -> 0
A46: ='Org structure'!E43 -> 0
A47: ='Org structure'!E44 -> 0
A48: ='Org structure'!E45 -> 0
A49: ='Org structure'!A6 -> Vote 5 - LOCAL ECONOMIC DEVELOPMENT | C49: =SUM(C50:C59) -> 0 | D49: =SUM(D50:D59) -> 1500000 | E49: 7555000 | F49: 4460159.56 | G49: 4460159.56 | H49: 4460159.56 | I49: 4460159.56 | J49: 4638565.942 | K49: 4824108.58
A50: ='Org structure'!E47 -> 5.1 - SMME Hub | D50: 250000
A51: ='Org structure'!E48 -> 5.2 - Tourism | D51: 500000 | F51: 1701922.28 | G51: 1701922.28 | H51: =G51 -> 1701922.28 | I51: 1701922.28 | J51: =I51*1.04 -> 1769999.171 | K51: =J51*1.04 -> 1840799.138
A52: ='Org structure'!E49 -> 5.3 - Economic Development | D52: 750000 | E52: 7555000 | F52: 2758237.28 | G52: 2758237.28 | H52: =G52 -> 2758237.28 | I52: 2758237.28 | J52: =I52*1.04 -> 2868566.771 | K52: =J52*1.04 -> 2983309.442
A53: ='Org structure'!E50 -> 0
A54: ='Org structure'!E51 -> 0
A55: ='Org structure'!E52 -> 0
A56: ='Org structure'!E53 -> 0
A57: ='Org structure'!E54 -> 0
A58: ='Org structure'!E55 -> 0
A59: ='Org structure'!E56 -> 0
A60: ='Org structure'!A7 -> Vote 6 - ROADS TRANSPORT | C60: =SUM(C61:C70) -> 0 | D60: =SUM(D61:D70) -> 38001000 | E60: 18975000 | F60: 10800989 | G60: 24216253.31 | H60: 24216253.31 | I60: 15720175.76 | J60: 16348982.79 | K60: 17002942.1
A61: ='Org structure'!E58 -> 6.1 - Roads | D61: 25618000 | E61: 18975000 | F61: 10800989 | G61: 24216253.31 | H61: =G61 -> 24216253.31 | I61: =10800989+4919186.76 -> 15720175.76 | J61: =I61*1.04 -> 16348982.79 | K61: =J61*1.04 -> 17002942.1
A62: ='Org structure'!E59 -> 6.2 - Storm Water | D62: 7743000
A63: ='Org structure'!E60 -> 6.3 - Director Technical | D63: 4640000
A64: ='Org structure'!E61 -> 0
A65: ='Org structure'!E62 -> 0
A66: ='Org structure'!E63 -> 0
A67: ='Org structure'!E64 -> 0
A68: ='Org structure'!E65 -> 0
A69: ='Org structure'!E66 -> 0
A70: ='Org structure'!E67 -> 0
A71: ='Org structure'!A8 -> Vote 7 - WATER | C71: =SUM(C72:C81) -> 27759280 | D71: 37000000 | E71: 39901000 | F71: 49096430 | G71: 64623597.46 | H71: 64623597.46 | I71: 91719520.04 | J71: 95388300.84 | K71: 99203832.88
A72: ='Org structure'!E69 -> 7.1 - WTW Reitz
A73: ='Org structure'!E70 -> 7.2 - WTW Mamafubedu
A74: ='Org structure'!E71 -> 7.3 - WTW Lindley
A75: ='Org structure'!E72 -> 7.4 - WTW Arlington
A76: ='Org structure'!E73 -> 7.5 - Water Network Reitz
A77: ='Org structure'!E74 -> 7.6 - Water Network Mamafubedu
A78: ='Org structure'!E75 -> 7.7 - Water Network Lindley
A79: ='Org structure'!E76 -> 7.8 - Water Network Arlington
A80: ='Org structure'!E77 -> 7.9 - General Water Works | C80: 27759280 | D80: 37000000 | E80: 39901000 | F80: =50457071-1360641 -> 49096430 | G80: =69946627.46-5323030 -> 64623597.46 | H80: =G80 -> 64623597.46 | I80: =55302464.2114286+42095684.19-5678628.36 -> 91719520.04 | J80: =I80*1.04 -> 95388300.84 | K80: =J80*1.04 -> 99203832.88
A81: ='Org structure'!E78 -> 0
A82: ='Org structure'!A9 -> Vote 8 - ELECTRICITY | C82: =SUM(C83:C92) -> 27195360 | D82: =SUM(D83:D92) -> 34000000 | E82: 55604000 | F82: 46326751 | G82: 48723807.53 | H82: 48723807.53 | I82: 89677729.18 | J82: 93264838.35 | K82: 96995431.88
A83: ='Org structure'!E80 -> 8.1 - Reitz Electricity
A84: ='Org structure'!E81 -> 8.2 - Mamafubedu Electricity
A85: ='Org structure'!E82 -> 8.3 - Lindley Electricity
A86: ='Org structure'!E83 -> 8.4 - General Electricity Works | C86: 27195360 | D86: 34000000 | E86: 55604000 | F86: =49907380-3580629 -> 46326751 | G86: =52304436.53-3580629 -> 48723807.53 | H86: =G86 -> 48723807.53 | I86: =66781460.3485714+24941000-2044731.17 -> 89677729.18 | J86: =I86*1.04 -> 93264838.35 | K86: =J86*1.04 -> 96995431.88
A87: ='Org structure'!E84 -> 0
A88: ='Org structure'!E85 -> 0
A89: ='Org structure'!E86 -> 0
A90: ='Org structure'!E87 -> 0
A91: ='Org structure'!E88 -> 0
A92: ='Org structure'!E89 -> 0
A93: ='Org structure'!A10 -> Vote 9 - WASTE WATER | C93: =SUM(C94:C103) -> 11812640 | D93: =SUM(D94:D103) -> 17000000 | E93: 21506000 | F93: 24982251 | G93: 44916632.19 | H93: 44916632.19 | I93: 28949183.67 | J93: 30107151.01 | K93: 31311437.05
A94: ='Org structure'!E91 -> 9.1 - WWTW Reitz | E94: 21506000 | F94: =33120329-8138078 -> 24982251 | G94: =48694288.19-3777656 -> 44916632.19 | H94: =G94 -> 44916632.19 | I94: =32720570.4071429+279103.03-4050489.77 -> 28949183.67 | J94: =I94*1.04 -> 30107151.01 | K94: =J94*1.04 -> 31311437.05
A95: ='Org structure'!E92 -> 9.2 - Network Reitz | C95: 11812640 | D95: 17000000
A96: ='Org structure'!E93 -> 9.3 - Network Mamafubedu
A97: ='Org structure'!E94 -> 9.4 - WWTW Mamafubedu
A98: ='Org structure'!E95 -> 9.5 - WWTW Lindley
A99: ='Org structure'!E96 -> 9.6 - Network Lindley
A100: ='Org structure'!E97 -> 9.7 - WWTW Arlington
A101: ='Org structure'!E98 -> 9.8 - Network Arlington
A102: ='Org structure'!E99 -> 0
A103: ='Org structure'!E100 -> 0
A104: ='Org structure'!A11 -> Vote 10 - HOUSING | C104: =SUM(C105:C114) -> 0 | D104: =SUM(D105:D114) -> 1300000 | E104: 1848000 | F104: 3870644.18 | G104: 3870646.18 | H104: 3870646.18 | I104: 3872358.466 | J104: 4027252.804 | K104: 4188342.917
A105: ='Org structure'!E102 -> 10.1 - Urban Planning | D105: 650000 | G105: 3870646.18 | H105: =G105 -> 3870646.18 | I105: 3872358.466 | J105: =I105*1.04 -> 4027252.804 | K105: =J105*1.04 -> 4188342.917
A106: 10.2 - Housing | D106: 650000 | E106: 1848000 | F106: 3870644.18
A107: ='Org structure'!E104 -> 0
A108: ='Org structure'!E105 -> 0
A109: ='Org structure'!E106 -> 0
A110: ='Org structure'!E107 -> 0
A111: ='Org structure'!E108 -> 0
A112: ='Org structure'!E109 -> 0
A113: ='Org structure'!E110 -> 0
A114: ='Org structure'!E111 -> 0
A115: ='Org structure'!A12 -> Vote 11 - [NAME OF VOTE 11] | C115: =SUM(C116:C125) -> 0 | D115: =SUM(D116:D125) -> 0 | E115: 0 | F115: 0 | G115: 0 | H115: 0 | I115: 0 | J115: 0 | K115: 0
A116: ='Org structure'!E113 -> 11.1 - [Name of sub-vote]
A117: ='Org structure'!E114 -> 0
A118: ='Org structure'!E115 -> 0
A119: ='Org structure'!E116 -> 0
A120: ='Org structure'!E117 -> 0
A121: ='Org structure'!E118 -> 0
A122: ='Org structure'!E119 -> 0
A123: ='Org structure'!E120 -> 0
A124: ='Org structure'!E121 -> 0
A125: ='Org structure'!E122 -> 0
A126: ='Org structure'!A13 -> Vote 12 - [NAME OF VOTE 12] | C126: =SUM(C127:C136) -> 0 | D126: =SUM(D127:D136) -> 0 | E126: 0 | F126: 0 | G126: 0 | H126: 0 | I126: 0 | J126: 0 | K126: 0
A127: ='Org structure'!E124 -> 12.1 - [Name of sub-vote]
A128: ='Org structure'!E125 -> 0
A129: ='Org structure'!E126 -> 0
A130: ='Org structure'!E127 -> 0
A131: ='Org structure'!E128 -> 0
A132: ='Org structure'!E129 -> 0
A133: ='Org structure'!E130 -> 0
A134: ='Org structure'!E131 -> 0
A135: ='Org structure'!E132 -> 0
A136: ='Org structure'!E133 -> 0
A137: ='Org structure'!A14 -> Vote 13 - [NAME OF VOTE 13] | C137: =SUM(C138:C147) -> 0 | D137: =SUM(D138:D147) -> 0 | E137: 0 | F137: 0 | G137: 0 | H137: 0 | I137: 0 | J137: 0 | K137: 0
A138: ='Org structure'!E135 -> 13.1 - [Name of sub-vote]
A139: ='Org structure'!E136 -> 0
A140: ='Org structure'!E137 -> 0
A141: ='Org structure'!E138 -> 0
A142: ='Org structure'!E139 -> 0
A143: ='Org structure'!E140 -> 0
A144: ='Org structure'!E141 -> 0
A145: ='Org structure'!E142 -> 0
A146: ='Org structure'!E143 -> 0
A147: ='Org structure'!E144 -> 0
A148: ='Org structure'!A15 -> Vote 14 - [NAME OF VOTE 14] | C148: =SUM(C149:C158) -> 0 | D148: =SUM(D149:D158) -> 0 | E148: 0 | F148: 0 | G148: 0 | H148: 0 | I148: 0 | J148: 0 | K148: 0
A149: ='Org structure'!E146 -> 14.1 - [Name of sub-vote]
A150: ='Org structure'!E147 -> 0
A151: ='Org structure'!E148 -> 0
A152: ='Org structure'!E149 -> 0
A153: ='Org structure'!E150 -> 0
A154: ='Org structure'!E151 -> 0
A155: ='Org structure'!E152 -> 0
A156: ='Org structure'!E153 -> 0
A157: ='Org structure'!E154 -> 0
A158: ='Org structure'!E155 -> 0
A159: ='Org structure'!A16 -> Vote 15 - [NAME OF VOTE 15] | C159: =SUM(C160:C169) -> 0 | D159: =SUM(D160:D169) -> 0 | E159: 0 | F159: 0 | G159: 0 | H159: 0 | I159: 0 | J159: 0 | K159: 0
A160: ='Org structure'!E157 -> 15.1 - [Name of sub-vote]
A161: ='Org structure'!E158 -> 0
A162: ='Org structure'!E159 -> 0
A163: ='Org structure'!E160 -> 0
A164: ='Org structure'!E161 -> 0
A165: ='Org structure'!E162 -> 0
A166: ='Org structure'!E163 -> 0
A167: ='Org structure'!E164 -> 0
A168: ='Org structure'!E165 -> 0
A169: ='Org structure'!E166 -> 0
A170: Total Revenue by Vote | B170: 2 | C170: =C5+C16+C27+C38+C49+C60+C71+C82+C93+C104+C115+C126+C137+C148+C159 -> 288645315 | D170: =D5+D16+D27+D38+D49+D60+D71+D82+D93+D104+D115+D126+D137+D148+D159 -> 274368745.8 | E170: =E5+E16+E27+E38+E49+E60+E71+E82+E93+E104+E115+E126+E137+E148+E159 -> 317733977 | F170: 351202202.9 | G170: 347225972.3 | H170: 347225972.3 | I170: =I5+I16+I27+I38+I49+I60+I71+I82+I93+I104+I115+I126+I137+I148+I159 -> 365158313.8 | J170: 379764646.4 | K170: 394955232.3 | L170: =SUM(L78:L81) -> 0 | M170: 0 | N170: 0 | O170: 0 | P170: 0 | Q170: 0 | R170: 0 | S170: 0 | T170: 0 | U170: 0 | V170: 0 | W170: 0
A172: Expenditure by Vote | B172: 1
A173: =A5 -> Vote 1 - EXECUTIVE AND COUNCIL | C173: =SUM(C174:C183) -> 17872151.75 | D173: 18389000 | E173: 17532223 | F173: 20506762 | G173: 25188414.55 | H173: 25188414.55 | I173: 24912150.93 | J173: 25908636.96 | K173: 26944982.44
A174: =A6 -> 1.1 - Mayor's Office | C174: 2611855.55 | D174: 2282000 | E174: 2128000 | F174: 2152644 | G174: 2927954.36 | H174: =G174 -> 2927954.36 | I174: 3333356.358 | J174: =I174*1.04 -> 3466690.613 | K174: =J174*1.04 -> 3605358.237
A175: 1.2 - Speaker's Office | C175: 5932818.081 | D175: 5907000 | E175: 6561000 | F175: 7038598 | G175: 7449215.09 | H175: =G175 -> 7449215.09 | I175: 8000185.62 | J175: =I175*1.04 -> 8320193.044 | K175: 8653000.766
A176: 1.4 - Municipal Manager's Office | C176: 9327478.117 | D176: 5700000 | E176: 7548223 | F176: 11315520 | G176: 14811245.1 | H176: =G176 -> 14811245.1 | I176: 13578608.95 | J176: 14121753.31 | K176: 14686623.44
A177: 1.4 - IDP and PMS | D177: 1500000 | E177: 695000
A178: 1.5 - Internal Audit | D178: 1500000 | E178: 600000
A179: 1.6 - Special Programmes | D179: 1500000
A180: 0
A181: 0
A182: 0
A183: 0
A184: =A16 -> Vote 2 - FINANCE AND ADMINISTRATION | C184: =SUM(C185:C194) -> 49253084.76 | D184: =SUM(D185:D194) -> 71835933 | E184: =SUM(E185:E194) -> 69463946 | F184: 43539879 | G184: 32609370.17 | H184: 32609370.17 | I184: 42661124.48 | J184: 44367569.46 | K184: 46142272.24
A185: =A17 -> 2.1 - Human Resource | D185: 7276000
A186: 2.2 - Records Management | D186: 2760000
A187: 2.3 - Legal Services | D187: 3000000
A188: 2.4 - Administration | D188: 1090000 | E188: 25008000 | F188: 19869228 | G188: 17694227.47 | H188: =G188 -> 17694227.47 | I188: 20116686.5 | J188: =I188*1.04 -> 20921353.96 | K188: =J188*1.04 -> 21758208.12
A189: 2.5 - Revenue Management | C189: 30196705.19 | D189: 3200000 | E189: =39097000+5358946 -> 44455946 | F189: 23670651
A190: 2.6 - Supply Chain Management | D190: =29590000+16719933 -> 46309933
A191: 2.7 - CFO | C191: 2067182 | D191: 3200000 | G191: =15180587.7-265445 -> 14915142.7 | H191: =G191 -> 14915142.7 | I191: =22880581.9830915-36144-300000 -> 22544437.98 | J191: =I191*1.04 -> 23446215.5 | K191: =J191*1.04 -> 24384064.12
A192: 2.8 - Director Corporate Services | C192: 16655604.56 | D192: 1800000
A193: 2.9 - Budget and Treasury | C193: 333593 | D193: 1800000
A194: 2.10 - Expenditure | D194: 1400000
A195: =A27 -> Vote 3 - COMMUNITY SERVICES | C195: =SUM(C196:C205) -> 23553194.44 | D195: 14942000 | E195: 13523000 | F195: 20081468 | G195: 19087565.58 | H195: 19087565.58 | I195: 21104789.35 | J195: 21948980.93 | K195: 22826940.16
A196: 3.1 - Cementry | C196: 7877105.554 | D196: 3086000 | E196: 6773000 | F196: 8201687 | G196: 8639644.08 | H196: =G196 -> 8639644.08 | I196: 8968387.313 | J196: =I196*1.04 -> 9327122.806 | K196: =J196*1.04 -> 9700207.718
A197: 3.2 - Parks | C197: 5072465.505 | D197: 2520000
A198: 3.3 - Director Community Services | C198: 6063808.737 | D198: 4440000 | E198: 2491000 | F198: 4486631 | G198: 2578031.68 | H198: =G198 -> 2578031.68 | I198: 3670354.355 | J198: =I198*1.04 -> 3817168.529 | K198: 3969855.27
A199: 3.4 - Traffic Services | C199: 2198395.386 | D199: 1776000 | E199: 3545000 | F199: 7015576 | G199: 7365901.07 | H199: =G199 -> 7365901.07 | I199: 7981915.461 | J199: 8301192.079 | K199: 8633239.762
A200: 3.5 - Fire Services | C200: 227160.862 | D200: 1382000
A201: 3.6 - Sports and Recreation | C201: 2114258.4 | D201: 882000 | E201: 714000 | F201: 377574 | G201: 503988.75 | H201: =G201 -> 503988.75 | I201: 484132.2235 | J201: 503497.5125 | K201: 523637.413
... 144 more rows

Sheet A4-FinPerf RE
A1: =muni&" - "&Approve4 -> FS193 Nketoana - Table A4 Budgeted Financial Performance (revenue and expenditure)
A2: =desc -> Description | B2: =head27 -> Ref | C2: =head1b -> 2012/13 | D2: =head1A -> 2013/14 | E2: =Head1 -> 2014/15 | F2: =Head2 -> Current Year 2015/16 | J2: =Head3 -> 2016/17 Medium Term Revenue & Expenditure Framework | M2: =Head4 -> LTFS
A3: R thousand | B3: 1 | C3: =Head5 -> Audited Outcome | D3: =Head5 -> Audited Outcome | E3: =Head5 -> Audited Outcome | F3: =Head6 -> Original Budget | G3: =Head7 -> Adjusted Budget | H3: =Head8 -> Full Year Forecast | I3: =Head5b -> Pre-audit outcome | J3: =Head9 -> Budget Year 2016/17 | K3: =Head10 -> Budget Year +1 2017/18 | L3: =Head11 -> Budget Year +2 2018/19 | M3: =Head12 -> Forecast 2019/20 | N3: =Head13 -> Forecast 2020/21 | O3: =Head14 -> Forecast 2021/22 | P3: =Head15 -> Forecast 2022/23 | Q3: =Head16 -> Forecast 2023/24 | R3: =Head17 -> Forecast 2024/25 | S3: =Head18 -> Forecast 2025/26 | T3: =Head19 -> Forecast 2026/27 | U3: =Head20 -> Forecast 2027/28 | V3: =Head21 -> Forecast 2028/29 | W3: =Head22 -> Forecast 2029/30 | X3: =Head23 -> Forecast 2030/31
A4: Revenue By Source
A5: Property rates | B5: 2 | C5: ='SA1'!C9 -> 30211787 | D5: ='SA1'!D9 -> 19134285.82 | E5: ='SA1'!E9 -> 34052474.04 | F5: ='SA1'!F9 -> 18796007.6 | G5: ='SA1'!G9 -> 18530562.6 | H5: ='SA1'!H9 -> 18530562.6 | I5: ='SA1'!I9 -> 18530562.6 | J5: ='SA1'!J9 -> 18428651.08 | K5: ='SA1'!K9 -> 19165797.12 | L5: ='SA1'!L9 -> 19932429.01
A6: Property rates - penalties & collection charges
A7: Service charges - electricity revenue | B7: 2 | C7: ='SA1'!C15 -> 29513657 | D7: ='SA1'!D15 -> 37372676 | E7: ='SA1'!E15 -> 43370391 | F7: ='SA1'!F15 -> 41207303 | G7: ='SA1'!G15 -> 41207303 | H7: ='SA1'!H15 -> 41207303 | I7: ='SA1'!I15 -> 44787932 | J7: ='SA1'!J15 -> 47210788.17 | K7: ='SA1'!K15 -> 49099219.7 | L7: ='SA1'!L15 -> 51063188.48
A8: Service charges - water revenue | B8: 2 | C8: ='SA1'!C21 -> 24247485 | D8: ='SA1'!D21 -> 37052132 | E8: ='SA1'!E21 -> 39548164 | F8: ='SA1'!F21 -> 47399359 | G8: ='SA1'!G21 -> 43436970 | H8: ='SA1'!H21 -> 43436970 | I8: ='SA1'!I21 -> 48760000 | J8: ='SA1'!J21 -> 47917194.85 | K8: ='SA1'!K21 -> 49833882.64 | L8: ='SA1'!L21 -> 51827237.95
A9: Service charges - sanitation revenue | B9: 2 | C9: ='SA1'!C27 -> 11279735 | D9: ='SA1'!D27 -> 17648087 | E9: ='SA1'!E27 -> 23139871 | F9: ='SA1'!F27 -> 16832981 | G9: ='SA1'!G27 -> 21193403 | H9: ='SA1'!H27 -> 21193403 | I9: ='SA1'!I27 -> 24971059 | J9: ='SA1'!J27 -> 20512390.51 | K9: ='SA1'!K27 -> 21332886.13 | L9: ='SA1'!L27 -> 22186201.58
A10: Service charges - refuse revenue | B10: 2 | C10: ='SA1'!C34 -> 11483701 | D10: ='SA1'!D34 -> 12904523 | E10: ='SA1'!E34 -> 14645222 | F10: ='SA1'!F34 -> 14930436 | G10: ='SA1'!G34 -> 19969118 | H10: ='SA1'!H34 -> 19969118 | I10: ='SA1'!I34 -> 24350099 | J10: ='SA1'!J34 -> 20073160.42 | K10: ='SA1'!K34 -> 20876086.84 | L10: ='SA1'!L34 -> 21711130.31
A11: Service charges - other
A12: Rental of facilities and equipment | C12: 415297 | D12: 433839 | E12: 356580 | F12: 408910.39 | G12: 366900 | H12: =G12 -> 366900 | I12: 366900 | J12: 326360.39 | K12: =J12*1.04 -> 339414.8056 | L12: =K12*1.04 -> 352991.3978
A13: Interest earned - external investments | C13: 1501123 | D13: 411307 | E13: 583166 | F13: 644000 | G13: 600000 | H13: 600000 | I13: 600000 | J13: 400000 | K13: =J13*1.04 -> 416000 | L13: 432640
A14: Interest earned - outstanding debtors | C14: 16416211 | D14: 19071015 | E14: 20173637 | F14: 12000000 | G14: 22577416 | H14: 22577416 | I14: 22577416 | J14: 23000000 | K14: 23920000 | L14: 24876800
A15: Dividends received
A16: Fines | C16: 115585 | D16: 157645 | E16: 205404 | F16: 180000 | G16: 180000 | H16: =G16 -> 180000 | I16: =H16 -> 180000 | J16: 200000 | K16: =J16*1.04 -> 208000 | L16: =K16*1.04 -> 216320
A17: Licences and permits
A18: Agency services
A19: Transfers recognised - operational | C19: 117791362 | D19: 80423038 | E19: 82169397 | F19: 84163000 | G19: 84163000 | H19: =G19 -> 84163000 | I19: =H19 -> 84163000 | J19: 83002000 | K19: =J19*1.04 -> 86322080 | L19: =K19*1.04 -> 89774963.2
A20: Other revenue | B20: 2 | C20: ='SA1'!C49 -> 3651372 | D20: ='SA1'!D49 -> 1405571 | E20: ='SA1'!E49 -> 1113255 | F20: ='SA1'!F49 -> 51867205.74 | G20: ='SA1'!G49 -> 32228299.9 | H20: ='SA1'!H49 -> 32228299.9 | I20: ='SA1'!I49 -> 32228299.9 | J20: ='SA1'!J49 -> 14928768.42 | K20: ='SA1'!K49 -> 15525919.16 | L20: ='SA1'!L49 -> 16146955.92
A21: Gains on disposal of PPE | D21: 0
A22: Total Revenue (excluding capital transfers and contributions) | C22: =SUM(C5:C21) -> 246627315 | D22: 226014118.8 | E22: 259357561 | F22: 288429202.7 | G22: 284452972.5 | H22: 284452972.5 | I22: 301515268.5 | J22: 275999313.8 | K22: 287039286.4 | L22: 298520857.8 | M22: 0 | N22: 0 | O22: 0 | P22: 0 | Q22: 0 | R22: 0 | S22: 0 | T22: 0 | U22: 0 | V22: 0 | W22: 0 | X22: 0
A24: Expenditure By Type
A25: Employee related costs | B25: 2 | C25: ='SA1'!C67 -> 57013077 | D25: ='SA1'!D67 -> 68647856 | E25: ='SA1'!E67 -> 74122615 | F25: ='SA1'!F67 -> 71987000 | G25: ='SA1'!G67 -> 70879339.51 | H25: ='SA1'!H67 -> 70879339.51 | I25: ='SA1'!I67 -> 70879339.51 | J25: ='SA1'!J67 -> 75195699.88 | K25: ='SA1'!K67 -> 78203527.88 | L25: ='SA1'!L67 -> 81331668.99
A26: Remuneration of councillors | C26: 4924503 | D26: 5379215 | E26: 6676993 | F26: 6530442 | G26: 6662935 | H26: =G26 -> 6662935 | I26: =H26 -> 6662935 | J26: 7062711.546 | K26: =J26*1.04 -> 7345220.008 | L26: =K26*1.04 -> 7639028.808
A27: Debt impairment | B27: 3 | C27: 44402410 | D27: 95804025 | E27: 67102428 | F27: 40316100 | G27: 40316100 | H27: =G27 -> 40316100 | I27: =H27 -> 40316100 | J27: 38624243.19 | K27: =J27*1.04 -> 40169212.92 | L27: =K27*1.04 -> 41775981.43
A28: Depreciation & asset impairment | B28: 2 | C28: ='SA1'!C83 -> 64736250 | D28: ='SA1'!D83 -> 64210796 | E28: ='SA1'!E83 -> 67572300 | F28: ='SA1'!F83 -> 64000000 | G28: ='SA1'!G83 -> 67200000 | H28: ='SA1'!H83 -> 67200000 | I28: ='SA1'!I83 -> 67200000 | J28: ='SA1'!J83 -> 68544000 | K28: ='SA1'!K83 -> 71285760 | L28: ='SA1'!L83 -> 74137190.4
A29: Finance charges | C29: 2254000 | D29: 2917794 | E29: 7763948 | F29: 1200000 | G29: 1200000 | H29: =G29 -> 1200000 | I29: =H29 -> 1200000 | J29: 1200000 | K29: =J29*1.04 -> 1248000 | L29: =K29*1.04 -> 1297920
A30: Bulk purchases | B30: 2 | C30: ='SA1'!C88 -> 28834798 | D30: ='SA1'!D88 -> 34430699 | E30: ='SA1'!E88 -> 38934748 | F30: ='SA1'!F88 -> 50434189.25 | G30: ='SA1'!G88 -> 39033982.97 | H30: ='SA1'!H88 -> 39033982.97 | I30: ='SA1'!I88 -> 39033982.97 | J30: ='SA1'!J88 -> 45971400.94 | K30: ='SA1'!K88 -> 47810256.98 | L30: ='SA1'!L88 -> 49722667.26
A31: Other materials | B31: 8 | C31: 9007640 | D31: 10510488 | E31: 15404522 | F31: 10897913.23 | G31: 11157913.23 | H31: =G31 -> 11157913.23 | I31: =H31 -> 11157913.23 | J31: 8156500 | K31: =J31*1.04 -> 8482760 | L31: =K31*1.04 -> 8822070.4
A32: Contracted services | C32: ='SA1'!C127 -> 12622881 | D32: ='SA1'!D127 -> 15911545 | E32: ='SA1'!E127 -> 14735850 | F32: ='SA1'!F127 -> 6930000 | G32: ='SA1'!G127 -> 7892608.74 | H32: ='SA1'!H127 -> 7892608.74 | I32: ='SA1'!I127 -> 7892608.74 | J32: ='SA1'!J127 -> 9729622.053 | K32: ='SA1'!K127 -> 10118806.93 | L32: ='SA1'!L127 -> 10523559.21
A33: Transfers and grants | C33: ='SA1'!C93 -> 0 | D33: ='SA1'!D93 -> 0 | E33: ='SA1'!E93 -> 0 | F33: ='SA1'!F93 -> 0 | G33: ='SA1'!G93 -> 0 | H33: ='SA1'!H93 -> 0 | I33: ='SA1'!I93 -> 0 | J33: ='SA1'!J93 -> 0 | K33: ='SA1'!K93 -> 0 | L33: ='SA1'!L93 -> 0
A34: Other expenditure | B34: 4, 5 | C34: ='SA1'!C157 -> 43454550 | D34: ='SA1'!D157 -> 42150416 | E34: ='SA1'!E157 -> 36098365 | F34: ='SA1'!F157 -> 38977576.22 | G34: ='SA1'!G157 -> 43783646 | H34: ='SA1'!H157 -> 43783646 | I34: ='SA1'!I157 -> 43783646 | J34: ='SA1'!J157 -> 46845152.36 | K34: ='SA1'!K157 -> 48718958.46 | L34: ='SA1'!L157 -> 50667716.8
A35: Loss on disposal of PPE | C35: 145439 | G35: 0
A36: Total Expenditure | C36: =SUM(C25:C35) -> 267395548 | D36: =SUM(D25:D35) -> 339962834 | E36: 328411769 | F36: 291273220.7 | G36: 288126525.4 | H36: 130216287.7 | I36: 130216287.7 | J36: 301329330 | K36: 313382503.2 | L36: 325917803.3 | M36: =SUM(M25:M35) -> 0 | N36: 0 | O36: 0 | P36: 0 | Q36: 0 | R36: 0 | S36: 0 | T36: 0 | U36: 0 | V36: 0 | W36: 0 | X36: 0
A38: Surplus/(Deficit) | C38: =C22-C36 -> -20768233 | D38: -113948715.2 | E38: -69054207.96 | F38: -2844017.97 | G38: -3673552.95 | H38: 130543571.8 | I38: 130543571.8 | J38: -25330016.14 | K38: -26343216.78 | L38: -27396945.45 | M38: =M22+M36 -> 0 | N38: 0 | O38: 0 | P38: 0 | Q38: 0 | R38: 0 | S38: 0 | T38: 0 | U38: 0 | V38: 0 | W38: 0 | X38: 0
A39: Transfers recognised - capital | C39: 42018000 | D39: 48354627 | E39: 58376416 | F39: 62773000 | G39: 62773000 | H39: =G39 -> 62773000 | I39: =H39 -> 62773000 | J39: 89159000 | K39: =J39*1.04 -> 92725360 | L39: =K39*1.04 -> 96434374.4
A40: Contributions recognised - capital | B40: 6 | C40: ='SA1'!C76 -> 0 | D40: ='SA1'!D76 -> 0 | E40: ='SA1'!E76 -> 0 | F40: ='SA1'!F76 -> 0 | G40: ='SA1'!G76 -> 0 | H40: ='SA1'!H76 -> 0 | I40: ='SA1'!I76 -> 0 | J40: ='SA1'!J76 -> 0 | K40: ='SA1'!K76 -> 0 | L40: ='SA1'!L76 -> 0
A41: Contributed assets
A42: Surplus/(Deficit) after capital transfers & contributions | C42: =SUM(C38:C41) -> 21249767 | D42: -65594088.18 | E42: -10677791.96 | F42: 59928982.03 | G42: 59099447.05 | H42: 193316571.8 | I42: 193316571.8 | J42: 63828983.86 | K42: 66382143.22 | L42: 69037428.95
A43: Taxation
A44: Surplus/(Deficit) after taxation | C44: =C42-C43 -> 21249767 | D44: -65594088.18 | E44: -10677791.96 | F44: 59928982.03 | G44: 59099447.05 | H44: 193316571.8 | I44: 193316571.8 | J44: 63828983.86 | K44: 66382143.22 | L44: 69037428.95
A45: Attributable to minorities
A46: Surplus/(Deficit) attributable to municipality | C46: =SUM(C44:C45) -> 21249767 | D46: -65594088.18 | E46: -10677791.96 | F46: 59928982.03 | G46: 59099447.05 | H46: 193316571.8 | I46: 193316571.8 | J46: 63828983.86 | K46: 66382143.22 | L46: 69037428.95
A47: Share of surplus/ (deficit) of associate | B47: 7
A48: =result -> Surplus/(Deficit) for the year | C48: =SUM(C46:C47) -> 21249767 | D48: -65594088.18 | E48: -10677791.96 | F48: 59928982.03 | G48: 59099447.05 | H48: 193316571.8 | I48: 193316571.8 | J48: 63828983.86 | K48: 66382143.22 | L48: 69037428.95 | M48: =M26+M47 -> 0 | N48: 0 | O48: 0 | P48: 0 | Q48: 0 | R48: 0 | S48: 0 | T48: 0 | U48: 0 | V48: 0 | W48: 0 | X48: 0
A49: =head27a -> References
A50: 1. Classifications are revenue sources and expenditure type
A51: 2. Detail to be provided in Table SA1
A52: 3. Previously described as 'bad or doubtful debts' - amounts shown should reflect the change in the provision for debt impairment
A53: 4. Expenditure type components previously shown under repairs and maintenance should be allocated back to the originating expenditure group/item; e.g. employee costs
A54: 5. Repairs & maintenance detailed in Table A9 and Table SA34c
A55: 6. Contributions are funds provided by external organisations to assist with infrastructure development; e.g. developer contributions (detail to be provided in Table SA1)
A56: 7. Equity method
A57: 8. All materials not part of 'bulk' e.g road making materials, pipe, cable etc.
A58: check balance | C58: =C46-'A3-FinPerf V'!C39 -> -0.1447999775 | D58: =D46-'A3-FinPerf V'!D39 -> 0 | E58: =E46-'A3-FinPerf V'!E39 -> 0.07999995351 | F58: =F46-'A3-FinPerf V'!F39 -> 0.1099999547 | G58: =G46-'A3-FinPerf V'!G39 -> -0.01999998093 | H58: =H46-'A3-FinPerf V'!H39 -> 166715454.3 | J58: =J46-'A3-FinPerf V'!I39 -> 0.0001430511475 | K58: =K46-'A3-FinPerf V'!J39 -> 0.0001488924026 | L58: =L46-'A3-FinPerf V'!K39 -> 0.0001546442509
A60: Total revenue | C60: =C22+SUM(C39:C41) -> 288645315 | D60: 274368745.8 | E60: 317733977 | F60: 351202202.7 | G60: 347225972.5 | H60: 347225972.5 | I60: 364288268.5 | J60: 365158313.8 | K60: 379764646.4 | L60: 394955232.2

Sheet A5-Capex
A1: =muni&" - "&Approve5 -> FS193 Nketoana - Table A5 Budgeted Capital Expenditure by vote, standard classification and funding
A2: =Vdesc -> Vote Description | B2: =head27 -> Ref | C2: =head1b -> 2012/13 | D2: =head1A -> 2013/14 | E2: =Head1 -> 2014/15 | F2: =Head2 -> Current Year 2015/16 | J2: =Head3 -> 2016/17 Medium Term Revenue & Expenditure Framework
A3: R thousand | B3: 1 | C3: =Head5 -> Audited Outcome | D3: =Head5 -> Audited Outcome | E3: =Head5 -> Audited Outcome | F3: =Head6 -> Original Budget | G3: =Head7 -> Adjusted Budget | H3: =Head8 -> Full Year Forecast | I3: =Head5b -> Pre-audit outcome | J3: =Head9 -> Budget Year 2016/17 | K3: =Head10 -> Budget Year +1 2017/18 | L3: =Head11 -> Budget Year +2 2018/19
A4: Capital expenditure - Vote
A5: Multi-year expenditure to be appropriated | B5: 2
A6: =A5A!A6 -> Vote 1 - EXECUTIVE AND COUNCIL | C6: =A5A!C6 -> 0 | D6: =A5A!D6 -> 0 | E6: =A5A!E6 -> 0 | F6: =A5A!F6 -> 0 | G6: =A5A!G6 -> 0 | H6: =A5A!H6 -> 0 | I6: =A5A!I6 -> 0 | J6: =A5A!J6 -> 0 | K6: =A5A!K6 -> 0 | L6: =A5A!L6 -> 0
A7: =A5A!A17 -> Vote 2 - FINANCE AND ADMINISTRATION | C7: =A5A!C17 -> 0 | D7: =A5A!D17 -> 0 | E7: =A5A!E17 -> 0 | F7: =A5A!F17 -> 0 | G7: =A5A!G17 -> 0 | H7: =A5A!H17 -> 0 | I7: =A5A!I17 -> 0 | J7: =A5A!J17 -> 0 | K7: =A5A!K17 -> 0 | L7: =A5A!L17 -> 0
A8: =A5A!A28 -> Vote 3 - COMMUNITY SERVICES | C8: =A5A!C28 -> 0 | D8: =A5A!D28 -> 0 | E8: =A5A!E28 -> 0 | F8: =A5A!F28 -> 0 | G8: =A5A!G28 -> 0 | H8: =A5A!H28 -> 0 | I8: =A5A!I28 -> 0 | J8: =A5A!J28 -> 0 | K8: =A5A!K28 -> 0 | L8: =A5A!L28 -> 0
A9: =A5A!A39 -> Vote 4 - WASTE MANAGEMENT | C9: =A5A!C39 -> 0 | D9: =A5A!D39 -> 0 | E9: =A5A!E39 -> 0 | F9: =A5A!F39 -> 0 | G9: =A5A!G39 -> 0 | H9: =A5A!H39 -> 0 | I9: =A5A!I39 -> 0 | J9: =A5A!J39 -> 0 | K9: =A5A!K39 -> 0 | L9: =A5A!L39 -> 0
A10: =A5A!A50 -> Vote 5 - LOCAL ECONOMIC DEVELOPMENT | C10: =A5A!C50 -> 0 | D10: =A5A!D50 -> 0 | E10: =A5A!E50 -> 0 | F10: =A5A!F50 -> 0 | G10: =A5A!G50 -> 0 | H10: =A5A!H50 -> 0 | I10: =A5A!I50 -> 0 | J10: =A5A!J50 -> 0 | K10: =A5A!K50 -> 0 | L10: =A5A!L50 -> 0
A11: =A5A!A61 -> Vote 6 - ROADS TRANSPORT | C11: =A5A!C61 -> 0 | D11: =A5A!D61 -> 0 | E11: =A5A!E61 -> 0 | F11: =A5A!F61 -> 0 | G11: =A5A!G61 -> 0 | H11: =A5A!H61 -> 0 | I11: =A5A!I61 -> 0 | J11: =A5A!J61 -> 0 | K11: =A5A!K61 -> 0 | L11: =A5A!L61 -> 0
A12: =A5A!A72 -> Vote 7 - WATER | C12: =A5A!C72 -> 0 | D12: =A5A!D72 -> 0 | E12: =A5A!E72 -> 0 | F12: =A5A!F72 -> 0 | G12: =A5A!G72 -> 0 | H12: =A5A!H72 -> 0 | I12: =A5A!I72 -> 0 | J12: =A5A!J72 -> 0 | K12: =A5A!K72 -> 0 | L12: =A5A!L72 -> 0
A13: =A5A!A83 -> Vote 8 - ELECTRICITY | C13: =A5A!C83 -> 0 | D13: =A5A!D83 -> 0 | E13: =A5A!E83 -> 0 | F13: =A5A!F83 -> 0 | G13: =A5A!G83 -> 0 | H13: =A5A!H83 -> 0 | I13: =A5A!I83 -> 0 | J13: =A5A!J83 -> 0 | K13: =A5A!K83 -> 0 | L13: =A5A!L83 -> 0
A14: =A5A!A94 -> Vote 9 - WASTE WATER | C14: =A5A!C94 -> 0 | D14: =A5A!D94 -> 0 | E14: =A5A!E94 -> 0 | F14: =A5A!F94 -> 0 | G14: =A5A!G94 -> 0 | H14: =A5A!H94 -> 0 | I14: =A5A!I94 -> 0 | J14: =A5A!J94 -> 0 | K14: =A5A!K94 -> 0 | L14: =A5A!L94 -> 0
A15: =A5A!A105 -> Vote 10 - HOUSING | C15: =A5A!C105 -> 0 | D15: =A5A!D105 -> 0 | E15: =A5A!E105 -> 0 | F15: =A5A!F105 -> 0 | G15: =A5A!G105 -> 0 | H15: =A5A!H105 -> 0 | I15: =A5A!I105 -> 0 | J15: =A5A!J105 -> 0 | K15: =A5A!K105 -> 0 | L15: =A5A!L105 -> 0
A16: =A5A!A116 -> Vote 11 - [NAME OF VOTE 11] | C16: =A5A!C116 -> 0 | D16: =A5A!D116 -> 0 | E16: =A5A!E116 -> 0 | F16: =A5A!F116 -> 0 | G16: =A5A!G116 -> 0 | H16: =A5A!H116 -> 0 | I16: =A5A!I116 -> 0 | J16: =A5A!J116 -> 0 | K16: =A5A!K116 -> 0 | L16: =A5A!L116 -> 0
A17: =A5A!A127 -> Vote 12 - [NAME OF VOTE 12] | C17: =A5A!C127 -> 0 | D17: =A5A!D127 -> 0 | E17: =A5A!E127 -> 0 | F17: =A5A!F127 -> 0 | G17: =A5A!G127 -> 0 | H17: =A5A!H127 -> 0 | I17: =A5A!I127 -> 0 | J17: =A5A!J127 -> 0 | K17: =A5A!K127 -> 0 | L17: =A5A!L127 -> 0
A18: =A5A!A138 -> Vote 13 - [NAME OF VOTE 13] | C18: =A5A!C138 -> 0 | D18: =A5A!D138 -> 0 | E18: =A5A!E138 -> 0 | F18: =A5A!F138 -> 0 | G18: =A5A!G138 -> 0 | H18: =A5A!H138 -> 0 | I18: =A5A!I138 -> 0 | J18: =A5A!J138 -> 0 | K18: =A5A!K138 -> 0 | L18: =A5A!L138 -> 0
A19: =A5A!A149 -> Vote 14 - [NAME OF VOTE 14] | C19: =A5A!C149 -> 0 | D19: =A5A!D149 -> 0 | E19: =A5A!E149 -> 0 | F19: =A5A!F149 -> 0 | G19: =A5A!G149 -> 0 | H19: =A5A!H149 -> 0 | I19: =A5A!I149 -> 0 | J19: =A5A!J149 -> 0 | K19: =A5A!K149 -> 0 | L19: =A5A!L149 -> 0
A20: =A5A!A160 -> Vote 15 - [NAME OF VOTE 15] | C20: =A5A!C160 -> 0 | D20: =A5A!D160 -> 0 | E20: =A5A!E160 -> 0 | F20: =A5A!F160 -> 0 | G20: =A5A!G160 -> 0 | H20: =A5A!H160 -> 0 | I20: =A5A!I160 -> 0 | J20: =A5A!J160 -> 0 | K20: =A5A!K160 -> 0 | L20: =A5A!L160 -> 0
A21: Capital multi-year expenditure sub-total | B21: 7 | C21: =SUM(C6:C20) -> 0 | D21: =SUM(D6:D20) -> 0 | E21: 0 | F21: 0 | G21: 0 | H21: =SUM(H6:H20) -> 0 | I21: 0 | J21: 0 | K21: 0 | L21: 0
A23: Single-year expenditure to be appropriated | B23: 2
A24: =A6 -> Vote 1 - EXECUTIVE AND COUNCIL | C24: =A5A!C175 -> 0 | D24: =A5A!D175 -> 0 | E24: =A5A!E175 -> 0 | F24: =A5A!F175 -> 0 | G24: =A5A!G175 -> 0 | H24: =A5A!H175 -> 0 | I24: =A5A!I175 -> 0 | J24: =A5A!J175 -> 30000 | K24: =A5A!K175 -> 0 | L24: =A5A!L175 -> 0
A25: =A7 -> Vote 2 - FINANCE AND ADMINISTRATION | C25: =A5A!C186 -> 650000 | D25: =A5A!D186 -> 0 | E25: =A5A!E186 -> 0 | F25: =A5A!F186 -> 1224000 | G25: =A5A!G186 -> 1304000 | H25: =A5A!H186 -> 1304000 | I25: =A5A!I186 -> 1304000 | J25: =A5A!J186 -> 1700000 | K25: =A5A!K186 -> 1460000 | L25: =A5A!L186 -> 1600000
A26: Vote 3 - COMMUNITY SERVICES | C26: =A5A!C197 -> 3783000 | D26: =A5A!D197 -> 5652880 | E26: =A5A!E197 -> 6062017 | F26: =A5A!F197 -> 12993914.05 | G26: =A5A!G197 -> 8127851.34 | H26: =A5A!H197 -> 8127851.34 | I26: =A5A!I197 -> 8127851.34 | J26: =A5A!J197 -> 16409032 | K26: =A5A!K197 -> 6105222 | L26: =A5A!L197 -> 11842056
A27: Vote 4 - WASTE MANAGEMENT | C27: =A5A!C208 -> 7806000 | D27: =A5A!D208 -> 3587907 | E27: =A5A!E208 -> 262787 | F27: =A5A!F208 -> 2773112.61 | G27: =A5A!G208 -> 2773112.61 | H27: =A5A!H208 -> 2773112.61 | I27: =A5A!I208 -> 2773112.61 | J27: =A5A!J208 -> 4029990 | K27: =A5A!K208 -> 15014910 | L27: =A5A!L208 -> 6095102
A28: Vote 5 - LOCAL ECONOMIC DEVELOPMENT | C28: =A5A!C219 -> 0 | D28: =A5A!D219 -> 0 | E28: =A5A!E219 -> 0 | F28: =A5A!F219 -> 0 | G28: =A5A!G219 -> 0 | H28: =A5A!H219 -> 0 | I28: =A5A!I219 -> 0 | J28: =A5A!J219 -> 0 | K28: =A5A!K219 -> 0 | L28: =A5A!L219 -> 0
A29: Vote 6 - ROADS TRANSPORT | C29: =A5A!C230 -> 9284000 | D29: =A5A!D230 -> 25119539 | E29: =A5A!E230 -> 12160914 | F29: =A5A!F230 -> 12309264.31 | G29: =A5A!G230 -> 15780459.76 | H29: =A5A!H230 -> 15780459.76 | I29: =A5A!I230 -> 15780459.76 | J29: =A5A!J230 -> 5169695 | K29: =A5A!K230 -> 4624778 | L29: =A5A!L230 -> 4311087
A30: Vote 7 - WATER | C30: =A5A!C241 -> 22426000 | D30: =A5A!D241 -> 20336600 | E30: =A5A!E241 -> 21685387 | F30: =A5A!F241 -> 19489557.46 | G30: =A5A!G241 -> 25558199.46 | H30: =A5A!H241 -> 25558199.46 | I30: =A5A!I241 -> 25558199.46 | J30: =A5A!J241 -> 42095684 | K30: =A5A!K241 -> 30534740 | L30: =A5A!L241 -> 46518554
A31: Vote 8 - ELECTRICITY | C31: =A5A!C252 -> 4900000 | D31: =A5A!D252 -> 5000000 | E31: =A5A!E252 -> 6748250 | F31: =A5A!F252 -> 3240000 | G31: =A5A!G252 -> 3240000 | H31: =A5A!H252 -> 3240000 | I31: =A5A!I252 -> 3240000 | J31: =A5A!J252 -> 24941000 | K31: =A5A!K252 -> 4196570 | L31: =A5A!L252 -> 7392998
A32: Vote 9 - WASTE WATER | C32: =A5A!C263 -> 3200000 | D32: =A5A!D263 -> 680043 | E32: =A5A!E263 -> 4065047 | F32: =A5A!F263 -> 15567151.57 | G32: =A5A!G263 -> 10983371.29 | H32: =A5A!H263 -> 10983371.29 | I32: =A5A!I263 -> 10983371.29 | J32: =A5A!J263 -> 279103 | K32: =A5A!K263 -> 18230351 | L32: =A5A!L263 -> 9049312
A33: Vote 10 - HOUSING | C33: =A5A!C274 -> 0 | D33: =A5A!D274 -> 0 | E33: =A5A!E274 -> 0 | F33: =A5A!F274 -> 0 | G33: =A5A!G274 -> 0 | H33: =A5A!H274 -> 0 | I33: =A5A!I274 -> 0 | J33: =A5A!J274 -> 0 | K33: =A5A!K274 -> 0 | L33: =A5A!L274 -> 0
A34: Vote 11 - [NAME OF VOTE 11] | C34: =A5A!C285 -> 0 | D34: =A5A!D285 -> 0 | E34: =A5A!E285 -> 0 | F34: =A5A!F285 -> 0 | G34: =A5A!G285 -> 0 | H34: =A5A!H285 -> 0 | I34: =A5A!I285 -> 0 | J34: =A5A!J285 -> 0 | K34: =A5A!K285 -> 0 | L34: =A5A!L285 -> 0
A35: Vote 12 - [NAME OF VOTE 12] | C35: =A5A!C296 -> 0 | D35: =A5A!D296 -> 0 | E35: =A5A!E296 -> 0 | F35: =A5A!F296 -> 0 | G35: =A5A!G296 -> 0 | H35: =A5A!H296 -> 0 | I35: =A5A!I296 -> 0 | J35: =A5A!J296 -> 0 | K35: =A5A!K296 -> 0 | L35: =A5A!L296 -> 0
A36: Vote 13 - [NAME OF VOTE 13] | C36: =A5A!C307 -> 0 | D36: =A5A!D307 -> 0 | E36: =A5A!E307 -> 0 | F36: =A5A!F307 -> 0 | G36: =A5A!G307 -> 0 | H36: =A5A!H307 -> 0 | I36: =A5A!I307 -> 0 | J36: =A5A!J307 -> 0 | K36: =A5A!K307 -> 0 | L36: =A5A!L307 -> 0
A37: Vote 14 - [NAME OF VOTE 14] | C37: =A5A!C318 -> 0 | D37: =A5A!D318 -> 0 | E37: =A5A!E318 -> 0 | F37: =A5A!F318 -> 0 | G37: =A5A!G318 -> 0 | H37: =A5A!H318 -> 0 | I37: =A5A!I318 -> 0 | J37: =A5A!J318 -> 0 | K37: =A5A!K318 -> 0 | L37: =A5A!L318 -> 0
A38: =A20 -> Vote 15 - [NAME OF VOTE 15] | C38: =A5A!C329 -> 0 | D38: =A5A!D329 -> 0 | E38: =A5A!E329 -> 0 | F38: =A5A!F329 -> 0 | G38: =A5A!G329 -> 0 | H38: =A5A!H329 -> 0 | I38: =A5A!I329 -> 0 | J38: =A5A!J329 -> 0 | K38: =A5A!K329 -> 0 | L38: =A5A!L329 -> 0
A39: Capital single-year expenditure sub-total | C39: =SUM(C24:C38) -> 52049000 | D39: =SUM(D24:D38) -> 60376969 | E39: 50984402 | F39: 67597000 | G39: 67766994.46 | H39: 67766994.46 | I39: 67766994.46 | J39: 94654504 | K39: 80166571 | L39: 86809109
A40: Total Capital Expenditure - Vote | C40: =C39+C21 -> 52049000 | D40: =D39+D21 -> 60376969 | E40: 50984402 | F40: 67597000 | G40: 67766994.46 | H40: 67766994.46 | I40: 67766994.46 | J40: 94654504 | K40: 80166571 | L40: 86809109
A42: Capital Expenditure - Standard
A43: Governance and administration | C43: =SUM(C44:C46) -> 650000 | D43: =SUM(D44:D46) -> 0 | E43: 0 | F43: 1224000 | G43: 1304000 | H43: 1304000 | I43: 1304000 | J43: 1730000 | K43: 1460000 | L43: 1600000
A44: Executive and council | G44: 0 | J44: 30000
A45: Budget and treasury office | C45: 650000 | F45: 1224000 | G45: 1304000 | H45: =G45 -> 1304000 | I45: =H45 -> 1304000 | J45: 1700000 | K45: 1460000 | L45: 1600000
A46: Corporate services
A47: Community and public safety | C47: =SUM(C48:C52) -> 3783000 | D47: =SUM(D48:D52) -> 5652880 | E47: 6062017 | F47: 12993914.05 | G47: 8127857.34 | H47: 8127857.34 | I47: 8127857.34 | J47: 16409032 | K47: 6105222 | L47: 11842056
A48: Community and social services | F48: 6084323.27 | G48: 4007754.23 | H48: =G48 -> 4007754.23 | I48: =H48 -> 4007754.23 | J48: 12310188 | K48: 1324578 | L48: 6842056
A49: Sport and recreation | C49: 3783000 | D49: 5652880 | E49: 6062017 | F49: 6909590.78 | G49: 4120103.11 | H49: =G49 -> 4120103.11 | I49: =H49 -> 4120103.11 | J49: 4098844 | K49: 4780644 | L49: 5000000
A50: Public safety
A51: Housing
A52: Health
A53: Economic and environmental services | C53: =SUM(C54:C56) -> 9284000 | D53: =SUM(D54:D56) -> 25119539 | E53: 12160914 | F53: 12309264.31 | G53: 15780459.76 | H53: 15780459.76 | I53: 15780459.76 | J53: 5169695 | K53: 4624778 | L53: 4311087
A54: Planning and development
A55: Road transport | C55: 9284000 | D55: 25119539 | E55: 12160914 | F55: 12309264.31 | G55: 15780459.76 | H55: =G55 -> 15780459.76 | I55: =H55 -> 15780459.76 | J55: 5169695 | K55: 4624778 | L55: 4311087
A56: Environmental protection
A57: Trading services | C57: =SUM(C58:C61) -> 38332000 | D57: =SUM(D58:D61) -> 29604550 | E57: 32761471 | F57: 41069821.64 | G57: 42554682.9 | H57: 42554682.9 | I57: 42554682.9 | J57: 71345777 | K57: 67976571 | L57: 69055966
A58: Electricity | C58: 4900000 | D58: 5000000 | E58: 6748250 | F58: 3240000 | G58: 3240000 | H58: =G58 -> 3240000 | I58: 3240000 | J58: 24941000 | K58: 4196570 | L58: 7392998
A59: Water | C59: 22426000 | D59: 20336600 | E59: 21685387 | F59: 19489557.46 | G59: 25558199 | H59: 25558199 | I59: 25558199 | J59: 42095684 | K59: 30534740 | L59: 46518554
A60: Waste water management | C60: 3200000 | D60: 680043 | E60: 4065047 | F60: 15567151.57 | G60: 10983371.29 | H60: 10983371.29 | I60: 10983371.29 | J60: 279103 | K60: 18230351 | L60: 9049312
A61: Waste management | C61: 7806000 | D61: 3587907 | E61: 262787 | F61: 2773112.61 | G61: 2773112.61 | H61: 2773112.61 | I61: 2773112.61 | J61: 4029990 | K61: 15014910 | L61: 6095102
A62: Other
A63: Total Capital Expenditure - Standard | B63: 3 | C63: =C43+C47+C53+C57+C62 -> 52049000 | D63: =D43+D47+D53+D57+D62 -> 60376969 | E63: 50984402 | F63: 67597000 | G63: 67767000 | H63: 67767000 | I63: 67767000 | J63: 94654504 | K63: 80166571 | L63: =L43+L47+L53+L57+L62 -> 86809109
A65: Funded by:
A66: National Government | C66: 42018000 | D66: 49372068 | E66: 26572000 | F66: 62773000 | G66: 62773000 | H66: =G66 -> 62773000 | I66: =H66 -> 62773000 | J66: 89159001 | K66: 72280000 | L66: 76750000
A67: Provincial Government
A68: District Municipality
A69: Other transfers and grants
A70: Transfers recognised - capital | B70: 4 | C70: =SUM(C66:C69) -> 42018000 | D70: 49372068 | E70: 26572000 | F70: 62773000 | G70: 62773000 | H70: 62773000 | I70: 62773000 | J70: 89159001 | K70: 72280000 | L70: 76750000
A71: Public contributions & donations | B71: 5
A72: Borrowing | B72: 6
A73: Internally generated funds | C73: 10031000 | D73: 11004901 | E73: 24412402 | F73: 4824000 | G73: 4994000 | H73: =G73 -> 4994000 | I73: =H73 -> 4994000 | J73: 5495503 | K73: 7886571 | L73: 10059109
A74: Total Capital Funding | B74: 7 | C74: =SUM(C70:C73) -> 52049000 | D74: 60376969 | E74: 50984402 | F74: 67597000 | G74: 67767000 | H74: 67767000 | I74: 67767000 | J74: 94654504 | K74: 80166571 | L74: 86809109
A75: =head27a -> References
A76: 1. Municipalities may choose to appropriate for capital expenditure for three years or for one year (if one year appropriation projected expenditure required for yr2 and yr3).
A77: 2. Include capital component of PPP unitary payment. Note that capital transfers are only appropriated to municipalities for the budget year
A78: 3. Capital expenditure by standard classification must reconcile to the appropriations by vote
A79: 4. Must reconcile to supporting table SA20 and to Budgeted Financial Performance (revenue and expenditure)
A80: 5. Must reconcile to Budgeted Financial Performance (revenue and expenditure)
A81: 6. Include finance leases and PPP capital funding component of unitary payment - total borrowing/repayments to reconcile to changes in Table SA17
A82: 7. Total Capital Funding must balance with Total Capital Expenditure
A83: 8. Include any capitalised interest (MFMA section 46) as part of relevant capital budget
A85: check balance | C85: =IF((C63-C74)=0,0,"Unbalanced") -> 0 | D85: =IF((D63-D74)=0,0,"Unbalanced") -> 0 | E85: 0 | F85: 0 | G85: 0 | H85: 0 | I85: 0 | J85: 0 | K85: 0 | L85: 0

Sheet A5A
A1: =muni&" - "&Approve5 -> FS193 Nketoana - Table A5 Budgeted Capital Expenditure by vote, standard classification and funding
A2: =Vdesc -> Vote Description | B2: =head27 -> Ref | C2: =head1b -> 2012/13 | D2: =head1A -> 2013/14 | E2: =Head1 -> 2014/15 | F2: =Head2 -> Current Year 2015/16 | J2: =Head3 -> 2016/17 Medium Term Revenue & Expenditure Framework | N2: ="Multi-year appropriation for "&Head9& " in the "&Head2A&" Annual Budget" -> Multi-year appropriation for Budget Year 2016/17 in the 2015/16 Annual Budget | R2: ="Multi-year appropriation for "&RIGHT(Head10,7)& " in the "&Head2A&" Annual Budget" -> Multi-year appropriation for 2017/18 in the 2015/16 Annual Budget | V2: New multi-year appropriations (funds for new and existing projects)
A3: R thousand | B3: 1 | C3: =Head5 -> Audited Outcome | D3: =Head5 -> Audited Outcome | E3: =Head5 -> Audited Outcome | F3: =Head6 -> Original Budget | G3: =Head7 -> Adjusted Budget | H3: =Head8 -> Full Year Forecast | I3: =Head5b -> Pre-audit outcome | J3: =Head9 -> Budget Year 2016/17 | K3: =Head10 -> Budget Year +1 2017/18 | L3: =Head11 -> Budget Year +2 2018/19 | N3: ="Appropriation for "&RIGHT(Head9,7) -> Appropriation for 2016/17 | O3: ="Adjustments in "&Head2A -> Adjustments in 2015/16 | P3: ="Downward adjustments for "&RIGHT(Head9,7) -> Downward adjustments for 2016/17 | Q3: Appropriation carried forward | R3: ="Appropriation for "&RIGHT(Head9,7) -> Appropriation for 2016/17 | S3: ="Adjustments in "&Head2A -> Adjustments in 2015/16 | T3: ="Downward adjustments for "&RIGHT(Head9,7) -> Downward adjustments for 2016/17 | U3: Appropriation carried forward | V3: =Head9 -> Budget Year 2016/17 | W3: =Head10 -> Budget Year +1 2017/18 | X3: =Head11 -> Budget Year +2 2018/19
A4: Capital expenditure - Municipal Vote
A5: Multi-year expenditure appropriation | B5: 2
A6: ='Org structure'!A2 -> Vote 1 - EXECUTIVE AND COUNCIL | C6: =SUM(C7:C16) -> 0 | D6: =SUM(D7:D16) -> 0 | E6: 0 | F6: 0 | G6: 0 | H6: 0 | I6: =SUM(I7:I16) -> 0 | J6: 0 | K6: 0 | L6: 0 | N6: =SUM(N7:N16) -> 0 | O6: 0 | P6: 0 | Q6: 0 | R6: 0 | S6: 0 | T6: 0 | U6: 0 | V6: =SUM(V7:V16) -> 0 | W6: =SUM(W7:W16) -> 0 | X6: =SUM(X7:X16) -> 0
A7: ='Org structure'!E3 -> 1.1 - Mayor's Office | J7: =Q7+V7 -> 0 | K7: =U7+W7 -> 0 | L7: =X7 -> 0 | Q7: =SUM(N7:P7) -> 0 | U7: =SUM(R7:T7) -> 0
A8: ='Org structure'!E4 -> 1.2 - Speaker's Office | J8: =Q8+V8 -> 0 | K8: =U8+W8 -> 0 | L8: =X8 -> 0 | Q8: =SUM(N8:P8) -> 0 | U8: =SUM(R8:T8) -> 0
A9: ='Org structure'!E5 -> 1.4 - Municipal Manager's Office | J9: =Q9+V9 -> 0 | K9: =U9+W9 -> 0 | L9: 0 | Q9: 0 | U9: 0
A10: ='Org structure'!E6 -> 1.4 - IDP and PMS | J10: 0 | K10: 0 | L10: 0 | Q10: 0 | U10: 0
A11: ='Org structure'!E7 -> 1.5 - Internal Audit | J11: 0 | K11: 0 | L11: =X11 -> 0 | Q11: 0 | U11: 0
A12: ='Org structure'!E8 -> 1.6 - Special Programmes | J12: 0 | K12: 0 | L12: 0 | Q12: 0 | U12: 0
A13: ='Org structure'!E9 -> 0 | J13: 0 | K13: 0 | L13: 0 | Q13: 0 | U13: 0
A14: ='Org structure'!E10 -> 0 | J14: 0 | K14: 0 | L14: 0 | Q14: 0 | U14: 0
A15: ='Org structure'!E11 -> 0 | J15: 0 | K15: 0 | L15: 0 | Q15: 0 | U15: 0
A16: ='Org structure'!E12 -> 0 | J16: 0 | K16: 0 | L16: 0 | Q16: 0 | U16: 0
A17: ='Org structure'!A3 -> Vote 2 - FINANCE AND ADMINISTRATION | C17: =SUM(C18:C27) -> 0 | D17: =SUM(D18:D27) -> 0 | E17: 0 | F17: 0 | G17: 0 | H17: 0 | I17: =SUM(I18:I27) -> 0 | J17: 0 | K17: 0 | L17: 0 | N17: =SUM(N18:N27) -> 0 | O17: 0 | P17: 0 | Q17: 0 | R17: 0 | S17: 0 | T17: 0 | U17: 0 | V17: 0 | W17: 0 | X17: 0
A18: ='Org structure'!E14 -> 2.1 - Human Resource | J18: =Q18+V18 -> 0 | K18: =U18+W18 -> 0 | L18: =X18 -> 0 | Q18: =SUM(N18:P18) -> 0 | U18: 0
A19: ='Org structure'!E15 -> 2.2 - Records Management | J19: =Q19+V19 -> 0 | K19: =U19+W19 -> 0 | L19: 0 | Q19: 0 | U19: 0
A20: ='Org structure'!E16 -> 2.3 - Legal Services | J20: 0 | K20: 0 | L20: 0 | Q20: 0 | U20: 0
A21: ='Org structure'!E17 -> 2.4 - Administration | J21: 0 | K21: =U21+W21 -> 0 | L21: 0 | Q21: 0 | U21: 0
A22: ='Org structure'!E18 -> 2.5 - Revenue Management | J22: 0 | K22: 0 | L22: 0 | Q22: 0 | U22: 0
A23: ='Org structure'!E19 -> 2.6 - Supply Chain Management | J23: 0 | K23: 0 | L23: 0 | Q23: 0 | U23: 0
A24: ='Org structure'!E20 -> 2.7 - CFO | J24: 0 | K24: 0 | L24: 0 | Q24: 0 | U24: 0
A25: ='Org structure'!E21 -> 2.8 - Director Corporate Services | J25: 0 | K25: 0 | L25: 0 | Q25: 0 | U25: 0
A26: ='Org structure'!E22 -> 2.9 - Budget and Treasury | J26: 0 | K26: 0 | L26: 0 | Q26: 0 | U26: 0
A27: ='Org structure'!E23 -> 2.10 - Expenditure | J27: 0 | K27: 0 | L27: 0 | Q27: 0 | U27: 0
A28: ='Org structure'!A4 -> Vote 3 - COMMUNITY SERVICES | C28: =SUM(C29:C38) -> 0 | D28: =SUM(D29:D38) -> 0 | E28: 0 | F28: 0 | G28: 0 | H28: 0 | I28: =SUM(I29:I38) -> 0 | J28: 0 | K28: 0 | L28: 0 | N28: =SUM(N29:N38) -> 0 | O28: 0 | P28: 0 | Q28: 0 | R28: 0 | S28: 0 | T28: 0 | U28: 0 | V28: 0 | W28: 0 | X28: 0
A29: ='Org structure'!E25 -> 3.1 - Cementry | J29: =Q29+V29 -> 0 | K29: =U29+W29 -> 0 | L29: =X29 -> 0 | Q29: =SUM(N29:P29) -> 0 | U29: 0
A30: ='Org structure'!E26 -> 3.2 - Parks | J30: 0 | K30: 0 | L30: 0 | Q30: 0 | U30: 0
A31: ='Org structure'!E27 -> 3.3 - Director Community Services | J31: 0 | K31: 0 | L31: 0 | Q31: 0 | U31: =SUM(R31:T31) -> 0
A32: ='Org structure'!E28 -> 3.4 - Traffic Services | J32: 0 | K32: =U32+W32 -> 0 | L32: 0 | Q32: 0 | U32: 0
A33: ='Org structure'!E29 -> 3.5 - Fire Services | J33: =Q33+V33 -> 0 | K33: 0 | L33: 0 | Q33: 0 | U33: 0
A34: ='Org structure'!E30 -> 3.6 - Sports and Recreation | J34: 0 | K34: 0 | L34: 0 | Q34: 0 | U34: 0
A35: ='Org structure'!E31 -> 3.7 - Libraries | J35: 0 | K35: 0 | L35: 0 | Q35: 0 | U35: 0
A36: ='Org structure'!E32 -> 0 | J36: 0 | K36: 0 | L36: 0 | Q36: 0 | U36: 0
A37: ='Org structure'!E33 -> 0 | J37: 0 | K37: 0 | L37: 0 | Q37: 0 | U37: 0
A38: ='Org structure'!E34 -> 0 | J38: 0 | K38: 0 | L38: 0 | Q38: 0 | U38: 0
A39: ='Org structure'!A5 -> Vote 4 - WASTE MANAGEMENT | C39: =SUM(C40:C49) -> 0 | D39: =SUM(D40:D49) -> 0 | E39: 0 | F39: 0 | G39: 0 | H39: 0 | I39: =SUM(I40:I49) -> 0 | J39: 0 | K39: 0 | L39: 0 | N39: =SUM(N40:N49) -> 0 | O39: 0 | P39: 0 | Q39: 0 | R39: 0 | S39: 0 | T39: 0 | U39: 0 | V39: 0 | W39: 0 | X39: 0
A40: ='Org structure'!E36 -> 4.1 - Waste Collection | J40: =Q40+V40 -> 0 | K40: =U40+W40 -> 0 | L40: =X40 -> 0 | Q40: =SUM(N40:P40) -> 0 | U40: 0
A41: ='Org structure'!E37 -> 4.2 - Solid Waste Disposal | J41: 0 | K41: 0 | L41: 0 | Q41: 0 | U41: 0
A42: ='Org structure'!E38 -> 4.3 - Solid Waste Management | J42: 0 | K42: 0 | L42: 0 | Q42: 0 | U42: 0
A43: ='Org structure'!E39 -> 0 | J43: 0 | K43: 0 | L43: 0 | Q43: 0 | U43: 0
A44: ='Org structure'!E40 -> 0 | J44: 0 | K44: 0 | L44: 0 | Q44: 0 | U44: 0
A45: ='Org structure'!E41 -> 0 | J45: 0 | K45: 0 | L45: 0 | Q45: 0 | U45: 0
A46: ='Org structure'!E42 -> 0 | J46: 0 | K46: 0 | L46: 0 | Q46: 0 | U46: 0
A47: ='Org structure'!E43 -> 0 | J47: 0 | K47: 0 | L47: 0 | Q47: 0 | U47: 0
A48: ='Org structure'!E44 -> 0 | J48: 0 | K48: 0 | L48: 0 | Q48: 0 | U48: 0
A49: ='Org structure'!E45 -> 0 | J49: 0 | K49: 0 | L49: 0 | Q49: 0 | U49: 0
A50: ='Org structure'!A6 -> Vote 5 - LOCAL ECONOMIC DEVELOPMENT | C50: =SUM(C51:C60) -> 0 | D50: =SUM(D51:D60) -> 0 | E50: 0 | F50: 0 | G50: 0 | H50: 0 | I50: =SUM(I51:I60) -> 0 | J50: 0 | K50: 0 | L50: 0 | N50: =SUM(N51:N60) -> 0 | O50: 0 | P50: 0 | Q50: 0 | R50: 0 | S50: 0 | T50: 0 | U50: 0 | V50: 0 | W50: 0 | X50: 0
A51: ='Org structure'!E47 -> 5.1 - SMME Hub | J51: =Q51+V51 -> 0 | K51: =U51+W51 -> 0 | L51: =X51 -> 0 | Q51: =SUM(N51:P51) -> 0 | U51: 0
A52: ='Org structure'!E48 -> 5.2 - Tourism | J52: 0 | K52: 0 | L52: 0 | Q52: 0 | U52: 0
A53: ='Org structure'!E49 -> 5.3 - Economic Development | J53: 0 | K53: 0 | L53: 0 | Q53: 0 | U53: 0
A54: ='Org structure'!E50 -> 0 | J54: 0 | K54: 0 | L54: 0 | Q54: 0 | U54: 0
A55: ='Org structure'!E51 -> 0 | J55: 0 | K55: 0 | L55: 0 | Q55: 0 | U55: 0
A56: ='Org structure'!E52 -> 0 | J56: 0 | K56: 0 | L56: 0 | Q56: 0 | U56: 0
A57: ='Org structure'!E53 -> 0 | J57: 0 | K57: 0 | L57: 0 | Q57: 0 | U57: 0
A58: ='Org structure'!E54 -> 0 | J58: 0 | K58: 0 | L58: 0 | Q58: 0 | U58: 0
A59: ='Org structure'!E55 -> 0 | J59: 0 | K59: 0 | L59: 0 | Q59: 0 | U59: 0
A60: ='Org structure'!E56 -> 0 | J60: 0 | K60: 0 | L60: 0 | Q60: 0 | U60: 0
A61: ='Org structure'!A7 -> Vote 6 - ROADS TRANSPORT | C61: =SUM(C62:C71) -> 0 | D61: =SUM(D62:D71) -> 0 | E61: 0 | F61: 0 | G61: 0 | H61: 0 | I61: =SUM(I62:I71) -> 0 | J61: 0 | K61: 0 | L61: 0 | N61: =SUM(N62:N71) -> 0 | O61: 0 | P61: 0 | Q61: 0 | R61: 0 | S61: 0 | T61: 0 | U61: 0 | V61: 0 | W61: 0 | X61: 0
A62: ='Org structure'!E58 -> 6.1 - Roads | J62: =Q62+V62 -> 0 | K62: =U62+W62 -> 0 | L62: =X62 -> 0 | Q62: =SUM(N62:P62) -> 0 | U62: 0
A63: ='Org structure'!E59 -> 6.2 - Storm Water | J63: 0 | K63: 0 | L63: 0 | Q63: 0 | U63: 0
A64: ='Org structure'!E60 -> 6.3 - Director Technical | J64: 0 | K64: 0 | L64: 0 | Q64: 0 | U64: 0
A65: ='Org structure'!E61 -> 0 | J65: 0 | K65: 0 | L65: 0 | Q65: 0 | U65: 0
A66: ='Org structure'!E62 -> 0 | J66: 0 | K66: 0 | L66: 0 | Q66: 0 | U66: 0
A67: ='Org structure'!E63 -> 0 | J67: 0 | K67: 0 | L67: 0 | Q67: 0 | U67: 0
A68: ='Org structure'!E64 -> 0 | J68: 0 | K68: 0 | L68: 0 | Q68: 0 | U68: 0
A69: ='Org structure'!E65 -> 0 | J69: 0 | K69: 0 | L69: 0 | Q69: 0 | U69: 0
A70: ='Org structure'!E66 -> 0 | J70: 0 | K70: 0 | L70: 0 | Q70: 0 | U70: 0
A71: ='Org structure'!E67 -> 0 | J71: 0 | K71: 0 | L71: 0 | Q71: 0 | U71: 0
A72: ='Org structure'!A8 -> Vote 7 - WATER | C72: =SUM(C73:C82) -> 0 | D72: 0 | E72: 0 | F72: 0 | G72: 0 | H72: 0 | I72: 0 | J72: 0 | K72: 0 | L72: 0 | N72: =SUM(N73:N82) -> 0 | O72: 0 | P72: 0 | Q72: 0 | R72: 0 | S72: 0 | T72: 0 | U72: 0 | V72: 0 | W72: 0 | X72: 0
A73: ='Org structure'!E69 -> 7.1 - WTW Reitz | J73: =Q73+V73 -> 0 | K73: =U73+W73 -> 0 | L73: =X73 -> 0 | Q73: =SUM(N73:P73) -> 0 | U73: =SUM(R73:T73) -> 0
A74: ='Org structure'!E70 -> 7.2 - WTW Mamafubedu | J74: 0 | K74: 0 | L74: 0 | Q74: 0 | U74: 0
A75: ='Org structure'!E71 -> 7.3 - WTW Lindley | J75: 0 | K75: 0 | L75: 0 | Q75: 0 | U75: 0
A76: ='Org structure'!E72 -> 7.4 - WTW Arlington | J76: 0 | K76: 0 | L76: 0 | Q76: 0 | U76: 0
A77: ='Org structure'!E73 -> 7.5 - Water Network Reitz | J77: 0 | K77: 0 | L77: 0 | Q77: 0 | U77: 0
A78: ='Org structure'!E74 -> 7.6 - Water Network Mamafubedu | J78: 0 | K78: 0 | L78: 0 | Q78: 0 | U78: 0
A79: ='Org structure'!E75 -> 7.7 - Water Network Lindley | J79: 0 | K79: 0 | L79: 0 | Q79: 0 | U79: 0
A80: ='Org structure'!E76 -> 7.8 - Water Network Arlington | J80: 0 | K80: 0 | L80: 0 | Q80: 0 | U80: 0
A81: ='Org structure'!E77 -> 7.9 - General Water Works | J81: 0 | K81: 0 | L81: 0 | Q81: 0 | U81: 0
A82: ='Org structure'!E78 -> 0 | J82: 0 | K82: 0 | L82: 0 | Q82: 0 | U82: 0
A83: ='Org structure'!A9 -> Vote 8 - ELECTRICITY | C83: =SUM(C84:C93) -> 0 | D83: 0 | E83: 0 | F83: 0 | G83: 0 | H83: 0 | I83: 0 | J83: 0 | K83: 0 | L83: 0 | N83: =SUM(N84:N93) -> 0 | O83: 0 | P83: 0 | Q83: 0 | R83: 0 | S83: 0 | T83: 0 | U83: 0 | V83: 0 | W83: 0 | X83: 0
A84: ='Org structure'!E80 -> 8.1 - Reitz Electricity | J84: =Q84+V84 -> 0 | K84: =U84+W84 -> 0 | L84: =X84 -> 0 | Q84: =SUM(N84:P84) -> 0 | U84: 0
A85: ='Org structure'!E81 -> 8.2 - Mamafubedu Electricity | J85: 0 | K85: 0 | L85: 0 | Q85: 0 | U85: 0
A86: ='Org structure'!E82 -> 8.3 - Lindley Electricity | J86: 0 | K86: 0 | L86: 0 | Q86: 0 | U86: 0
A87: ='Org structure'!E83 -> 8.4 - General Electricity Works | J87: 0 | K87: 0 | L87: 0 | Q87: 0 | U87: 0
A88: ='Org structure'!E84 -> 0 | J88: 0 | K88: 0 | L88: 0 | Q88: 0 | U88: 0
A89: ='Org structure'!E85 -> 0 | J89: 0 | K89: 0 | L89: 0 | Q89: 0 | U89: 0
A90: ='Org structure'!E86 -> 0 | J90: 0 | K90: 0 | L90: 0 | Q90: 0 | U90: 0
A91: ='Org structure'!E87 -> 0 | J91: 0 | K91: 0 | L91: 0 | Q91: 0 | U91: 0
A92: ='Org structure'!E88 -> 0 | J92: 0 | K92: 0 | L92: 0 | Q92: 0 | U92: 0
A93: ='Org structure'!E89 -> 0 | J93: 0 | K93: 0 | L93: 0 | Q93: 0 | U93: 0
A94: ='Org structure'!A10 -> Vote 9 - WASTE WATER | C94: =SUM(C95:C104) -> 0 | D94: =SUM(D95:D104) -> 0 | E94: 0 | F94: 0 | G94: 0 | H94: 0 | I94: 0 | J94: 0 | K94: 0 | L94: 0 | N94: =SUM(N95:N104) -> 0 | O94: 0 | P94: 0 | Q94: 0 | R94: 0 | S94: 0 | T94: 0 | U94: 0 | V94: 0 | W94: 0 | X94: 0
A95: ='Org structure'!E91 -> 9.1 - WWTW Reitz | J95: =Q95+V95 -> 0 | K95: =U95+W95 -> 0 | L95: =X95 -> 0 | Q95: =SUM(N95:P95) -> 0 | U95: 0
A96: ='Org structure'!E92 -> 9.2 - Network Reitz | J96: 0 | K96: 0 | L96: 0 | Q96: 0 | U96: 0
A97: ='Org structure'!E93 -> 9.3 - Network Mamafubedu | J97: 0 | K97: 0 | L97: 0 | Q97: 0 | U97: 0
A98: ='Org structure'!E94 -> 9.4 - WWTW Mamafubedu | J98: 0 | K98: 0 | L98: 0 | Q98: 0 | U98: 0
A99: ='Org structure'!E95 -> 9.5 - WWTW Lindley | J99: 0 | K99: 0 | L99: 0 | Q99: 0 | U99: 0
A100: ='Org structure'!E96 -> 9.6 - Network Lindley | J100: 0 | K100: 0 | L100: 0 | Q100: 0 | U100: 0
A101: ='Org structure'!E97 -> 9.7 - WWTW Arlington | J101: 0 | K101: 0 | L101: 0 | Q101: 0 | U101: 0
A102: ='Org structure'!E98 -> 9.8 - Network Arlington | J102: 0 | K102: 0 | L102: 0 | Q102: 0 | U102: 0
A103: ='Org structure'!E99 -> 0 | J103: 0 | K103: 0 | L103: 0 | Q103: 0 | U103: 0
A104: ='Org structure'!E100 -> 0 | J104: 0 | K104: 0 | L104: 0 | Q104: 0 | U104: 0
A105: ='Org structure'!A11 -> Vote 10 - HOUSING | C105: =SUM(C106:C115) -> 0 | D105: =SUM(D106:D115) -> 0 | E105: 0 | F105: 0 | G105: 0 | H105: 0 | I105: 0 | J105: 0 | K105: 0 | L105: 0 | N105: =SUM(N106:N115) -> 0 | O105: 0 | P105: 0 | Q105: 0 | R105: 0 | S105: 0 | T105: 0 | U105: 0 | V105: 0 | W105: 0 | X105: 0
A106: ='Org structure'!E102 -> 10.1 - Urban Planning | J106: =Q106+V106 -> 0 | K106: =U106+W106 -> 0 | L106: =X106 -> 0 | Q106: =SUM(N106:P106) -> 0 | U106: 0
A107: ='Org structure'!E103 -> 0 | J107: 0 | K107: 0 | L107: 0 | Q107: 0 | U107: 0
A108: ='Org structure'!E104 -> 0 | J108: 0 | K108: 0 | L108: 0 | Q108: 0 | U108: 0
A109: ='Org structure'!E105 -> 0 | J109: 0 | K109: 0 | L109: 0 | Q109: 0 | U109: 0
A110: ='Org structure'!E106 -> 0 | J110: 0 | K110: 0 | L110: 0 | Q110: 0 | U110: 0
A111: ='Org structure'!E107 -> 0 | J111: 0 | K111: 0 | L111: 0 | Q111: 0 | U111: 0
A112: ='Org structure'!E108 -> 0 | J112: 0 | K112: 0 | L112: 0 | Q112: 0 | U112: 0
A113: ='Org structure'!E109 -> 0 | J113: 0 | K113: 0 | L113: 0 | Q113: 0 | U113: 0
A114: ='Org structure'!E110 -> 0 | J114: 0 | K114: 0 | L114: 0 | Q114: 0 | U114: 0
A115: ='Org structure'!E111 -> 0 | J115: 0 | K115: 0 | L115: 0 | Q115: 0 | U115: 0
A116: ='Org structure'!A12 -> Vote 11 - [NAME OF VOTE 11] | C116: =SUM(C117:C126) -> 0 | D116: 0 | E116: 0 | F116: 0 | G116: 0 | H116: 0 | I116: 0 | J116: 0 | K116: 0 | L116: 0 | N116: =SUM(N117:N126) -> 0 | O116: 0 | P116: 0 | Q116: 0 | R116: 0 | S116: 0 | T116: 0 | U116: 0 | V116: 0 | W116: 0 | X116: 0
A117: ='Org structure'!E113 -> 11.1 - [Name of sub-vote] | J117: =Q117+V117 -> 0 | K117: =U117+W117 -> 0 | L117: =X117 -> 0 | Q117: =SUM(N117:P117) -> 0 | U117: 0
A118: ='Org structure'!E114 -> 0 | J118: 0 | K118: 0 | L118: 0 | Q118: 0 | U118: 0
A119: ='Org structure'!E115 -> 0 | J119: 0 | K119: 0 | L119: 0 | Q119: 0 | U119: 0
A120: ='Org structure'!E116 -> 0 | J120: 0 | K120: 0 | L120: 0 | Q120: 0 | U120: 0
A121: ='Org structure'!E117 -> 0 | J121: 0 | K121: 0 | L121: 0 | Q121: 0 | U121: 0
A122: ='Org structure'!E118 -> 0 | J122: 0 | K122: 0 | L122: 0 | Q122: 0 | U122: 0
A123: ='Org structure'!E119 -> 0 | J123: 0 | K123: 0 | L123: 0 | Q123: 0 | U123: 0
A124: ='Org structure'!E120 -> 0 | J124: 0 | K124: 0 | L124: 0 | Q124: 0 | U124: 0
A125: ='Org structure'!E121 -> 0 | J125: 0 | K125: 0 | L125: 0 | Q125: 0 | U125: 0
A126: ='Org structure'!E122 -> 0 | J126: 0 | K126: 0 | L126: 0 | Q126: 0 | U126: 0
A127: ='Org structure'!A13 -> Vote 12 - [NAME OF VOTE 12] | C127: =SUM(C128:C137) -> 0 | D127: 0 | E127: 0 | F127: 0 | G127: 0 | H127: 0 | I127: 0 | J127: 0 | K127: 0 | L127: 0 | N127: =SUM(N128:N137) -> 0 | O127: 0 | P127: 0 | Q127: 0 | R127: 0 | S127: 0 | T127: 0 | U127: 0 | V127: 0 | W127: 0 | X127: 0
A128: ='Org structure'!E124 -> 12.1 - [Name of sub-vote] | J128: =Q128+V128 -> 0 | K128: =U128+W128 -> 0 | L128: =X128 -> 0 | Q128: =SUM(N128:P128) -> 0 | U128: 0
A129: ='Org structure'!E125 -> 0 | J129: 0 | K129: 0 | L129: 0 | Q129: 0 | U129: 0
A130: ='Org structure'!E126 -> 0 | J130: 0 | K130: 0 | L130: 0 | Q130: 0 | U130: 0
A131: ='Org structure'!E127 -> 0 | J131: 0 | K131: 0 | L131: 0 | Q131: 0 | U131: 0
A132: ='Org structure'!E128 -> 0 | J132: 0 | K132: 0 | L132: 0 | Q132: 0 | U132: 0
A133: ='Org structure'!E129 -> 0 | J133: =Q133+V133 -> 0 | K133: 0 | L133: 0 | Q133: 0 | U133: 0
A134: ='Org structure'!E130 -> 0 | J134: 0 | K134: 0 | L134: 0 | Q134: 0 | U134: 0
A135: ='Org structure'!E131 -> 0 | J135: 0 | K135: 0 | L135: 0 | Q135: 0 | U135: 0
A136: ='Org structure'!E132 -> 0 | J136: 0 | K136: 0 | L136: 0 | Q136: 0 | U136: =SUM(R136:T136) -> 0
A137: ='Org structure'!E133 -> 0 | J137: 0 | K137: 0 | L137: 0 | Q137: 0 | U137: 0
A138: ='Org structure'!A14 -> Vote 13 - [NAME OF VOTE 13] | C138: =SUM(C139:C148) -> 0 | D138: 0 | E138: 0 | F138: 0 | G138: 0 | H138: 0 | I138: 0 | J138: 0 | K138: 0 | L138: 0 | N138: =SUM(N139:N148) -> 0 | O138: 0 | P138: 0 | Q138: 0 | R138: 0 | S138: 0 | T138: 0 | U138: 0 | V138: 0 | W138: 0 | X138: 0
A139: ='Org structure'!E135 -> 13.1 - [Name of sub-vote] | J139: =Q139+V139 -> 0 | K139: =U139+W139 -> 0 | L139: =X139 -> 0 | Q139: =SUM(N139:P139) -> 0 | U139: 0
A140: ='Org structure'!E136 -> 0 | J140: 0 | K140: 0 | L140: 0 | Q140: 0 | U140: 0
A141: ='Org structure'!E137 -> 0 | J141: 0 | K141: 0 | L141: 0 | Q141: 0 | U141: 0
A142: ='Org structure'!E138 -> 0 | J142: 0 | K142: 0 | L142: 0 | Q142: 0 | U142: 0
A143: ='Org structure'!E139 -> 0 | J143: 0 | K143: 0 | L143: 0 | Q143: 0 | U143: 0
A144: ='Org structure'!E140 -> 0 | J144: 0 | K144: 0 | L144: 0 | Q144: 0 | U144: 0
A145: ='Org structure'!E141 -> 0 | J145: 0 | K145: 0 | L145: 0 | Q145: 0 | U145: 0
A146: ='Org structure'!E142 -> 0 | J146: 0 | K146: 0 | L146: 0 | Q146: 0 | U146: 0
A147: ='Org structure'!E143 -> 0 | J147: 0 | K147: 0 | L147: 0 | Q147: 0 | U147: 0
A148: ='Org structure'!E144 -> 0 | J148: 0 | K148: 0 | L148: 0 | Q148: 0 | U148: 0
A149: ='Org structure'!A15 -> Vote 14 - [NAME OF VOTE 14] | C149: =SUM(C150:C159) -> 0 | D149: 0 | E149: 0 | F149: 0 | G149: 0 | H149: 0 | I149: 0 | J149: 0 | K149: 0 | L149: 0 | N149: =SUM(N150:N159) -> 0 | O149: 0 | P149: 0 | Q149: 0 | R149: 0 | S149: 0 | T149: 0 | U149: 0 | V149: 0 | W149: 0 | X149: 0
A150: ='Org structure'!E146 -> 14.1 - [Name of sub-vote] | J150: =Q150+V150 -> 0 | K150: =U150+W150 -> 0 | L150: =X150 -> 0 | Q150: =SUM(N150:P150) -> 0 | U150: 0
A151: ='Org structure'!E147 -> 0 | J151: 0 | K151: 0 | L151: 0 | Q151: 0 | U151: 0
A152: ='Org structure'!E148 -> 0 | J152: 0 | K152: 0 | L152: 0 | Q152: 0 | U152: 0
A153: ='Org structure'!E149 -> 0 | J153: 0 | K153: 0 | L153: 0 | Q153: 0 | U153: 0
A154: ='Org structure'!E150 -> 0 | J154: 0 | K154: 0 | L154: 0 | Q154: 0 | U154: 0
A155: ='Org structure'!E151 -> 0 | J155: 0 | K155: 0 | L155: 0 | Q155: 0 | U155: 0
A156: ='Org structure'!E152 -> 0 | J156: 0 | K156: 0 | L156: 0 | Q156: 0 | U156: 0
A157: ='Org structure'!E153 -> 0 | J157: 0 | K157: 0 | L157: 0 | Q157: 0 | U157: 0
A158: ='Org structure'!E154 -> 0 | J158: 0 | K158: 0 | L158: 0 | Q158: 0 | U158: 0
A159: ='Org structure'!E155 -> 0 | J159: 0 | K159: 0 | L159: 0 | Q159: 0 | U159: 0
A160: ='Org structure'!A16 -> Vote 15 - [NAME OF VOTE 15] | C160: =SUM(C161:C170) -> 0 | D160: 0 | E160: 0 | F160: 0 | G160: 0 | H160: 0 | I160: 0 | J160: 0 | K160: 0 | L160: 0 | N160: =SUM(N161:N170) -> 0 | O160: 0 | P160: 0 | Q160: 0 | R160: 0 | S160: 0 | T160: 0 | U160: 0 | V160: 0 | W160: 0 | X160: 0
A161: ='Org structure'!E157 -> 15.1 - [Name of sub-vote] | J161: =Q161+V161 -> 0 | K161: =U161+W161 -> 0 | L161: =X161 -> 0 | Q161: =SUM(N161:P161) -> 0 | U161: 0
A162: ='Org structure'!E158 -> 0 | J162: 0 | K162: 0 | L162: 0 | Q162: 0 | U162: 0
A163: ='Org structure'!E159 -> 0 | J163: 0 | K163: 0 | L163: 0 | Q163: 0 | U163: 0
A164: ='Org structure'!E160 -> 0 | J164: 0 | K164: 0 | L164: 0 | Q164: 0 | U164: 0
A165: ='Org structure'!E161 -> 0 | J165: 0 | K165: 0 | L165: 0 | Q165: 0 | U165: 0
A166: ='Org structure'!E162 -> 0 | J166: 0 | K166: 0 | L166: 0 | Q166: 0 | U166: 0
A167: ='Org structure'!E163 -> 0 | J167: 0 | K167: 0 | L167: 0 | Q167: 0 | U167: 0
A168: ='Org structure'!E164 -> 0 | J168: 0 | K168: 0 | L168: 0 | Q168: 0 | U168: 0
A169: ='Org structure'!E165 -> 0 | J169: 0 | K169: 0 | L169: 0 | Q169: 0 | U169: 0
A170: ='Org structure'!E166 -> 0 | J170: 0 | K170: 0 | L170: 0 | Q170: 0 | U170: 0
A171: Capital multi-year expenditure sub-total | C171: =C6+C17+C28+C39+C50+C61+C72+C83+C94+C105+C116+C127+C138+C149+C160 -> 0 | D171: =D6+D17+D28+D39+D50+D61+D72+D83+D94+D105+D116+D127+D138+D149+D160 -> 0 | E171: 0 | F171: 0 | G171: 0 | H171: 0 | I171: 0 | J171: 0 | K171: 0 | L171: 0 | N171: =N6+N17+N28+N39+N50+N61+N72+N83+N94+N105+N116+N127+N138+N149+N160 -> 0 | O171: 0 | P171: 0 | Q171: 0 | R171: 0 | S171: 0 | U171: 0 | V171: =V6+V17+V28+V39+V50+V61+V72+V83+V94+V105+V116+V127+V138+V149+V160 -> 0 | W171: =W6+W17+W28+W39+W50+W61+W72+W83+W94+W105+W116+W127+W138+W149+W160 -> 0
A173: Capital expenditure - Municipal Vote
A174: Single-year expenditure appropriation | B174: 2
A175: =A6 -> Vote 1 - EXECUTIVE AND COUNCIL | C175: =SUM(C176:C185) -> 0 | D175: 0 | E175: 0 | F175: 0 | G175: 0 | H175: 0 | I175: 0 | J175: 30000 | K175: 0 | L175: 0
A176: =A7 -> 1.1 - Mayor's Office
A177: 1.2 - Speaker's Office
A178: 1.4 - Municipal Manager's Office | J178: 30000
A179: 1.4 - IDP and PMS
A180: 1.5 - Internal Audit
A181: 1.6 - Special Programmes
A182: 0
A183: 0
A184: 0
A185: 0
A186: Vote 2 - FINANCE AND ADMINISTRATION | C186: =SUM(C187:C196) -> 650000 | D186: 0 | E186: 0 | F186: 1224000 | G186: 1304000 | H186: 1304000 | I186: 1304000 | J186: 1700000 | K186: 1460000 | L186: 1600000
A187: 2.1 - Human Resource
A188: 2.2 - Records Management
A189: 2.3 - Legal Services
A190: 2.4 - Administration
A191: 2.5 - Revenue Management | C191: 650000 | F191: 1224000 | G191: 1304000 | H191: =G191 -> 1304000 | I191: =H191 -> 1304000 | J191: 1700000 | K191: 1460000 | L191: 1600000
A192: 2.6 - Supply Chain Management
A193: 2.7 - CFO
A194: 2.8 - Director Corporate Services
A195: 2.9 - Budget and Treasury
A196: 2.10 - Expenditure
A197: Vote 3 - COMMUNITY SERVICES | C197: =SUM(C198:C207) -> 3783000 | D197: 5652880 | E197: 6062017 | F197: 12993914.05 | G197: 8127851.34 | H197: 8127851.34 | I197: 8127851.34 | J197: 16409032 | K197: 6105222 | L197: 11842056
A198: 3.1 - Cementry | F198: 6084323.27 | G198: 4007748.23 | H198: =G198 -> 4007748.23 | I198: =H198 -> 4007748.23 | J198: 12310188 | K198: 1324578 | L198: 6842056
A199: 3.2 - Parks
A200: 3.3 - Director Community Services
A201: 3.4 - Traffic Services
... 140 more rows

Sheet A6-FinPos
A1: =muni&" - "&Approve6 -> FS193 Nketoana - Table A6 Budgeted Financial Position
A2: =desc -> Description | B2: =head27 -> Ref | C2: =head1b -> 2012/13 | D2: =head1A -> 2013/14 | E2: =Head1 -> 2014/15 | F2: =Head2 -> Current Year 2015/16 | J2: =Head3 -> 2016/17 Medium Term Revenue & Expenditure Framework
A3: R thousand | C3: =Head5 -> Audited Outcome | D3: =Head5 -> Audited Outcome | E3: =Head5 -> Audited Outcome | F3: =Head6 -> Original Budget | G3: =Head7 -> Adjusted Budget | H3: =Head8 -> Full Year Forecast | I3: =Head5b -> Pre-audit outcome | J3: =Head9 -> Budget Year 2016/17 | K3: =Head10 -> Budget Year +1 2017/18 | L3: =Head11 -> Budget Year +2 2018/19
A4: ASSETS
A5: Current assets
A6: Cash | D6: 789302 | E6: 2997794 | F6: 789302 | G6: 2997794 | H6: =G6 -> 2997794 | I6: =H6 -> 2997794 | J6: =I6*1.04 -> 3117705.76 | K6: =J6*1.04 -> 3242413.99 | L6: =K6*1.04 -> 3372110.55
A7: Call investment deposits | B7: 1 | C7: ='SA3'!C9 -> 3698369 | D7: ='SA3'!D9 -> 3696369 | E7: ='SA3'!E9 -> 8219000 | F7: ='SA3'!F9 -> 11640615 | G7: ='SA3'!G9 -> 7987827.22 | H7: ='SA3'!H9 -> 7987827.22 | I7: ='SA3'!I9 -> 7987827.22 | J7: ='SA3'!J9 -> 15156200.03 | K7: ='SA3'!K9 -> 15762448.03 | L7: ='SA3'!L9 -> 16392945.95
A8: Consumer debtors | B8: 1 | C8: ='SA3'!C14 -> 52639961 | D8: ='SA3'!D14 -> 30211175 | E8: ='SA3'!E14 -> 32762616 | F8: ='SA3'!F14 -> 98661391 | G8: ='SA3'!G14 -> 32762515 | H8: ='SA3'!H14 -> 32762515 | I8: ='SA3'!I14 -> 32762515 | J8: ='SA3'!J14 -> 34073015.6 | K8: ='SA3'!K14 -> 35435936.22 | L8: ='SA3'!L14 -> 36853373.67
A9: Other debtors | C9: 20615200 | D9: 3164735 | E9: 10932977 | F9: 1679211 | G9: 10932977 | H9: =G9 -> 10932977 | I9: 10932977 | J9: =I9*1.04 -> 11370296.08 | K9: =J9*1.04 -> 11825107.92 | L9: =K9*1.04 -> 12298112.24
A10: Current portion of long-term receivables | C10: 10045000 | D10: 12881657 | E10: 14994355 | F10: 442270 | G10: 14994355 | H10: 14994355 | I10: 14994355 | J10: =I10*1.04 -> 15594129.2 | K10: 16217894.37 | L10: 16866610.14
A11: Inventory | B11: 2 | C11: 301000 | D11: 776544 | E11: 586686 | F11: 776544 | G11: 586686 | H11: 586686 | I11: 586686 | J11: 610153.44 | K11: 634559.5776 | L11: 659941.9607
A12: Total current assets | C12: =SUM(C6:C11) -> 87299530 | D12: 51519782 | E12: 70493428 | F12: 113989333 | G12: 70262154.22 | H12: 70262154.22 | I12: 70262154.22 | J12: 79921500.11 | K12: 83118360.11 | L12: 86443094.52
A14: Non current assets
A15: Long-term receivables | D15: 2018500 | E15: 2018500 | F15: 2018500 | G15: 2018500 | H15: =G15 -> 2018500 | I15: 2018500 | J15: =I15*1.04 -> 2099240 | K15: =J15*1.04 -> 2183209.6 | L15: =K15*1.04 -> 2270537.984
A16: Investments | G16: 0 | H16: 0 | I16: 0 | J16: =I16*1.04 -> 0 | K16: 0 | L16: 0
A17: Investment property | C17: 2958000 | D17: 8263614 | E17: 8116947 | F17: 8263614 | G17: 8116947 | H17: 8116947 | I17: 8116947 | J17: 8441624.88 | K17: 8779289.875 | L17: 9130461.47
A18: Investment in Associate | F18: 4582445 | G18: 4305805 | H18: 4305805 | I18: 4305805 | J18: 4478037.2 | K18: 4657158.688 | L18: 4843445.036
A19: Property, plant and equipment | B19: 3 | C19: ='SA3'!C26 -> 595503185 | D19: ='SA3'!D26 -> 590782004 | E19: ='SA3'!E26 -> 573716176 | F19: ='SA3'!F26 -> 589186740 | G19: ='SA3'!G26 -> 573716176 | H19: ='SA3'!H26 -> 573716176 | I19: ='SA3'!I26 -> 573716176 | J19: ='SA3'!J26 -> 596664823 | K19: ='SA3'!K26 -> 620531416 | L19: ='SA3'!L26 -> 645352672.6
A20: Agricultural | G20: 0 | H20: =G20 -> 0 | I20: 0 | J20: =I20*1.04 -> 0 | K20: =J20*1.04 -> 0 | L20: =K20*1.04 -> 0
A21: Biological | C21: 12000 | D21: 22700 | E21: 50476 | F21: 22700 | G21: 50476 | H21: 50476 | I21: 50476 | J21: =I21*1.04 -> 52495.04 | K21: 54594.8416 | L21: 56778.63526
A22: Intangible | C22: 156000 | D22: 27833 | E22: 25673 | F22: 27833 | G22: 25673 | H22: 25673 | I22: 25673 | J22: 26699.92 | K22: 27767.9168 | L22: 28878.63347
A23: Other non-current assets | C23: 6533000 | D23: 4582445 | E23: 4305805 | F23: 1595264 | G23: 0 | H23: 0 | I23: 0 | J23: 0 | K23: 0 | L23: 0
A24: Total non current assets | C24: =SUM(C15:C23) -> 605162185 | D24: =SUM(D15:D23) -> 605697096 | E24: =SUM(E15:E23) -> 588233577 | F24: 605697096 | G24: 588233577 | H24: 588233577 | I24: 588233577 | J24: 611762920.1 | K24: 636233436.9 | L24: 661682774.4
A25: TOTAL ASSETS | C25: =C12+C24 -> 692461715 | D25: =D12+D24 -> 657216878 | E25: =E12+E24 -> 658727005 | F25: =F12+F24 -> 719686429 | G25: 658495731.2 | H25: 658495731.2 | I25: 658495731.2 | J25: 691684420.2 | K25: 719351797 | L25: 748125868.9
A27: LIABILITIES
A28: Current liabilities
A29: Bank overdraft | B29: 1 | C29: 14089200 | D29: 1670608 | E29: 1198016 | G29: 0 | H29: =G29 -> 0 | I29: =H29 -> 0
A30: Borrowing | B30: 4 | C30: ='SA3'!C32 -> 0 | D30: ='SA3'!D32 -> 906482 | E30: ='SA3'!E32 -> 1398503 | F30: ='SA3'!F32 -> 906482 | G30: ='SA3'!G32 -> 1398503 | H30: ='SA3'!H32 -> 1398503 | I30: ='SA3'!I32 -> 1398503 | J30: ='SA3'!J32 -> 1454443.12 | K30: ='SA3'!K32 -> 1512620.845 | L30: ='SA3'!L32 -> 1573125.679
A31: Consumer deposits | C31: 1231200 | D31: 1251344 | E31: 1305253 | F31: 1251344 | G31: 1305253 | H31: =G31 -> 1305253 | I31: =H31 -> 1305253 | J31: =I31*1.04 -> 1357463.12 | K31: =J31*1.04 -> 1411761.645 | L31: =K31*1.04 -> 1468232.111
A32: Trade and other payables | B32: 4 | C32: ='SA3'!C38 -> 38752075 | D32: ='SA3'!D38 -> 90878118 | E32: ='SA3'!E38 -> 130614001 | F32: ='SA3'!F38 -> 92641998 | G32: ='SA3'!G38 -> 131812017 | H32: ='SA3'!H38 -> 131812017 | I32: ='SA3'!I38 -> 131812017 | J32: ='SA3'!J38 -> 137084497.7 | K32: ='SA3'!K38 -> 142567877.6 | L32: ='SA3'!L38 -> 148270592.7
A33: Provisions | D33: 335000 | E33: 550000 | F33: 0 | G33: 550000 | H33: =G33 -> 550000 | I33: =H33 -> 550000 | J33: =I33*1.04 -> 572000 | K33: =J33*1.04 -> 594880 | L33: =K33*1.04 -> 618675.2
A34: Total current liabilities | C34: =SUM(C29:C33) -> 54072475 | D34: 95041552 | E34: 135065773 | F34: 94799824 | G34: 135065773 | H34: 135065773 | I34: 135065773 | J34: 140468403.9 | K34: 146087140.1 | L34: 151930625.7
A36: Non current liabilities
A37: Borrowing | C37: ='SA3'!C43 -> 13191333 | D37: ='SA3'!D43 -> 10410778 | E37: ='SA3'!E43 -> 8569848 | F37: ='SA3'!F43 -> 10410778 | G37: ='SA3'!G43 -> 8569848 | H37: ='SA3'!H43 -> 8569848 | I37: ='SA3'!I43 -> 8569848 | J37: ='SA3'!J43 -> 8912641.92 | K37: ='SA3'!K43 -> 9269147.597 | L37: ='SA3'!L43 -> 9639913.501
A38: Provisions | C38: ='SA3'!C50 -> 14150766 | D38: ='SA3'!D50 -> 14880956 | E38: ='SA3'!E50 -> 14097494 | F38: ='SA3'!F50 -> 14880956 | G38: ='SA3'!G50 -> 14097494 | H38: ='SA3'!H50 -> 14097494 | I38: ='SA3'!I50 -> 14097494 | J38: ='SA3'!J50 -> 14661393.76 | K38: ='SA3'!K50 -> 15247849.51 | L38: ='SA3'!L50 -> 15857763.49
A39: Total non current liabilities | C39: =SUM(C37:C38) -> 27342099 | D39: =SUM(D37:D38) -> 25291734 | E39: =SUM(E37:E38) -> 22667342 | F39: =SUM(F37:F38) -> 25291734 | G39: 22667342 | H39: 22667342 | I39: 22667342 | J39: 23574035.68 | K39: =SUM(K37:K38) -> 24516997.11 | L39: 25497676.99
A40: TOTAL LIABILITIES | C40: =C34+C39 -> 81414574 | D40: =D34+D39 -> 120333286 | E40: =E34+E39 -> 157733115 | F40: =F34+F39 -> 120091558 | G40: 157733115 | H40: 157733115 | I40: 157733115 | J40: 164042439.6 | K40: =K34+K39 -> 170604137.2 | L40: 177428302.7
A42: NET ASSETS | B42: 5 | C42: =C25-C40 -> 611047141 | D42: 536883592 | E42: 500993890 | F42: 599594871 | G42: 500762616.2 | H42: 500762616.2 | I42: 500762616.2 | J42: 527641980.6 | K42: 548747659.8 | L42: 570697566.2
A44: COMMUNITY WEALTH/EQUITY
A45: Accumulated Surplus/(Deficit) | C45: 611047141 | D45: 536883592 | E45: 500993890 | F45: 599594871 | G45: 500762616.2 | H45: 500762616.2 | I45: 500762616.2 | J45: 527641980.6 | K45: 548747659.8 | L45: 570697566.2
A46: Reserves | B46: 4 | C46: ='SA3'!C69 -> 0 | D46: ='SA3'!D69 -> 0 | E46: ='SA3'!E69 -> 0 | F46: ='SA3'!F69 -> 0 | G46: ='SA3'!G69 -> 0 | H46: ='SA3'!H69 -> 0 | I46: ='SA3'!I69 -> 0 | J46: ='SA3'!J69 -> 0 | K46: ='SA3'!K69 -> 0 | L46: ='SA3'!L69 -> 0
A48: TOTAL COMMUNITY WEALTH/EQUITY | B48: 5 | C48: =SUM(C45:C47) -> 611047141 | D48: =SUM(D45:D47) -> 536883592 | E48: 500993890 | F48: 599594871 | G48: 500762616.2 | H48: 500762616.2 | I48: 500762616.2 | J48: 527641980.6 | K48: 548747659.8 | L48: 570697566.2
A49: =head27a -> References
A50: 1. Detail to be provided in Table SA3
A51: 2. Include completed low cost housing to be transferred to beneficiaries within 12 months
A52: 3. Include 'Construction-work-in-progress' (disclosed separately in annual financial statements)
A53: 4. Detail to be provided in Table SA3. Includes reserves to be funded by statute.
A54: 5. Net assets must balance with Total Community Wealth/Equity
A55: check balance | C55: =IF((C42-C48)=0,0,"Unbalanced") -> 0 | D55: =IF((D42-D48)=0,0,"Unbalanced") -> 0 | E55: 0 | F55: 0 | G55: 0 | H55: 0 | I55: 0 | J55: 0 | K55: 0 | L55: 0
A71: Test | C71: =IF(C25<>C40,"Unbalanced",0) -> Unbalanced | D71: =IF(D25<>D40,"Unbalanced",0) -> Unbalanced | E71: Unbalanced | F71: Unbalanced | G71: Unbalanced | H71: Unbalanced | I71: Unbalanced | J71: Unbalanced | K71: Unbalanced | L71: Unbalanced

Sheet A7-CFlow
A1: =muni&" - "&Approve7 -> FS193 Nketoana - Table A7 Budgeted Cash Flows
A2: =desc -> Description | B2: =head27 -> Ref | C2: =head1b -> 2012/13 | D2: =head1A -> 2013/14 | E2: =Head1 -> 2014/15 | F2: =Head2 -> Current Year 2015/16 | J2: =Head3 -> 2016/17 Medium Term Revenue & Expenditure Framework
A3: R thousand | C3: =Head5 -> Audited Outcome | D3: =Head5 -> Audited Outcome | E3: =Head5 -> Audited Outcome | F3: =Head6 -> Original Budget | G3: =Head7 -> Adjusted Budget | H3: =Head8 -> Full Year Forecast | I3: =Head5b -> Pre-audit outcome | J3: =Head9 -> Budget Year 2016/17 | K3: =Head10 -> Budget Year +1 2017/18 | L3: =Head11 -> Budget Year +2 2018/19
A4: CASH FLOW FROM OPERATING ACTIVITIES
A5: Receipts
A6: Property rates, penalties & collection charges | C6: 54730223 | D6: 44968465 | E6: 55371470 | F6: 18796007.61 | G6: 18796007.61 | H6: =G6 -> 18796007.61 | I6: =H6 -> 18796007.61 | J6: ='SA30'!N5+'SA30'!N6 -> 18728651.08 | K6: ='SA30'!O5+'SA30'!O6 -> 19477797.12 | L6: ='SA30'!P5+'SA30'!P6 -> 20256909.01
A7: Service charges | F7: 142869090 | G7: 142869090 | H7: =G7 -> 142869090 | I7: 142869090 | J7: ='SA30'!N7+'SA30'!N8+'SA30'!N9+'SA30'!N10+'SA30'!N11 -> 152180831.1 | K7: ='SA30'!O7+'SA30'!O8+'SA30'!O9+'SA30'!O10+'SA30'!O11 -> 158268064.3 | L7: ='SA30'!P7+'SA30'!P8+'SA30'!P9+'SA30'!P10+'SA30'!P11 -> 164598786.9
A8: Other revenue | D8: 15953565 | E8: 13777185 | F8: 52456558.95 | G8: 32775642.72 | H8: 32775642.72 | I8: 32775642.72 | J8: ='SA30'!N12+'SA30'!N16+'SA30'!N17+'SA30'!N18+'SA30'!N20 -> 15454998.81 | K8: ='SA30'!O12+'SA30'!O16+'SA30'!O17+'SA30'!O18+'SA30'!O20 -> 16073198.76 | L8: ='SA30'!P12+'SA30'!P16+'SA30'!P17+'SA30'!P18+'SA30'!P20 -> 16716126.71
A9: Government - operating | B9: 1 | C9: 81161613 | D9: 80423038 | E9: 82169397 | F9: 84163000 | G9: 84163000 | H9: 84163000 | I9: 84163000 | J9: ='SA30'!N19 -> 83002000 | K9: ='SA30'!O19 -> 86322080 | L9: ='SA30'!P19 -> 89774963.2
A10: Government - capital | B10: 1 | C10: 36784732 | D10: 46544909 | E10: 53880643 | F10: 62773000 | G10: 62773000 | H10: 62773000 | I10: 62773000 | J10: ='SA30'!N24 -> 89159000 | K10: ='SA30'!O24 -> 72280000 | L10: ='SA30'!P24 -> 76750000
A11: Interest | C11: 1501000 | D11: 411307 | E11: 583166 | F11: 12644000 | G11: 23177416 | H11: 23177416 | I11: 23177416 | J11: ='SA30'!N13+'SA30'!N14 -> 23400000 | K11: ='SA30'!O13+'SA30'!O14 -> 24336000 | L11: ='SA30'!P13+'SA30'!P14 -> 25309440
A12: Dividends | F12: 0 | G12: 0 | H12: 0 | I12: 0 | J12: ='SA30'!N15 -> 0 | K12: ='SA30'!O15 -> 0 | L12: ='SA30'!P15 -> 0
A13: Payments
A14: Suppliers and employees | C14: -164045092 | D14: =-72650070-44883044 -> -117533114 | E14: =-81067609-62905816 -> -143973425 | F14: -213257562.2 | G14: -247104098.6 | H14: =G14 -> -247104098.6 | I14: =H14 -> -247104098.6 | J14: =-('SA30'!N36+'SA30'!N37+'SA30'!N39+'SA30'!N40+'SA30'!N41+'SA30'!N42+'SA30'!N45+'SA30'!N51) -> -192961086.8 | K14: =-('SA30'!O36+'SA30'!O37+'SA30'!O39+'SA30'!O40+'SA30'!O41+'SA30'!O42+'SA30'!O45+'SA30'!O51) -> -200679530.3 | L14: =-('SA30'!P36+'SA30'!P37+'SA30'!P39+'SA30'!P40+'SA30'!P41+'SA30'!P42+'SA30'!P45+'SA30'!P51) -> -208706711.5
A15: Finance charges | C15: -1363156 | D15: -2917794 | E15: -7763948 | F15: -1200000 | G15: -1200000 | H15: =G15 -> -1200000 | I15: -1200000 | J15: =-('SA30'!N38) -> -1200000 | K15: =-('SA30'!O38) -> -1248000 | L15: =-('SA30'!P38) -> -1297920
A16: Transfers and Grants | B16: 1 | F16: -22499000 | G16: -17327730 | H16: -17327730 | I16: -17327730 | J16: =-('SA30'!N43+'SA30'!N44) -> -16767297.12 | K16: =-('SA30'!O43+'SA30'!O44) -> -17437989 | L16: =-('SA30'!P43+'SA30'!P44) -> -18135508.56
A17: NET CASH FROM/(USED) OPERATING ACTIVITIES | C17: =SUM(C6:C12)+SUM(C14:C16) -> 8769320 | D17: 67850376 | E17: 54044488 | F17: 136745094.3 | G17: 98922327.75 | H17: 98922327.75 | I17: 98922327.75 | J17: 170997097.1 | K17: 157391620.9 | L17: 165266085.8
A19: CASH FLOWS FROM INVESTING ACTIVITIES
A20: Receipts
A21: Proceeds on disposal of PPE | C21: -33489048 | D21: 654736 | E21: 36425 | F21: 0 | G21: 0 | H21: =G21 -> 0 | I21: =H21 -> 0 | J21: ='SA30'!N25+'SA30'!N26 -> 0 | K21: ='SA30'!O25+'SA30'!O26 -> 0 | L21: ='SA30'!P25+'SA30'!P26 -> 0
A22: Decrease (Increase) in non-current debtors | F22: 0 | G22: 0 | H22: =G22 -> 0 | I22: 0 | J22: ='SA30'!N30 -> 0 | K22: ='SA30'!O30 -> 0 | L22: ='SA30'!P30 -> 0
A23: Decrease (increase) other non-current receivables | F23: 0 | G23: 0 | H23: 0 | I23: 0 | J23: ='SA30'!N31 -> 0 | K23: ='SA30'!O31 -> 0 | L23: ='SA30'!P31 -> 0
A24: Decrease (increase) in non-current investments | D24: -169600 | E24: 287058 | F24: 0 | G24: 0 | H24: 0 | I24: 0 | J24: ='SA30'!N32 -> 0 | K24: ='SA30'!O32 -> 0 | L24: ='SA30'!P32 -> 0
A25: Payments
A26: Capital assets | C26: 1135644 | D26: -60376968 | E26: -50337979 | F26: -67597000 | G26: -67767000 | H26: =G26 -> -67767000 | I26: =H26 -> -67767000 | J26: =-('SA30'!N49) -> -94654502.26 | K26: =-('SA30'!O49) -> -80166570 | L26: =-('SA30'!P49) -> -86809109
A27: NET CASH FROM/(USED) INVESTING ACTIVITIES | C27: =SUM(C21:C24)+C26 -> -32353404 | D27: =SUM(D21:D24)+D26 -> -59891832 | E27: -50014496 | F27: -67597000 | G27: -67767000 | H27: -67767000 | I27: -67767000 | J27: -94654502.26 | K27: -80166570 | L27: -86809109
A29: CASH FLOWS FROM FINANCING ACTIVITIES
A30: Receipts
A31: Short term loans | F31: 0 | G31: 0 | H31: =G31 -> 0 | I31: =H31 -> 0 | J31: ='SA30'!N27 -> 0 | K31: ='SA30'!O27 -> 0 | L31: ='SA30'!P27 -> 0
A32: Borrowing long term/refinancing | F32: 0 | G32: 0 | H32: =G32 -> 0 | I32: 0 | J32: ='SA30'!N28 -> 0 | K32: ='SA30'!O28 -> 0 | L32: ='SA30'!P28 -> 0
A33: Increase (decrease) in consumer deposits | F33: 0 | G33: 0 | H33: 0 | I33: 0 | J33: ='SA30'!N29 -> 0 | K33: ='SA30'!O29 -> 0 | L33: ='SA30'!P29 -> 0
A34: Payments
A35: Repayment of borrowing | C35: -1321520 | D35: -1062377 | E35: -1348909 | F35: -8636631.28 | G35: -8636631.28 | H35: =G35 -> -8636631.28 | I35: =H35 -> -8636631.28 | J35: =-('SA30'!N50) -> -8636631.28 | K35: =-('SA30'!O50) -> -8566180.749 | L35: =-('SA30'!P50) -> -8497673.46
A36: NET CASH FROM/(USED) FINANCING ACTIVITIES | C36: =SUM(C31:C33)+C35 -> -1321520 | D36: =SUM(D31:D33)+D35 -> -1062377 | E36: -1348909 | F36: -8636631.28 | G36: -8636631.28 | H36: -8636631.28 | I36: -8636631.28 | J36: -8636631.28 | K36: -8566180.749 | L36: -8497673.46
A38: NET INCREASE/ (DECREASE) IN CASH HELD | C38: =C17+C27+C36 -> -24905604 | D38: =D17+D27+D36 -> 6896167 | E38: 2681083 | F38: 60511463.04 | G38: 22518696.47 | H38: 22518696.47 | I38: 22518696.47 | J38: 67705963.52 | K38: 68658870.19 | L38: 69959303.31
A39: Cash/cash equivalents at the year begin: | B39: 2 | C39: 17128369 | D39: -7777474 | E39: -881306 | F39: 86642000 | G39: 86642000 | H39: =G39 -> 86642000 | I39: =H39 -> 86642000 | J39: ='SA30'!N55 -> 58734879 | K39: =J40 -> 126440842.5 | L39: =K40 -> 195099712.7
A40: Cash/cash equivalents at the year end: | B40: 2 | C40: =C38+C39 -> -7777235 | D40: =D38+D39 -> -881307 | E40: =E38+E39 -> 1799777 | F40: =F38+F39 -> 147153463 | G40: 109160696.5 | H40: 109160696.5 | I40: 109160696.5 | J40: 126440842.5 | K40: 195099712.7 | L40: 265059016
A41: =head27a -> References
A42: 1. Local/District municipalities to include transfers from/to District/Local Municipalities
A43: 2. Cash equivalents includes investments with maturities of 3 months or less
A44: 3. The MTREF is populated directly from SA30.
A45: Total receipts | C45: =SUM(C6:C12)+SUM(C21:C23) -> 140688520 | D45: 188956020 | E45: 205818286 | F45: 373701656.6 | G45: 364554156.3 | H45: 364554156.3 | I45: 364554156.3 | J45: 381925481 | K45: 376757140.2 | L45: 393406225.8
A46: Total payments | C46: =SUM(C14:C16)+C26 -> -164272604 | D46: =SUM(D14:D16)+D26 -> -180827876 | E46: -202075352 | F46: -304553562.2 | G46: -333398828.6 | H46: -333398828.6 | I46: -333398828.6 | J46: -305582886.2 | K46: -299532089.3 | L46: -314949249
C47: =C45+C46 -> -23584084 | D47: =D45+D46 -> 8128144 | E47: 3742934 | F47: 69148094.32 | G47: 31155327.75 | H47: 31155327.75 | I47: 31155327.75 | J47: 76342594.8 | K47: 77225050.94 | L47: 78456976.77
A48: Borrowings & investments & c.deposits | C48: =C24+C32+C33 -> 0 | D48: =D24+D32+D33 -> -169600 | E48: 287058 | F48: 0 | G48: 0 | H48: 0 | I48: 0 | J48: 0 | K48: 0 | L48: 0
A49: =A35 -> Repayment of borrowing | C49: =C35 -> -1321520 | D49: =D35 -> -1062377 | E49: -1348909 | F49: -8636631.28 | G49: -8636631.28 | H49: -8636631.28 | I49: =I35 -> -8636631.28 | J49: -8636631.28 | K49: -8566180.749 | L49: -8497673.46
C50: =C47+C48+C49 -> -24905604 | D50: =D47+D48+D49 -> 6896167 | E50: 2681083 | F50: 60511463.04 | G50: 22518696.47 | H50: 22518696.47 | I50: 22518696.47 | J50: 67705963.52 | K50: 68658870.19 | L50: 69959303.31
C51: =C38-C50 -> 0 | D51: 0 | E51: 0 | F51: 0 | G51: 2.980232239e-08 | H51: 2.980232239e-08 | I51: 2.980232239e-08 | J51: 0 | K51: 0 | L51: 0

Sheet A8-ResRecon
A1: =muni&" - "&Approve8 -> FS193 Nketoana - Table A8 Cash backed reserves/accumulated surplus reconciliation
A2: =desc -> Description | B2: =head27 -> Ref | C2: =head1b -> 2012/13 | D2: =head1A -> 2013/14 | E2: =Head1 -> 2014/15 | F2: =Head2 -> Current Year 2015/16 | J2: =Head3 -> 2016/17 Medium Term Revenue & Expenditure Framework
A3: R thousand | C3: =Head5 -> Audited Outcome | D3: =Head5 -> Audited Outcome | E3: =Head5 -> Audited Outcome | F3: =Head6 -> Original Budget | G3: =Head7 -> Adjusted Budget | H3: =Head8 -> Full Year Forecast | I3: =Head5b -> Pre-audit outcome | J3: =Head9 -> Budget Year 2016/17 | K3: =Head10 -> Budget Year +1 2017/18 | L3: =Head11 -> Budget Year +2 2018/19
A4: Cash and investments available
A5: =LEFT('A7-CFlow'!A40,37) -> Cash/cash equivalents at the year end | B5: 1 | C5: ='A7-CFlow'!C40 -> -7777235 | D5: ='A7-CFlow'!D40 -> -881307 | E5: ='A7-CFlow'!E40 -> 1799777 | F5: ='A7-CFlow'!F40 -> 147153463 | G5: ='A7-CFlow'!G40 -> 109160696.5 | H5: ='A7-CFlow'!H40 -> 109160696.5 | I5: ='A7-CFlow'!I40 -> 109160696.5 | J5: ='A7-CFlow'!J40 -> 126440842.5 | K5: ='A7-CFlow'!K40 -> 195099712.7 | L5: ='A7-CFlow'!L40 -> 265059016
A6: Other current investments > 90 days | C6: ='A6-FinPos'!C6+'A6-FinPos'!C7-'A6-FinPos'!C29-'A8-ResRecon'!C5 -> -2613596 | D6: ='A6-FinPos'!D6+'A6-FinPos'!D7-'A6-FinPos'!D29-'A8-ResRecon'!D5 -> 3696370 | E6: ='A6-FinPos'!E6+'A6-FinPos'!E7-'A6-FinPos'!E29-'A8-ResRecon'!E5 -> 8219001 | F6: ='A6-FinPos'!F6+'A6-FinPos'!F7-'A6-FinPos'!F29-'A8-ResRecon'!F5 -> -134723546 | G6: ='A6-FinPos'!G6+'A6-FinPos'!G7-'A6-FinPos'!G29-'A8-ResRecon'!G5 -> -98175075.25 | H6: ='A6-FinPos'!H6+'A6-FinPos'!H7-'A6-FinPos'!H29-'A8-ResRecon'!H5 -> -98175075.25 | I6: ='A6-FinPos'!I6+'A6-FinPos'!I7-'A6-FinPos'!I29-'A8-ResRecon'!I5 -> -98175075.25 | J6: ='A6-FinPos'!J6+'A6-FinPos'!J7-'A6-FinPos'!J29-'A8-ResRecon'!J5 -> -108166936.7 | K6: ='A6-FinPos'!K6+'A6-FinPos'!K7-'A6-FinPos'!K29-'A8-ResRecon'!K5 -> -176094850.7 | L6: ='A6-FinPos'!L6+'A6-FinPos'!L7-'A6-FinPos'!L29-'A8-ResRecon'!L5 -> -245293959.5
A7: ='A6-FinPos'!A14&" - "&'A6-FinPos'!A16 -> Non current assets - Investments | B7: 1 | C7: ='A6-FinPos'!C16 -> 0 | D7: ='A6-FinPos'!D16 -> 0 | E7: ='A6-FinPos'!E16 -> 0 | F7: ='A6-FinPos'!F16 -> 0 | G7: ='A6-FinPos'!G16 -> 0 | H7: ='A6-FinPos'!H16 -> 0 | I7: ='A6-FinPos'!I16 -> 0 | J7: ='A6-FinPos'!J16 -> 0 | K7: ='A6-FinPos'!K16 -> 0 | L7: ='A6-FinPos'!L16 -> 0
A8: Cash and investments available: | C8: =SUM(C5:C7) -> -10390831 | D8: =SUM(D5:D7) -> 2815063 | E8: 10018778 | F8: 12429917 | G8: 10985621.22 | H8: 10985621.22 | I8: 10985621.22 | J8: 18273905.79 | K8: 19004862.02 | L8: 19765056.5
A10: Application of cash and investments
A11: ='SA3'!A36 -> Unspent conditional transfers | C11: ='SA3'!C36 -> 5489578 | D11: ='SA3'!D36 -> 3679861 | E11: ='SA3'!E36 -> 1091381 | F11: ='SA3'!F36 -> 3679861 | G11: ='SA3'!G36 -> 1091381 | H11: ='SA3'!H36 -> 1091381 | I11: ='SA3'!I36 -> 1091381 | J11: ='SA3'!J36 -> 1135036.24 | K11: ='SA3'!K36 -> 1180437.69 | L11: ='SA3'!L36 -> 1227655.197
A12: Unspent borrowing | C12: ='SA17'!C67 -> 0 | D12: ='SA17'!D67 -> 0 | E12: ='SA17'!E67 -> 0 | F12: ='SA17'!F67 -> 0 | G12: ='SA17'!G67 -> 0 | H12: ='SA17'!H67 -> 0 | J12: ='SA17'!I67 -> 0 | K12: ='SA17'!J67 -> 0 | L12: ='SA17'!K67 -> 0
A13: Statutory requirements | B13: 2
A14: Other working capital requirements | B14: 3 | C14: =-C32 -> -15848572 | D14: =-D32 -> 59265085 | E14: 96057308 | F14: =-F32 -> -33518916 | G14: 70652324 | H14: 70652324 | I14: 74156324 | J14: 73766896.96 | K14: 76717732.84 | L14: 79786202.15
A15: Other provisions
A16: Long term investments committed | B16: 4 | C16: =C52 -> 0 | D16: =D52 -> 0 | E16: 0 | F16: 0 | G16: 0 | H16: 0 | I16: 0 | J16: 0 | K16: 0 | L16: 0
A17: Reserves to be backed by cash/investments | B17: 5
A18: ="Total "&A10&":" -> Total Application of cash and investments: | C18: =SUM(C11:C17) -> -10358994 | D18: =SUM(D11:D17) -> 62944946 | E18: 97148689 | F18: -29839055 | G18: 71743705 | H18: 71743705 | I18: 75247705 | J18: 74901933.2 | K18: 77898170.53 | L18: 81013857.35
A19: Surplus(shortfall) | C19: =C8-C18 -> -31837 | D19: =D8-D18 -> -60129883 | E19: -87129911 | F19: 42268972 | G19: -60758083.78 | H19: -60758083.78 | I19: -64262083.78 | J19: -56628027.41 | K19: -58893308.51 | L19: -61248800.85
A20: =head27a -> References
A21: 1. Must reconcile with Budgeted Cash Flows
A22: 2. For example: VAT, taxation
A23: 3. Council approval for policy required - include sufficient working capital (e.g. allowing for a % of current debtors > 90 days as uncollectable)
A24: 4. For example: sinking fund requirements for borrowing
A25: 5. Council approval required for each reserve created and basis of cash backing of reserves
A28: Other working capital requirements
A29: Debtors | C29: =IF(ISERROR(ROUND(C35*C36,-3)),0,(ROUND(C35*C36,-3))) -> 31486000 | D29: =IF(ISERROR(ROUND(D35*D36,-3)),0,(ROUND(D35*D36,-3))) -> 14853000 | E29: 17899000 | F29: 107637000 | G29: 44512000 | H29: 44512000 | I29: 41008000 | J29: 46004000 | K29: 47844000 | L29: 49758000
A31: Creditors due | C31: ='SA3'!C35 -> 15637428 | D31: ='SA3'!D35 -> 74118085 | E31: ='SA3'!E35 -> 113956308 | F31: ='SA3'!F35 -> 74118084 | G31: ='SA3'!G35 -> 115164324 | H31: ='SA3'!H35 -> 115164324 | I31: ='SA3'!I35 -> 115164324 | J31: ='SA3'!J35 -> 119770897 | K31: ='SA3'!K35 -> 124561732.8 | L31: ='SA3'!L35 -> 129544202.2
A32: Total | C32: =C29-C31 -> 15848572 | D32: =D29-D31 -> -59265085 | E32: -96057308 | F32: 33518916 | G32: -70652324 | H32: -70652324 | I32: -74156324 | J32: -73766896.96 | K32: -76717732.84 | L32: -79786202.15
A34: Debtors collection assumptions
A35: Balance outstanding - debtors | C35: ='A6-FinPos'!C8+'A6-FinPos'!C9+'A6-FinPos'!C15 -> 73255161 | D35: ='A6-FinPos'!D8+'A6-FinPos'!D9+'A6-FinPos'!D15 -> 35394410 | E35: ='A6-FinPos'!E8+'A6-FinPos'!E9+'A6-FinPos'!E15 -> 45714093 | F35: ='A6-FinPos'!F8+'A6-FinPos'!F9+'A6-FinPos'!F15 -> 102359102 | G35: ='A6-FinPos'!G8+'A6-FinPos'!G9+'A6-FinPos'!G15 -> 45713992 | H35: ='A6-FinPos'!H8+'A6-FinPos'!H9+'A6-FinPos'!H15 -> 45713992 | I35: ='A6-FinPos'!I8+'A6-FinPos'!I9+'A6-FinPos'!I15 -> 45713992 | J35: ='A6-FinPos'!J8+'A6-FinPos'!J9+'A6-FinPos'!J15 -> 47542551.68 | K35: ='A6-FinPos'!K8+'A6-FinPos'!K9+'A6-FinPos'!K15 -> 49444253.75 | L35: ='A6-FinPos'!L8+'A6-FinPos'!L9+'A6-FinPos'!L15 -> 51422023.9
A36: Estimate of debtors collection rate | C36: =IF(ISERROR('SA10'!D10),0,('SA10'!D10)) -> 0.4298134532 | D36: =IF(ISERROR('SA10'!E10),0,('SA10'!E10)) -> 0.4196316635 | E36: =IF(ISERROR('SA10'!F10),0,('SA10'!F10)) -> 0.3915441565 | F36: =IF(ISERROR('SA10'!G10),0,('SA10'!G10)) -> 1.051563404 | G36: =IF(ISERROR('SA10'!H10),0,('SA10'!H10)) -> 0.9737130908 | H36: =IF(ISERROR('SA10'!I10),0,('SA10'!I10)) -> 0.9737130908 | I36: =IF(ISERROR('SA10'!J10),0,('SA10'!J10)) -> 0.8970643845 | J36: =IF(ISERROR('SA10'!K10),0,('SA10'!K10)) -> 0.9676380072 | K36: =IF(ISERROR('SA10'!L10),0,('SA10'!L10)) -> 0.9676380072 | L36: =IF(ISERROR('SA10'!M10),0,('SA10'!M10)) -> 0.9676380072
K39: `
A40: =A16 -> Long term investments committed
A41: Balance (Insert description; eg sinking fund)
C52: =SUM(C41:C51) -> 0 | D52: =SUM(D41:D51) -> 0 | E52: 0 | F52: 0 | G52: 0 | H52: 0 | I52: 0 | J52: 0 | K52: 0 | L52: 0
A53: =A17 -> Reserves to be backed by cash/investments
A54: ='SA3'!A64 -> Housing Development Fund | C54: ='SA3'!C64 -> 0 | D54: ='SA3'!D64 -> 0 | E54: ='SA3'!E64 -> 0 | F54: ='SA3'!F64 -> 0 | G54: ='SA3'!G64 -> 0 | H54: ='SA3'!H64 -> 0 | I54: ='SA3'!I64 -> 0 | J54: ='SA3'!J64 -> 0 | K54: ='SA3'!K64 -> 0 | L54: ='SA3'!L64 -> 0
A55: ='SA3'!A65 -> Capital replacement
A56: ='SA3'!A66 -> Self-insurance
A57: Other (list)
C67: =SUM(C54:C65) -> 0 | D67: 0 | E67: 0 | F67: 0 | G67: 0 | H67: 0 | I67: 0 | J67: 0 | K67: 0 | L67: 0

Sheet A9-Asset
A1: =muni&" - "&Approve9 -> FS193 Nketoana - Table A9 Asset Management
A2: =desc -> Description | B2: =head27 -> Ref | C2: =head1b -> 2012/13 | D2: =head1A -> 2013/14 | E2: =Head1 -> 2014/15 | F2: =Head2 -> Current Year 2015/16 | I2: =Head3 -> 2016/17 Medium Term Revenue & Expenditure Framework
A3: R thousand | C3: =Head5 -> Audited Outcome | D3: =Head5 -> Audited Outcome | E3: =Head5 -> Audited Outcome | F3: =Head6 -> Original Budget | G3: =Head7 -> Adjusted Budget | H3: =Head8 -> Full Year Forecast | I3: =Head9 -> Budget Year 2016/17 | J3: =Head10 -> Budget Year +1 2017/18 | K3: =Head11 -> Budget Year +2 2018/19
A4: CAPITAL EXPENDITURE
A5: Total New Assets | B5: 1 | C5: =SUM(C11:C18) -> 52049000 | D5: =SUM(D11:D18) -> 60376969 | E5: =SUM(E11:E18) -> 50984402 | F5: 67597000 | G5: 67766994 | H5: 67766994 | I5: 94654504 | J5: 80166571 | K5: 86809109
A6: Infrastructure - Road transport | C6: =SA34a!C7 -> 9284000 | D6: =SA34a!D7 -> 14114638 | E6: =SA34a!E7 -> 12160913 | F6: =SA34a!F7 -> 12309264.31 | G6: =SA34a!G7 -> 15780457.76 | H6: =SA34a!H7 -> 15780457.76 | I6: =SA34a!I7 -> 5169695 | J6: =SA34a!J7 -> 4624778 | K6: =SA34a!K7 -> 4311087
A7: Infrastructure - Electricity | C7: =SA34a!C10 -> 4900000 | D7: =SA34a!D10 -> 5000000 | E7: =SA34a!E10 -> 948969 | F7: =SA34a!F10 -> 3240000 | G7: =SA34a!G10 -> 3240000 | H7: =SA34a!H10 -> 3240000 | I7: =SA34a!I10 -> 24941000 | J7: =SA34a!J10 -> 4196570 | K7: =SA34a!K10 -> 7392998
A8: Infrastructure - Water | C8: =SA34a!C14 -> 22426000 | D8: =SA34a!D14 -> 20336600 | E8: =SA34a!E14 -> 3072267 | F8: =SA34a!F14 -> 19489557.46 | G8: =SA34a!G14 -> 25558195 | H8: =SA34a!H14 -> 25558195 | I8: =SA34a!I14 -> 42095684 | J8: =SA34a!J14 -> 30534740 | K8: =SA34a!K14 -> 46518554
A9: Infrastructure - Sanitation | C9: =SA34a!C18 -> 3200000 | D9: =SA34a!D18 -> 680043 | E9: =SA34a!E18 -> 2750370 | F9: =SA34a!F18 -> 15567151.57 | G9: =SA34a!G18 -> 10983371.29 | H9: =SA34a!H18 -> 10983371.29 | I9: =SA34a!I18 -> 279103 | J9: =SA34a!J18 -> 18230351 | K9: =SA34a!K18 -> 9049312
A10: Infrastructure - Other | C10: =SA34a!C21 -> 7806000 | D10: =SA34a!D21 -> 3587907 | E10: =SA34a!E21 -> 1577464 | F10: =SA34a!F21 -> 2773112.61 | G10: =SA34a!G21 -> 2773112.61 | H10: =SA34a!H21 -> 2773112.61 | I10: =SA34a!I21 -> 4029990 | J10: =SA34a!J21 -> 15014910 | K10: =SA34a!K21 -> 6095102
A11: Infrastructure | C11: =SUM(C6:C10) -> 47616000 | D11: =SUM(D6:D10) -> 43719188 | E11: =SUM(E6:E10) -> 20509983 | F11: 53379085.95 | G11: 58335136.66 | H11: 58335136.66 | I11: 76515472 | J11: 72601349 | K11: 73367053
A12: =$A$42 -> Community | C12: =SA34a!C27 -> 3783000 | D12: =SA34a!D27 -> 16657781 | E12: =SA34a!E27 -> 6062016 | F12: =SA34a!F27 -> 12993914.05 | G12: =SA34a!G27 -> 8127857.34 | H12: =SA34a!H27 -> 8127857.34 | I12: =SA34a!I27 -> 16409032 | J12: =SA34a!J27 -> 6105222 | K12: =SA34a!K27 -> 11842056
A13: =$A$43 -> Heritage assets | C13: =SA34a!C43 -> 0 | D13: =SA34a!D43 -> 0 | E13: =SA34a!E43 -> 0 | F13: =SA34a!F43 -> 0 | G13: =SA34a!G43 -> 0 | H13: =SA34a!H43 -> 0 | I13: =SA34a!I43 -> 0 | J13: =SA34a!J43 -> 0 | K13: =SA34a!K43 -> 0
A14: =$A$44 -> Investment properties | C14: =SA34a!C47 -> 0 | D14: =SA34a!D47 -> 0 | E14: =SA34a!E47 -> 0 | F14: =SA34a!F47 -> 0 | G14: =SA34a!G47 -> 0 | H14: =SA34a!H47 -> 0 | I14: =SA34a!I47 -> 0 | J14: =SA34a!J47 -> 0 | K14: =SA34a!K47 -> 0
A15: =$A$45 -> Other assets | B15: 6 | C15: =SA34a!C51 -> 650000 | D15: =SA34a!D51 -> 0 | E15: =SA34a!E51 -> 24412403 | F15: =SA34a!F51 -> 1224000 | G15: =SA34a!G51 -> 1304000 | H15: =SA34a!H51 -> 1304000 | I15: =SA34a!I51 -> 1730000 | J15: =SA34a!J51 -> 1460000 | K15: =SA34a!K51 -> 1600000
A16: Agricultural Assets | C16: =SA34a!C65 -> 0 | D16: =SA34a!D65 -> 0 | E16: =SA34a!E65 -> 0 | F16: =SA34a!F65 -> 0 | G16: =SA34a!G65 -> 0 | H16: =SA34a!H65 -> 0 | I16: =SA34a!I65 -> 0 | J16: =SA34a!J65 -> 0 | K16: =SA34a!K65 -> 0
A17: =SA34a!A69 -> Biological assets | C17: =SA34a!C69 -> 0 | D17: =SA34a!D69 -> 0 | E17: =SA34a!E69 -> 0 | F17: =SA34a!F69 -> 0 | G17: =SA34a!G69 -> 0 | H17: =SA34a!H69 -> 0 | I17: =SA34a!I69 -> 0 | J17: =SA34a!J69 -> 0 | K17: =SA34a!K69 -> 0
A18: =SA34a!A73 -> Intangibles | C18: =SA34a!C73 -> 0 | D18: =SA34a!D73 -> 0 | E18: =SA34a!E73 -> 0 | F18: =SA34a!F73 -> 0 | G18: =SA34a!G73 -> 0 | H18: =SA34a!H73 -> 0 | I18: =SA34a!I73 -> 0 | J18: =SA34a!J73 -> 0 | K18: =SA34a!K73 -> 0
A20: Total Renewal of Existing Assets | B20: 2 | C20: =SUM(C26:C33) -> 0 | D20: =SUM(D26:D33) -> 0 | E20: =SUM(E26:E33) -> 0 | F20: 0 | G20: 0 | H20: 0 | I20: 0 | J20: 0 | K20: 0
A21: Infrastructure - Road transport | C21: =SA34b!C7 -> 0 | D21: =SA34b!D7 -> 0 | E21: =SA34b!E7 -> 0 | F21: =SA34b!F7 -> 0 | G21: =SA34b!G7 -> 0 | H21: =SA34b!H7 -> 0 | I21: =SA34b!I7 -> 0 | J21: =SA34b!J7 -> 0 | K21: =SA34b!K7 -> 0
A22: Infrastructure - Electricity | C22: =SA34b!C10 -> 0 | D22: =SA34b!D10 -> 0 | E22: =SA34b!E10 -> 0 | F22: =SA34b!F10 -> 0 | G22: =SA34b!G10 -> 0 | H22: =SA34b!H10 -> 0 | I22: =SA34b!I10 -> 0 | J22: =SA34b!J10 -> 0 | K22: =SA34b!K10 -> 0
A23: Infrastructure - Water | C23: =SA34b!C14 -> 0 | D23: =SA34b!D14 -> 0 | E23: =SA34b!E14 -> 0 | F23: =SA34b!F14 -> 0 | G23: =SA34b!G14 -> 0 | H23: =SA34b!H14 -> 0 | I23: =SA34b!I14 -> 0 | J23: =SA34b!J14 -> 0 | K23: =SA34b!K14 -> 0
A24: Infrastructure - Sanitation | C24: =SA34b!C18 -> 0 | D24: =SA34b!D18 -> 0 | E24: =SA34b!E18 -> 0 | F24: =SA34b!F18 -> 0 | G24: =SA34b!G18 -> 0 | H24: =SA34b!H18 -> 0 | I24: =SA34b!I18 -> 0 | J24: =SA34b!J18 -> 0 | K24: =SA34b!K18 -> 0
A25: Infrastructure - Other | C25: =SA34b!C21 -> 0 | D25: =SA34b!D21 -> 0 | E25: =SA34b!E21 -> 0 | F25: =SA34b!F21 -> 0 | G25: =SA34b!G21 -> 0 | H25: =SA34b!H21 -> 0 | I25: =SA34b!I21 -> 0 | J25: =SA34b!J21 -> 0 | K25: =SA34b!K21 -> 0
A26: =$A$11 -> Infrastructure | C26: =SUM(C21:C25) -> 0 | D26: =SUM(D21:D25) -> 0 | E26: =SUM(E21:E25) -> 0 | F26: 0 | G26: 0 | H26: 0 | I26: 0 | J26: 0 | K26: 0
A27: =A12 -> Community | C27: =SA34b!C27 -> 0 | D27: =SA34b!D27 -> 0 | E27: =SA34b!E27 -> 0 | F27: =SA34b!F27 -> 0 | G27: =SA34b!G27 -> 0 | H27: =SA34b!H27 -> 0 | I27: =SA34b!I27 -> 0 | J27: =SA34b!J27 -> 0 | K27: =SA34b!K27 -> 0
A28: =A13 -> Heritage assets | C28: =SA34b!C43 -> 0 | D28: =SA34b!D43 -> 0 | E28: =SA34b!E43 -> 0 | F28: =SA34b!F43 -> 0 | G28: =SA34b!G43 -> 0 | H28: =SA34b!H43 -> 0 | I28: =SA34b!I43 -> 0 | J28: =SA34b!J43 -> 0 | K28: =SA34b!K43 -> 0
A29: =A14 -> Investment properties | C29: =SA34b!C47 -> 0 | D29: =SA34b!D47 -> 0 | E29: =SA34b!E47 -> 0 | F29: =SA34b!F47 -> 0 | G29: =SA34b!G47 -> 0 | H29: =SA34b!H47 -> 0 | I29: =SA34b!I47 -> 0 | J29: =SA34b!J47 -> 0 | K29: =SA34b!K47 -> 0
A30: =A15 -> Other assets | B30: 6 | C30: =SA34b!C51 -> 0 | D30: =SA34b!D51 -> 0 | E30: =SA34b!E51 -> 0 | F30: =SA34b!F51 -> 0 | G30: =SA34b!G51 -> 0 | H30: =SA34b!H51 -> 0 | I30: =SA34b!I51 -> 0 | J30: =SA34b!J51 -> 0 | K30: =SA34b!K51 -> 0
A31: Agricultural Assets | C31: =SA34b!C65 -> 0 | D31: =SA34b!D65 -> 0 | E31: =SA34b!E65 -> 0 | F31: =SA34b!F65 -> 0 | G31: =SA34b!G65 -> 0 | H31: =SA34b!H65 -> 0 | I31: =SA34b!I65 -> 0 | J31: =SA34b!J65 -> 0 | K31: =SA34b!K65 -> 0
A32: =A17 -> Biological assets | C32: =SA34b!C69 -> 0 | D32: =SA34b!D69 -> 0 | E32: =SA34b!E69 -> 0 | F32: =SA34b!F69 -> 0 | G32: =SA34b!G69 -> 0 | H32: =SA34b!H69 -> 0 | I32: =SA34b!I69 -> 0 | J32: =SA34b!J69 -> 0 | K32: =SA34b!K69 -> 0
A33: =A18 -> Intangibles | C33: =SA34b!C73 -> 0 | D33: =SA34b!D73 -> 0 | E33: =SA34b!E73 -> 0 | F33: =SA34b!F73 -> 0 | G33: =SA34b!G73 -> 0 | H33: =SA34b!H73 -> 0 | I33: =SA34b!I73 -> 0 | J33: =SA34b!J73 -> 0 | K33: =SA34b!K73 -> 0
A35: Total Capital Expenditure | B35: 4
A36: Infrastructure - Road transport | C36: =C6+C21 -> 9284000 | D36: =D6+D21 -> 14114638 | E36: 12160913 | F36: 12309264.31 | G36: 15780457.76 | H36: 15780457.76 | I36: 5169695 | J36: 4624778 | K36: 4311087
A37: Infrastructure - Electricity | C37: =C7+C22 -> 4900000 | D37: =D7+D22 -> 5000000 | E37: 948969 | F37: 3240000 | G37: 3240000 | H37: 3240000 | I37: 24941000 | J37: 4196570 | K37: 7392998
A38: Infrastructure - Water | C38: =C8+C23 -> 22426000 | D38: 20336600 | E38: 3072267 | F38: 19489557.46 | G38: 25558195 | H38: 25558195 | I38: 42095684 | J38: 30534740 | K38: 46518554
A39: Infrastructure - Sanitation | C39: =C9+C24 -> 3200000 | D39: =D9+D24 -> 680043 | E39: =E9+E24 -> 2750370 | F39: 15567151.57 | G39: 10983371.29 | H39: 10983371.29 | I39: 279103 | J39: 18230351 | K39: 9049312
A40: Infrastructure - Other | C40: =C10+C25 -> 7806000 | D40: 3587907 | E40: 1577464 | F40: 2773112.61 | G40: 2773112.61 | H40: 2773112.61 | I40: 4029990 | J40: 15014910 | K40: 6095102
A41: =$A$11 -> Infrastructure | C41: =SUM(C36:C40) -> 47616000 | D41: =SUM(D36:D40) -> 43719188 | E41: 20509983 | F41: 53379085.95 | G41: 58335136.66 | H41: 58335136.66 | I41: 76515472 | J41: 72601349 | K41: 73367053
A42: =SA34a!A27 -> Community | C42: =C12+C27 -> 3783000 | D42: =D12+D27 -> 16657781 | E42: 6062016 | F42: 12993914.05 | G42: 8127857.34 | H42: 8127857.34 | I42: 16409032 | J42: 6105222 | K42: 11842056
A43: =SA34a!A43 -> Heritage assets | C43: 0 | D43: =D13+D28 -> 0 | E43: 0 | F43: 0 | G43: 0 | H43: 0 | I43: 0 | J43: 0 | K43: 0
A44: =SA34a!A47 -> Investment properties | C44: 0 | D44: =D14+D29 -> 0 | E44: 0 | F44: 0 | G44: 0 | H44: 0 | I44: 0 | J44: 0 | K44: 0
A45: =SA34a!A51 -> Other assets | C45: 650000 | D45: =D15+D30 -> 0 | E45: 24412403 | F45: 1224000 | G45: 1304000 | H45: 1304000 | I45: 1730000 | J45: 1460000 | K45: 1600000
A46: Agricultural Assets | C46: 0 | D46: =D16+D31 -> 0 | E46: 0 | F46: 0 | G46: 0 | H46: 0 | I46: 0 | J46: 0 | K46: 0
A47: =A32 -> Biological assets | C47: 0 | D47: =D17+D32 -> 0 | E47: 0 | F47: 0 | G47: 0 | H47: 0 | I47: 0 | J47: 0 | K47: 0
A48: =A33 -> Intangibles | C48: 0 | D48: =D18+D33 -> 0 | E48: 0 | F48: 0 | G48: 0 | H48: 0 | I48: 0 | J48: 0 | K48: 0
A49: TOTAL CAPITAL EXPENDITURE - Asset class | B49: 2 | C49: =SUM(C41:C48) -> 52049000 | D49: 60376969 | E49: 50984402 | F49: 67597000 | G49: 67766994 | H49: 67766994 | I49: 94654504 | J49: 80166571 | K49: 86809109
A51: ASSET REGISTER SUMMARY - PPE (WDV) | B51: 5
A52: Infrastructure - Road transport | C52: =353645445+3126041 -> 356771486 | D52: =374417536-43951955 -> 330465581 | E52: =677748077-604434696+23925325+139862110 -> 237100816 | F52: =404077590-87666010 -> 316411580 | G52: =F52 -> 316411580 | H52: =G52 -> 316411580 | I52: =H52*1.04 -> 329068043.2 | J52: =I52*1.04 -> 342230764.9 | K52: =J52*1.04 -> 355919995.5
A53: Infrastructure - Electricity | C53: 7826411 | D53: 8216000 | E53: 8431000 | F53: 8942150 | G53: =F53 -> 8942150 | H53: 8942150 | I53: =H53*1.04 -> 9299836 | J53: 9671829.44 | K53: 10058702.62
A54: Infrastructure - Water | C54: 207216000 | D54: 218589600 | E54: 112715437 | F54: 236766005 | G54: =F54-15470564 -> 221295441 | H54: 221295441 | I54: 230147258.6 | J54: 239353149 | K54: 248927274.9
A55: Infrastructure - Sanitation | C55: 6523273 | D55: 5657043 | E55: 6021861 | F55: 7453145 | G55: 7453145 | H55: 7453145 | I55: 7751270.8 | J55: 8061321.632 | K55: 8383774.497
A56: Infrastructure - Other
A57: =A41 -> Infrastructure | C57: =SUM(C52:C56) -> 578337170 | D57: =SUM(D52:D56) -> 562928224 | E57: 364269114 | F57: 569572880 | G57: 554102316 | H57: 554102316 | I57: 576266408.6 | J57: 599317065 | K57: 623289747.6
A58: =A12 -> Community | C58: 3709015 | D58: 15062780 | E58: 6062016 | F58: 4237625 | G58: =F58 -> 4237625 | H58: =G58 -> 4237625 | I58: =H58*1.04 -> 4407130 | J58: =I58*1.04 -> 4583415.2 | K58: =J58*1.04 -> 4766751.808
A59: =A13 -> Heritage assets
A60: =A14 -> Investment properties | C60: ='A6-FinPos'!C17 -> 2958000 | D60: ='A6-FinPos'!D17 -> 8263614 | E60: ='A6-FinPos'!E17 -> 8116947 | F60: ='A6-FinPos'!F17 -> 8263614 | G60: ='A6-FinPos'!G17 -> 8116947 | H60: ='A6-FinPos'!H17 -> 8116947 | I60: ='A6-FinPos'!J17 -> 8441624.88 | J60: ='A6-FinPos'!K17 -> 8779289.875 | K60: ='A6-FinPos'!L17 -> 9130461.47
A61: =A15 -> Other assets | C61: 13457000 | D61: 12791000 | E61: 203385046 | F61: 15376235 | G61: =F61 -> 15376235 | H61: =G61 -> 15376235 | I61: =H61*1.04 -> 15991284.4 | J61: =I61*1.04 -> 16630935.78 | K61: =J61*1.04 -> 17296173.21
A62: Agricultural Assets | C62: ='A6-FinPos'!C20 -> 0 | D62: ='A6-FinPos'!D20 -> 0 | E62: ='A6-FinPos'!E20 -> 0 | F62: ='A6-FinPos'!F20 -> 0 | G62: ='A6-FinPos'!G20 -> 0 | H62: ='A6-FinPos'!H20 -> 0 | I62: ='A6-FinPos'!J20 -> 0 | J62: ='A6-FinPos'!K20 -> 0 | K62: ='A6-FinPos'!L20 -> 0
A63: =A17 -> Biological assets | C63: ='A6-FinPos'!C21 -> 12000 | D63: ='A6-FinPos'!D21 -> 22700 | E63: ='A6-FinPos'!E21 -> 50476 | F63: ='A6-FinPos'!F21 -> 22700 | G63: ='A6-FinPos'!G21 -> 50476 | H63: ='A6-FinPos'!H21 -> 50476 | I63: ='A6-FinPos'!J21 -> 52495.04 | J63: ='A6-FinPos'!K21 -> 54594.8416 | K63: ='A6-FinPos'!L21 -> 56778.63526
A64: =A18 -> Intangibles | C64: ='A6-FinPos'!C22 -> 156000 | D64: ='A6-FinPos'!D22 -> 27833 | E64: ='A6-FinPos'!E22 -> 25673 | F64: ='A6-FinPos'!F22 -> 27833 | G64: ='A6-FinPos'!G22 -> 25673 | H64: ='A6-FinPos'!H22 -> 25673 | I64: ='A6-FinPos'!J22 -> 26699.92 | J64: ='A6-FinPos'!K22 -> 27767.9168 | K64: ='A6-FinPos'!L22 -> 28878.63347
A65: TOTAL ASSET REGISTER SUMMARY - PPE (WDV) | B65: 5 | C65: =SUM(C57:C64) -> 598629185 | D65: 599096151 | E65: 581909272 | F65: 597500887 | G65: 581909272 | H65: 581909272 | I65: 605185642.9 | J65: 629393068.6 | K65: 654568791.3
A67: EXPENDITURE OTHER ITEMS
A68: ='A4-FinPerf RE'!A28 -> Depreciation & asset impairment | C68: ='A4-FinPerf RE'!C28 -> 64736250 | D68: ='A4-FinPerf RE'!D28 -> 64210796 | E68: ='A4-FinPerf RE'!E28 -> 67572300 | F68: ='A4-FinPerf RE'!F28 -> 64000000 | G68: ='A4-FinPerf RE'!G28 -> 67200000 | H68: ='A4-FinPerf RE'!H28 -> 67200000 | I68: ='A4-FinPerf RE'!J28 -> 68544000 | J68: ='A4-FinPerf RE'!K28 -> 71285760 | K68: ='A4-FinPerf RE'!L28 -> 74137190.4
A69: Repairs and Maintenance by Asset Class | B69: 3 | C69: =SUM(C75:C79) -> 8821056 | D69: =SUM(D75:D79) -> 12770134 | E69: 10832000 | F69: 10897913.23 | G69: 11157913.23 | H69: 11157913.23 | I69: 8156500 | J69: 8482760 | K69: 8822070.4
A70: Infrastructure - Road transport | C70: =SA34c!C7 -> 1783202 | D70: =SA34c!D7 -> 4090134 | E70: =SA34c!E7 -> 3776300 | F70: =SA34c!F7 -> 2430186.77 | G70: =SA34c!G7 -> 2500000 | H70: =SA34c!H7 -> 2500000 | I70: =SA34c!I7 -> 1870000 | J70: =SA34c!J7 -> 1944800 | K70: =SA34c!K7 -> 2022592
A71: Infrastructure - Electricity | C71: =SA34c!C10 -> 900890 | D71: =SA34c!D10 -> 1750000 | E71: =SA34c!E10 -> 700000 | F71: =SA34c!F10 -> 2628203 | G71: =SA34c!G10 -> 2295203 | H71: =SA34c!H10 -> 2295203 | I71: =SA34c!I10 -> 1720000 | J71: =SA34c!J10 -> 1788800 | K71: =SA34c!K10 -> 1860352
A72: Infrastructure - Water | C72: =SA34c!C14 -> 1048964 | D72: =SA34c!D14 -> 1000000 | E72: =SA34c!E14 -> 1395000 | F72: =SA34c!F14 -> 3152000 | G72: =SA34c!G14 -> 3202000 | H72: =SA34c!H14 -> 3202000 | I72: =SA34c!I14 -> 1652000 | J72: =SA34c!J14 -> 1718080 | K72: =SA34c!K14 -> 1786803.2
A73: Infrastructure - Sanitation | C73: =SA34c!C18 -> 1390000 | D73: =SA34c!D18 -> 1000000 | E73: =SA34c!E18 -> 2935000 | F73: =SA34c!F18 -> 1363000 | G73: =SA34c!G18 -> 1467000 | H73: =SA34c!H18 -> 1467000 | I73: =SA34c!I18 -> 1210000 | J73: =SA34c!J18 -> 1258400 | K73: =SA34c!K18 -> 1308736
A74: Infrastructure - Other | C74: =SA34c!C21 -> 1078000 | D74: =SA34c!D21 -> 800000 | E74: =SA34c!E21 -> 340000 | F74: =SA34c!F21 -> 165000 | G74: =SA34c!G21 -> 280000 | H74: =SA34c!H21 -> 280000 | I74: =SA34c!I21 -> 250000 | J74: =SA34c!J21 -> 260000 | K74: =SA34c!K21 -> 270400
A75: =$A$11 -> Infrastructure | C75: =SUM(C70:C74) -> 6201056 | D75: =SUM(D70:D74) -> 8640134 | E75: 9146300 | F75: 9738389.77 | G75: 9744203 | H75: 9744203 | I75: 6702000 | J75: 6970080 | K75: 7248883.2
A76: =A12 -> Community | C76: =SA34c!C27 -> 2180000 | D76: =SA34c!D27 -> 1890000 | E76: =SA34c!E27 -> 738200 | F76: =SA34c!F27 -> 447000 | G76: =SA34c!G27 -> 447000 | H76: =SA34c!H27 -> 447000 | I76: =SA34c!I27 -> 441000 | J76: =SA34c!J27 -> 458640 | K76: =SA34c!K27 -> 476985.6
A77: =A13 -> Heritage assets | C77: =SA34c!C43 -> 0 | D77: =SA34c!D43 -> 0 | E77: =SA34c!E43 -> 464000 | F77: =SA34c!F43 -> 642710.23 | G77: =SA34c!G43 -> 896710.23 | H77: =SA34c!H43 -> 896710.23 | I77: =SA34c!I43 -> 893500 | J77: =SA34c!J43 -> 929240 | K77: =SA34c!K43 -> 966409.6
A78: =A14 -> Investment properties | C78: =SA34c!C47 -> 0 | D78: =SA34c!D47 -> 0 | E78: =SA34c!E47 -> 0 | F78: =SA34c!F47 -> 0 | G78: =SA34c!G47 -> 0 | H78: =SA34c!H47 -> 0 | I78: =SA34c!I47 -> 0 | J78: =SA34c!J47 -> 0 | K78: =SA34c!K47 -> 0
A79: =A15 -> Other assets | B79: 6, 7 | C79: =SA34c!C51+SA34c!C65+SA34c!C69+SA34c!C73 -> 440000 | D79: =SA34c!D51+SA34c!D65+SA34c!D69+SA34c!D73 -> 2240000 | E79: =SA34c!E51+SA34c!E65+SA34c!E69+SA34c!E73 -> 483500 | F79: =SA34c!F51+SA34c!F65+SA34c!F69+SA34c!F73 -> 69813.23 | G79: =SA34c!G51+SA34c!G65+SA34c!G69+SA34c!G73 -> 70000 | H79: =SA34c!H51+SA34c!H65+SA34c!H69+SA34c!H73 -> 70000 | I79: =SA34c!I51+SA34c!I65+SA34c!I69+SA34c!I73 -> 120000 | J79: =SA34c!J51+SA34c!J65+SA34c!J69+SA34c!J73 -> 124800 | K79: =SA34c!K51+SA34c!K65+SA34c!K69+SA34c!K73 -> 129792
A80: TOTAL EXPENDITURE OTHER ITEMS | C80: =SUM(C68:C69) -> 73557306 | D80: 76980930 | E80: 78404300 | F80: 74897913.23 | G80: 78357913.23 | H80: 78357913.23 | I80: 76700500 | J80: 79768520 | K80: 82959260.8
A82: Renewal of Existing Assets as % of total capex | C82: =IF(ISERROR(C20/C49),0,(C20/C49)) -> 0 | D82: =IF(ISERROR(D20/D49),0,(D20/D49)) -> 0 | E82: 0 | F82: 0 | G82: 0 | H82: 0 | I82: 0 | J82: 0 | K82: 0
A83: Renewal of Existing Assets as % of deprecn" | C83: =IF(ISERROR(C20/C68),0,(C20/C68)) -> 0 | D83: =IF(ISERROR(D20/D68),0,(D20/D68)) -> 0 | E83: 0 | F83: 0 | G83: 0 | H83: 0 | I83: 0 | J83: 0 | K83: 0
A84: R&M as a % of PPE | C84: =IF(ISERROR(ROUND(C69/'A6-FinPos'!C19,3)),0,(ROUND(C69/'A6-FinPos'!C19,3))) -> 0.015 | D84: =IF(ISERROR(ROUND(D69/'A6-FinPos'!D19,3)),0,(ROUND(D69/'A6-FinPos'!D19,3))) -> 0.022 | E84: =IF(ISERROR(ROUND(E69/'A6-FinPos'!E19,3)),0,(ROUND(E69/'A6-FinPos'!E19,3))) -> 0.019 | F84: =IF(ISERROR(ROUND(F69/'A6-FinPos'!F19,3)),0,(ROUND(F69/'A6-FinPos'!F19,3))) -> 0.018 | G84: =IF(ISERROR(ROUND(G69/'A6-FinPos'!G19,3)),0,(ROUND(G69/'A6-FinPos'!G19,3))) -> 0.019 | H84: =IF(ISERROR(ROUND(H69/'A6-FinPos'!H19,3)),0,(ROUND(H69/'A6-FinPos'!H19,3))) -> 0.019 | I84: =IF(ISERROR(ROUND(I69/'A6-FinPos'!J19,3)),0,(ROUND(I69/'A6-FinPos'!J19,3))) -> 0.014 | J84: =IF(ISERROR(ROUND(J69/'A6-FinPos'!K19,3)),0,(ROUND(J69/'A6-FinPos'!K19,3))) -> 0.014 | K84: =IF(ISERROR(ROUND(K69/'A6-FinPos'!L19,3)),0,(ROUND(K69/'A6-FinPos'!L19,3))) -> 0.014
A85: Renewal and R&M as a % of PPE | C85: =IF(ISERROR(ROUND((C20+C69)/C65,2)),0,(ROUND((C20+C69)/C65,2))) -> 0.01 | D85: =IF(ISERROR(ROUND((D20+D69)/D65,2)),0,(ROUND((D20+D69)/D65,2))) -> 0.02 | E85: 0.02 | F85: 0.02 | G85: 0.02 | H85: 0.02 | I85: 0.01 | J85: 0.01 | K85: 0.01
A87: =head27a -> References
A88: 1. Detail of new assets provided in Table SA34a
A89: 2. Detail of renewal of existing assets provided in Table SA34b
A90: 3. Detail of Repairs and Maintenance by Asset Class provided in Table SA34c
A91: 4. Must reconcile to total capital expenditure on Budgeted Capital Expenditure
A92: 5. Must reconcile to 'Budgeted Financial Position' (written down value)
A93: 6. Donated/contributed and assets funded by finance leases to be allocated to the respective category
A94: 7. Including repairs and maintenance to agricultural, biological and intangible assets
A95: Check balance to A6 | C95: =C65-'A6-FinPos'!C17-'A6-FinPos'!C19-'A6-FinPos'!C21-'A6-FinPos'!C22 -> 0 | D95: =D65-'A6-FinPos'!D17-'A6-FinPos'!D19-'A6-FinPos'!D21-'A6-FinPos'!D22 -> 0 | E95: =E65-'A6-FinPos'!E17-'A6-FinPos'!E19-'A6-FinPos'!E21-'A6-FinPos'!E22 -> 0 | F95: =F65-'A6-FinPos'!F17-'A6-FinPos'!F19-'A6-FinPos'!F21-'A6-FinPos'!F22 -> 0 | G95: =G65-'A6-FinPos'!G17-'A6-FinPos'!G19-'A6-FinPos'!G21-'A6-FinPos'!G22 -> 0 | H95: =H65-'A6-FinPos'!H17-'A6-FinPos'!H19-'A6-FinPos'!H21-'A6-FinPos'!H22 -> 0 | I95: =I65-'A6-FinPos'!J17-'A6-FinPos'!J19-'A6-FinPos'!J21-'A6-FinPos'!J22 -> -8.106508176e-08 | J95: =J65-'A6-FinPos'!K17-'A6-FinPos'!K19-'A6-FinPos'!K21-'A6-FinPos'!K22 -> 8.25857569e-08 | K95: =K65-'A6-FinPos'!L17-'A6-FinPos'!L19-'A6-FinPos'!L21-'A6-FinPos'!L22 -> 4.820321919e-09

Sheet A10-SerDel
A1: =muni&" - "&Approve10 -> FS193 Nketoana - Table A10 Basic service delivery measurement
A2: =desc -> Description | B2: =head27 -> Ref | C2: =head1b -> 2012/13 | D2: =head1A -> 2013/14 | E2: =Head1 -> 2014/15 | F2: =Head2 -> Current Year 2015/16 | I2: =Head3 -> 2016/17 Medium Term Revenue & Expenditure Framework
C3: =Head5A -> Outcome | D3: =Head5A -> Outcome | E3: =Head5A -> Outcome | F3: =Head6 -> Original Budget | G3: =Head7 -> Adjusted Budget | H3: =Head8 -> Full Year Forecast | I3: =Head9 -> Budget Year 2016/17 | J3: =Head10 -> Budget Year +1 2017/18 | K3: =Head11 -> Budget Year +2 2018/19
A4: Household service targets | B4: 1
A5: Water:
A6: Piped water inside dwelling | C6: ='SA9'!E67 -> 7115 | D6: ='SA9'!F67 -> 7332 | E6: ='SA9'!G67 -> 7992 | F6: ='SA9'!H67 -> 8202 | G6: ='SA9'!I67 -> 8202 | H6: ='SA9'!J67 -> 8202 | I6: ='SA9'!K67 -> 8366.04 | J6: ='SA9'!L67 -> 8533.3608 | K6: ='SA9'!M67 -> 8704.028016
A7: Piped water inside yard (but not in dwelling) | C7: ='SA9'!E68 -> 2006 | D7: ='SA9'!F68 -> 2006 | E7: ='SA9'!G68 -> 2232 | F7: ='SA9'!H68 -> 2232 | G7: ='SA9'!I68 -> 2232 | H7: ='SA9'!J68 -> 2232 | I7: ='SA9'!K68 -> 2254.32 | J7: ='SA9'!L68 -> 2299.4064 | K7: ='SA9'!M68 -> 2345.394528
A8: Using public tap (at least min.service level) | B8: 2 | C8: ='SA9'!E69 -> 1502 | D8: ='SA9'!F69 -> 1502 | E8: ='SA9'!G69 -> 1691 | F8: ='SA9'!H69 -> 1083 | G8: ='SA9'!I69 -> 1083 | H8: ='SA9'!J69 -> 1083 | I8: ='SA9'!K69 -> 1093.83 | J8: ='SA9'!L69 -> 1115.7066 | K8: ='SA9'!M69 -> 1138.020732
A9: Other water supply (at least min.service level) | B9: 4 | C9: ='SA9'!E70 -> 0 | D9: ='SA9'!F70 -> 0 | E9: ='SA9'!G70 -> 0 | F9: ='SA9'!H70 -> 0 | G9: ='SA9'!I70 -> 0 | H9: ='SA9'!J70 -> 0 | I9: ='SA9'!K70 -> 0 | J9: ='SA9'!L70 -> 0 | K9: ='SA9'!M70 -> 0
A10: Minimum Service Level and Above sub-total | C10: =SUM(C6:C9) -> 10623 | D10: =SUM(D6:D9) -> 10840 | E10: 11915 | F10: 11517 | G10: 11517 | H10: 11517 | I10: 11714.19 | J10: 11948.4738 | K10: 12187.44328
A11: Using public tap (< min.service level) | B11: 3 | C11: ='SA9'!E72 -> 0 | D11: ='SA9'!F72 -> 0 | E11: ='SA9'!G72 -> 0 | F11: ='SA9'!H72 -> 0 | G11: ='SA9'!I72 -> 0 | H11: ='SA9'!J72 -> 0 | I11: ='SA9'!K72 -> 0 | J11: ='SA9'!L72 -> 0 | K11: ='SA9'!M72 -> 0
A12: Other water supply (< min.service level) | B12: =B9 -> 4 | C12: ='SA9'!E73 -> 0 | D12: ='SA9'!F73 -> 0 | E12: ='SA9'!G73 -> 0 | F12: ='SA9'!H73 -> 0 | G12: ='SA9'!I73 -> 0 | H12: ='SA9'!J73 -> 0 | I12: ='SA9'!K73 -> 0 | J12: ='SA9'!L73 -> 0 | K12: ='SA9'!M73 -> 0
A13: No water supply | C13: ='SA9'!E74 -> 6695 | D13: ='SA9'!F74 -> 6478 | E13: ='SA9'!G74 -> 7873 | F13: ='SA9'!H74 -> 7873 | G13: ='SA9'!I74 -> 7873 | H13: ='SA9'!J74 -> 7873 | I13: ='SA9'!K74 -> 7005 | J13: ='SA9'!L74 -> 7000 | K13: ='SA9'!M74 -> 6390
A14: Below Minimum Service Level sub-total | C14: =SUM(C11:C13) -> 6695 | D14: =SUM(D11:D13) -> 6478 | E14: 7873 | F14: 7873 | G14: 7873 | H14: 7873 | I14: 7005 | J14: 7000 | K14: 6390
A15: Total number of households | B15: 5 | C15: =C10+C14 -> 17318 | D15: =D10+D14 -> 17318 | E15: 19788 | F15: 19390 | G15: 19390 | H15: 19390 | I15: 18719.19 | J15: 18948.4738 | K15: 18577.44328
A16: Sanitation/sewerage:
A17: Flush toilet (connected to sewerage) | C17: ='SA9'!E78 -> 13433 | D17: ='SA9'!F78 -> 13868 | E17: ='SA9'!G78 -> 15597 | F17: ='SA9'!H78 -> 14322 | G17: ='SA9'!I78 -> 14322 | H17: ='SA9'!J78 -> 14322 | I17: ='SA9'!K78 -> 15597 | J17: ='SA9'!L78 -> 16220.88 | K17: ='SA9'!M78 -> 16869.7152
A18: Flush toilet (with septic tank) | C18: ='SA9'!E79 -> 0 | D18: ='SA9'!F79 -> 0 | E18: ='SA9'!G79 -> 0 | F18: ='SA9'!H79 -> 0 | G18: ='SA9'!I79 -> 0 | H18: ='SA9'!J79 -> 0 | I18: ='SA9'!K79 -> 0 | J18: ='SA9'!L79 -> 0 | K18: ='SA9'!M79 -> 0
A19: Chemical toilet | C19: ='SA9'!E80 -> 0 | D19: ='SA9'!F80 -> 0 | E19: ='SA9'!G80 -> 0 | F19: ='SA9'!H80 -> 0 | G19: ='SA9'!I80 -> 0 | H19: ='SA9'!J80 -> 0 | I19: ='SA9'!K80 -> 0 | J19: ='SA9'!L80 -> 0 | K19: ='SA9'!M80 -> 0
A20: Pit toilet (ventilated) | C20: ='SA9'!E81 -> 0 | D20: ='SA9'!F81 -> 0 | E20: ='SA9'!G81 -> 0 | F20: ='SA9'!H81 -> 0 | G20: ='SA9'!I81 -> 0 | H20: ='SA9'!J81 -> 0 | I20: ='SA9'!K81 -> 0 | J20: ='SA9'!L81 -> 0 | K20: ='SA9'!M81 -> 0
A21: Other toilet provisions (> min.service level) | C21: ='SA9'!E82 -> 0 | D21: ='SA9'!F82 -> 0 | E21: ='SA9'!G82 -> 0 | F21: ='SA9'!H82 -> 0 | G21: ='SA9'!I82 -> 0 | H21: ='SA9'!J82 -> 0 | I21: ='SA9'!K82 -> 0 | J21: ='SA9'!L82 -> 0 | K21: ='SA9'!M82 -> 0
A22: =$A$10 -> Minimum Service Level and Above sub-total | C22: =SUM(C17:C21) -> 13433 | D22: =SUM(D17:D21) -> 13868 | E22: 15597 | F22: 14322 | G22: 14322 | H22: 14322 | I22: 15597 | J22: 16220.88 | K22: 16869.7152
A23: Bucket toilet | C23: ='SA9'!E84 -> 0 | D23: ='SA9'!F84 -> 0 | E23: ='SA9'!G84 -> 0 | F23: ='SA9'!H84 -> 0 | G23: ='SA9'!I84 -> 0 | H23: ='SA9'!J84 -> 0 | I23: ='SA9'!K84 -> 0 | J23: ='SA9'!L84 -> 0 | K23: ='SA9'!M84 -> 0
A24: Other toilet provisions (< min.service level) | C24: ='SA9'!E85 -> 0 | D24: ='SA9'!F85 -> 0 | E24: ='SA9'!G85 -> 0 | F24: ='SA9'!H85 -> 0 | G24: ='SA9'!I85 -> 0 | H24: ='SA9'!J85 -> 0 | I24: ='SA9'!K85 -> 0 | J24: ='SA9'!L85 -> 0 | K24: ='SA9'!M85 -> 0
A25: No toilet provisions | C25: ='SA9'!E86 -> 3885 | D25: ='SA9'!F86 -> 3450 | E25: ='SA9'!G86 -> 4191 | F25: ='SA9'!H86 -> 4191 | G25: ='SA9'!I86 -> 4191 | H25: ='SA9'!J86 -> 4191 | I25: ='SA9'!K86 -> 4191 | J25: ='SA9'!L86 -> 4358.64 | K25: ='SA9'!M86 -> 4532.9856
A26: =$A$14 -> Below Minimum Service Level sub-total | C26: =SUM(C23:C25) -> 3885 | D26: =SUM(D23:D25) -> 3450 | E26: 4191 | F26: 4191 | G26: 4191 | H26: 4191 | I26: 4191 | J26: 4358.64 | K26: 4532.9856
A27: =$A$15 -> Total number of households | B27: =$B$15 -> 5 | C27: =C22+C26 -> 17318 | D27: =D22+D26 -> 17318 | E27: 19788 | F27: 18513 | G27: 18513 | H27: 18513 | I27: 19788 | J27: 20579.52 | K27: 21402.7008
A28: Energy:
A29: Electricity (at least min.service level) | C29: ='SA9'!E90 -> 3482 | D29: ='SA9'!F90 -> 3491 | E29: ='SA9'!G90 -> 3498 | F29: ='SA9'!H90 -> 3498 | G29: ='SA9'!I90 -> 3498 | H29: ='SA9'!J90 -> 3498 | I29: ='SA9'!K90 -> 3637.92 | J29: ='SA9'!L90 -> 3783.4368 | K29: ='SA9'!M90 -> 3934.774272
A30: Electricity - prepaid (min.service level) | C30: ='SA9'!E91 -> 1989 | D30: ='SA9'!F91 -> 2066 | E30: ='SA9'!G91 -> 2486 | F30: ='SA9'!H91 -> 2486 | G30: ='SA9'!I91 -> 2486 | H30: ='SA9'!J91 -> 2486 | I30: ='SA9'!K91 -> 2585.44 | J30: ='SA9'!L91 -> 2688.8576 | K30: ='SA9'!M91 -> 2796.411904
A31: =$A$10 -> Minimum Service Level and Above sub-total | C31: =SUM(C29:C30) -> 5471 | D31: =SUM(D29:D30) -> 5557 | E31: 5984 | F31: 5984 | G31: 5984 | H31: 5984 | I31: 6223.36 | J31: 6472.2944 | K31: 6731.186176
A32: Electricity (< min.service level) | C32: ='SA9'!E93 -> 0 | D32: ='SA9'!F93 -> 0 | E32: ='SA9'!G93 -> 0 | F32: ='SA9'!H93 -> 0 | G32: ='SA9'!I93 -> 0 | H32: ='SA9'!J93 -> 0 | I32: ='SA9'!K93 -> 0 | J32: ='SA9'!L93 -> 0 | K32: ='SA9'!M93 -> 0
A33: Electricity - prepaid (< min. service level) | C33: ='SA9'!E94 -> 0 | D33: ='SA9'!F94 -> 0 | E33: ='SA9'!G94 -> 0 | F33: ='SA9'!H94 -> 0 | G33: ='SA9'!I94 -> 0 | H33: ='SA9'!J94 -> 0 | I33: ='SA9'!K94 -> 0 | J33: ='SA9'!L94 -> 0 | K33: ='SA9'!M94 -> 0
A34: Other energy sources | C34: ='SA9'!E95 -> 11847 | D34: ='SA9'!F95 -> 11761 | E34: ='SA9'!G95 -> 13804 | F34: ='SA9'!H95 -> 13804 | G34: ='SA9'!I95 -> 13804 | H34: ='SA9'!J95 -> 13804 | I34: ='SA9'!K95 -> 12835 | J34: ='SA9'!L95 -> 12608 | K34: ='SA9'!M95 -> 12500
A35: =$A$14 -> Below Minimum Service Level sub-total | C35: =SUM(C32:C34) -> 11847 | D35: =SUM(D32:D34) -> 11761 | E35: 13804 | F35: 13804 | G35: 13804 | H35: 13804 | I35: 12835 | J35: 12608 | K35: 12500
A36: =$A$15 -> Total number of households | B36: =$B$15 -> 5 | C36: =C31+C35 -> 17318 | D36: =D31+D35 -> 17318 | E36: 19788 | F36: 19788 | G36: 19788 | H36: 19788 | I36: 19058.36 | J36: 19080.2944 | K36: 19231.18618
A37: Refuse:
A38: Removed at least once a week | C38: ='SA9'!E99 -> 13185 | D38: ='SA9'!F99 -> 13204 | E38: ='SA9'!G99 -> 14402 | F38: ='SA9'!H99 -> 14402 | G38: ='SA9'!I99 -> 14402 | H38: ='SA9'!J99 -> 14402 | I38: ='SA9'!K99 -> 14975 | J38: ='SA9'!L99 -> 15574 | K38: ='SA9'!M99 -> 16196.96
A39: =$A$10 -> Minimum Service Level and Above sub-total | C39: =SUM(C38) -> 13185 | D39: =SUM(D38) -> 13204 | E39: 14402 | F39: 14402 | G39: 14402 | H39: 14402 | I39: 14975 | J39: 15574 | K39: 16196.96
A40: Removed less frequently than once a week | C40: ='SA9'!E101 -> 0 | D40: ='SA9'!F101 -> 0 | E40: ='SA9'!G101 -> 0 | F40: ='SA9'!H101 -> 0 | G40: ='SA9'!I101 -> 0 | H40: ='SA9'!J101 -> 0 | I40: ='SA9'!K101 -> 0 | J40: ='SA9'!L101 -> 0 | K40: ='SA9'!M101 -> 0
A41: Using communal refuse dump | C41: ='SA9'!E102 -> 0 | D41: ='SA9'!F102 -> 0 | E41: ='SA9'!G102 -> 0 | F41: ='SA9'!H102 -> 0 | G41: ='SA9'!I102 -> 0 | H41: ='SA9'!J102 -> 0 | I41: ='SA9'!K102 -> 0 | J41: ='SA9'!L102 -> 0 | K41: ='SA9'!M102 -> 0
A42: Using own refuse dump | C42: ='SA9'!E103 -> 0 | D42: ='SA9'!F103 -> 0 | E42: ='SA9'!G103 -> 0 | F42: ='SA9'!H103 -> 0 | G42: ='SA9'!I103 -> 0 | H42: ='SA9'!J103 -> 0 | I42: ='SA9'!K103 -> 0 | J42: ='SA9'!L103 -> 0 | K42: ='SA9'!M103 -> 0
A43: Other rubbish disposal | C43: ='SA9'!E104 -> 0 | D43: ='SA9'!F104 -> 0 | E43: ='SA9'!G104 -> 0 | F43: ='SA9'!H104 -> 0 | G43: ='SA9'!I104 -> 0 | H43: ='SA9'!J104 -> 0 | I43: ='SA9'!K104 -> 0 | J43: ='SA9'!L104 -> 0 | K43: ='SA9'!M104 -> 0
A44: No rubbish disposal | C44: ='SA9'!E105 -> 4133 | D44: ='SA9'!F105 -> 4114 | E44: ='SA9'!G105 -> 4813 | F44: ='SA9'!H105 -> 4813 | G44: ='SA9'!I105 -> 4813 | H44: ='SA9'!J105 -> 4813 | I44: ='SA9'!K105 -> 4701 | J44: ='SA9'!L105 -> 4699 | K44: ='SA9'!M105 -> 4500
A45: =$A$14 -> Below Minimum Service Level sub-total | C45: =SUM(C40:C44) -> 4133 | D45: 4114 | E45: 4813 | F45: 4813 | G45: 4813 | H45: 4813 | I45: 4701 | J45: 4699 | K45: 4500
A46: =$A$15 -> Total number of households | B46: =$B$15 -> 5 | C46: =C39+C45 -> 17318 | D46: =D39+D45 -> 17318 | E46: 19215 | F46: 19215 | G46: 19215 | H46: 19215 | I46: 19676 | J46: 20273 | K46: 20696.96
A48: Households receiving Free Basic Service | B48: 7
A49: Water (6 kilolitres per household per month) | C49: ='SA9'!E263 -> 3128 | D49: ='SA9'!F263 -> 3171 | E49: ='SA9'!G263 -> 3587 | F49: ='SA9'!H263 -> 3766 | G49: ='SA9'!I263 -> 3766 | H49: ='SA9'!J263 -> 3766 | I49: ='SA9'!K263 -> 3916.64 | J49: ='SA9'!L263 -> 4073.3056 | K49: ='SA9'!M263 -> 4236.237824
A50: Sanitation (free minimum level service) | C50: ='SA9'!E275 -> 5348 | D50: ='SA9'!F275 -> 5391 | E50: ='SA9'!G275 -> 5807 | F50: ='SA9'!H275 -> 5987 | G50: ='SA9'!I275 -> 5987 | H50: ='SA9'!J275 -> 5987 | I50: ='SA9'!K275 -> 6226.48 | J50: ='SA9'!L275 -> 6475.5392 | K50: ='SA9'!M275 -> 6734.560768
A51: Electricity/other energy (50kwh per household per month) | C51: ='SA9'!E251 -> 2827 | D51: ='SA9'!F251 -> 2829 | E51: ='SA9'!G251 -> 2893 | F51: ='SA9'!H251 -> 3065 | G51: ='SA9'!I251 -> 3065 | H51: ='SA9'!J251 -> 3065 | I51: ='SA9'!K251 -> 3187.6 | J51: ='SA9'!L251 -> 3315.104 | K51: ='SA9'!M251 -> 3447.70816
A52: Refuse (removed at least once a week) | C52: ='SA9'!E287 -> 5328 | D52: ='SA9'!F287 -> 5371 | E52: ='SA9'!G287 -> 5787 | F52: ='SA9'!H287 -> 5964 | G52: ='SA9'!I287 -> 5964 | H52: ='SA9'!J287 -> 5964 | I52: ='SA9'!K287 -> 6202.56 | J52: ='SA9'!L287 -> 6450.6624 | K52: ='SA9'!M287 -> 6708.688896
A54: Cost of Free Basic Services provided - Formal Settlements (R'000) | B54: 8
A55: Water (6 kilolitres per indigent household per month) | C55: ='SA1'!C20 -> 8356239.47 | D55: ='SA1'!D20 -> 6600187.69 | E55: ='SA1'!E20 -> 9229924.36 | F55: ='SA1'!F20 -> 1360641 | G55: ='SA1'!G20 -> 5323030 | H55: ='SA1'!H20 -> 5323030 | I55: ='SA1'!J20 -> 5678628.36 | J55: ='SA1'!K20 -> 5905773.494 | K55: ='SA1'!L20 -> 6142004.434
A56: Sanitation (free sanitation service to indigent households) | C56: ='SA1'!C26 -> 3449678.81 | D56: ='SA1'!D26 -> 4573622.95 | E56: ='SA1'!E26 -> 3413272.58 | F56: ='SA1'!F26 -> 8138078 | G56: ='SA1'!G26 -> 3777656 | H56: ='SA1'!H26 -> 3777656 | I56: ='SA1'!J26 -> 4050489.77 | J56: ='SA1'!K26 -> 4212509.361 | K56: ='SA1'!L26 -> 4381009.735
A57: Electricity/other energy (50kwh per indigent household per month) | C57: ='SA1'!C14 -> 1835627.64 | D57: ='SA1'!D14 -> 1639070.31 | E57: ='SA1'!E14 -> 2944888.46 | F57: ='SA1'!F14 -> 3580629 | G57: ='SA1'!G14 -> 3580629 | H57: ='SA1'!H14 -> 3580629 | I57: ='SA1'!J14 -> 2044731.17 | J57: ='SA1'!K14 -> 2126520.417 | K57: ='SA1'!L14 -> 2211581.233
A58: Refuse (removed once a week for indigent households) | C58: ='SA1'!C33 -> 4033741.2 | D58: ='SA1'!D33 -> 5273510.4 | E58: ='SA1'!E33 -> 7706172.18 | F58: ='SA1'!F33 -> 9419663 | G58: ='SA1'!G33 -> 4380981 | H58: ='SA1'!H33 -> 4380981 | I58: ='SA1'!J33 -> 4693447.82 | J58: ='SA1'!K33 -> 4881185.733 | K58: ='SA1'!L33 -> 5076433.162
A59: Cost of Free Basic Services provided - Informal Formal Settlements (R'000) | C59: ='SA9'!E260+'SA9'!E272+'SA9'!E284+'SA9'!E296 -> 0 | D59: ='SA9'!F260+'SA9'!F272+'SA9'!F284+'SA9'!F296 -> 0 | E59: ='SA9'!G260+'SA9'!G272+'SA9'!G284+'SA9'!G296 -> 0 | F59: ='SA9'!H260+'SA9'!H272+'SA9'!H284+'SA9'!H296 -> 0 | G59: ='SA9'!I260+'SA9'!I272+'SA9'!I284+'SA9'!I296 -> 0 | H59: ='SA9'!J260+'SA9'!J272+'SA9'!J284+'SA9'!J296 -> 0 | I59: ='SA9'!K260+'SA9'!K272+'SA9'!K284+'SA9'!K296 -> 0 | J59: ='SA9'!L260+'SA9'!L272+'SA9'!L284+'SA9'!L296 -> 0 | K59: ='SA9'!M260+'SA9'!M272+'SA9'!M284+'SA9'!M296 -> 0
A60: Total cost of FBS provided | C60: =SUM(C55:C59) -> 17675287.12 | D60: 18086391.35 | E60: 23294257.58 | F60: 22499011 | G60: 17062296 | H60: 17062296 | I60: 16467297.12 | J60: 17125989 | K60: 17811028.56
A62: Highest level of free service provided per household
A63: Property rates (R value threshold) | C63: 20000 | D63: 20000 | E63: 20000 | F63: 20000 | G63: 20000 | H63: 20000 | I63: 20000 | J63: 20000 | K63: 20000
A64: Water (kilolitres per household per month) | C64: 6 | D64: 6 | E64: 6 | F64: 6.09 | G64: 6 | H64: =G64 -> 6 | I64: 6 | J64: 6 | K64: 6
A65: Sanitation (kilolitres per household per month) | G65: 0 | H65: 0
A66: Sanitation (Rand per household per month) | C66: 84.15 | D66: 96.77 | E66: 103 | F66: 104.545 | G66: 105 | H66: 105 | I66: 109 | J66: 201 | K66: 206
A67: Electricity (kwh per household per month) | C67: 50 | D67: 50 | E67: 50 | F67: 50.75 | G67: 51 | H67: 51 | I67: 53 | J67: 56 | K67: 58
A68: Refuse (average litres per week) | C68: 85 | D68: 85 | E68: 85 | F68: 86 | G68: 86 | H68: 86 | I68: 89 | J68: 92 | K68: 95
A69: Revenue cost of subsidised services provided (R'000) | B69: 9
A70: Property rates (tariff adjustment) ( impermissable values per section 17 of MPRA) | C70: 521000 | D70: 557000 | E70: 674231 | F70: 714685 | G70: 714685 | H70: 714685 | I70: 780000 | J70: 795000 | K70: 803000
A71: Property rates exemptions, reductions and rebates and impermissable values in excess of section 17 of MPRA) | C71: ='SA1'!C8 -> 14017720.31 | D71: ='SA1'!D8 -> 3180720.82 | E71: ='SA1'!E8 -> 18013480.96 | F71: ='SA1'!F8 -> 18753079.4 | G71: ='SA1'!G8 -> 19018524.4 | H71: ='SA1'!H8 -> 19018524.4 | I71: ='SA1'!J8 -> 21746497.36 | J71: ='SA1'!K8 -> 22616357.25 | K71: ='SA1'!L8 -> 23521011.54
A72: Water (in excess of 6 kilolitres per indigent household per month) | C72: ='SA1'!C19 -> 0 | D72: ='SA1'!D19 -> 0 | E72: ='SA1'!E19 -> 0 | F72: ='SA1'!F19 -> 0 | G72: ='SA1'!G19 -> 0 | H72: ='SA1'!H19 -> 0 | I72: ='SA1'!J19 -> 0 | J72: ='SA1'!K19 -> 0 | K72: ='SA1'!L19 -> 0
A73: Sanitation (in excess of free sanitation service to indigent households) | C73: ='SA1'!C25 -> 0 | D73: ='SA1'!D25 -> 0 | E73: ='SA1'!E25 -> 0 | F73: ='SA1'!F25 -> 0 | G73: ='SA1'!G25 -> 0 | H73: ='SA1'!H25 -> 0 | I73: ='SA1'!J25 -> 0 | J73: ='SA1'!K25 -> 0 | K73: ='SA1'!L25 -> 0
A74: Electricity/other energy (in excess of 50 kwh per indigent household per month) | C74: ='SA1'!C13 -> 0 | D74: ='SA1'!D13 -> 0 | E74: ='SA1'!E13 -> 0 | F74: ='SA1'!F13 -> 0 | G74: ='SA1'!G13 -> 0 | H74: ='SA1'!H13 -> 0 | I74: ='SA1'!J13 -> 0 | J74: ='SA1'!K13 -> 0 | K74: ='SA1'!L13 -> 0
A75: Refuse (in excess of one removal a week for indigent households) | C75: ='SA1'!C32 -> 0 | D75: ='SA1'!D32 -> 0 | E75: ='SA1'!E32 -> 0 | F75: ='SA1'!F32 -> 0 | G75: ='SA1'!G32 -> 0 | H75: ='SA1'!H32 -> 0 | I75: ='SA1'!J32 -> 0 | J75: ='SA1'!K32 -> 0 | K75: ='SA1'!L32 -> 0
A76: Municipal Housing - rental rebates
A77: Housing - top structure subsidies | B77: 6
A78: Other
A79: Total revenue cost of subsidised services provided | C79: =SUM(C70:C78) -> 14538720.31 | D79: =SUM(D70:D78) -> 3737720.82 | E79: 18687711.96 | F79: 19467764.4 | G79: 19733209.4 | H79: 19733209.4 | I79: 22526497.36 | J79: =SUM(J70:J78) -> 23411357.25 | K79: =SUM(K70:K78) -> 24324011.54
A80: =head27a -> References
A81: 1. Include services provided by another entity; e.g. Eskom
A82: 2. Stand distance <= 200m from dwelling
A83: 3. Stand distance > 200m from dwelling
A84: 4. Borehole, spring, rain-water tank etc.
A85: 5. Must agree to total number of households in municipal area (informal settlements receiving services must be included)
A86: 6. Include value of subsidy provided by municipality above provincial subsidy level
A87: 7. Show number of households receiving at least these levels of services completely free (informal settlements must be included)
A88: 8. Must reflect the cost to the municipality of providing the Free Basic Service
A89: 9. Reflect the cost to the municipality in terms of 'revenue foregone' of providing free services (note this will not equal 'Revenue Foregone' on SA1)

Sheet SA1
A1: =muni&" - "&TableA1 -> FS193 Nketoana - Supporting Table SA1 Supportinging detail to 'Budgeted Financial Performance'
A2: =desc -> Description | B2: =head27 -> Ref | C2: =head1b -> 2012/13 | D2: =head1A -> 2013/14 | E2: =Head1 -> 2014/15 | F2: =Head2 -> Current Year 2015/16 | J2: =Head3 -> 2016/17 Medium Term Revenue & Expenditure Framework
C3: =Head5 -> Audited Outcome | D3: =Head5 -> Audited Outcome | E3: =Head5 -> Audited Outcome | F3: =Head6 -> Original Budget | G3: =Head7 -> Adjusted Budget | H3: =Head8 -> Full Year Forecast | I3: =Head5b -> Pre-audit outcome | J3: =Head9 -> Budget Year 2016/17 | K3: =Head10 -> Budget Year +1 2017/18 | L3: =Head11 -> Budget Year +2 2018/19
A4: R thousand
A5: REVENUE ITEMS:
A6: ='A4-FinPerf RE'!A5 -> Property rates | B6: 6
A7: Total Property Rates | C7: 44229507.31 | D7: 22315006.64 | E7: 52065955 | F7: 37549087 | G7: 37549087 | H7: =G7 -> 37549087 | I7: =H7 -> 37549087 | J7: 40175148.44 | K7: =J7*1.04 -> 41782154.38 | L7: =K7*1.04 -> 43453440.55
A8: less Revenue Foregone (exemptions, reductions and rebates and impermissable values in excess of section 17 of MPRA) | C8: 14017720.31 | D8: 3180720.82 | E8: 18013480.96 | F8: 18753079.4 | G8: =18753079.4+265445 -> 19018524.4 | H8: =G8 -> 19018524.4 | I8: =H8 -> 19018524.4 | J8: =21446497.36+300000 -> 21746497.36 | K8: =J8*1.04 -> 22616357.25 | L8: =K8*1.04 -> 23521011.54
A9: Net Property Rates | C9: =C7-C8 -> 30211787 | D9: =D7-D8 -> 19134285.82 | E9: 34052474.04 | F9: 18796007.6 | G9: 18530562.6 | H9: 18530562.6 | I9: 18530562.6 | J9: 18428651.08 | K9: 19165797.12 | L9: 19932429.01
A11: ='A4-FinPerf RE'!A7 -> Service charges - electricity revenue | B11: 6
A12: ="Total "&A11 -> Total Service charges - electricity revenue | C12: 31349284.64 | D12: 39011746.31 | E12: 46315279.46 | F12: 44787932 | G12: 44787932 | H12: =G12 -> 44787932 | I12: =H12 -> 44787932 | J12: 49255519.34 | K12: =J12*1.04 -> 51225740.11 | L12: =K12*1.04 -> 53274769.72
A13: less Revenue Foregone (in excess of 50 kwh per indigent household per month) | I13: =H13 -> 0
A14: less Cost of Free Basis Services (50 kwh per indigent household per month) | C14: ='SA9'!E250 -> 1835627.64 | D14: ='SA9'!F250 -> 1639070.31 | E14: ='SA9'!G250 -> 2944888.46 | F14: ='SA9'!H250 -> 3580629 | G14: ='SA9'!I250 -> 3580629 | H14: ='SA9'!J250 -> 3580629 | J14: ='SA9'!K250 -> 2044731.17 | K14: ='SA9'!L250 -> 2126520.417 | L14: ='SA9'!M250 -> 2211581.233
A15: ="Net "& A11 -> Net Service charges - electricity revenue | C15: =C12-C13-C14 -> 29513657 | D15: =D12-D13-D14 -> 37372676 | E15: 43370391 | F15: 41207303 | G15: 41207303 | H15: 41207303 | I15: 44787932 | J15: 47210788.17 | K15: 49099219.7 | L15: 51063188.48
A17: ='A4-FinPerf RE'!A8 -> Service charges - water revenue | B17: 6
A18: ="Total "&A17 -> Total Service charges - water revenue | C18: 32603724.47 | D18: 43652319.69 | E18: 48778088.36 | F18: 48760000 | G18: 48760000 | H18: =G18 -> 48760000 | I18: =H18 -> 48760000 | J18: 53595823.21 | K18: =J18*1.04 -> 55739656.14 | L18: =K18*1.04 -> 57969242.38
A19: less Revenue Foregone (in excess of 6 kilolitres per indigent household per month)
A20: less Cost of Free Basis Services (6 kilolitres per indigent household per month) | C20: ='SA9'!E262 -> 8356239.47 | D20: ='SA9'!F262 -> 6600187.69 | E20: ='SA9'!G262 -> 9229924.36 | F20: ='SA9'!H262 -> 1360641 | G20: ='SA9'!I262 -> 5323030 | H20: ='SA9'!J262 -> 5323030 | J20: ='SA9'!K262 -> 5678628.36 | K20: ='SA9'!L262 -> 5905773.494 | L20: ='SA9'!M262 -> 6142004.434
A21: ="Net "& A17 -> Net Service charges - water revenue | C21: =C18-C19-C20 -> 24247485 | D21: =D18-D19-D20 -> 37052132 | E21: 39548164 | F21: 47399359 | G21: 43436970 | H21: 43436970 | I21: 48760000 | J21: 47917194.85 | K21: 49833882.64 | L21: 51827237.95
A23: ='A4-FinPerf RE'!A9 -> Service charges - sanitation revenue
A24: ="Total "&A23 -> Total Service charges - sanitation revenue | C24: 14729413.81 | D24: 22221709.95 | E24: 26553143.58 | F24: 24971059 | G24: 24971059 | H24: =G24 -> 24971059 | I24: =H24 -> 24971059 | J24: 24562880.28 | K24: =J24*1.04 -> 25545395.49 | L24: =K24*1.04 -> 26567211.31
A25: less Revenue Foregone (in excess of free sanitation service to indigent households) | H25: =G25 -> 0 | I25: =H25 -> 0
A26: less Cost of Free Basis Services (free sanitation service to indigent households) | C26: ='SA9'!E274 -> 3449678.81 | D26: ='SA9'!F274 -> 4573622.95 | E26: ='SA9'!G274 -> 3413272.58 | F26: ='SA9'!H274 -> 8138078 | G26: ='SA9'!I274 -> 3777656 | H26: ='SA9'!J274 -> 3777656 | J26: ='SA9'!K274 -> 4050489.77 | K26: ='SA9'!L274 -> 4212509.361 | L26: ='SA9'!M274 -> 4381009.735
A27: ="Net "& A23 -> Net Service charges - sanitation revenue | C27: =C24-C25-C26 -> 11279735 | D27: =D24-D25-D26 -> 17648087 | E27: 23139871 | F27: 16832981 | G27: 21193403 | H27: 21193403 | I27: 24971059 | J27: 20512390.51 | K27: 21332886.13 | L27: 22186201.58
A29: ='A4-FinPerf RE'!A10 -> Service charges - refuse revenue | B29: 6
A30: Total refuse removal revenue | C30: 15517442.2 | D30: 18178033.4 | E30: 22351394.18 | F30: 24350099 | G30: 24350099 | H30: =G30 -> 24350099 | I30: =H30 -> 24350099 | J30: 24766608.24 | K30: =J30*1.04 -> 25757272.57 | L30: =K30*1.04 -> 26787563.47
A31: Total landfill revenue
A32: less Revenue Foregone (in excess of one removal a week to indigent households)
A33: less Cost of Free Basis Services (removed once a week to indigent households) | C33: ='SA9'!E286 -> 4033741.2 | D33: ='SA9'!F286 -> 5273510.4 | E33: ='SA9'!G286 -> 7706172.18 | F33: ='SA9'!H286 -> 9419663 | G33: ='SA9'!I286 -> 4380981 | H33: ='SA9'!J286 -> 4380981 | J33: ='SA9'!K286 -> 4693447.82 | K33: ='SA9'!L286 -> 4881185.733 | L33: ='SA9'!M286 -> 5076433.162
A34: ="Net "& A29 -> Net Service charges - refuse revenue | C34: =SUM(C30:C31)-C32-C33 -> 11483701 | D34: =SUM(D30:D31)-D32-D33 -> 12904523 | E34: 14645222 | F34: 14930436 | G34: 19969118 | H34: 19969118 | I34: 24350099 | J34: 20073160.42 | K34: 20876086.84 | L34: 21711130.31
A36: Other Revenue by source
A37: Other Revenue | C37: 1607433 | D37: =207677+201+292270 -> 500148 | E37: =165328+263+146691 -> 312282 | F37: 83268.56 | G37: 167510.22 | H37: =G37 -> 167510.22 | I37: =H37 -> 167510.22 | J37: 13469211.09 | K37: =J37*1.04 -> 14007979.53 | L37: =K37*1.04 -> 14568298.71
A38: Public donation | C38: 2043939 | D38: 8000 | J38: 0 | K38: =J38*1.04 -> 0 | L38: 0
A39: Recoveries | J39: 0 | K39: 0 | L39: 0
A40: Income From Old Debt (20% of R250 Mil) | F40: 50000000 | G40: 30000000 | H40: =G40 -> 30000000 | I40: 30000000 | J40: 0 | K40: 0 | L40: 0
A41: Buildng Plans Applications | D41: 71422 | E41: 41738 | F41: 30000 | G41: 30000 | H41: 30000 | I41: 30000 | J41: 30000 | K41: 31200 | L41: 32448
A42: Discount received | F42: 0 | G42: 0 | H42: 0 | I42: 0 | J42: 0 | K42: 0 | L42: 0
A43: Zoning Certificates | F43: 1000 | G43: 1000 | H43: 1000 | I43: 1000 | J43: 1000 | K43: 1040 | L43: 1081.6
A44: Cementy Payments | F44: 1047959.44 | G44: 1047959.44 | H44: 1047959.44 | I44: 1047959.44 | J44: 565000 | K44: 587600 | L44: 611104
A45: Entrance Fees | F45: 22000 | G45: 40000 | H45: 40000 | I45: 40000 | J45: 40000 | K45: 41600 | L45: 43264
A46: Sundries | F46: 250700 | G46: 281400 | H46: 281400 | I46: 281400 | J46: 194179.76 | K46: 201946.9504 | L46: 210024.8284
A47: Clearance Certificate | F47: 7000 | G47: 10000 | H47: 10000 | I47: 10000 | J47: 11000 | K47: 11440 | L47: 11897.6
A48: Connection of service | B48: 3 | D48: 826001 | E48: 759235 | F48: 425277.74 | G48: 650430.24 | H48: 650430.24 | I48: 650430.24 | J48: 618377.57 | K48: 643112.6728 | L48: 668837.1797
A49: Total 'Other' Revenue | B49: 1 | C49: =SUM(C37:C48) -> 3651372 | D49: =SUM(D37:D48) -> 1405571 | E49: 1113255 | F49: 51867205.74 | G49: 32228299.9 | H49: 32228299.9 | I49: 32228299.9 | J49: 14928768.42 | K49: 15525919.16 | L49: 16146955.92
A51: EXPENDITURE ITEMS:
A52: ='A4-FinPerf RE'!A25 -> Employee related costs
A53: Basic Salaries and Wages | B53: 2 | C53: 37688813 | D53: 44048615 | E53: 48212499 | F53: 47245000 | G53: 45917209 | H53: =G53 -> 45917209 | I53: 45917209 | J53: 48672241.54 | K53: =J53*1.04 -> 50619131.21 | L53: =K53*1.04 -> 52643896.45
A54: Pension and UIF Contributions | C54: 6772371 | D54: =441921+7544944 -> 7986865 | E54: =477512+8488641 -> 8966153 | F54: 8882000 | G54: 7765093.48 | H54: 7765093.48 | I54: 7765093.48 | J54: 8230999.089 | K54: =J54*1.04 -> 8560239.053 | L54: 8902648.615
A55: Medical Aid Contributions | C55: 2312985 | D55: 2208898 | E55: 2097075 | F55: 2247000 | G55: 2317018.23 | H55: 2317018.23 | I55: 2317018.23 | J55: 2456039.329 | K55: 2554280.902 | L55: 2656452.138
A56: Overtime | C56: 2291585 | D56: 3203466 | E56: 4476539 | F56: 2561000 | G56: 3209227.09 | H56: 3209227.09 | I56: 3209227.09 | J56: 3401780.711 | K56: 3537851.939 | L56: 3679366.017
A57: Performance Bonus | C57: 2600189 | D57: =3263459+1287901 -> 4551360 | E57: =3498890+195232 -> 3694122 | F57: 3369000 | G57: 3417804.51 | H57: 3417804.51 | I57: 3417804.51 | J57: 3622872.784 | K57: 3767787.696 | L57: 3918499.203
A58: Motor Vehicle Allowance | C58: 1735502 | D58: 2237871 | E58: 2422581 | F58: 3354000 | G58: 3422097.98 | H58: 3422097.98 | I58: 3422097.98 | J58: 3627423.855 | K58: 3772520.809 | L58: 3923421.641
A59: Cellphone Allowance | C59: 551970 | D59: 714417 | E59: 732442 | F59: 441000 | G59: 447247.13 | H59: 447247.13 | I59: 447247.13 | J59: 474081.957 | K59: 493045.2352 | L59: 512767.0446
A60: Housing Allowances | C60: 158297 | D60: 250740 | E60: 406791 | F60: 490000 | G60: 497206.7 | H60: 497206.7 | I60: 497206.7 | J60: 527039.1023 | K60: 548120.6664 | L60: 570045.493
A61: Other benefits and allowances | C61: 1610000 | D61: =175696+575910+30211+1274995+369130+1019682 -> 3445624 | E61: =146852+755743+33819+267000+473715+1437284 -> 3114413 | F61: 2519000 | G61: 3886435.39 | H61: 3886435.39 | I61: 3886435.39 | J61: 4183221.51 | K61: 4350550.37 | L61: 4524572.385
A62: Payments in lieu of leave | F62: 520000 | G62: 0 | H62: 0 | I62: 0 | J62: 0 | K62: 0 | L62: 0
A63: Long service awards | C63: 1291365 | F63: 359000 | G63: 0 | H63: 0 | I63: 0 | J63: 0 | K63: 0 | L63: 0
A64: Post-retirement benefit obligations | B64: 4 | G64: 0 | H64: =H64 -> 0 | I64: =H64 -> 0 | J64: 0 | K64: 0 | L64: 0
A65: sub-total | B65: 5 | C65: =SUM(C53:C64) -> 57013077 | D65: =SUM(D53:D64) -> 68647856 | E65: 74122615 | F65: 71987000 | G65: 70879339.51 | H65: 70879339.51 | I65: 70879339.51 | J65: 75195699.88 | K65: 78203527.88 | L65: 81331668.99
A66: Less: Employees costs capitalised to PPE
A67: ="Total "&A52 -> Total Employee related costs | B67: 1 | C67: =C65-C66 -> 57013077 | D67: =D65-D66 -> 68647856 | E67: 74122615 | F67: 71987000 | G67: 70879339.51 | H67: 70879339.51 | I67: 70879339.51 | J67: 75195699.88 | K67: 78203527.88 | L67: 81331668.99
A69: Contributions recognised - capital
A70: List contributions by contract
A76: ="Total "&A69 -> Total Contributions recognised - capital | C76: =SUM(C70:C75) -> 0 | D76: 0 | E76: 0 | F76: 0 | G76: 0 | H76: 0 | I76: 0 | J76: 0 | K76: 0 | L76: 0
A78: ='A4-FinPerf RE'!A28 -> Depreciation & asset impairment
A79: Depreciation of Property, Plant & Equipment | C79: 64736250 | D79: 64210796 | E79: 67572300 | F79: 64000000 | G79: 67200000 | H79: =G79 -> 67200000 | I79: =H79 -> 67200000 | J79: 68544000 | K79: =J79*1.04 -> 71285760 | L79: =K79*1.04 -> 74137190.4
A80: Lease amortisation
A81: Capital asset impairment
A82: Depreciation resulting from revaluation of PPE | B82: 10
A83: ="Total "&LEFT(A78,35) -> Total Depreciation & asset impairment | B83: 1 | C83: =SUM(C79:C81)-C82 -> 64736250 | D83: =SUM(D79:D81)-D82 -> 64210796 | E83: 67572300 | F83: 64000000 | G83: 67200000 | H83: 67200000 | I83: 67200000 | J83: =SUM(J79:J81)-J82 -> 68544000 | K83: 71285760 | L83: 74137190.4
A85: ='A4-FinPerf RE'!A30 -> Bulk purchases
A86: Electricity Bulk Purchases | C86: 28834798 | D86: 34076462 | E86: 38183983 | F86: 43134189.25 | G86: 38183982.97 | H86: =G86 -> 38183982.97 | I86: =H86 -> 38183982.97 | J86: 45000000 | K86: =J86*1.04 -> 46800000 | L86: =K86*1.04 -> 48672000
A87: Water Bulk Purchases | C87: 0 | D87: 354237 | E87: 750765 | F87: 7300000 | G87: 850000 | H87: =G87 -> 850000 | I87: =H87 -> 850000 | J87: 971400.9429 | K87: =J87*1.04 -> 1010256.981 | L87: =K87*1.04 -> 1050667.26
A88: Total bulk purchases | B88: 1 | C88: =SUM(C86:C87) -> 28834798 | D88: =SUM(D86:D87) -> 34430699 | E88: 38934748 | F88: 50434189.25 | G88: 39033982.97 | H88: 39033982.97 | I88: 39033982.97 | J88: 45971400.94 | K88: 47810256.98 | L88: 49722667.26
A90: Transfers and grants
A91: Cash transfers and grants | C91: ='SA21'!C32 -> 0 | D91: ='SA21'!D32 -> 0 | E91: ='SA21'!E32 -> 0 | F91: ='SA21'!F32 -> 0 | G91: ='SA21'!G32 -> 0 | H91: ='SA21'!H32 -> 0 | I91: ='SA21'!I32 -> 0 | J91: ='SA21'!J32 -> 0 | K91: ='SA21'!K32 -> 0 | L91: ='SA21'!L32 -> 0
A92: Non-cash transfers and grants | C92: ='SA21'!C63 -> 0 | D92: ='SA21'!D63 -> 0 | E92: ='SA21'!E63 -> 0 | F92: ='SA21'!F63 -> 0 | G92: ='SA21'!G63 -> 0 | H92: ='SA21'!H63 -> 0 | I92: ='SA21'!I63 -> 0 | J92: ='SA21'!J63 -> 0 | K92: ='SA21'!K63 -> 0 | L92: ='SA21'!L63 -> 0
A93: Total transfers and grants | B93: 1 | C93: =SUM(C91:C92) -> 0 | D93: =SUM(D91:D92) -> 0 | E93: 0 | F93: 0 | G93: 0 | H93: 0 | I93: 0 | J93: 0 | K93: 0 | L93: 0
A95: ='A4-FinPerf RE'!A32 -> Contracted services
A96: List services provided by contract | C96: =12622881 -> 12622881 | D96: =12770133+3141412 -> 15911545 | E96: =10049366+4686484 -> 14735850
A97: AFS compilation | F97: 800000 | G97: 800000 | H97: =G97 -> 800000 | I97: 800000 | J97: 2101886.75 | K97: =J97*1.04 -> 2185962.22 | L97: =K97*1.04 -> 2273400.709
A98: Lease of photocopying machines | F98: 538000 | G98: 538000 | H98: 538000 | I98: 538000 | K98: =J98*1.04 -> 0 | L98: 0
A99: Lease of fleet | F99: 1631000 | G99: 1631000 | H99: 1631000 | I99: 1631000 | J99: 3200000 | K99: 3328000 | L99: 3461120
A100: Printing and postal of Municipal water and lights acc | F100: 140000 | G100: 1102608.74 | H100: 1102608.74 | I100: 1102608.74 | K100: 0 | L100: 0
A101: Valuation Roll | F101: 0 | G101: 0 | H101: 0 | I101: 0 | K101: 0 | L101: 0
A102: Support Service Management, operations and maintanance | F102: 500000 | G102: 500000 | H102: 500000 | I102: 500000 | K102: 0 | L102: 0
A103: Licencing software (Financial system) | F103: 581000 | G103: 581000 | H103: 581000 | I103: 581000 | J103: 2020000 | K103: 2100800 | L103: 2184832
A104: Comprehensive of IT Audit, assessment | F104: 799000 | G104: 799000 | H104: 799000 | I104: 799000 | J104: 0 | K104: 0 | L104: 0
A105: Lease of telephone | F105: 441000 | G105: 441000 | H105: 441000 | I105: 441000 | J105: 907735.3029 | K105: 944044.715 | L105: 981806.5036
A106: Security services | F106: 0 | G106: 0 | H106: 0 | I106: 0 | K106: 0 | L106: 0
A107: Municipality's Assets insurance | F107: 1500000 | G107: 1500000 | H107: 1500000 | I107: 1500000 | J107: 1500000 | K107: 1560000 | L107: 1622400
A121: sub-total | B121: 1 | C121: =SUM(C96:C120) -> 12622881 | D121: 15911545 | E121: 14735850 | F121: 6930000 | G121: 7892608.74 | H121: 7892608.74 | I121: 7892608.74 | J121: 9729622.053 | K121: 10118806.93 | L121: 10523559.21
A122: Allocations to organs of state:
A123: Electricity
A124: Water
A125: Sanitation
A126: Other
A127: Total contracted services | C127: =SUM(C121:C126) -> 12622881 | D127: =SUM(D121:D126) -> 15911545 | E127: 14735850 | F127: 6930000 | G127: 7892608.74 | H127: 7892608.74 | I127: 7892608.74 | J127: 9729622.053 | K127: 10118806.93 | L127: 10523559.21
A129: Other Expenditure By Type
A130: Collection costs
A131: Contributions to 'other' provisions
A132: Consultant fees
A133: Audit fees | C133: 3258557 | F133: 4000000 | G133: 7000000 | H133: =G133 -> 7000000 | I133: 7000000 | J133: 5000000 | K133: =J133*1.04 -> 5200000 | L133: =K133*1.04 -> 5408000
A134: General expenses | B134: 3 | C134: 23009968 | D134: 42150416 | E134: 36098365 | F134: 17039576.22 | G134: 18143613 | H134: 18143613 | I134: 18143613 | J134: 24260110.62 | K134: =J134*1.04 -> 25230515.04 | L134: 26239735.65
A135: List Other Expenditure by Type | G135: 0 | H135: 0 | I135: 0 | K135: 0 | L135: 0
A136: Advertising | C136: 398842 | F136: 210000 | G136: 140000 | H136: 140000 | I136: 140000 | J136: 140000 | K136: 145600 | L136: 151424
A137: Municipal Services | G137: 0 | H137: 0 | I137: 0 | K137: 0 | L137: 0
A138: Bank Charges | C138: 510283 | F138: 531500 | G138: 531500 | H138: 531500 | I138: 531500 | J138: 580200 | K138: 603408 | L138: 627544.32
A139: Fuel and Oil | C139: 5184308 | F139: 2000000 | G139: 740000 | H139: 740000 | I139: 740000 | J139: 1011456.903 | K139: 1051915.179 | L139: 1093991.786
A140: Printing and Stationary | C140: 2042558 | F140: 2075900 | G140: 1791000 | H140: 1791000 | I140: 1791000 | J140: 1766935.794 | K140: 1837613.226 | L140: 1911117.755
A141: Postage and Courier | C141: 137174 | F141: 14000 | G141: 317000 | H141: 317000 | I141: 317000 | J141: 520000 | K141: 540800 | L141: 562432
A142: Promotion | C142: 707829 | F142: 106000 | G142: 200000 | H142: 200000 | I142: 200000 | J142: 200000 | K142: 208000 | L142: 216320
A143: Membership Fees | C143: 1112303 | F143: 750000 | G143: 300000 | H143: 300000 | I143: 300000 | J143: 21428.57143 | K143: 22285.71429 | L143: 23177.14286
A144: Telephone and Fax | C144: 778615 | F144: 0 | G144: 0 | H144: 0 | I144: 0 | K144: 0 | L144: 0
A145: Skills Development | C145: 3476547 | F145: 1050000 | G145: 800000 | H145: 800000 | I145: 800000 | J145: 750000 | K145: 780000 | L145: 811200
A146: Learnerships | F146: 50000 | G146: 50000 | H146: 50000 | I146: 50000 | J146: 25000 | K146: 26000 | L146: 27040
A147: Protective Clothing | C147: 228097 | F147: 0 | G147: 0 | H147: 0 | I147: 0 | K147: 0 | L147: 0
A148: Transport Services/Travel and Subsitence | C148: 2475729 | F148: 1838600 | G148: 2947133 | H148: 2947133 | I148: 2947133 | J148: 3199214.657 | K148: 3327183.243 | L148: 3460270.573
A149: Events and Meetings | F149: 0 | G149: 0 | H149: 0 | I149: 0 | K149: 0 | L149: 0
A150: Uniforms and overall | F150: 1000000 | G150: 1000000 | H150: 1000000 | I150: 1000000 | J150: 1200000 | K150: 1248000 | L150: 1297920
A151: Legal Fees | F151: 1200000 | G151: 1200000 | H151: 1200000 | I151: 1200000 | J151: 1000000 | K151: 1040000 | L151: 1081600
A152: Free Basic Charge | F152: 0 | G152: 0 | H152: 0 | I152: 0 | K152: =J152*1.04 -> 0 | L152: =K152*1.04 -> 0
A153: Cleaning | C153: 133740 | F153: 162000 | G153: 173400 | H153: 173400 | I153: 173400 | J153: 262000 | K153: 272480 | L153: 283379.2
A154: Professional/Consulting fee | F154: 5180000 | G154: 6850000 | H154: 6850000 | I154: 6850000 | J154: 5306390.96 | K154: 5518646.598 | L154: 5739392.462
A155: Chemicals | F155: 1650000 | G155: 1450000 | H155: 1450000 | I155: 1450000 | J155: 1440000 | K155: 1497600 | L155: 1557504
A156: Bursaries | F156: 120000 | G156: 150000 | H156: 150000 | I156: 150000 | J156: 162414.8571 | K156: 168911.4514 | L156: 175667.9095
A157: Total 'Other' Expenditure | B157: 1 | C157: =SUM(C130:C156) -> 43454550 | D157: =SUM(D130:D156) -> 42150416 | E157: 36098365 | F157: 38977576.22 | G157: 43783646 | H157: 43783646 | I157: 43783646 | J157: 46845152.36 | K157: 48718958.46 | L157: 50667716.8
A159: Repairs and Maintenance by Expenditure Item | B159: 8
A160: Employee related costs
A161: Other materials | C161: 8821056 | D161: 12770134 | E161: 10832000 | F161: 10897913.23 | G161: 11157913.23 | H161: =G161 -> 11157913.23 | I161: =H161 -> 11157913.23 | J161: 8156500 | K161: =J161*1.04 -> 8482760 | L161: =K161*1.04 -> 8822070.4
A162: Contracted Services
A163: Other Expenditure
A164: Total Repairs and Maintenance Expenditure | B164: 9 | C164: =SUM(C160:C163) -> 8821056 | D164: =SUM(D160:D163) -> 12770134 | E164: 10832000 | F164: 10897913.23 | G164: 11157913.23 | H164: 11157913.23 | I164: 11157913.23 | J164: 8156500 | K164: 8482760 | L164: 8822070.4
A166: check | C166: =C164-SA34c!C77 -> 0 | D166: =D164-SA34c!D77 -> 0 | E166: =E164-SA34c!E77 -> 0 | F166: =F164-SA34c!F77 -> 0 | G166: =G164-SA34c!G77 -> 0 | H166: =H164-SA34c!H77 -> 0 | J166: =J164-SA34c!I77 -> 0 | K166: =K164-SA34c!J77 -> 0 | L166: =L164-SA34c!K77 -> 0
A169: =head27a -> References
A170: 1. Must reconcile with 'Budgeted Financial Performance (Revenue and Expenditure)
A171: 2. Must reconcile to supporting documentation on staff salaries
A172: 3. Insert other categories where revenue or expenditure is of a material nature (list separate items until 'General expenses' is not > 10% of Total Expenditure)
A173: 4. Expenditure to meet any 'unfunded obligations'
A174: 5 This sub-total must agree with the total on SA22, but excluding councillor and board member items
A175: 6. Include a note for each revenue item that is affected by 'revenue foregone'
A176: 7. Special consideration may have to be given to including 'goodwill arising' or 'joint venture' budgets where circumstances require this (include separately under relevant notes)
A177: 8. Repairs and Maintenance is not a GRAP item. However to facilitate transparency, municipalities must provide a breakdown of the amounts included in the relevant GRAP items that will be spent on Repairs and Maintenance.
A178: 9. Must reconcile with Repairs and Maintenance by Asset Class (Total Repairs and Maintenance) on Table SA34c.
A179: 10. Only applicable to municipalities that have adopted the 'revaluation method' in GRAP 17. The aim is to prevent overstating 'depreciation and asset impairment'

Sheet SA2
A1: =muni&" - "&TableA2 -> FS193 Nketoana - Supporting Table SA2 Matrix Financial Performance Budget (revenue source/expenditure type and dept.)
A2: =desc -> Description | B2: =head27 -> Ref | C2: ='A3-FinPerf V'!A5 -> Vote 1 - EXECUTIVE AND COUNCIL | D2: ='A3-FinPerf V'!A6 -> Vote 2 - FINANCE AND ADMINISTRATION | E2: ='A3-FinPerf V'!A7 -> Vote 3 - COMMUNITY SERVICES | F2: ='A3-FinPerf V'!A8 -> Vote 4 - WASTE MANAGEMENT | G2: ='A3-FinPerf V'!A9 -> Vote 5 - LOCAL ECONOMIC DEVELOPMENT | H2: ='A3-FinPerf V'!A10 -> Vote 6 - ROADS TRANSPORT | I2: ='A3-FinPerf V'!A11 -> Vote 7 - WATER | J2: ='A3-FinPerf V'!A12 -> Vote 8 - ELECTRICITY | K2: ='A3-FinPerf V'!A13 -> Vote 9 - WASTE WATER | L2: ='A3-FinPerf V'!A14 -> Vote 10 - HOUSING | M2: ='A3-FinPerf V'!A15 -> Vote 11 - [NAME OF VOTE 11] | N2: ='A3-FinPerf V'!A16 -> Vote 12 - [NAME OF VOTE 12] | O2: ='A3-FinPerf V'!A17 -> Vote 13 - [NAME OF VOTE 13] | P2: ='A3-FinPerf V'!A18 -> Vote 14 - [NAME OF VOTE 14] | Q2: ='A3-FinPerf V'!A19 -> Vote 15 - [NAME OF VOTE 15] | R2: Total
A3: R thousand | B3: 1 | C3: R'000 | D3: R'000 | E3: R'000 | F3: R'000 | G3: R'000 | H3: R'000 | Q3: R'000 | R3: R'000
A4: ='A4-FinPerf RE'!A4 -> Revenue By Source
A5: ='A4-FinPerf RE'!A5 -> Property rates | D5: 18428651.08 | R5: =SUM(C5:Q5) -> 18428651.08
A6: ='A4-FinPerf RE'!A6 -> Property rates - penalties & collection charges | R6: =SUM(C6:Q6) -> 0
A7: ='A4-FinPerf RE'!A7 -> Service charges - electricity revenue | J7: 47210788.17 | R7: 47210788.17
A8: ='A4-FinPerf RE'!A8 -> Service charges - water revenue | I8: 47917194.85 | R8: 47917194.85
A9: ='A4-FinPerf RE'!A9 -> Service charges - sanitation revenue | K9: 20512390.5 | R9: 20512390.5
A10: ='A4-FinPerf RE'!A10 -> Service charges - refuse revenue | F10: 20073160.42 | R10: 20073160.42
A11: ='A4-FinPerf RE'!A11 -> Service charges - other | R11: 0
A12: ='A4-FinPerf RE'!A12 -> Rental of facilities and equipment | D12: 326360.39 | R12: 326360.39
A13: ='A4-FinPerf RE'!A13 -> Interest earned - external investments | D13: 400000 | R13: 400000
A14: ='A4-FinPerf RE'!A14 -> Interest earned - outstanding debtors | D14: 23000000 | R14: 23000000
A15: ='A4-FinPerf RE'!A15 -> Dividends received | R15: 0
A16: ='A4-FinPerf RE'!A16 -> Fines | E16: 200000 | R16: 200000
A17: ='A4-FinPerf RE'!A17 -> Licences and permits | R17: 0
A18: ='A4-FinPerf RE'!A18 -> Agency services | R18: 0
A19: ='A4-FinPerf RE'!A20 -> Other revenue | D19: 14928768.43 | R19: 14928768.43
A20: ='A4-FinPerf RE'!A19 -> Transfers recognised - operational | D20: 83002000 | R20: 83002000
A21: ='A4-FinPerf RE'!A21 -> Gains on disposal of PPE | R21: 0
A22: ='A4-FinPerf RE'!A22 -> Total Revenue (excluding capital transfers and contributions) | C22: =SUM(C5:C21) -> 0 | D22: 140085779.9 | E22: 200000 | F22: 20073160.42 | G22: 0 | H22: 0 | I22: 47917194.85 | J22: 47210788.17 | K22: 20512390.5 | L22: 0 | M22: 0 | N22: 0 | O22: 0 | P22: 0 | Q22: 0 | R22: 275999313.8
A24: ='A4-FinPerf RE'!A24 -> Expenditure By Type
A25: ='A4-FinPerf RE'!A25 -> Employee related costs | C25: 6895444 | D25: 13189377.67 | E25: 12816397.34 | F25: 7058666 | G25: =785404.76+1208959.41 -> 1994364.17 | H25: 6145011.81 | I25: 8081000 | J25: 5895666 | K25: 7133328.89 | L25: 5986444 | R25: =SUM(C25:Q25) -> 75195699.88
A26: ='A4-FinPerf RE'!A26 -> Remuneration of councillors | C26: 7062711.546 | R26: =SUM(C26:Q26) -> 7062711.546
A27: ='A4-FinPerf RE'!A27 -> Debt impairment | D27: 6000000 | F27: 5841181.19 | I27: 13398955.8 | J27: 7590974.06 | K27: 5793132.14 | R27: =SUM(C27:Q27) -> 38624243.19
A28: ='A4-FinPerf RE'!A28 -> Depreciation & asset impairment | C28: 192261.45 | D28: 3226065.92 | E28: 534954.95 | F28: 1575872.918 | G28: 28167.59088 | H28: 42515881.58 | I28: 6431302.31 | J28: 3581051.078 | K28: 10442055.9 | L28: 16386.3 | R28: 68544000
A29: ='A4-FinPerf RE'!A29 -> Finance charges | D29: 1200000 | R29: 1200000
A30: ='A4-FinPerf RE'!A30 -> Bulk purchases | I30: 971400.9429 | J30: 45000000 | R30: 45971400.94
A31: ='A4-FinPerf RE'!A31 -> Other materials | C31: 75000 | D31: 681444 | E31: 346705.28 | F31: 305000 | H31: =3430000-2741007 -> 688993 | I31: 2679913.23 | J31: 2790000 | K31: 589444 | R31: 8156499.51
A32: ='A4-FinPerf RE'!A32 -> Contracted services | D32: 9729622.051 | R32: 9729622.051
A33: ='A4-FinPerf RE'!A33 -> Transfers and grants | R33: 0
A34: ='A4-FinPerf RE'!A34 -> Other expenditure | C34: 4382797.93 | D34: 7220576.22 | E34: 7458555 | F34: 1578444 | G34: 984444 | H34: 4589555 | I34: 7584111 | J34: 8435669.217 | K34: 4611000 | R34: 46845152.37
A35: ='A4-FinPerf RE'!A35 -> Loss on disposal of PPE | R35: 0
A36: Total Expenditure | C36: =SUM(C25:C35) -> 18608214.93 | D36: 41247085.86 | E36: 21156612.57 | F36: 16359164.11 | G36: 3006975.761 | H36: 53939441.39 | I36: 39146683.28 | J36: 73293360.35 | K36: 28568960.93 | L36: 6002830.3 | M36: 0 | N36: 0 | O36: 0 | P36: 0 | Q36: 0 | R36: 301329329.5
A38: ='A4-FinPerf RE'!A38 -> Surplus/(Deficit) | C38: =C22-C36 -> -18608214.93 | D38: 98838694.04 | E38: -20956612.57 | F38: 3713996.312 | G38: -3006975.761 | H38: -53939441.39 | I38: =I22-I36 -> 8770511.567 | J38: -26082572.18 | K38: -8056570.429 | L38: -6002830.3 | M38: 0 | N38: 0 | O38: 0 | P38: 0 | Q38: 0 | R38: =R22-R36 -> -25330015.65
A39: ='A4-FinPerf RE'!A39 -> Transfers recognised - capital | D39: 0 | E39: 15258523.77 | F39: 1414994.59 | H39: 5169694.42 | I39: 42095684.19 | J39: 24941000 | K39: 279103.0364 | R39: =SUM(C39:Q39) -> 89159000.01
A40: ='A4-FinPerf RE'!A40 -> Contributions recognised - capital | R40: =SUM(C40:Q40) -> 0
A41: ='A4-FinPerf RE'!A41 -> Contributed assets | R41: =SUM(C41:Q41) -> 0
A42: ='A4-FinPerf RE'!A42 -> Surplus/(Deficit) after capital transfers & contributions | C42: =SUM(C38:C41) -> -18608214.93 | D42: 98838694.04 | E42: -5698088.8 | F42: 5128990.902 | G42: -3006975.761 | H42: -48769746.97 | I42: 50866195.76 | J42: -1141572.185 | K42: -7777467.393 | L42: -6002830.3 | M42: 0 | N42: 0 | O42: 0 | P42: 0 | Q42: =SUM(Q38:Q41) -> 0 | R42: =SUM(R38:R41) -> 63828984.36
A43: =head27a -> References
A44: 1. Departmental columns to be based on municipal organisation structure
A45: check balance | R45: ='A4-FinPerf RE'!J42-'SA2'!R42 -> -0.4978273958

Sheet SA3
A1: =muni&" - "&TableA3 -> FS193 Nketoana - Supporting Table SA3 Supportinging detail to 'Budgeted Financial Position'
A2: =desc -> Description | B2: =head27 -> Ref | C2: =head1b -> 2012/13 | D2: =head1A -> 2013/14 | E2: =Head1 -> 2014/15 | F2: =Head2 -> Current Year 2015/16 | J2: =Head3 -> 2016/17 Medium Term Revenue & Expenditure Framework
C3: =Head5 -> Audited Outcome | D3: =Head5 -> Audited Outcome | E3: =Head5 -> Audited Outcome | F3: =Head6 -> Original Budget | G3: =Head7 -> Adjusted Budget | H3: =Head8 -> Full Year Forecast | I3: =Head5b -> Pre-audit outcome | J3: =Head9 -> Budget Year 2016/17 | K3: =Head10 -> Budget Year +1 2017/18 | L3: =Head11 -> Budget Year +2 2018/19
A4: R thousand
A5: ASSETS
A6: ='A6-FinPos'!A7 -> Call investment deposits
A7: Call deposits < 90 days | C7: 3698369 | D7: 3696369 | E7: 8219000 | F7: 11640615 | G7: 7987827.22 | H7: =G7 -> 7987827.22 | I7: =H7 -> 7987827.22 | J7: 15156200.03 | K7: =J7*1.04 -> 15762448.03 | L7: =K7*1.04 -> 16392945.95
A8: Other current investments > 90 days
A9: ="Total "&A6 -> Total Call investment deposits | B9: 2 | C9: =SUM(C7:C8) -> 3698369 | D9: =SUM(D7:D8) -> 3696369 | E9: 8219000 | F9: 11640615 | G9: 7987827.22 | H9: 7987827.22 | I9: 7987827.22 | J9: 15156200.03 | K9: 15762448.03 | L9: 16392945.95
A11: ='A6-FinPos'!A8 -> Consumer debtors
A12: =A11 -> Consumer debtors | C12: 52639961 | D12: 239109887 | E12: 257808213 | F12: 138977491 | G12: 73078615 | H12: =G12 -> 73078615 | I12: =H12 -> 73078615 | J12: =I12*1.04 -> 76001759.6 | K12: 79041829.98 | L12: 82203503.18
A13: Less: Provision for debt impairment | D13: -208898712 | E13: -225045597 | F13: -40316100 | G13: -40316100 | H13: =G13 -> -40316100 | I13: =H13 -> -40316100 | J13: -41928744 | K13: -43605893.76 | L13: -45350129.51
A14: ="Total "&A11 -> Total Consumer debtors | B14: 2 | C14: =SUM(C12:C13) -> 52639961 | D14: =SUM(D12:D13) -> 30211175 | E14: 32762616 | F14: =SUM(F12:F13) -> 98661391 | G14: 32762515 | H14: 32762515 | I14: 32762515 | J14: 34073015.6 | K14: 35435936.22 | L14: 36853373.67
A16: Debt impairment provision
A17: Balance at the beginning of the year | D17: -208898713 | E17: -155804624 | G17: 0 | H17: =G17 -> 0 | I17: 0
A18: Contributions to the provision | C18: 14793915 | D18: -48818190 | E18: -54091024 | G18: 0 | H18: 0 | I18: 0
A19: Bad debts written off | C19: 29608495 | D19: 32671306 | E19: 969935 | F19: 40316100 | G19: 40316100 | H19: 40316100 | I19: 40316100 | J19: =I19*1.04 -> 41928744 | K19: =J19*1.04 -> 43605893.76 | L19: =K19*1.04 -> 45350129.51
A20: Balance at end of year | C20: =SUM(C17:C19) -> 44402410 | D20: =SUM(D17:D19) -> -225045597 | E20: -208925713 | F20: 40316100 | G20: 40316100 | H20: 40316100 | I20: 40316100 | J20: 41928744 | K20: 43605893.76 | L20: 45350129.51
A22: ='A6-FinPos'!A19&" (PPE)" -> Property, plant and equipment (PPE)
A23: PPE at cost/valuation (excl. finance leases) | C23: 1150653286 | D23: 1212231816 | E23: 1262569796 | F23: 1210636552 | G23: 1195165988 | H23: =G23 -> 1195165988 | I23: =H23 -> 1195165988 | J23: =I23*1.04 -> 1242972628 | K23: =J23*1.04 -> 1292691533 | L23: =K23*1.04 -> 1344399194
A24: Leases recognised as PPE | B24: 3
A25: Less: Accumulated depreciation | C25: 555150101 | D25: 621449812 | E25: 688853620 | F25: 621449812 | G25: 621449812 | H25: =G25 -> 621449812 | I25: =H25 -> 621449812 | J25: =I25*1.04 -> 646307804.5 | K25: =J25*1.04 -> 672160116.7 | L25: 699046521.3
A26: ="Total "&A22 -> Total Property, plant and equipment (PPE) | B26: 2 | C26: =SUM(C23:C24)-C25 -> 595503185 | D26: =SUM(D23:D24)-D25 -> 590782004 | E26: 573716176 | F26: 589186740 | G26: 573716176 | H26: 573716176 | I26: 573716176 | J26: 596664823 | K26: 620531416 | L26: 645352672.6
A28: LIABILITIES
A29: ='A6-FinPos'!A28&" - "&'A6-FinPos'!A30 -> Current liabilities - Borrowing
A30: Short term loans (other than bank overdraft) | G30: 0 | H30: =G30 -> 0 | I30: =H30 -> 0
A31: Current portion of long-term liabilities | D31: 906482 | E31: 1398503 | F31: 906482 | G31: 1398503 | H31: =G31 -> 1398503 | I31: =H31 -> 1398503 | J31: =I31*1.04 -> 1454443.12 | K31: =J31*1.04 -> 1512620.845 | L31: =K31*1.04 -> 1573125.679
A32: ="Total "&A29 -> Total Current liabilities - Borrowing | C32: =SUM(C30:C31) -> 0 | D32: =SUM(D30:D31) -> 906482 | E32: 1398503 | F32: 906482 | G32: 1398503 | H32: 1398503 | I32: 1398503 | J32: 1454443.12 | K32: 1512620.845 | L32: 1573125.679
A34: ='A6-FinPos'!A32 -> Trade and other payables
A35: Trade and other creditors | C35: 15637428 | D35: 74118085 | E35: 113956308 | F35: 74118084 | G35: 115164324 | H35: =G35 -> 115164324 | I35: 115164324 | J35: =I35*1.04 -> 119770897 | K35: =J35*1.04 -> 124561732.8 | L35: =K35*1.04 -> 129544202.2
A36: Unspent conditional transfers | C36: 5489578 | D36: 3679861 | E36: 1091381 | F36: 3679861 | G36: 1091381 | H36: 1091381 | I36: 1091381 | J36: =I36*1.04 -> 1135036.24 | K36: 1180437.69 | L36: 1227655.197
A37: VAT | C37: 17625069 | D37: 13080172 | E37: 15566312 | F37: 14844053 | G37: 15556312 | H37: 15556312 | I37: 15556312 | J37: 16178564.48 | K37: 16825707.06 | L37: 17498735.34
A38: ="Total "&A34 -> Total Trade and other payables | B38: 2 | C38: =SUM(C35:C37) -> 38752075 | D38: 90878118 | E38: 130614001 | F38: 92641998 | G38: 131812017 | H38: 131812017 | I38: 131812017 | J38: 137084497.7 | K38: 142567877.6 | L38: =SUM(L35:L37) -> 148270592.7
A40: ='A6-FinPos'!A36&" - "&'A6-FinPos'!A37 -> Non current liabilities - Borrowing
A41: Borrowing | B41: 4 | C41: 13191333 | D41: 10410778 | E41: 8569848 | F41: 10410778 | G41: 8569848 | H41: =G41 -> 8569848 | I41: =H41 -> 8569848 | J41: =I41*1.04 -> 8912641.92 | K41: =J41*1.04 -> 9269147.597 | L41: =K41*1.04 -> 9639913.501
A42: Finance leases (including PPP asset element) | G42: 0 | H42: =G42 -> 0 | I42: =H42 -> 0
A43: ="Total "&A40 -> Total Non current liabilities - Borrowing | C43: =SUM(C41:C42) -> 13191333 | D43: =SUM(D41:D42) -> 10410778 | E43: 8569848 | F43: 10410778 | G43: 8569848 | H43: 8569848 | I43: 8569848 | J43: 8912641.92 | K43: 9269147.597 | L43: 9639913.501
A45: ='A6-FinPos'!A38&" - non-current" -> Provisions - non-current
A46: Retirement benefits | C46: 6972000 | F46: 11102000 | G46: 10619000 | H46: =G46 -> 10619000 | I46: =H46 -> 10619000 | J46: =I46*1.04 -> 11043760 | K46: =J46*1.04 -> 11485510.4 | L46: =K46*1.04 -> 11944930.82
A47: List other major provision items
A48: Refuse landfill site rehabilitation | C48: 7178766 | F48: 3778956 | G48: 3478494 | H48: =G48 -> 3478494 | I48: =H48 -> 3478494 | J48: =I48*1.04 -> 3617633.76 | K48: =J48*1.04 -> 3762339.11 | L48: =K48*1.04 -> 3912832.675
A49: Other | D49: =11102000+3778956 -> 14880956 | E49: =10619000+3478494 -> 14097494 | F49: 0 | G49: 0 | H49: =G49 -> 0 | I49: =H49 -> 0
A50: ="Total "&A45 -> Total Provisions - non-current | C50: =SUM(C46:C49) -> 14150766 | D50: 14880956 | E50: 14097494 | F50: 14880956 | G50: 14097494 | H50: 14097494 | I50: 14097494 | J50: 14661393.76 | K50: 15247849.51 | L50: 15857763.49
A52: CHANGES IN NET ASSETS
A53: ='A6-FinPos'!A45 -> Accumulated Surplus/(Deficit)
A54: =A53&" - opening balance" -> Accumulated Surplus/(Deficit) - opening balance | C54: 611047141 | D54: 536883592 | E54: 500993890 | F54: 599594871 | G54: 500762616.2 | H54: 500762616.2 | I54: 500762616.2 | J54: 527641980.6 | K54: 548747659.8 | L54: 570697566.2
A55: GRAP adjustments
A56: Restated balance | C56: =SUM(C54:C55) -> 611047141 | D56: =SUM(D54:D55) -> 536883592 | E56: =SUM(E54:E55) -> 500993890 | F56: =SUM(F54:F55) -> 599594871 | G56: 500762616.2 | H56: 500762616.2 | I56: 500762616.2 | J56: 527641980.6 | K56: 548747659.8 | L56: 570697566.2
A57: ='A4-FinPerf RE'!A38 -> Surplus/(Deficit) | C57: ='A4-FinPerf RE'!C46 -> 21249767 | D57: ='A4-FinPerf RE'!D46 -> -65594088.18 | E57: ='A4-FinPerf RE'!E46 -> -10677791.96 | F57: ='A4-FinPerf RE'!F46 -> 59928982.03 | G57: ='A4-FinPerf RE'!G46 -> 59099447.05 | H57: ='A4-FinPerf RE'!H46 -> 193316571.8 | I57: ='A4-FinPerf RE'!I46 -> 193316571.8 | J57: ='A4-FinPerf RE'!J46 -> 63828983.86 | K57: ='A4-FinPerf RE'!K46 -> 66382143.22 | L57: ='A4-FinPerf RE'!L46 -> 69037428.95
A58: Appropriations to Reserves
A59: Transfers from Reserves
A60: Depreciation offsets
A61: Other adjustments | C61: -21249767 | D61: 65594088.18 | E61: 10677791.96 | F61: -59928982.03 | G61: -59099447.05 | H61: -193316571.8 | I61: -193316571.8 | J61: -63828983.86 | K61: -66382143.22 | L61: -69037428.95
A62: Accumulated Surplus/(Deficit) | B62: 1 | C62: =SUM(C56:C61) -> 611047141 | D62: =SUM(D56:D61) -> 536883592 | E62: =SUM(E56:E61) -> 500993890 | F62: 599594871 | G62: 500762616.2 | H62: 193316571.8 | I62: 193316571.8 | J62: 527641980.6 | K62: 548747659.8 | L62: 570697566.2
A63: Reserves
A64: Housing Development Fund
A65: Capital replacement
A66: Self-insurance
A67: Other reserves
A68: Revaluation
A69: Total Reserves | B69: 2 | C69: =SUM(C64:C68) -> 0 | D69: 0 | E69: 0 | F69: 0 | G69: 0 | H69: 0 | I69: 0 | J69: 0 | K69: 0 | L69: 0
A70: ='A6-FinPos'!A48 -> TOTAL COMMUNITY WEALTH/EQUITY | B70: 2 | C70: =C62+C69 -> 611047141 | D70: 536883592 | E70: 500993890 | F70: 599594871 | G70: 500762616.2 | H70: 193316571.8 | I70: 193316571.8 | J70: 527641980.6 | K70: 548747659.8 | L70: 570697566.2
A72: Total capital expenditure includes expenditure on nationally significant priorities:
A73: Provision of basic services
A76: =head27a -> References
A77: ="1. Must reconcile with "&'Template names'!F103 -> 1. Must reconcile with Table A4 Budgeted Financial Performance (revenue and expenditure)
A78: ="2. Must reconcile with "&'Template names'!F105 -> 2. Must reconcile with Table A6 Budgeted Financial Position
A79: 3. Leases treated as assets to be depreciated as the same as purchased/constructed assets. Includes PPP asset element accounted for as finance leases
A80: 4. Borrowing must reconcile to Table A17
A81: check | C81: =C70-'A6-FinPos'!C48 -> 0 | D81: =D70-'A6-FinPos'!D48 -> 0 | E81: =E70-'A6-FinPos'!E48 -> 0 | F81: =F70-'A6-FinPos'!F48 -> 0 | G81: =G70-'A6-FinPos'!G48 -> 0 | H81: =H70-'A6-FinPos'!H48 -> 193316571.8 | I81: =I70-'A6-FinPos'!I48 -> 193316571.8 | J81: =J70-'A6-FinPos'!J48 -> 0 | K81: =K70-'A6-FinPos'!K48 -> 0 | L81: =L70-'A6-FinPos'!L48 -> 0
C82: =TREND(D82:H82) -> 0 | D82: =TREND(E82:H82) -> 0 | E82: =E73 -> 0 | F82: =H73 -> 0 | G82: =J73 -> 0 | H82: =K73 -> 0 | I82: =L73 -> 0

Sheet SA4
A1: =muni&" - "&TableA4 -> FS193 Nketoana - Supporting Table SA4 Reconciliation of IDP strategic objectives and budget (revenue)
A2: Strategic Objective | B2: Goal | C2: Goal Code | D2: =head27 -> Ref | E2: =head1b -> 2012/13 | F2: =head1A -> 2013/14 | G2: =Head1 -> 2014/15 | H2: =Head2 -> Current Year 2015/16 | K2: =Head3 -> 2016/17 Medium Term Revenue & Expenditure Framework
A3: R thousand | E3: =Head5 -> Audited Outcome | F3: =Head5 -> Audited Outcome | G3: =Head5 -> Audited Outcome | H3: =Head6 -> Original Budget | I3: =Head7 -> Adjusted Budget | J3: =Head8 -> Full Year Forecast | K3: =Head9 -> Budget Year 2016/17 | L3: =Head10 -> Budget Year +1 2017/18 | M3: =Head11 -> Budget Year +2 2018/19
A5: Local Economic Development | B5: To create employment opportunities in the Nketoana | E5: 0 | F5: 40801000 | G5: 22602000 | H5: 22602000 | I5: 18625769.77 | J5: 18625769.77 | K5: =G5*1.04+34714977.72 -> 58221057.72 | L5: =K5*1.04 -> 60549900.03 | M5: =L5*1.04 -> 62971896.03
A8: Municipal Institution Development and Transformation | B8: To facilitate institutional transformation and development in the Nketoana local municipality | E8: 22079000 | F8: 22932000 | G8: 29997000 | H8: 19419555 | I8: =H8 -> 19419555 | J8: =I8 -> 19419555 | K8: =G8*1.04 -> 31196880 | L8: =K8*1.04 -> 32444755.2 | M8: 33742545.41
